Workbook

Sheet START
A1: =muni -> NW403 City Of Matlosana

Sheet Instructions
D2: 2020
X4: Yes
X5: No
W7: Type of Entities Range: | X7: Parent Municipality
X8: Consolidated Information
W10: Date of Adjustment | X10: 2025-06-03
W19: MTREF Range: | X19: 2013
X20: 2014
X21: 2015
X22: 2016
X23: 2017
X24: 2018
X25: 2019
X26: 2020
X27: 2021
X28: 2022
X29: 2023
X30: 2024
X31: 2025
X32: 2026
W33: MTREF Linked:
W34: MTREF:
X35: 12
W36: Fin Year: | X36: =INDEX(X19:X33,X35,1) -> 2024
X38: =MTREF&"/"&RIGHT(MTREF,2)+1 -> 2024/25

Sheet Template names (hidden)
A1: Common sheet headings
A2: Head1 | B2: =HLOOKUP(MTREF,Headings,2) -> 2023/24 | C2: Prior year -1
A3: Head1A | B3: =HLOOKUP(MTREF,Headings,3) -> 2022/23 | C3: Prior year -2
A4: Head1B | B4: =HLOOKUP(MTREF,Headings,4) -> 2021/22 | C4: Prior year -3
A5: Head2 | B5: =HLOOKUP(MTREF,Headings,7) -> Budget Year 2024/25 | C5: Year of approved budget
A6: Head2A | B6: =HLOOKUP(MTREF,Headings,6) -> 2024/25 | C6: Approved budget year
A7: Head3 | B7: =HLOOKUP(MTREF,Headings,5) -> 2024/25 Medium Term Revenue & Expenditure Framework | C7: MTREF header name
A8: Head3A | B8: Medium Term Revenue and Expenditure Framework
A9: Head4 | B9: Current year
A10: Head5 | B10: Audited Outcome
A11: Head5A | B11: Outcome
A12: Head5B | B12: Pre-audit outcome
A13: Head6 | B13: Original Budget
A14: Head7 | B14: Adjusted Budget
A15: Head8 | B15: Full Year Forecast
A16: Head9 | B16: =HLOOKUP(MTREF,Headings,7) -> Budget Year 2024/25 | C16: 1st year of MTREF | D16: Year1
A17: Head10 | B17: =HLOOKUP(MTREF,Headings,8) -> Budget Year +1 2025/26 | C17: 2nd year of MTREF | D17: Year2
A18: Head11 | B18: =HLOOKUP(MTREF,Headings,9) -> Budget Year +2 2026/27 | C18: 3rd year of MTREF | D18: Year3
A19: Head24 | B19: Description | D19: Desc
A20: Head26 | B20: Vote Description | D20: VDesc
A21: Head27 | B21: Ref
A22: Head27a | B22: References
A23: Head28 | B23: Surplus/ (Deficit) for the year | D23: Result
A24: Head29 | B24: Annual target 2007/08
A25: Head30 | B25: Revised target 2007/08
A26: Head31 | B26: Quarter ended 30 September
A27: Head32 | B27: Quarter ended 31 December
A28: Head33 | B28: Quarter ended 31 March
A29: Head34 | B29: Quarter ended 30 June
A30: Head35 | B30: Variance explanation
A31: Head36 | B31: YTD Actual 31 Dec
A32: Head37 | B32: YTD Budget 31 Dec
A33: Head38 | B33: Monthly actual
A34: Head39 | B34: YearTD actual
A35: Head40 | B35: YearTD budget
A36: Head41 | B36: YTD variance
A37: Head42 | B37: Surplus/ (Deficit) for the yr/period
A38: Head43 | B38: =Head3&" Summary" -> 2024/25 Medium Term Revenue & Expenditure Framework Summary
A39: Head44 | B39: 2001 Census
A40: Head45 | B40: 2011 Census
A41: Head46 | B41: - Adjustments Budget - January 2007
A42: Head47 | B42: Previous target year to complete
A43: Head48 | B43: Present value
A44: Head49
A45: Head50 | B45: Other Adjusts.
A46: Head51 | B46: Accum. Funds
A47: Head52 | B47: Multi-year capital
A48: Head53 | B48: Unfore. Unavoid.
A49: Head54 | B49: Prior Adjusted
A50: Head55 | B50: Nat. or Prov. Govt
A51: Head56 | B51: Total Adjusts.
A52: Head57 | B52: Month DD, YYYY -
A53: Head58 | B53: Parent muni.
A54: Head59 | B54: Downward adjusts
A55: SFPerf1 | B55: Budgeted Financial Performance
A56: SFPerf2 | B56: Forecast Financial Performance
A57: SFPos1 | B57: Budgeted Financial Position
A58: SFPos2 | B58: Forecast Financial Position
A59: Cash1 | B59: Budget Cash Flow
A60: Cash2 | B60: Forecast Cash Flow
A61: RandM | B61: Expenditure includes repairs & maintenance of R'000
A62: Standard nomenclature
A63: Muni | B63: ='Lookup and lists'!B28 -> NW403 City Of Matlosana
A64: Municipal Entities | B64: 2 | C64: Type of report: | D64: 1
A65: =IF((MuniEntities=1)*(MuniType=2),"YES","NO") -> NO | B65: Does this municipality have entities (consolidated budget and entity budgets required)? YES/NO
A66: Mid Year Review/Adjustment Budget schedules & tables | E66: Consolidated header | F66: Parent municipality header
A67: ADJSum | B67: =D67&IF(Consolques="YES",E67,F67) -> Table B1 Adjustments Budget Summary | D67: Table B1 | E67: ="Consolidated "&F67 -> Consolidated Adjustments Budget Summary | F67: ="Adjustments Budget Summary" -> Adjustments Budget Summary
A68: ADJ2 | B68: Table B3 Adjustments Budget Financial Performance (revenue and expenditure by municipal vote) | D68: Table B3 | E68: ="Consolidated "&F68 -> Consolidated Adjustments Budget Financial Performance (revenue and expenditure by municipal vote) | F68: ="Adjustments Budget Financial Performance (revenue and expenditure by municipal vote)" -> Adjustments Budget Financial Performance (revenue and expenditure by municipal vote)
A69: ADJ3 | B69: Table B2 Adjustments Budget Financial Performance (functional classification) | D69: Table B2 | E69: Consolidated Adjustments Budget Financial Performance (functional classification) | F69: ="Adjustments Budget Financial Performance (functional classification)" -> Adjustments Budget Financial Performance (functional classification)
A70: ADJ4 | B70: Table B4 Adjustments Budget Financial Performance (revenue and expenditure) | D70: Table B4 | E70: Consolidated Adjustments Budget Financial Performance (revenue and expenditure) | F70: ="Adjustments Budget Financial Performance (revenue and expenditure)" -> Adjustments Budget Financial Performance (revenue and expenditure)
A71: ADJ5 | B71: Table B5 Adjustments Capital Expenditure Budget by vote and funding | D71: Table B5 | E71: Consolidated Adjustments Capital Expenditure Budget by vote and funding | F71: ="Adjustments Capital Expenditure Budget by vote and funding" -> Adjustments Capital Expenditure Budget by vote and funding
A72: ADJ6 | B72: Table B6 Adjustments Budget Financial Position | D72: Table B6 | E72: Consolidated Adjustments Budget Financial Position | F72: ="Adjustments Budget Financial Position" -> Adjustments Budget Financial Position
A73: ADJ7 | B73: Table B7 Adjustments Budget Cash Flows | D73: Table B7 | E73: Consolidated Adjustments Budget Cash Flows | F73: ="Adjustments Budget Cash Flows" -> Adjustments Budget Cash Flows
A74: ADJ8 | B74: Table B8 Cash backed reserves/accumulated surplus reconciliation | D74: Table B8 | E74: Consolidated Cash backed reserves/accumulated surplus reconciliation | F74: ="Cash backed reserves/accumulated surplus reconciliation" -> Cash backed reserves/accumulated surplus reconciliation
A75: ADJ9 | B75: Table B9 Asset Management | D75: Table B9 | E75: Consolidated Asset Management | F75: ="Asset Management" -> Asset Management
A76: ADJ10 | B76: Table B10 Basic service delivery measurement | D76: Table B10 | E76: Consolidated Basic service delivery measurement | F76: ="Basic service delivery measurement" -> Basic service delivery measurement
A77: ADJB1 | B77: Supporting Table SB1 Supporting detail to 'Budgeted Financial Performance' | D77: =D101&"Table SB1 " -> Supporting Table SB1 | E77: Consolidated Supporting detail to 'Budgeted Financial Performance' | F77: ="Supporting detail to 'Budgeted Financial Performance'" -> Supporting detail to 'Budgeted Financial Performance'
A78: ADJB2 | B78: Supporting Table SB2 Supporting detail to 'Financial Position Budget' | D78: =D101&"Table SB2 " -> Supporting Table SB2 | E78: Consolidated Supporting detail to 'Financial Position Budget' | F78: ="Supporting detail to 'Financial Position Budget'" -> Supporting detail to 'Financial Position Budget'
A79: ADJB3 | B79: Supporting Table SB3 Adjustments to the SDBIP - performance objectives | D79: =D101&"Table SB3 " -> Supporting Table SB3 | E79: Consolidated Adjustments to the SDBIP - performance objectives | F79: ="Adjustments to the SDBIP - performance objectives" -> Adjustments to the SDBIP - performance objectives
A80: ADJB4 | B80: Supporting Table SB4 Adjustments to budgeted performance indicators and benchmarks | D80: =D101&"Table SB4 " -> Supporting Table SB4 | E80: Consolidated Adjustments to budgeted performance indicators and benchmarks | F80: ="Adjustments to budgeted performance indicators and benchmarks" -> Adjustments to budgeted performance indicators and benchmarks
A81: ADJB5 | B81: Supporting Table SB5 Adjustments Budget - social, economic and demographic statistics and assumptions | D81: =D101&"Table SB5 " -> Supporting Table SB5 | E81: Consolidated Adjustments Budget - social, economic and demographic statistics and assumptions | F81: ="Adjustments Budget - social, economic and demographic statistics and assumptions" -> Adjustments Budget - social, economic and demographic statistics and assumptions
A82: ADJB6 | B82: Supporting Table SB6 Adjustments Budget - funding measurement | D82: =D101&"Table SB6 " -> Supporting Table SB6 | E82: Consolidated Adjustments Budget - funding measurement | F82: ="Adjustments Budget - funding measurement" -> Adjustments Budget - funding measurement
A83: ADJB7 | B83: Supporting Table SB7 Adjustments Budget - transfers and grant receipts | D83: =D101&"Table SB7 " -> Supporting Table SB7 | E83: Consolidated Adjustments Budget - transfers and grant receipts | F83: ="Adjustments Budget - transfers and grant receipts" -> Adjustments Budget - transfers and grant receipts
A84: ADJB8 | B84: Supporting Table SB8 Adjustments Budget - expenditure on transfers and grant programme | D84: =D101&"Table SB8 " -> Supporting Table SB8 | E84: Consolidated Adjustments Budget - expenditure on transfers and grant programme | F84: ="Adjustments Budget - expenditure on transfers and grant programme" -> Adjustments Budget - expenditure on transfers and grant programme
A85: ADJB9 | B85: Supporting Table SB9 Adjustments Budget - reconciliation of transfers, grant receipts, and unspent funds | D85: =D101&"Table SB9 " -> Supporting Table SB9 | E85: Consolidated Adjustments Budget - reconciliation of transfers, grant receipts, and unspent funds | F85: ="Adjustments Budget - reconciliation of transfers, grant receipts, and unspent funds" -> Adjustments Budget - reconciliation of transfers, grant receipts, and unspent funds
A86: ADJB10 | B86: Supporting Table SB10 Adjustments Budget - transfers and grants made by the municipality | D86: =D101&"Table SB10 " -> Supporting Table SB10 | E86: Consolidated Adjustments Budget - transfers and grants made by the municipality | F86: ="Adjustments Budget - transfers and grants made by the municipality" -> Adjustments Budget - transfers and grants made by the municipality
A87: ADJB11 | B87: Supporting Table SB11 Adjustments Budget - councillor and staff benefits | D87: =D101&"Table SB11 " -> Supporting Table SB11 | E87: Consolidated Adjustments Budget - councillor and staff benefits | F87: ="Adjustments Budget - councillor and staff benefits" -> Adjustments Budget - councillor and staff benefits
A88: ADJB12 | B88: Supporting Table SB12 Adjustments Budget - monthly revenue and expenditure (municipal vote) | D88: =D101&"Table SB12 " -> Supporting Table SB12 | E88: Consolidated Adjustments Budget - monthly revenue and expenditure (municipal vote) | F88: ="Adjustments Budget - monthly revenue and expenditure (municipal vote)" -> Adjustments Budget - monthly revenue and expenditure (municipal vote)
A89: ADJB13 | B89: Supporting Table SB13 Adjustments Budget - monthly revenue and expenditure (functional classification) | D89: =D101&"Table SB13 " -> Supporting Table SB13 | E89: Consolidated Adjustments Budget - monthly revenue and expenditure (functional classification) | F89: ="Adjustments Budget - monthly revenue and expenditure (functional classification)" -> Adjustments Budget - monthly revenue and expenditure (functional classification)
A90: ADJB14 | B90: Supporting Table SB14 Adjustments Budget - monthly revenue and expenditure | D90: =D101&"Table SB14 " -> Supporting Table SB14 | E90: Consolidated Adjustments Budget - monthly revenue and expenditure | F90: ="Adjustments Budget - monthly revenue and expenditure" -> Adjustments Budget - monthly revenue and expenditure
A91: ADJB15 | B91: Supporting Table SB15 Adjustments Budget - monthly cash flow | D91: =D101&"Table SB15 " -> Supporting Table SB15 | E91: Consolidated Adjustments Budget - monthly cash flow | F91: ="Adjustments Budget - monthly cash flow" -> Adjustments Budget - monthly cash flow
A92: ADJB16 | B92: Supporting Table SB16 Adjustments Budget - monthly capital expenditure (municipal vote) | D92: =D101&"Table SB16 " -> Supporting Table SB16 | E92: Consolidated Adjustments Budget - monthly capital expenditure (municipal vote) | F92: ="Adjustments Budget - monthly capital expenditure (municipal vote)" -> Adjustments Budget - monthly capital expenditure (municipal vote)
A93: ADJB17 | B93: Supporting Table SB17 Adjustments Budget - monthly capital expenditure (functional classification) | D93: =D101&"Table SB17 " -> Supporting Table SB17 | E93: Consolidated Adjustments Budget - monthly capital expenditure (functional classification) | F93: ="Adjustments Budget - monthly capital expenditure (functional classification)" -> Adjustments Budget - monthly capital expenditure (functional classification)
A94: ADJB18a | B94: Supporting Table SB18a Adjustments Budget - capital expenditure on new assets by asset class | D94: =D101&"Table SB18a " -> Supporting Table SB18a | E94: Consolidated Adjustments Budget - capital expenditure on new assets by asset class | F94: ="Adjustments Budget - capital expenditure on new assets by asset class" -> Adjustments Budget - capital expenditure on new assets by asset class
A95: ADJB18b | B95: Supporting Table SB18b Adjustments Budget - capital expenditure on renewal of existing assets by asset class | D95: =D101&"Table SB18b " -> Supporting Table SB18b | E95: ="Consolidated "&F95 -> Consolidated Adjustments Budget - capital expenditure on renewal of existing assets by asset class | F95: ="Adjustments Budget - capital expenditure on renewal of existing assets by asset class" -> Adjustments Budget - capital expenditure on renewal of existing assets by asset class
A96: ADJB18c | B96: Supporting Table SB18c Adjustments Budget - expenditure on repairs and maintenance by asset class | D96: =D101&"Table SB18c " -> Supporting Table SB18c | E96: ="Consolidated "&F96 -> Consolidated Adjustments Budget - expenditure on repairs and maintenance by asset class | F96: ="Adjustments Budget - expenditure on repairs and maintenance by asset class" -> Adjustments Budget - expenditure on repairs and maintenance by asset class
A97: ADJB18d | B97: Supporting Table SB18d Adjustments Budget - depreciation by asset class | D97: =D101&"Table SB18d " -> Supporting Table SB18d | E97: ="Consolidated "&F97 -> Consolidated Adjustments Budget - depreciation by asset class | F97: ="Adjustments Budget - depreciation by asset class" -> Adjustments Budget - depreciation by asset class
A98: ADJB18e | B98: Supporting Table SB18e Adjustments Budget - capital expenditure on upgrading of existing assets by asset class | D98: =D101&"Table SB18e " -> Supporting Table SB18e | E98: ="Consolidated "&F98 -> Consolidated Adjustments Budget - capital expenditure on upgrading of existing assets by asset class | F98: ="Adjustments Budget - capital expenditure on upgrading of existing assets by asset class" -> Adjustments Budget - capital expenditure on upgrading of existing assets by asset class
A99: ADJB19 | B99: Supporting Table SB19 List of capital programmes and projects affected by Adjustments Budget | D99: =D101&"Table SB19 " -> Supporting Table SB19 | E99: Consolidated List of capital programmes and projects affected by Adjustments Budget | F99: ="List of capital programmes and projects affected by Adjustments Budget" -> List of capital programmes and projects affected by Adjustments Budget
A100: ADJB20 | B100: Supporting Table SB20 Not required | D100: =D101&"Table SB20 " -> Supporting Table SB20 | E100: ="Adjusted Budget Municipal Entity Performance Summary" -> Adjusted Budget Municipal Entity Performance Summary | F100: Not required
D101: Supporting

Sheet Lookup and lists (hidden)
A1: Description | B1: 2013 | C1: 2014 | D1: 2015 | E1: 2016 | F1: 2017 | G1: 2018 | H1: 2019 | I1: 2020 | J1: 2021 | K1: 2022 | L1: 2023 | M1: 2024 | N1: 2025 | O1: 2026 | Q1: Grants: | R1: National - opex | S1: Provincial - opex | T1: National - capex | U1: Provincial - capex | V1: YESNO
A2: ='Template names'!C2 -> Prior year -1 | B2: =B1-1&"/"&RIGHT(B1,2)-0 -> 2012/13 | C2: =C1-1&"/"&RIGHT(C1,2)-0 -> 2013/14 | D2: =D1-1&"/"&RIGHT(D1,2)-0 -> 2014/15 | E2: =E1-1&"/"&RIGHT(E1,2)-0 -> 2015/16 | F2: 2016/17 | G2: 2017/18 | H2: 2018/19 | I2: 2019/20 | J2: 2020/21 | K2: 2021/22 | L2: 2022/23 | M2: 2023/24 | N2: 2024/25 | O2: 2025/26 | R2: Local Government Equitable Share | S2: Health subsidy | T2: Municipal Infrastructure Grant (MIG) | U2: Agriculture | V2: Yes
A3: ='Template names'!C3 -> Prior year -2 | B3: =B1-2&"/"&RIGHT(B1,2)-1 -> 2011/12 | C3: =C1-2&"/"&RIGHT(C1,2)-1 -> 2012/13 | D3: =D1-2&"/"&RIGHT(D1,2)-1 -> 2013/14 | E3: =E1-2&"/"&RIGHT(E1,2)-1 -> 2014/15 | F3: 2015/16 | G3: 2016/17 | H3: 2017/18 | I3: 2018/19 | J3: 2019/20 | K3: 2020/21 | L3: 2021/22 | M3: 2022/23 | N3: 2023/24 | O3: 2024/25 | R3: RSC Levy Replacement | S3: Ambulance subsidy | T3: Public Transport and Systems | U3: Education | V3: No
A4: ='Template names'!C4 -> Prior year -3 | B4: =B1-3&"/"&RIGHT(B1,2)-2 -> 2010/11 | C4: =C1-3&"/"&RIGHT(C1,2)-2 -> 2011/12 | D4: =D1-3&"/"&RIGHT(D1,2)-2 -> 2012/13 | E4: =E1-3&"/"&RIGHT(E1,2)-2 -> 2013/14 | F4: 2014/15 | G4: 2015/16 | H4: 2016/17 | I4: 2017/18 | J4: 2018/19 | K4: 2019/20 | L4: 2020/21 | M4: 2021/22 | N4: 2022/23 | O4: 2023/24 | R4: Finance Management | S4: Housing | T4: Rural Transport Services and Infrastructure | U4: Health
A5: ='Template names'!C7 -> MTREF header name | B5: =B1&"/"&RIGHT(B1,2)+1&" Medium Term Revenue & Expenditure Framework" -> 2013/14 Medium Term Revenue & Expenditure Framework | C5: =C1&"/"&RIGHT(C1,2)+1&" Medium Term Revenue & Expenditure Framework" -> 2014/15 Medium Term Revenue & Expenditure Framework | D5: =D1&"/"&RIGHT(D1,2)+1&" Medium Term Revenue & Expenditure Framework" -> 2015/16 Medium Term Revenue & Expenditure Framework | E5: =E1&"/"&RIGHT(E1,2)+1&" Medium Term Revenue & Expenditure Framework" -> 2016/17 Medium Term Revenue & Expenditure Framework | F5: 2017/18 Medium Term Revenue & Expenditure Framework | G5: 2018/19 Medium Term Revenue & Expenditure Framework | H5: 2019/20 Medium Term Revenue & Expenditure Framework | I5: 2020/21 Medium Term Revenue & Expenditure Framework | J5: 2021/22 Medium Term Revenue & Expenditure Framework | K5: 2022/23 Medium Term Revenue & Expenditure Framework | L5: 2023/24 Medium Term Revenue & Expenditure Framework | M5: 2024/25 Medium Term Revenue & Expenditure Framework | N5: 2025/26 Medium Term Revenue & Expenditure Framework | O5: 2026/27 Medium Term Revenue & Expenditure Framework | R5: Municipal Systems Improvement | S5: Sport and Recreation | T5: Regional Bulk Infrastructure | U5: Housing and Local Government
A6: ='Template names'!C6 -> Approved budget year | B6: =B1&"/"&RIGHT(B1,2)+1 -> 2013/14 | C6: =C1&"/"&RIGHT(C1,2)+1 -> 2014/15 | D6: =D1&"/"&RIGHT(D1,2)+1 -> 2015/16 | E6: =E1&"/"&RIGHT(E1,2)+1 -> 2016/17 | F6: 2017/18 | G6: 2018/19 | H6: 2019/20 | I6: 2020/21 | J6: 2021/22 | K6: 2022/23 | L6: 2023/24 | M6: 2024/25 | N6: 2025/26 | O6: 2026/27 | R6: Water Services Operating Subsidy | T6: Rural Households Infrastructure | U6: Other Departments
A7: ='Template names'!C16 -> 1st year of MTREF | B7: ="Budget Year "&B1&"/"&RIGHT(B1,2)+1 -> Budget Year 2013/14 | C7: ="Budget Year "&C1&"/"&RIGHT(C1,2)+1 -> Budget Year 2014/15 | D7: ="Budget Year "&D1&"/"&RIGHT(D1,2)+1 -> Budget Year 2015/16 | E7: ="Budget Year "&E1&"/"&RIGHT(E1,2)+1 -> Budget Year 2016/17 | F7: Budget Year 2017/18 | G7: Budget Year 2018/19 | H7: Budget Year 2019/20 | I7: Budget Year 2020/21 | J7: Budget Year 2021/22 | K7: Budget Year 2022/23 | L7: Budget Year 2023/24 | M7: Budget Year 2024/25 | N7: Budget Year 2025/26 | O7: Budget Year 2026/27 | R7: Energy Efficiency and Demand Management | T7: Neighbourhood Development Partnership | U7: Public Works, Roads, Transport
A8: ='Template names'!C17 -> 2nd year of MTREF | B8: ="Budget Year +1 "&B1+1&"/"&RIGHT(B1,2)+2 -> Budget Year +1 2014/15 | C8: ="Budget Year +1 "&C1+1&"/"&RIGHT(C1,2)+2 -> Budget Year +1 2015/16 | D8: ="Budget Year +1 "&D1+1&"/"&RIGHT(D1,2)+2 -> Budget Year +1 2016/17 | E8: ="Budget Year +1 "&E1+1&"/"&RIGHT(E1,2)+2 -> Budget Year +1 2017/18 | F8: Budget Year +1 2018/19 | G8: Budget Year +1 2019/20 | H8: Budget Year +1 2020/21 | I8: Budget Year +1 2021/22 | J8: Budget Year +1 2022/23 | K8: Budget Year +1 2023/24 | L8: Budget Year +1 2024/25 | M8: Budget Year +1 2025/26 | N8: Budget Year +1 2026/27 | O8: Budget Year +1 2027/28 | R8: Integrated National Electrification Programme | T8: 2010 FIFA World Cup Stadiums Development | U8: Sport and Recreation
A9: ='Template names'!C18 -> 3rd year of MTREF | B9: ="Budget Year +2 "&B1+2&"/"&RIGHT(B1,2)+3 -> Budget Year +2 2015/16 | C9: ="Budget Year +2 "&C1+2&"/"&RIGHT(C1,2)+3 -> Budget Year +2 2016/17 | D9: ="Budget Year +2 "&D1+2&"/"&RIGHT(D1,2)+3 -> Budget Year +2 2017/18 | E9: ="Budget Year +2 "&E1+2&"/"&RIGHT(E1,2)+3 -> Budget Year +2 2018/19 | F9: Budget Year +2 2019/20 | G9: Budget Year +2 2020/21 | H9: Budget Year +2 2021/22 | I9: Budget Year +2 2022/23 | J9: Budget Year +2 2023/24 | K9: Budget Year +2 2024/25 | L9: Budget Year +2 2025/26 | M9: Budget Year +2 2026/27 | N9: Budget Year +2 2027/28 | O9: Budget Year +2 2028/29 | R9: Municipal Drought Relief
A10: Adjustments Budget | B10: ="Annual target " & B1&"/"&RIGHT(B1,2)+1 -> Annual target 2013/14 | C10: ="Annual target " & C1&"/"&RIGHT(C1,2)+1 -> Annual target 2014/15 | D10: ="Annual target " & D1&"/"&RIGHT(D1,2)+1 -> Annual target 2015/16 | E10: ="Annual target " & E1&"/"&RIGHT(E1,2)+1 -> Annual target 2016/17 | F10: Annual target 2017/18 | G10: Annual target 2018/19 | H10: Annual target 2019/20 | I10: Annual target 2020/21 | J10: Annual target 2021/22 | K10: Annual target 2022/23 | L10: Annual target 2023/24 | M10: Annual target 2024/25 | N10: Annual target 2025/26 | O10: Annual target 2026/27 | R10: 2010 FIFA World Cup Operating
A11: NOTE: This sheet should not be directly amended - select headings from sheet 'S' | R11: Electricity Demand Side Management
R12: EPWP Incentive
R15: Asset Class | S15: Asset sub-class Old | T15: Asset sub-class | U15: IUDF | V15: MTSF
R17: Roads Infrastructure | S17: Roads, Pavements & Bridges | T17: Roads | U17: Spatial integration | V17: Quality basic education
R18: Storm water Infrastructure | S18: Storm water | T18: Road Structures | U18: Inclusion and access | V18: A long and healthy life for all South Africans
R19: Electrical Infrastructure | S19: Generation | T19: Road Furniture | U19: Growth | V19: All people in South Africa are and feel safe
R20: Water Supply Infrastructure | S20: Transmission & Reticulation | T20: Capital Spares | U20: Governance | V20: Decent employment through inclusive growth
R21: Sanitation Infrastructure | S21: Street Lighting | T21: Drainage Collection | V21: A skilled and capable workforce to support an inclusive growth path
R22: Solid Waste Infrastructure | S22: Dams & Reservoirs | T22: Storm water Conveyance | V22: An efficient, competitive and responsive economic infrastructure network
R23: Rail Infrastructure | S23: Water purification | T23: Attenuation | V23: Vibrant, equitable, sustainable rural communities contributing towards food security for all
R24: Coastal Infrastructure | S24: Reticulation | T24: Power Plants | V24: Sustainable human settlements and improved quality of household life
R25: Information and Communication Infrastructure | S25: Sewerage purification | T25: HV Substations | V25: Responsive, accountable, effective and efficient local government
R26: Community Facilities | S26: Waste Management | T26: HV Switching Station | V26: Protect and enhance our environmental assets and natural resources
A27: Name link | B27: 225 | R27: Sport and Recreation Facilities | S27: Transportation | T27: HV Transmission Conductors | V27: Create a better South Africa and contribute to a better Africa and a better world
A28: Name of Muni | B28: =INDEX(B29:B312,B27,1) -> NW403 City Of Matlosana | R28: Heritage assets | S28: Gas | T28: MV Substations | V28: An efficient, effective and development-oriented public service
B29: Choose name from list | C29: Set name on 'Instructions' sheet | R29: Revenue Generating | S29: Parks & gardens | T29: MV Switching Stations | V29: A comprehensive, responsive and sustainable social protection system
B30: BUF Buffalo City | C30: EC EASTERN CAPE | R30: Non-revenue Generating | S30: Sportsfields & stadia | T30: MV Networks | V30: A diverse, socially cohesive society with a common national identity
B31: NMA Nelson Mandela Bay | C31: EC EASTERN CAPE | R31: Operational Buildings | S31: Swimming pools | T31: LV Networks
B32: EC101 Dr Beyers Naude | C32: EC EASTERN CAPE | R32: Housing | S32: Community halls | T32: Capital Spares
B33: EC102 Blue Crane Route | C33: EC EASTERN CAPE | R33: Biological or Cultivated Assets | S33: Libraries | T33: Dams and Weirs
B34: EC104 Makana | C34: EC EASTERN CAPE | R34: Servitudes | S34: Recreational facilities | T34: Boreholes
B35: EC105 Ndlambe | C35: EC EASTERN CAPE | R35: Licences and Rights | S35: Fire, safety & emergency | T35: Reservoirs
B36: EC106 Sundays River Valley | C36: EC EASTERN CAPE | R36: Computer Equipment | S36: Security and policing | T36: Pump Stations
B37: EC108 Kouga | C37: EC EASTERN CAPE | R37: Furniture and Office Equipment | S37: Buses | T37: Water Treatment Works
B38: EC109 Kou-Kamma | C38: EC EASTERN CAPE | R38: Machinery and Equipment | S38: Clinics | T38: Bulk Mains
B39: DC10 Sarah Baartman | C39: EC EASTERN CAPE | R39: Transport Assets | S39: Museums & Art Galleries | T39: Distribution
B40: EC121 Mbhashe | C40: EC EASTERN CAPE | R40: Land | S40: Cemeteries | T40: Distribution Points
B41: EC122 Mnquma | C41: EC EASTERN CAPE | R41: Zoo's, Marine and Non-biological Animals | S41: Social rental housing | T41: PRV Stations
B42: EC123 Great Kei | C42: EC EASTERN CAPE | S42: Buildings | T42: Capital Spares
B43: EC124 Amahlathi | C43: EC EASTERN CAPE | S43: Housing development | T43: Pump Station
B44: EC126 Ngqushwa | C44: EC EASTERN CAPE | S44: General vehicles | T44: Reticulation
B45: EC129 Raymond Mhlaba | C45: EC EASTERN CAPE | S45: Specialised vehicles - Refuse | T45: Waste Water Treatment Works
B46: DC12 Amathole | C46: EC EASTERN CAPE | S46: Specialised vehicles - Fire | T46: Outfall Sewers
B47: EC131 Inxuba Yethemba | C47: EC EASTERN CAPE | S47: Specialised vehicles - Conservancy | T47: Toilet Facilities
B48: EC135 Intsika Yethu | C48: EC EASTERN CAPE | S48: Specialised vehicles - Ambulances | T48: Capital Spares
B49: EC136 Emalahleni (Ec) | C49: EC EASTERN CAPE | S49: Plant & equipment | T49: Landfill Sites
B50: EC137 Engcobo | C50: EC EASTERN CAPE | S50: Computers - hardware/equipment | T50: Waste Transfer Stations
B51: EC138 Sakhisizwe | C51: EC EASTERN CAPE | S51: Furniture and other office equipment | T51: Waste Processing Facilities
B52: EC139 Enoch Mgijima | C52: EC EASTERN CAPE | S52: Abattoirs | T52: Waste Drop-off Points
B53: DC13 Chris Hani | C53: EC EASTERN CAPE | S53: Markets | T53: Waste Separation Facilities
B54: EC141 Elundini | C54: EC EASTERN CAPE | S54: Civic Land and Buildings | T54: Electricity Generation Facilities
B55: EC142 Senqu | C55: EC EASTERN CAPE | S55: Other Buildings | T55: Capital Spares
B56: EC145 Walter Sisulu | C56: EC EASTERN CAPE | S56: Other Land | T56: Rail Lines
B57: DC14 Joe Gqabi | C57: EC EASTERN CAPE | S57: Surplus Assets - (Investment or Inventory) | T57: Rail Structures
B58: EC153 Ngquza Hills | C58: EC EASTERN CAPE | S58: Computers - software & programming | T58: Rail Furniture
B59: EC154 Port St Johns | C59: EC EASTERN CAPE | S59: Other | T59: Drainage Collection
B60: EC155 Nyandeni | C60: EC EASTERN CAPE | T60: Storm water Conveyance
B61: EC156 Mhlontlo | C61: EC EASTERN CAPE | R61: SB 19 | T61: Attenuation
B62: EC157 King Sabata Dalindyebo | C62: EC EASTERN CAPE | R62: Yes | T62: MV Substations
B63: DC15 O .R. Tambo | C63: EC EASTERN CAPE | R63: No | T63: LV Networks
B64: EC441 Matatiele | C64: EC EASTERN CAPE | T64: Capital Spares
B65: EC442 Umzimvubu | C65: EC EASTERN CAPE | T65: Sand Pumps
B66: EC443 Winnie Madikizela Mandela | C66: EC EASTERN CAPE | T66: Piers
B67: EC444 Ntabankulu | C67: EC EASTERN CAPE | T67: Revetments
B68: DC44 Alfred Nzo | C68: EC EASTERN CAPE | T68: Promenades
B69: MAN Mangaung | C69: FS FREE STATE | T69: Capital Spares
B70: FS161 Letsemeng | C70: FS FREE STATE | T70: Data Centres
B71: FS162 Kopanong | C71: FS FREE STATE | T71: Core Layers
B72: FS163 Mohokare | C72: FS FREE STATE | T72: Distribution Layers
B73: DC16 Xhariep | C73: FS FREE STATE | T73: Capital Spares
B74: FS181 Masilonyana | C74: FS FREE STATE | T74: Halls
B75: FS182 Tokologo | C75: FS FREE STATE | T75: Centres
B76: FS183 Tswelopele | C76: FS FREE STATE | T76: Crèches
B77: FS184 Matjhabeng | C77: FS FREE STATE | T77: Clinics/Care Centres
B78: FS185 Nala | C78: FS FREE STATE | T78: Fire/Ambulance Stations
B79: DC18 Lejweleputswa | C79: FS FREE STATE | T79: Testing Stations
B80: FS191 Setsoto | C80: FS FREE STATE | T80: Museums
B81: FS192 Dihlabeng | C81: FS FREE STATE | T81: Galleries
B82: FS193 Nketoana | C82: FS FREE STATE | T82: Theatres
B83: FS194 Maluti-a-Phofung | C83: FS FREE STATE | T83: Libraries
B84: FS195 Phumelela | C84: FS FREE STATE | T84: Cemeteries/Crematoria
B85: FS196 Mantsopa | C85: FS FREE STATE | T85: Police
B86: DC19 Thabo Mofutsanyana | C86: FS FREE STATE | T86: Purls
B87: FS201 Moqhaka | C87: FS FREE STATE | T87: Public Open Space
B88: FS203 Ngwathe | C88: FS FREE STATE | T88: Nature Reserves
B89: FS204 Metsimaholo | C89: FS FREE STATE | T89: Public Ablution Facilities
B90: FS205 Mafube | C90: FS FREE STATE | T90: Markets
B91: DC20 Fezile Dabi | C91: FS FREE STATE | T91: Stalls
B92: EKU City of Ekurhuleni | C92: GT GAUTENG | T92: Abattoirs
B93: JHB City Of Johannesburg | C93: GT GAUTENG | T93: Airports
B94: TSH City Of Tshwane | C94: GT GAUTENG | T94: Taxi Ranks/Bus Terminals
B95: GT421 Emfuleni | C95: GT GAUTENG | T95: Capital Spares
B96: GT422 Midvaal | C96: GT GAUTENG | T96: Indoor Facilities
B97: GT423 Lesedi | C97: GT GAUTENG | T97: Outdoor Facilities
B98: DC42 Sedibeng | C98: GT GAUTENG | T98: Capital Spares
B99: GT481 Mogale City | C99: GT GAUTENG | T99: Monuments
B100: GT484 Merafong City | C100: GT GAUTENG | T100: Historic Buildings
B101: GT485 Rand West City | C101: GT GAUTENG | T101: Works of Art
B102: DC48 West Rand | C102: GT GAUTENG | T102: Conservation Areas
B103: ETH eThekwini | C103: KZN KWAZULU-NATAL | T103: Other Heritage
B104: KZN212 Umdoni | C104: KZN KWAZULU-NATAL | T104: Improved Property
B105: KZN213 Umzumbe | C105: KZN KWAZULU-NATAL | T105: Unimproved Property
B106: KZN214 uMuziwabantu | C106: KZN KWAZULU-NATAL | T106: Municipal Offices
B107: KZN216 Ray Nkonyeni | C107: KZN KWAZULU-NATAL | T107: Pay/Enquiry Points
B108: DC21 Ugu | C108: KZN KWAZULU-NATAL | T108: Building Plan Offices
B109: KZN221 uMshwathi | C109: KZN KWAZULU-NATAL | T109: Workshops
B110: KZN222 uMngeni | C110: KZN KWAZULU-NATAL | T110: Yards
B111: KZN223 Mpofana | C111: KZN KWAZULU-NATAL | T111: Stores
B112: KZN224 Impendle | C112: KZN KWAZULU-NATAL | T112: Laboratories
B113: KZN225 Msunduzi | C113: KZN KWAZULU-NATAL | T113: Training Centres
B114: KZN226 Mkhambathini | C114: KZN KWAZULU-NATAL | T114: Manufacturing Plant
B115: KZN227 Richmond | C115: KZN KWAZULU-NATAL | T115: Depots
B116: DC22 uMgungundlovu | C116: KZN KWAZULU-NATAL | T116: Capital Spares
B117: KZN235 Okhahlamba | C117: KZN KWAZULU-NATAL | T117: Staff Housing
B118: KZN237 Inkosi Langalibalele | C118: KZN KWAZULU-NATAL | T118: Social Housing
B119: KZN238 Alfred Duma | C119: KZN KWAZULU-NATAL | T119: Capital Spares
B120: DC23 Uthukela | C120: KZN KWAZULU-NATAL | T120: Water Rights
B121: KZN241 Endumeni | C121: KZN KWAZULU-NATAL | T121: Effluent Licenses
B122: KZN242 Nquthu | C122: KZN KWAZULU-NATAL | T122: Solid Waste Licenses
B123: KZN244 Msinga | C123: KZN KWAZULU-NATAL | T123: Computer Software and Applications
B124: KZN245 Umvoti | C124: KZN KWAZULU-NATAL | T124: Load Settlement Software Applications
B125: DC24 Umzinyathi | C125: KZN KWAZULU-NATAL | T125: Unspecified
B126: KZN252 Newcastle | C126: KZN KWAZULU-NATAL
B127: KZN253 Emadlangeni | C127: KZN KWAZULU-NATAL
B128: KZN254 Dannhauser | C128: KZN KWAZULU-NATAL
B129: DC25 Amajuba | C129: KZN KWAZULU-NATAL
B130: KZN261 eDumbe | C130: KZN KWAZULU-NATAL
B131: KZN262 uPhongolo | C131: KZN KWAZULU-NATAL
B132: KZN263 Abaqulusi | C132: KZN KWAZULU-NATAL
B133: KZN265 Nongoma | C133: KZN KWAZULU-NATAL
B134: KZN266 Ulundi | C134: KZN KWAZULU-NATAL
B135: DC26 Zululand | C135: KZN KWAZULU-NATAL
B136: KZN271 Umhlabuyalingana | C136: KZN KWAZULU-NATAL
B137: KZN272 Jozini | C137: KZN KWAZULU-NATAL
B138: KZN275 Mtubatuba | C138: KZN KWAZULU-NATAL
B139: KZN276 Hlabisa Big Five | C139: KZN KWAZULU-NATAL
B140: DC27 Umkhanyakude | C140: KZN KWAZULU-NATAL
B141: KZN281 Mfolozi | C141: KZN KWAZULU-NATAL
B142: KZN282 uMhlathuze | C142: KZN KWAZULU-NATAL
B143: KZN284 uMlalazi | C143: KZN KWAZULU-NATAL
B144: KZN285 Mthonjaneni | C144: KZN KWAZULU-NATAL
B145: KZN286 Nkandla | C145: KZN KWAZULU-NATAL
B146: DC28 King Cetshwayo | C146: KZN KWAZULU-NATAL
B147: KZN291 Mandeni | C147: KZN KWAZULU-NATAL
B148: KZN292 KwaDukuza | C148: KZN KWAZULU-NATAL
B149: KZN293 Ndwedwe | C149: KZN KWAZULU-NATAL
B150: KZN294 Maphumulo | C150: KZN KWAZULU-NATAL
B151: DC29 iLembe | C151: KZN KWAZULU-NATAL
B152: KZN433 Greater Kokstad | C152: KZN KWAZULU-NATAL
B153: KZN434 Ubuhlebezwe | C153: KZN KWAZULU-NATAL
B154: KZN435 Umzimkhulu | C154: KZN KWAZULU-NATAL
B155: KZN436 Dr Nkosazana Dlamini Zuma | C155: KZN KWAZULU-NATAL
B156: DC43 Harry Gwala | C156: KZN KWAZULU-NATAL
B157: LIM331 Greater Giyani | C157: LIM LIMPOPO
B158: LIM332 Greater Letaba | C158: LIM LIMPOPO
B159: LIM333 Greater Tzaneen | C159: LIM LIMPOPO
B160: LIM334 Ba-Phalaborwa | C160: LIM LIMPOPO
B161: LIM335 Maruleng | C161: LIM LIMPOPO
B162: DC33 Mopani | C162: LIM LIMPOPO
B163: LIM341 Musina | C163: LIM LIMPOPO
B164: LIM343 Thulamela | C164: LIM LIMPOPO
B165: LIM344 Makhado | C165: LIM LIMPOPO
B166: LIM345 Collins Chabane | C166: LIM LIMPOPO
B167: DC34 Vhembe | C167: LIM LIMPOPO
B168: LIM351 Blouberg | C168: LIM LIMPOPO
B169: LIM353 Molemole | C169: LIM LIMPOPO
B170: LIM354 Polokwane | C170: LIM LIMPOPO
B171: LIM355 Lepelle-Nkumpi | C171: LIM LIMPOPO
B172: DC35 Capricorn | C172: LIM LIMPOPO
B173: LIM361 Thabazimbi | C173: LIM LIMPOPO
B174: LIM362 Lephalale | C174: LIM LIMPOPO
B175: LIM366 Bela Bela | C175: LIM LIMPOPO
B176: LIM367 Mogalakwena | C176: LIM LIMPOPO
B177: LIM368 Modimolle-Mookgopong | C177: LIM LIMPOPO
B178: DC36 Waterberg | C178: LIM LIMPOPO
B179: LIM471 Ephraim Mogale | C179: LIM LIMPOPO
B180: LIM472 Elias Motsoaledi | C180: LIM LIMPOPO
B181: LIM473 Makhuduthamaga | C181: LIM LIMPOPO
B182: LIM476 Tubatse Fetakgomo | C182: LIM LIMPOPO
B183: DC47 Sekhukhune | C183: LIM LIMPOPO
B184: MP301 Albert Luthuli | C184: MP MPUMALANGA
B185: MP302 Msukaligwa | C185: MP MPUMALANGA
B186: MP303 Mkhondo | C186: MP MPUMALANGA
B187: MP304 Pixley Ka Seme (MP) | C187: MP MPUMALANGA
B188: MP305 Lekwa | C188: MP MPUMALANGA
B189: MP306 Dipaleseng | C189: MP MPUMALANGA
B190: MP307 Govan Mbeki | C190: MP MPUMALANGA
B191: DC30 Gert Sibande | C191: MP MPUMALANGA
B192: MP311 Victor Khanye | C192: MP MPUMALANGA
B193: MP312 Emalahleni (Mp) | C193: MP MPUMALANGA
B194: MP313 Steve Tshwete | C194: MP MPUMALANGA
B195: MP314 Emakhazeni | C195: MP MPUMALANGA
B196: MP315 Thembisile Hani | C196: MP MPUMALANGA
B197: MP316 Dr J.S. Moroka | C197: MP MPUMALANGA
B198: DC31 Nkangala | C198: MP MPUMALANGA
B199: MP321 Thaba Chweu | C199: MP MPUMALANGA
B200: MP324 Nkomazi | C200: MP MPUMALANGA
B201: MP325 Bushbuckridge | C201: MP MPUMALANGA
B202: MP326 City of Mbombela | C202: MP MPUMALANGA
B203: DC32 Ehlanzeni | C203: MP MPUMALANGA
... 84 more rows

Sheet Org structure
A1: Organisational Structure Votes | C1: Organisational Structure Sub-Votes | E1: Display Sub-Votes
A2: =B2&" - "&C2 -> Vote 01 - Public Safety | B2: Vote 01 | C2: Public Safety
A3: =B9&" - "&C9 -> Vote 02 - Health Services | B3: 01.1 | C3: Public Safety Administration | D3: =CONCATENATE(B3, " - ", C3) -> 01.1 - Public Safety Administration | E3: 01.1 - Public Safety Administration
A4: =B12&" - "&C12 -> Vote 03 - Community Services | B4: 01.2 | C4: Fire Brigade | D4: 01.2 - Fire Brigade | E4: 01.2 - Fire Brigade
A5: =B19&" - "&C19 -> Vote 04 - Housing | B5: 01.3 | C5: Licencing Administration | D5: 01.3 - Licencing Administration | E5: 01.3 - Licencing Administration
A6: =B25&" - "&C25 -> Vote 05 - Sport Arts And Culture | B6: 01.4 | C6: Traffic Administration | D6: 01.4 - Traffic Administration | E6: 01.4 - Traffic Administration
A7: =B30&" - "&C30 -> Vote 06 - Council General | B7: 01.5 | C7: Disaster Management | D7: 01.5 - Disaster Management | E7: 01.5 - Disaster Management
A8: =B39&" - "&C39 -> Vote 07 - Civil Engineering | B8: 01.6 | C8: Municipal Court | D8: 01.6 - Municipal Court | E8: 01.6 - Municipal Court
A9: =B44&" - "&C44 -> Vote 08 - Water Section | B9: Vote 02 | C9: Health Services
A10: =B47&" - "&C47 -> Vote 09 - City Electrial Engineering | B10: 02.1 | C10: Health Services Administration | D10: =CONCATENATE(B10, " - ", C10) -> 02.1 - Health Services Administration | E10: 02.1 - Health Services Administration
A11: =B53&" - "&C53 -> Vote 10 - Corporate Governane | B11: 02.2 | C11: Occupational Health Centre | D11: =CONCATENATE(B11, " - ", C11) -> 02.2 - Occupational Health Centre | E11: 02.2 - Occupational Health Centre
A12: =B57&" - "&C57 -> Vote 11 - Budget And Treasury Office | B12: Vote 03 | C12: Community Services
A13: =B61&" - "&C61 -> Vote 12 - Cleansing | B13: 03.1 | C13: Administration Community Services | D13: =CONCATENATE(B13, " - ", C13) -> 03.1 - Administration Community Services | E13: 03.1 - Administration Community Services
A14: =B69&" - "&C69 -> Vote 13 - Sewerage | B14: 03.2 | C14: Cemetary | D14: 03.2 - Cemetary | E14: 03.2 - Cemetary
A15: =B74&" - "&C74 -> Vote 14 - Market | B15: 03.3 | C15: Aerodome | D15: 03.3 - Aerodome | E15: 03.3 - Aerodome
A16: =B76&" - "&C76 -> Vote 15 - Other | B16: 03.4 | C16: Nature Reserve | D16: 03.4 - Nature Reserve | E16: 03.4 - Nature Reserve
B17: 03.5 | C17: Orkney Vaal | D17: 03.5 - Orkney Vaal | E17: 03.5 - Orkney Vaal
B18: 03.6 | C18: Administration Parks | D18: 03.6 - Administration Parks | E18: 03.6 - Administration Parks
B19: Vote 04 | C19: Housing
B20: 04.1 | C20: Administration Housing Services | D20: =CONCATENATE(B20, " - ", C20) -> 04.1 - Administration Housing Services | E20: 04.1 - Administration Housing Services
B21: 04.2 | C21: Housing Services | D21: =CONCATENATE(B21, " - ", C21) -> 04.2 - Housing Services | E21: 04.2 - Housing Services
B22: 04.3 | C22: Building Survey | D22: =CONCATENATE(B22, " - ", C22) -> 04.3 - Building Survey | E22: 04.3 - Building Survey
B23: 04.4 | C23: Town Planning | D23: =CONCATENATE(B23, " - ", C23) -> 04.4 - Town Planning | E23: 04.4 - Town Planning
B24: 04.5 | C24: Land Affairs | D24: =CONCATENATE(B24, " - ", C24) -> 04.5 - Land Affairs | E24: 04.5 - Land Affairs
B25: Vote 05 | C25: Sport Arts And Culture
B26: 05.1 | C26: Administration Sports Arts & Culture | D26: =CONCATENATE(B26, " - ", C26) -> 05.1 - Administration Sports Arts & Culture | E26: 05.1 - Administration Sports Arts & Culture
B27: 05.2 | C27: Museum | D27: =CONCATENATE(B27, " - ", C27) -> 05.2 - Museum | E27: 05.2 - Museum
B28: 05.3 | C28: Library | D28: =CONCATENATE(B28, " - ", C28) -> 05.3 - Library | E28: 05.3 - Library
B29: 05.4 | C29: Sports And Recreation | D29: =CONCATENATE(B29, " - ", C29) -> 05.4 - Sports And Recreation | E29: 05.4 - Sports And Recreation
B30: Vote 06 | C30: Council General
B31: 06.1 | C31: Administration Council General | D31: =CONCATENATE(B31, " - ", C31) -> 06.1 - Administration Council General | E31: 06.1 - Administration Council General
B32: 06.2 | C32: Administration Municipal Manager | D32: 06.2 - Administration Municipal Manager | E32: 06.2 - Administration Municipal Manager
B33: 06.3 | C33: Internal Audit | D33: 06.3 - Internal Audit | E33: 06.3 - Internal Audit
B34: 06.4 | C34: Strategic | D34: 06.4 - Strategic | E34: 06.4 - Strategic
B35: 06.5 | C35: Administration Mayor | D35: 06.5 - Administration Mayor | E35: 06.5 - Administration Mayor
B36: 06.6 | C36: Administration Speaker | D36: 06.6 - Administration Speaker | E36: 06.6 - Administration Speaker
B37: 06.7 | C37: Chief Whip | D37: 06.7 - Chief Whip | E37: 06.7 - Chief Whip
B38: 06.8 | C38: Mpac | D38: 06.8 - Mpac | E38: 06.8 - Mpac
B39: Vote 07 | C39: Civil Engineering
B40: 07.1 | C40: Administration City Civil Engineer | D40: =CONCATENATE(B40, " - ", C40) -> 07.1 - Administration City Civil Engineer | E40: 07.1 - Administration City Civil Engineer
B41: 07.2 | C41: Building Construction | D41: =CONCATENATE(B41, " - ", C41) -> 07.2 - Building Construction | E41: 07.2 - Building Construction
B42: 07.3 | C42: Roads | D42: =CONCATENATE(B42, " - ", C42) -> 07.3 - Roads | E42: 07.3 - Roads
B43: 07.4 | C43: Pmu Unit | D43: =CONCATENATE(B43, " - ", C43) -> 07.4 - Pmu Unit | E43: 07.4 - Pmu Unit
B44: Vote 08 | C44: Water Section
B45: 08.1 | C45: Administration Water | D45: =CONCATENATE(B45, " - ", C45) -> 08.1 - Administration Water | E45: 08.1 - Administration Water
B46: 08.2 | C46: Water Distribution | D46: =CONCATENATE(B46, " - ", C46) -> 08.2 - Water Distribution | E46: 08.2 - Water Distribution
B47: Vote 09 | C47: City Electrial Engineering
B48: 09.1 | C48: Streetlighting | D48: =CONCATENATE(B48, " - ", C48) -> 09.1 - Streetlighting | E48: 09.1 - Streetlighting
B49: 09.2 | C49: Garage | D49: =CONCATENATE(B49, " - ", C49) -> 09.2 - Garage | E49: 09.2 - Garage
B50: 09.3 | C50: Workshop | D50: =CONCATENATE(B50, " - ", C50) -> 09.3 - Workshop | E50: 09.3 - Workshop
B51: 09.4 | C51: Administration Electricity | D51: =CONCATENATE(B51, " - ", C51) -> 09.4 - Administration Electricity | E51: 09.4 - Administration Electricity
B52: 09.5 | C52: Electricity Distribution | D52: =CONCATENATE(B52, " - ", C52) -> 09.5 - Electricity Distribution | E52: 09.5 - Electricity Distribution
B53: Vote 10 | C53: Corporate Governane
B54: 10.1 | C54: Administration City Secretary | D54: =CONCATENATE(B54, " - ", C54) -> 10.1 - Administration City Secretary | E54: 10.1 - Administration City Secretary
B55: 10.2 | C55: Legal And Land Affairs | D55: =CONCATENATE(B55, " - ", C55) -> 10.2 - Legal And Land Affairs | E55: 10.2 - Legal And Land Affairs
B56: 10.3 | C56: Management Services | D56: =CONCATENATE(B56, " - ", C56) -> 10.3 - Management Services | E56: 10.3 - Management Services
B57: Vote 11 | C57: Budget And Treasury Office
B58: 11.1 | C58: Administration City Treasurer | D58: =CONCATENATE(B58, " - ", C58) -> 11.1 - Administration City Treasurer | E58: 11.1 - Administration City Treasurer
B59: 11.2 | C59: Data | D59: =CONCATENATE(B59, " - ", C59) -> 11.2 - Data | E59: 11.2 - Data
B60: 11.3 | C60: Stores | D60: =CONCATENATE(B60, " - ", C60) -> 11.3 - Stores | E60: 11.3 - Stores
B61: Vote 12 | C61: Cleansing
B62: 12.1 | C62: Landfill Site | D62: =CONCATENATE(B62, " - ", C62) -> 12.1 - Landfill Site | E62: 12.1 - Landfill Site
B63: 12.2 | C63: Administration Cleansing | D63: 12.2 - Administration Cleansing | E63: 12.2 - Administration Cleansing
B64: 12.3 | C64: Refuse Removal | D64: 12.3 - Refuse Removal | E64: 12.3 - Refuse Removal
B65: 12.4 | C65: Nightsoil Services | D65: 12.4 - Nightsoil Services | E65: 12.4 - Nightsoil Services
B66: 12.5 | C66: Street Cleaning | D66: 12.5 - Street Cleaning | E66: 12.5 - Street Cleaning
B67: 12.6 | C67: Public Restrooms | D67: 12.6 - Public Restrooms | E67: 12.6 - Public Restrooms
B68: 12.7 | C68: Landfill Site | D68: 12.7 - Landfill Site | E68: 12.7 - Landfill Site
B69: Vote 13 | C69: Sewerage
B70: 13.1 | C70: Administration Sewerage | D70: =CONCATENATE(B70, " - ", C70) -> 13.1 - Administration Sewerage | E70: 13.1 - Administration Sewerage
B71: 13.2 | C71: Sewer Agency | D71: =CONCATENATE(B71, " - ", C71) -> 13.2 - Sewer Agency | E71: 13.2 - Sewer Agency
B72: 13.3 | C72: Sewer Distribution | D72: =CONCATENATE(B72, " - ", C72) -> 13.3 - Sewer Distribution | E72: 13.3 - Sewer Distribution
B73: 13.4 | C73: Nightsoil Services | D73: =CONCATENATE(B73, " - ", C73) -> 13.4 - Nightsoil Services | E73: 13.4 - Nightsoil Services
B74: Vote 14 | C74: Market
B75: 14.1 | C75: Market | D75: =CONCATENATE(B75, " - ", C75) -> 14.1 - Market | E75: 14.1 - Market
B76: Vote 15 | C76: Other
B77: 15.1 | C77: Administration Led | D77: =CONCATENATE(B77, " - ", C77) -> 15.1 - Administration Led | E77: 15.1 - Administration Led
B78: 15.2 | C78: Economic Affairs & Corporate Communicati | D78: =CONCATENATE(B78, " - ", C78) -> 15.2 - Economic Affairs & Corporate Communicati | E78: 15.2 - Economic Affairs & Corporate Communicati
B79: 15.3 | C79: Local Economic Development | D79: =CONCATENATE(B79, " - ", C79) -> 15.3 - Local Economic Development | E79: 15.3 - Local Economic Development

Sheet Contacts
A1: ='Template names'!$B$63&" - "&" Contact Information" -> NW403 City Of Matlosana - Contact Information
A3: A. GENERAL INFORMATION
A4: Municipality | B4: ='Template names'!$B$63 -> NW403 City Of Matlosana | C4: Set name on 'Instructions' sheet
A6: Grade | B6: 2 | C6: 1 Grade in terms of the Remuneration of Public Office Bearers Act.
A8: Province | B8: =IF(B4>" ",VLOOKUP(B4,'Lookup and lists'!B29:C312,2, FALSE)," ") -> NW NORTH WEST
A10: Web Address | B10: www.matlosana.gov.za
A12: e-mail Address | B12: dnkosi@klerksdorp.org
A14: B. CONTACT INFORMATION
A15: Postal address:
A16: P.O. Box | B16: 99
A17: City / Town | B17: Klerksdorp
A18: Postal Code | B18: 2570
A20: Street address
A21: Building | B21: Mayibuye
A22: Street No. & Name | B22: c/n Braam Fisher & Emily Hobhouse
A23: City / Town | B23: Klerksdorp
A24: Postal Code | B24: 2570
A26: General Contacts
A27: Telephone number | B27: 018 487 8009
A28: Fax number | B28: 018 464 2318
A30: C. POLITICAL LEADERSHIP
A31: Speaker: | C31: Secretary/PA to the Speaker:
A32: ID Number | C32: ID Number
A33: Title | B33: Ms | C33: Title | D33: Ms
A34: Name | B34: Stella Lebogang Modlane | C34: Name | D34: Annah Khoza
A35: Telephone number | B35: 0184878004 | C35: Telephone number | D35: 0184878004
A36: Cell number | B36: 0658524333 | C36: Cell number | D36: 0782300566
A37: Fax number | C37: Fax number
A38: E-mail address | B38: speaker@klerksdorp.org | C38: E-mail address | D38: speaker@klerksdorp.org
A40: Mayor/Executive Mayor: | C40: Secretary/PA to the Mayor/Executive Mayor:
A41: ID Number | C41: ID Number
A42: Title | B42: Mr | C42: Title | D42: Mrs
A43: Name | B43: James Ntsolela | C43: Name | D43: Amantle Obuseng
A44: Telephone number | B44: 0184878002 | C44: Telephone number | D44: 0184878002
A45: Cell number | B45: 0747933889 | C45: Cell number | D45: 0682557948
A46: Fax number | C46: Fax number
A47: E-mail address | B47: ymajova@klerksdorp.org | C47: E-mail address | D47: ymajova@klerksdorp.org
A49: Deputy Mayor/Executive Mayor: | C49: Secretary/PA to the Deputy Mayor/Executive Mayor:
A50: ID Number | C50: ID Number
A51: Title | C51: Title
A52: Name | C52: Name
A53: Telephone number | C53: Telephone number
A54: Cell number | C54: Cell number
A55: Fax number | C55: Fax number
A56: E-mail address | C56: E-mail address
A58: D. MANAGEMENT LEADERSHIP
A59: Municipal Manager: | C59: Secretary/PA to the Municipal Manager:
A60: ID Number | C60: ID Number
A61: Title | B61: Acting | C61: Title | D61: Ms
A62: Name | B62: Lesego Seametso | C62: Name | D62: Dikeledi Nkosi
A63: Telephone number | B63: 0184878009 | C63: Telephone number | D63: 0184878009
A64: Cell number | B64: 0760197668 | C64: Cell number | D64: 0827521457
A65: Fax number | C65: Fax number
A66: E-mail address | B66: dnkosi@klerksdorp.org | C66: E-mail address | D66: dnkosi@klerksdorp.org
A68: Chief Financial Officer | C68: Secretary/PA to the Chief Financial Officer
A69: ID Number | C69: ID Number
A70: Title | B70: Mr | C70: Title | D70: Mrs
A71: Name | B71: Peter Thelele | C71: Name | D71: Megan Senegal
A72: Telephone number | B72: 0184878017 | C72: Telephone number | D72: 0184878009
A73: Cell number | B73: 0814266596 | C73: Cell number
A74: Fax number | C74: Fax number
A75: E-mail address | B75: finance@klerksdorp.org | C75: E-mail address | D75: finance@klerksdorp.org
A77: Official responsible for submitting financial information | C77: Official responsible for submitting financial information
A78: ID Number | C78: ID Number
A79: Title | B79: Mrs | C79: Title | D79: Mr
A80: Name | B80: MEITIE SEBOLAI | C80: Name | D80: DRICKUS ROSSOUW
A81: Telephone number | B81: 0184878569 | C81: Telephone number | D81: 018 487 8518
A82: Cell number | C82: Cell number | D82: 083 627 7278
A83: Fax number | C83: Fax number | D83: 018 487 2318
A84: E-mail address | B84: meitie@klerksdorp.org | C84: E-mail address | D84: drossouw@klerksdorp.og
A85: Official responsible for submitting financial information | C85: Official responsible for submitting financial information
A86: ID Number | C86: ID Number
A87: Title | B87: Mrs | C87: Title | D87: Mrs
A88: Name | B88: TSAONE SEKGALA | C88: Name | D88: NALEDI MOEKETSI
A89: Telephone number | B89: 018 487 8549 | C89: Telephone number | D89: 018 487 8569
A90: Cell number | B90: 083 280 1159 | C90: Cell number | D90: 083 8222 077
A91: Fax number | C91: Fax number
A92: E-mail address | B92: osekgala@klerksdorp.org | C92: E-mail address | D92: sylvia@klerksdorp.org
A93: Official responsible for submitting financial information | C93: Official responsible for submitting financial information
A94: ID Number | C94: ID Number
A95: Title | C95: Title
A96: Name | C96: Name
A97: Telephone number | C97: Telephone number
A98: Cell number | C98: Cell number
A99: Fax number | C99: Fax number
A100: E-mail address | C100: E-mail address
A101: Official responsible for submitting financial information | C101: Official responsible for submitting financial information
A102: ID Number | C102: ID Number
A103: Title | C103: Title
A104: Name | C104: Name
A105: Telephone number | C105: Telephone number
A106: Cell number | C106: Cell number
A107: Fax number | C107: Fax number
A108: E-mail address | C108: E-mail address
A109: Official responsible for submitting financial information | C109: Official responsible for submitting financial information
A110: ID Number | C110: ID Number
A111: Title | C111: Title
A112: Name | C112: Name
A113: Telephone number | C113: Telephone number
A114: Cell number | C114: Cell number
A115: Fax number | C115: Fax number
A116: E-mail address | C116: E-mail address
A117: Official responsible for submitting financial information | C117: Official responsible for submitting financial information
A118: ID Number | C118: ID Number
A119: Title | C119: Title
A120: Name | C120: Name
A121: Telephone number | C121: Telephone number
A122: Cell number | C122: Cell number
A123: Fax number | C123: Fax number
A124: E-mail address | C124: E-mail address
A125: Official responsible for submitting financial information | C125: Official responsible for submitting financial information
A126: ID Number | C126: ID Number
A127: Title | C127: Title
A128: Name | C128: Name
A129: Telephone number | C129: Telephone number
A130: Cell number | C130: Cell number
A131: Fax number | C131: Fax number
A132: E-mail address | C132: E-mail address
A133: Official responsible for submitting financial information
A134: ID Number
A135: Title
A136: Name
A137: Telephone number
A138: Cell number
A139: Fax number
A140: E-mail address
H170: 06/03/2025

Sheet B1-Sum
A1: =muni&" - "&adjsum&" - "&Date -> NW403 City Of Matlosana - Table B1 Adjustments Budget Summary - 45811
A2: =desc -> Description | B2: =Head2 -> Budget Year 2024/25 | K2: =Head10 -> Budget Year +1 2025/26 | L2: =Head11 -> Budget Year +2 2026/27
B3: =Head6 -> Original Budget | C3: =Head54 -> Prior Adjusted | D3: =Head51 -> Accum. Funds | E3: =Head52 -> Multi-year capital | F3: =Head53 -> Unfore. Unavoid. | G3: =Head55 -> Nat. or Prov. Govt | H3: =Head50 -> Other Adjusts. | I3: =Head56 -> Total Adjusts. | J3: =Head7 -> Adjusted Budget | K3: =Head7 -> Adjusted Budget | L3: =Head7 -> Adjusted Budget
C4: 1 | D4: 2 | E4: 3 | F4: 4 | G4: 5 | H4: 6 | I4: 7 | J4: 8
A5: R thousands | B5: A | C5: A1 | D5: B | E5: C | F5: D | G5: E | H5: F | I5: G | J5: H
A6: Financial Performance
A7: Property rates | B7: =SUM('B4-FinPerf RE'!C23) -> 593684392 | C7: =SUM('B4-FinPerf RE'!D23) -> 0 | D7: =SUM('B4-FinPerf RE'!E23) -> 0 | E7: =SUM('B4-FinPerf RE'!F23) -> 0 | F7: =SUM('B4-FinPerf RE'!G23) -> 0 | G7: =SUM('B4-FinPerf RE'!H23) -> 0 | H7: =SUM('B4-FinPerf RE'!I23) -> -90000000 | I7: =SUM('B4-FinPerf RE'!J23) -> -90000000 | J7: =SUM('B4-FinPerf RE'!K23) -> 503684392 | K7: =SUM('B4-FinPerf RE'!L23) -> 616369951 | L7: =SUM('B4-FinPerf RE'!M23) -> 644722968
A8: Service charges | B8: =SUM('B4-FinPerf RE'!C8:C11) -> 2350094782 | C8: =SUM('B4-FinPerf RE'!D8:D11) -> 0 | D8: =SUM('B4-FinPerf RE'!E8:E11) -> 0 | E8: =SUM('B4-FinPerf RE'!F8:F11) -> 0 | F8: =SUM('B4-FinPerf RE'!G8:G11) -> 0 | G8: =SUM('B4-FinPerf RE'!H8:H11) -> 0 | H8: =SUM('B4-FinPerf RE'!I8:I11) -> -50000000 | I8: =SUM('B4-FinPerf RE'!J8:J11) -> -50000000 | J8: =SUM('B4-FinPerf RE'!K8:K11) -> 2300094782 | K8: =SUM('B4-FinPerf RE'!L8:L11) -> 2458199150 | L8: =SUM('B4-FinPerf RE'!M8:M11) -> 2571276310
A9: Investment revenue | B9: ='B4-FinPerf RE'!C16 -> 10239203 | C9: ='B4-FinPerf RE'!D16 -> 0 | D9: ='B4-FinPerf RE'!E16 -> 0 | E9: ='B4-FinPerf RE'!F16 -> 0 | F9: ='B4-FinPerf RE'!G16 -> 0 | G9: ='B4-FinPerf RE'!H16 -> 0 | H9: ='B4-FinPerf RE'!I16 -> 0 | I9: ='B4-FinPerf RE'!J16 -> 0 | J9: ='B4-FinPerf RE'!K16 -> 10239203 | K9: ='B4-FinPerf RE'!L16 -> 0 | L9: ='B4-FinPerf RE'!M16 -> 0
A10: Transfers recognised - operational | B10: ='B4-FinPerf RE'!C27 -> 657797200 | C10: ='B4-FinPerf RE'!D27 -> 0 | D10: ='B4-FinPerf RE'!E27 -> 0 | E10: ='B4-FinPerf RE'!F27 -> 0 | F10: ='B4-FinPerf RE'!G27 -> 0 | G10: ='B4-FinPerf RE'!H27 -> 0 | H10: ='B4-FinPerf RE'!I27 -> 419000 | I10: ='B4-FinPerf RE'!J27 -> 419000 | J10: ='B4-FinPerf RE'!K27 -> 658216200 | K10: ='B4-FinPerf RE'!L27 -> 698315000 | L10: ='B4-FinPerf RE'!M27 -> 741650000
A11: Other own revenue | B11: =+B12-SUM(B7:B10) -> 653045276 | C11: =+C12-SUM(C7:C10) -> 0 | D11: 0 | E11: 0 | F11: 0 | G11: 0 | H11: 180167127 | I11: 180167127 | J11: 833212403 | K11: 658846063 | L11: 682714212
A12: Total Revenue (excluding capital transfers and contributions) | B12: =+'B4-FinPerf RE'!C34 -> 4264860853 | C12: =+'B4-FinPerf RE'!D34 -> 0 | D12: =+'B4-FinPerf RE'!E34 -> 0 | E12: =+'B4-FinPerf RE'!F34 -> 0 | F12: =+'B4-FinPerf RE'!G34 -> 0 | G12: =+'B4-FinPerf RE'!H34 -> 0 | H12: =+'B4-FinPerf RE'!I34 -> 40586127 | I12: =+'B4-FinPerf RE'!J34 -> 40586127 | J12: =+'B4-FinPerf RE'!K34 -> 4305446980 | K12: =+'B4-FinPerf RE'!L34 -> 4431730164 | L12: =+'B4-FinPerf RE'!M34 -> 4640363490
A13: Employee costs | B13: ='B4-FinPerf RE'!C37 -> 794681905 | C13: ='B4-FinPerf RE'!D37 -> 0 | D13: ='B4-FinPerf RE'!E37 -> 0 | E13: ='B4-FinPerf RE'!F37 -> 0 | F13: ='B4-FinPerf RE'!G37 -> 0 | G13: ='B4-FinPerf RE'!H37 -> 0 | H13: ='B4-FinPerf RE'!I37 -> 21992024 | I13: =SUM(D13:H13) -> 21992024 | J13: =IF(C13=0,B13+I13,C13+I13) -> 816673929 | K13: ='B4-FinPerf RE'!L37 -> 835809548 | L13: ='B4-FinPerf RE'!M37 -> 874256784
A14: Remuneration of councillors | B14: ='B4-FinPerf RE'!C38 -> 46107129 | C14: ='B4-FinPerf RE'!D38 -> 0 | D14: ='B4-FinPerf RE'!E38 -> 0 | E14: ='B4-FinPerf RE'!F38 -> 0 | F14: ='B4-FinPerf RE'!G38 -> 0 | G14: ='B4-FinPerf RE'!H38 -> 0 | H14: ='B4-FinPerf RE'!I38 -> 0 | I14: 0 | J14: 46107129 | K14: ='B4-FinPerf RE'!L38 -> 48228064 | L14: ='B4-FinPerf RE'!M38 -> 50446558
A15: Depreciation & asset impairment | B15: ='B4-FinPerf RE'!C41+'B4-FinPerf RE'!C42 -> 1441420311 | C15: ='B4-FinPerf RE'!D41+'B4-FinPerf RE'!D42 -> 0 | D15: ='B4-FinPerf RE'!E41+'B4-FinPerf RE'!E42 -> 0 | E15: ='B4-FinPerf RE'!F41+'B4-FinPerf RE'!F42 -> 0 | F15: ='B4-FinPerf RE'!G41+'B4-FinPerf RE'!G42 -> 0 | G15: ='B4-FinPerf RE'!H41+'B4-FinPerf RE'!H42 -> 0 | H15: ='B4-FinPerf RE'!I41+'B4-FinPerf RE'!I42 -> -1040322710 | I15: ='B4-FinPerf RE'!J41+'B4-FinPerf RE'!J42 -> -1040322710 | J15: ='B4-FinPerf RE'!K41+'B4-FinPerf RE'!K42 -> 401097601 | K15: ='B4-FinPerf RE'!L41+'B4-FinPerf RE'!L42 -> 1224800379 | L15: ='B4-FinPerf RE'!M41+'B4-FinPerf RE'!M42 -> 959541269
A16: Finance charges | B16: ='B4-FinPerf RE'!C43 -> 10144245 | C16: ='B4-FinPerf RE'!D43 -> 0 | D16: ='B4-FinPerf RE'!E43 -> 0 | E16: ='B4-FinPerf RE'!F43 -> 0 | F16: ='B4-FinPerf RE'!G43 -> 0 | G16: ='B4-FinPerf RE'!H43 -> 0 | H16: ='B4-FinPerf RE'!I43 -> 0 | I16: ='B4-FinPerf RE'!J43 -> 0 | J16: ='B4-FinPerf RE'!K43 -> 10144245 | K16: ='B4-FinPerf RE'!L43 -> 10610895 | L16: ='B4-FinPerf RE'!M43 -> 11098993
A17: Inventory consumed and bulk purchases | B17: =SUM('B4-FinPerf RE'!C39:C40) -> 1359300934 | C17: =SUM('B4-FinPerf RE'!D39:D40) -> 0 | D17: =SUM('B4-FinPerf RE'!E39:E40) -> 0 | E17: =SUM('B4-FinPerf RE'!F39:F40) -> 0 | F17: =SUM('B4-FinPerf RE'!G39:G40) -> 0 | G17: =SUM('B4-FinPerf RE'!H39:H40) -> 0 | H17: =SUM('B4-FinPerf RE'!I39:I40) -> 201611155 | I17: =SUM('B4-FinPerf RE'!J39:J40) -> 201611155 | J17: =SUM('B4-FinPerf RE'!K39:K40) -> 1560912089 | K17: =SUM('B4-FinPerf RE'!L39:L40) -> 1507145740 | L17: =SUM('B4-FinPerf RE'!M39:M40) -> 1025000000
A18: Transfers and subsidies | B18: ='B4-FinPerf RE'!C45 -> 0 | C18: ='B4-FinPerf RE'!D45 -> 0 | D18: ='B4-FinPerf RE'!E45 -> 0 | E18: ='B4-FinPerf RE'!F45 -> 0 | F18: ='B4-FinPerf RE'!G45 -> 0 | G18: ='B4-FinPerf RE'!H45 -> 0 | H18: ='B4-FinPerf RE'!I45 -> 0 | I18: 0 | J18: 0 | K18: ='B4-FinPerf RE'!L45 -> 0 | L18: ='B4-FinPerf RE'!M45 -> 0
A19: Other expenditure | B19: =+B20-SUM(B13:B18) -> 610986280 | C19: =+C20-SUM(C13:C18) -> 0 | D19: 0 | E19: 0 | F19: 0 | G19: 0 | H19: 1715042385 | I19: 1715042385 | J19: 2326028665 | K19: 697718768 | L19: 731518810
A20: Total Expenditure | B20: =+'B4-FinPerf RE'!C50 -> 4262640804 | C20: =+'B4-FinPerf RE'!D50 -> 0 | D20: =+'B4-FinPerf RE'!E50 -> 0 | E20: =+'B4-FinPerf RE'!F50 -> 0 | F20: =+'B4-FinPerf RE'!G50 -> 0 | G20: =+'B4-FinPerf RE'!H50 -> 0 | H20: =+'B4-FinPerf RE'!I50 -> 898322854 | I20: =+'B4-FinPerf RE'!J50 -> 898322854 | J20: =+'B4-FinPerf RE'!K50 -> 5160963658 | K20: =+'B4-FinPerf RE'!L50 -> 4324313394 | L20: =+'B4-FinPerf RE'!M50 -> 3651862414
A21: Surplus/(Deficit) | B21: =B12-B20 -> 2220049 | C21: 0 | D21: 0 | E21: 0 | F21: 0 | G21: 0 | H21: -857736727 | I21: -857736727 | J21: -855516678 | K21: 107416770 | L21: 988501076
A22: ='B4-FinPerf RE'!A53 -> Transfers and subsidies - capital (monetary allocations) | B22: ='B4-FinPerf RE'!C53 -> 186249799 | C22: ='B4-FinPerf RE'!D53 -> 0 | D22: ='B4-FinPerf RE'!E53 -> 0 | E22: ='B4-FinPerf RE'!F53 -> 0 | F22: ='B4-FinPerf RE'!G53 -> 0 | G22: ='B4-FinPerf RE'!H53 -> 0 | H22: ='B4-FinPerf RE'!I53 -> -138000 | I22: ='B4-FinPerf RE'!J53 -> -138000 | J22: ='B4-FinPerf RE'!K53 -> 186111799 | K22: ='B4-FinPerf RE'!L53 -> 197524000 | L22: ='B4-FinPerf RE'!M53 -> 225287000
A23: Transfers and subsidies - capital (in-kind - all) | B23: ='B4-FinPerf RE'!C54 -> 0 | C23: ='B4-FinPerf RE'!D54 -> 0 | D23: ='B4-FinPerf RE'!E54 -> 0 | E23: ='B4-FinPerf RE'!F54 -> 0 | F23: ='B4-FinPerf RE'!G54 -> 0 | G23: ='B4-FinPerf RE'!H54 -> 0 | H23: ='B4-FinPerf RE'!I54 -> 0 | I23: ='B4-FinPerf RE'!J54 -> 0 | J23: ='B4-FinPerf RE'!K54 -> 0 | K23: ='B4-FinPerf RE'!L54 -> 0 | L23: ='B4-FinPerf RE'!M54 -> 0
A24: Surplus/(Deficit) after capital transfers & contributions | B24: =B21+SUM(B22:B23) -> 188469848 | C24: 0 | D24: 0 | E24: 0 | F24: 0 | G24: 0 | H24: -857874727 | I24: =SUM(D24:H24) -> -857874727 | J24: =IF(C24=0,B24+I24,C24+I24) -> -669404879 | K24: 304940770 | L24: 1213788076
A25: Share of surplus/ (deficit) of associate | B25: ='B4-FinPerf RE'!C61 -> 0 | C25: ='B4-FinPerf RE'!D61 -> 0 | D25: ='B4-FinPerf RE'!E61 -> 0 | E25: ='B4-FinPerf RE'!F61 -> 0 | F25: ='B4-FinPerf RE'!G61 -> 0 | G25: ='B4-FinPerf RE'!H61 -> 0 | H25: ='B4-FinPerf RE'!I61 -> 0 | I25: ='B4-FinPerf RE'!J61 -> 0 | J25: ='B4-FinPerf RE'!K61 -> 0 | K25: ='B4-FinPerf RE'!L61 -> 0 | L25: ='B4-FinPerf RE'!M61 -> 0
A26: Surplus/ (Deficit) for the year | B26: =B24+B25 -> 188469848 | C26: 0 | D26: 0 | E26: 0 | F26: 0 | G26: 0 | H26: -857874727 | I26: -857874727 | J26: -669404879 | K26: 304940770 | L26: 1213788076
A28: Capital expenditure & funds sources
A29: Capital expenditure | B29: ='B5-Capex'!C42 -> 236249799 | C29: ='B5-Capex'!D42 -> 0 | D29: ='B5-Capex'!E42 -> 0 | E29: ='B5-Capex'!F42 -> 0 | F29: ='B5-Capex'!G42 -> 0 | G29: ='B5-Capex'!H42 -> 0 | H29: ='B5-Capex'!I42 -> -724766 | I29: =SUM(D29:H29) -> -724766 | J29: =IF(C29=0,B29+I29,C29+I29) -> 235525033 | K29: ='B5-Capex'!L42 -> 197524000 | L29: ='B5-Capex'!M42 -> 225286999
A30: Transfers recognised - capital | B30: ='B5-Capex'!C72 -> 186249799 | C30: ='B5-Capex'!D72 -> 0 | D30: ='B5-Capex'!E72 -> 0 | E30: ='B5-Capex'!F72 -> 0 | F30: ='B5-Capex'!G72 -> 0 | G30: ='B5-Capex'!H72 -> 0 | H30: ='B5-Capex'!I72 -> -137999 | I30: =SUM(D30:H30) -> -137999 | J30: =IF(C30=0,B30+I30,C30+I30) -> 186111800 | K30: ='B5-Capex'!L72 -> 197524000 | L30: ='B5-Capex'!M72 -> 225286999
A32: Borrowing | B32: ='B5-Capex'!C74 -> 0 | C32: ='B5-Capex'!D74 -> 0 | D32: ='B5-Capex'!E74 -> 0 | E32: ='B5-Capex'!F74 -> 0 | F32: ='B5-Capex'!G74 -> 0 | G32: ='B5-Capex'!H74 -> 0 | H32: ='B5-Capex'!I74 -> 0 | I32: =SUM(D32:H32) -> 0 | J32: =IF(C32=0,B32+I32,C32+I32) -> 0 | K32: ='B5-Capex'!L74 -> 0 | L32: ='B5-Capex'!M74 -> 0
A33: Internally generated funds | B33: ='B5-Capex'!C75 -> 50000000 | C33: ='B5-Capex'!D75 -> 0 | D33: ='B5-Capex'!E75 -> 0 | E33: ='B5-Capex'!F75 -> 0 | F33: ='B5-Capex'!G75 -> 0 | G33: ='B5-Capex'!H75 -> 0 | H33: ='B5-Capex'!I75 -> -586767 | I33: =SUM(D33:H33) -> -586767 | J33: =IF(C33=0,B33+I33,C33+I33) -> 49413233 | K33: ='B5-Capex'!L75 -> 0 | L33: ='B5-Capex'!M75 -> 0
A34: Total sources of capital funds | B34: =+B30+B32+B33 -> 236249799 | C34: =+C30+C32+C33 -> 0 | D34: 0 | E34: 0 | F34: 0 | G34: 0 | H34: -724766 | I34: =SUM(D34:H34) -> -724766 | J34: =IF(C34=0,B34+I34,C34+I34) -> 235525033 | K34: 197524000 | L34: 225286999
A36: Financial position
A37: Total current assets | B37: ='B6-FinPos'!C15 -> 845690291 | C37: ='B6-FinPos'!D15 -> 0 | D37: ='B6-FinPos'!E15 -> 0 | E37: ='B6-FinPos'!F15 -> 0 | F37: ='B6-FinPos'!G15 -> 0 | G37: ='B6-FinPos'!H15 -> 0 | H37: ='B6-FinPos'!I15 -> -184574775 | I37: =SUM(D37:H37) -> -184574775 | J37: =IF(C37=0,B37+I37,C37+I37) -> 661115516 | K37: ='B6-FinPos'!L15 -> 252716262 | L37: ='B6-FinPos'!M15 -> -55677519
A38: Total non current assets | B38: ='B6-FinPos'!C27 -> 3849404621 | C38: ='B6-FinPos'!D27 -> 0 | D38: ='B6-FinPos'!E27 -> 0 | E38: ='B6-FinPos'!F27 -> 0 | F38: ='B6-FinPos'!G27 -> 0 | G38: ='B6-FinPos'!H27 -> 0 | H38: ='B6-FinPos'!I27 -> -724766 | I38: =SUM(D38:H38) -> -724766 | J38: =IF(C38=0,B38+I38,C38+I38) -> 3848679855 | K38: ='B6-FinPos'!L27 -> 3825608085 | L38: ='B6-FinPos'!M27 -> 225286999
A39: Total current liabilities | B39: ='B6-FinPos'!C40 -> 3454318423 | C39: ='B6-FinPos'!D40 -> 0 | D39: ='B6-FinPos'!E40 -> 0 | E39: ='B6-FinPos'!F40 -> 0 | F39: ='B6-FinPos'!G40 -> 0 | G39: ='B6-FinPos'!H40 -> 0 | H39: ='B6-FinPos'!I40 -> 633247947 | I39: =SUM(D39:H39) -> 633247947 | J39: =IF(C39=0,B39+I39,C39+I39) -> 4087566370 | K39: ='B6-FinPos'!L40 -> 3898199279 | L39: ='B6-FinPos'!M40 -> 1323023000
A40: Total non current liabilities | B40: ='B6-FinPos'!C47 -> 81274059 | C40: ='B6-FinPos'!D47 -> 0 | D40: ='B6-FinPos'!E47 -> 0 | E40: ='B6-FinPos'!F47 -> 0 | F40: ='B6-FinPos'!G47 -> 0 | G40: ='B6-FinPos'!H47 -> 0 | H40: ='B6-FinPos'!I47 -> 0 | I40: =SUM(D40:H40) -> 0 | J40: =IF(C40=0,B40+I40,C40+I40) -> 81274059 | K40: ='B6-FinPos'!L47 -> 82086800 | L40: ='B6-FinPos'!M47 -> 0
A41: Community wealth/Equity | B41: ='B6-FinPos'!C56 -> 1159502431 | C41: ='B6-FinPos'!D56 -> 0 | D41: ='B6-FinPos'!E56 -> 0 | E41: ='B6-FinPos'!F56 -> 0 | F41: ='B6-FinPos'!G56 -> 0 | G41: ='B6-FinPos'!H56 -> 0 | H41: ='B6-FinPos'!I56 -> -857874727 | I41: =SUM(D41:H41) -> -857874727 | J41: =IF(C41=0,B41+I41,C41+I41) -> 301627704 | K41: ='B6-FinPos'!L56 -> 446461552 | L41: ='B6-FinPos'!M56 -> 182106954
A43: Cash flows
A44: Net cash from (used) operating | B44: ='B7-CFlow'!C19 -> -119057310 | C44: ='B7-CFlow'!D19 -> 0 | D44: ='B7-CFlow'!E19 -> 0 | E44: ='B7-CFlow'!F19 -> 0 | F44: ='B7-CFlow'!G19 -> 0 | G44: ='B7-CFlow'!H19 -> 0 | H44: ='B7-CFlow'!I19 -> -353747029 | I44: =SUM(D44:H44) -> -353747029 | J44: =IF(C44=0,B44+I44,C44+I44) -> -472804339 | K44: ='B7-CFlow'!L19 -> -135666372 | L44: ='B7-CFlow'!M19 -> 625481015
A45: Net cash from (used) investing | B45: ='B7-CFlow'!C29 -> -236249799 | C45: ='B7-CFlow'!D29 -> 0 | D45: ='B7-CFlow'!E29 -> 0 | E45: ='B7-CFlow'!F29 -> 0 | F45: ='B7-CFlow'!G29 -> 0 | G45: ='B7-CFlow'!H29 -> 0 | H45: ='B7-CFlow'!I29 -> 724766 | I45: =SUM(D45:H45) -> 724766 | J45: =IF(C45=0,B45+I45,C45+I45) -> -235525033 | K45: ='B7-CFlow'!L29 -> -197524000 | L45: ='B7-CFlow'!M29 -> -225286999
A46: Net cash from (used) financing | B46: ='B7-CFlow'!C38 -> -4800000 | C46: ='B7-CFlow'!D38 -> 0 | D46: ='B7-CFlow'!E38 -> 0 | E46: ='B7-CFlow'!F38 -> 0 | F46: ='B7-CFlow'!G38 -> 0 | G46: ='B7-CFlow'!H38 -> 0 | H46: ='B7-CFlow'!I38 -> 3600000 | I46: =SUM(D46:H46) -> 3600000 | J46: =IF(C46=0,B46+I46,C46+I46) -> -1200000 | K46: ='B7-CFlow'!L38 -> 1325000 | L46: ='B7-CFlow'!M38 -> 2530000
A47: Cash/cash equivalents at the year end | B47: ='B7-CFlow'!C42 -> -267428232 | C47: ='B7-CFlow'!D42 -> 0 | D47: ='B7-CFlow'!E42 -> 0 | E47: ='B7-CFlow'!F42 -> 0 | F47: ='B7-CFlow'!G42 -> 0 | G47: ='B7-CFlow'!H42 -> 0 | H47: ='B7-CFlow'!I42 -> -349422263 | I47: =SUM(D47:H47) -> -349422263 | J47: =IF(C47=0,B47+I47,C47+I47) -> -616850495 | K47: ='B7-CFlow'!L42 -> -948715867 | L47: ='B7-CFlow'!M42 -> -545991851
A49: Cash backing/surplus reconciliation
A50: Cash and investments available | B50: ='B8-ResRecon'!C10 -> -118760117 | C50: ='B8-ResRecon'!D10 -> 0 | D50: ='B8-ResRecon'!E10 -> 0 | E50: ='B8-ResRecon'!F10 -> 0 | F50: ='B8-ResRecon'!G10 -> 0 | G50: ='B8-ResRecon'!H10 -> 0 | H50: ='B8-ResRecon'!I10 -> -82167759 | I50: =SUM(D50:H50) -> -82167759 | J50: =IF(C50=0,B50+I50,C50+I50) -> -200927876 | K50: ='B8-ResRecon'!L10 -> -357376633 | L50: ='B8-ResRecon'!M10 -> -443001629
A51: Application of cash and investments | B51: ='B8-ResRecon'!C20 -> 2742525174 | C51: ='B8-ResRecon'!D20 -> 0 | D51: ='B8-ResRecon'!E20 -> 0 | E51: ='B8-ResRecon'!F20 -> 0 | F51: ='B8-ResRecon'!G20 -> 0 | G51: ='B8-ResRecon'!H20 -> 0 | H51: ='B8-ResRecon'!I20 -> 582608889 | I51: =SUM(D51:H51) -> 582608889 | J51: =IF(C51=0,B51+I51,C51+I51) -> 3325134063 | K51: ='B8-ResRecon'!L20 -> 3405323483 | L51: ='B8-ResRecon'!M20 -> 1072007306
A52: Balance - surplus (shortfall) | B52: =B50-B51 -> -2861285291 | C52: 0 | D52: 0 | E52: 0 | F52: 0 | G52: 0 | H52: -664776648 | I52: -664776648 | J52: -3526061939 | K52: -3762700116 | L52: -1515008935
A54: Asset Management
A55: Asset register summary (WDV) | B55: ='B9-Asset'!C180 -> 3849371866 | C55: ='B9-Asset'!D180 -> 0 | D55: ='B9-Asset'!E180 -> 0 | E55: ='B9-Asset'!F180 -> 0 | F55: ='B9-Asset'!G180 -> 0 | G55: ='B9-Asset'!H180 -> 0 | H55: ='B9-Asset'!I180 -> -724766 | I55: =SUM(D55:H55) -> -724766 | J55: =IF(C55=0,B55+I55,C55+I55) -> 3848647100 | K55: ='B9-Asset'!L180 -> 3825575002 | L55: ='B9-Asset'!M180 -> 225286999
A56: Depreciation | B56: ='B9-Asset'!C183 -> 411097601 | C56: ='B9-Asset'!D183 -> 0 | D56: ='B9-Asset'!E183 -> 0 | E56: ='B9-Asset'!F183 -> 0 | F56: ='B9-Asset'!G183 -> 0 | G56: ='B9-Asset'!H183 -> 0 | H56: ='B9-Asset'!I183 -> -10000000 | I56: =SUM(D56:H56) -> -10000000 | J56: =IF(C56=0,B56+I56,C56+I56) -> 401097601 | K56: ='B9-Asset'!L183 -> 456158103 | L56: ='B9-Asset'!M183 -> 477141378
A57: Renewal and Upgrading of Existing Assets | B57: ='B9-Asset'!C42+'B9-Asset'!C77 -> 35100196 | C57: ='B9-Asset'!D42+'B9-Asset'!D77 -> 0 | D57: ='B9-Asset'!E42+'B9-Asset'!E77 -> 0 | E57: ='B9-Asset'!F42+'B9-Asset'!F77 -> -2188652 | F57: ='B9-Asset'!G42+'B9-Asset'!G77 -> 0 | G57: ='B9-Asset'!H42+'B9-Asset'!H77 -> 0 | H57: ='B9-Asset'!I42+'B9-Asset'!I77 -> -2508978 | I57: =SUM(D57:H57) -> -4697630 | J57: =IF(C57=0,B57+I57,C57+I57) -> 30402566 | K57: ='B9-Asset'!L42+'B9-Asset'!L77 -> 77918203 | L57: ='B9-Asset'!M42+'B9-Asset'!M77 -> 44984742
A58: Repairs and Maintenance | B58: ='B9-Asset'!C184 -> 264424176 | C58: ='B9-Asset'!D184 -> 0 | D58: ='B9-Asset'!E184 -> 0 | E58: ='B9-Asset'!F184 -> 0 | F58: ='B9-Asset'!G184 -> 0 | G58: ='B9-Asset'!H184 -> 0 | H58: ='B9-Asset'!I184 -> 30767676 | I58: =SUM(D58:H58) -> 30767676 | J58: =IF(C58=0,B58+I58,C58+I58) -> 295191852 | K58: ='B9-Asset'!L184 -> 366671730 | L58: ='B9-Asset'!M184 -> 339668948
A60: Free services
A61: Cost of Free Basic Services provided | B61: ='B10-SerDel'!C62 -> 207755533 | C61: ='B10-SerDel'!D62 -> 0 | D61: ='B10-SerDel'!E62 -> 0 | E61: ='B10-SerDel'!F62 -> 0 | F61: ='B10-SerDel'!G62 -> 0 | G61: ='B10-SerDel'!H62 -> 0 | H61: ='B10-SerDel'!I62 -> 7377764 | I61: ='B10-SerDel'!J62 -> 7377764 | J61: ='B10-SerDel'!K62 -> 215133297 | K61: ='B10-SerDel'!L62 -> 217312289 | L61: ='B10-SerDel'!M62 -> 227308656
A62: Revenue cost of free services provided | B62: ='B10-SerDel'!C81 -> 104865602 | C62: ='B10-SerDel'!D81 -> 0 | D62: ='B10-SerDel'!E81 -> 0 | E62: ='B10-SerDel'!F81 -> 0 | F62: ='B10-SerDel'!G81 -> 0 | G62: ='B10-SerDel'!H81 -> 0 | H62: ='B10-SerDel'!I81 -> 0 | I62: ='B10-SerDel'!J81 -> 0 | J62: ='B10-SerDel'!K81 -> 104865602 | K62: ='B10-SerDel'!L81 -> 189035446 | L62: ='B10-SerDel'!M81 -> 197731077
A63: Households below minimum service level
A64: Water: | B64: ='B10-SerDel'!C16 -> 0 | C64: ='B10-SerDel'!D16 -> 0 | D64: ='B10-SerDel'!E16 -> 0 | E64: ='B10-SerDel'!F16 -> 0 | F64: ='B10-SerDel'!G16 -> 0 | G64: ='B10-SerDel'!H16 -> 0 | H64: ='B10-SerDel'!I16 -> 0 | I64: =SUM(D64:H64) -> 0 | J64: =IF(C64=0,B64+I64,C64+I64) -> 0 | K64: ='B10-SerDel'!L16 -> 0 | L64: ='B10-SerDel'!M16 -> 0
A65: Sanitation/sewerage: | B65: ='B10-SerDel'!C28 -> 4970 | C65: ='B10-SerDel'!D28 -> 0 | D65: ='B10-SerDel'!E28 -> 0 | E65: ='B10-SerDel'!F28 -> 0 | F65: ='B10-SerDel'!G28 -> 0 | G65: ='B10-SerDel'!H28 -> 0 | H65: ='B10-SerDel'!I28 -> 0 | I65: =SUM(D65:H65) -> 0 | J65: =IF(C65=0,B65+I65,C65+I65) -> 4970 | K65: ='B10-SerDel'!L28 -> 4970 | L65: ='B10-SerDel'!M28 -> 5198
A66: Energy: | B66: ='B10-SerDel'!C37 -> 20451 | C66: ='B10-SerDel'!D37 -> 0 | D66: ='B10-SerDel'!E37 -> 0 | E66: ='B10-SerDel'!F37 -> 0 | F66: ='B10-SerDel'!G37 -> 0 | G66: ='B10-SerDel'!H37 -> 0 | H66: ='B10-SerDel'!I37 -> 0 | I66: =SUM(D66:H66) -> 0 | J66: =IF(C66=0,B66+I66,C66+I66) -> 20451 | K66: ='B10-SerDel'!L37 -> 20670 | L66: ='B10-SerDel'!M37 -> 21621
A67: Refuse: | B67: ='B10-SerDel'!C47 -> 15503 | C67: ='B10-SerDel'!D47 -> 0 | D67: ='B10-SerDel'!E47 -> 0 | E67: ='B10-SerDel'!F47 -> 0 | F67: ='B10-SerDel'!G47 -> 0 | G67: ='B10-SerDel'!H47 -> 0 | H67: ='B10-SerDel'!I47 -> 0 | I67: =SUM(D67:H67) -> 0 | J67: =IF(C67=0,B67+I67,C67+I67) -> 15503 | K67: ='B10-SerDel'!L47 -> 14056 | L67: ='B10-SerDel'!M47 -> 14703
A69: References
A70: 1. Only complete if a previous adjusted budget has been approved in the same financial year. Reflect most recent adjusted budget.
A71: 2. Additional cash-backed accumulated funds/unspent funds (MFMA section 18(1)(b) and section 28(2)(e)) identified after the Original Budget approved and after annual financial statements audited (note: only where underspending could not reasonably have been foreseen)
A72: 3. Increases of funds approved under MFMA section 31
A73: 4. Adjustments approved in accordance with MFMA section 29
A74: 5. Adjustments to transfers from National or Provincial Government
A75: 6. Adjusts. = 'Other' Adjustments proposed to be approved; including revenue under-collection (MFMA section 28(2)(a)); additional revenue appropriation on existing programmes (section 28(2))(b); projected savings (section 28(2)(d)); error correction (section 28(2)(f))
A76: 7. G = B + C + D + E + F
A77: 8. Adjusted Budget H = (A or A1/2 etc) + G

Sheet B2-FinPerf SC
A1: =muni&" - "&_ADJ3&" - "&Date -> NW403 City Of Matlosana - Table B2 Adjustments Budget Financial Performance (functional classification) - 45811
A2: ="Standard "&desc -> Standard Description | B2: =head27 -> Ref | C2: =Head2 -> Budget Year 2024/25 | L2: =Head10 -> Budget Year +1 2025/26 | M2: =Head11 -> Budget Year +2 2026/27
C3: =Head6 -> Original Budget | D3: =Head54 -> Prior Adjusted | E3: =Head51 -> Accum. Funds | F3: =Head52 -> Multi-year capital | G3: =Head53 -> Unfore. Unavoid. | H3: =Head55 -> Nat. or Prov. Govt | I3: =Head50 -> Other Adjusts. | J3: =Head56 -> Total Adjusts. | K3: =Head7 -> Adjusted Budget | L3: =Head7 -> Adjusted Budget | M3: =Head7 -> Adjusted Budget
D4: 5 | E4: =D4+1 -> 6 | F4: 7 | G4: 8 | H4: 9 | I4: 10 | J4: 11 | K4: 12
A5: R thousands | B5: 1, 4 | C5: A | D5: A1 | E5: B | F5: C | G5: D | H5: E | I5: F | J5: G | K5: H
A6: Revenue - Functional
A7: Governance and administration | C7: =SUM(C8:C10) -> 1424033512 | D7: =SUM(D8:D10) -> 0 | E7: 0 | F7: 0 | G7: 0 | H7: 0 | I7: -50634228 | J7: =SUM(J8:J10) -> -50634228 | K7: =SUM(K8:K10) -> 1373399284 | L7: =SUM(L8:L10) -> 1481965124 | M7: =SUM(M8:M10) -> 1535910406
A8: Executive and council | C8: =B2B!C8 -> 1430341 | D8: =B2B!D8 -> 0 | E8: =B2B!E8 -> 0 | F8: =B2B!F8 -> 0 | G8: =B2B!G8 -> 0 | H8: =B2B!H8 -> 0 | I8: =B2B!I8 -> 600000 | J8: =SUM(E8:I8) -> 600000 | K8: =IF(D8=0,C8+J8,D8+J8) -> 2030341 | L8: =B2B!L8 -> 2563057 | M8: =B2B!M8 -> 2680959
A9: Finance and administration | C9: =B2B!C11 -> 1422603171 | D9: =B2B!D11 -> 0 | E9: =B2B!E11 -> 0 | F9: =B2B!F11 -> 0 | G9: =B2B!G11 -> 0 | H9: =B2B!H11 -> 0 | I9: =B2B!I11 -> -51234228 | J9: =SUM(E9:I9) -> -51234228 | K9: =IF(D9=0,C9+J9,D9+J9) -> 1371368943 | L9: =B2B!L11 -> 1479402067 | M9: =B2B!M11 -> 1533229447
A10: Internal audit | C10: =B2B!C25 -> 0 | D10: =B2B!D25 -> 0 | E10: =B2B!E25 -> 0 | F10: =B2B!F25 -> 0 | G10: =B2B!G25 -> 0 | H10: =B2B!H25 -> 0 | I10: =B2B!I25 -> 0 | J10: =SUM(E10:I10) -> 0 | K10: =IF(D10=0,C10+J10,D10+J10) -> 0 | L10: =B2B!L25 -> 0 | M10: =B2B!M25 -> 0
A11: Community and public safety | C11: =SUM(C12:C16) -> 69283105 | D11: =SUM(D12:D16) -> 0 | E11: 0 | F11: 0 | G11: 0 | H11: 0 | I11: 656000 | J11: =SUM(J12:J16) -> 656000 | K11: =SUM(K12:K16) -> 69939105 | L11: =SUM(L12:L16) -> 77280557 | M11: =SUM(M12:M16) -> 59228781
A12: Community and social services | C12: =B2B!C28 -> 3871932 | D12: =B2B!D28 -> 0 | E12: =B2B!E28 -> 0 | F12: =B2B!F28 -> 0 | G12: =B2B!G28 -> 0 | H12: =B2B!H28 -> 0 | I12: =B2B!I28 -> 406000 | J12: =SUM(E12:I12) -> 406000 | K12: =IF(D12=0,C12+J12,D12+J12) -> 4277932 | L12: =B2B!L28 -> 4046118 | M12: =B2B!M28 -> 4177914
A13: Sport and recreation | C13: =B2B!C50 -> 15833701 | D13: =B2B!D50 -> 0 | E13: =B2B!E50 -> 0 | F13: =B2B!F50 -> 0 | G13: =B2B!G50 -> 0 | H13: =B2B!H50 -> 0 | I13: =B2B!I50 -> 0 | J13: =SUM(E13:I13) -> 0 | K13: =IF(D13=0,C13+J13,D13+J13) -> 15833701 | L13: =B2B!L50 -> 21378713 | M13: =B2B!M50 -> 809775
A14: Public safety | C14: =B2B!C56 -> 39398911 | D14: =B2B!D56 -> 0 | E14: =B2B!E56 -> 0 | F14: =B2B!F56 -> 0 | G14: =B2B!G56 -> 0 | H14: =B2B!H56 -> 0 | I14: =B2B!I56 -> 250000 | J14: =SUM(E14:I14) -> 250000 | K14: =IF(D14=0,C14+J14,D14+J14) -> 39648911 | L14: =B2B!L56 -> 41208951 | M14: =B2B!M56 -> 43104565
A15: Housing | C15: =B2B!C65 -> 10178561 | D15: =B2B!D65 -> 0 | E15: =B2B!E65 -> 0 | F15: =B2B!F65 -> 0 | G15: =B2B!G65 -> 0 | H15: =B2B!H65 -> 0 | I15: =B2B!I65 -> 0 | J15: =SUM(E15:I15) -> 0 | K15: =IF(D15=0,C15+J15,D15+J15) -> 10178561 | L15: =B2B!L65 -> 10646775 | M15: =B2B!M65 -> 11136527
A16: Health | C16: =B2B!C68 -> 0 | D16: =B2B!D68 -> 0 | E16: =B2B!E68 -> 0 | F16: =B2B!F68 -> 0 | G16: =B2B!G68 -> 0 | H16: =B2B!H68 -> 0 | I16: =B2B!I68 -> 0 | J16: =SUM(E16:I16) -> 0 | K16: =IF(D16=0,C16+J16,D16+J16) -> 0 | L16: =B2B!L68 -> 0 | M16: =B2B!M68 -> 0
A17: Economic and environmental services | C17: =SUM(C18:C20) -> 25871699 | D17: =SUM(D18:D20) -> 0 | E17: 0 | F17: 0 | G17: 0 | H17: 0 | I17: 1473933 | J17: =SUM(J18:J20) -> 1473933 | K17: =SUM(K18:K20) -> 27345632 | L17: =SUM(L18:L20) -> 27271579 | M17: =SUM(M18:M20) -> 51908182
A18: Planning and development | C18: =B2B!C77 -> 11553969 | D18: =B2B!D77 -> 0 | E18: =B2B!E77 -> 0 | F18: =B2B!F77 -> 0 | G18: =B2B!G77 -> 0 | H18: =B2B!H77 -> 0 | I18: =B2B!I77 -> 798973 | J18: =SUM(E18:I18) -> 798973 | K18: =IF(D18=0,C18+J18,D18+J18) -> 12352942 | L18: =B2B!L77 -> 11581804 | M18: =B2B!M77 -> 12342352
A19: Road transport | C19: =B2B!C88 -> 14209053 | D19: =B2B!D88 -> 0 | E19: =B2B!E88 -> 0 | F19: =B2B!F88 -> 0 | G19: =B2B!G88 -> 0 | H19: =B2B!H88 -> 0 | I19: =B2B!I88 -> 609896 | J19: =SUM(E19:I19) -> 609896 | K19: =IF(D19=0,C19+J19,D19+J19) -> 14818949 | L19: =B2B!L88 -> 15576098 | M19: =B2B!M88 -> 39446924
A20: Environmental protection | C20: =B2B!C93 -> 108677 | D20: =B2B!D93 -> 0 | E20: =B2B!E93 -> 0 | F20: =B2B!F93 -> 0 | G20: =B2B!G93 -> 0 | H20: =B2B!H93 -> 0 | I20: =B2B!I93 -> 65064 | J20: =SUM(E20:I20) -> 65064 | K20: =IF(D20=0,C20+J20,D20+J20) -> 173741 | L20: =B2B!L93 -> 113677 | M20: =B2B!M93 -> 118906
A21: Trading services | C21: =SUM(C22:C25) -> 2901971178 | D21: =SUM(D22:D25) -> 0 | E21: 0 | F21: 0 | G21: 0 | H21: 0 | I21: 89159540 | J21: 89159540 | K21: 2991130718 | L21: 3007177192 | M21: 3191867661
A22: Energy sources | C22: =B2B!C101 -> 1167621724 | D22: =B2B!D101 -> 0 | E22: =B2B!E101 -> 0 | F22: =B2B!F101 -> 0 | G22: =B2B!G101 -> 0 | H22: =B2B!H101 -> 0 | I22: =B2B!I101 -> -29499079 | J22: =SUM(E22:I22) -> -29499079 | K22: =IF(D22=0,C22+J22,D22+J22) -> 1138122645 | L22: =B2B!L101 -> 1228816829 | M22: =B2B!M101 -> 1285477268
A23: Water management | C23: =B2B!C105 -> 1092663201 | D23: =B2B!D105 -> 0 | E23: =B2B!E105 -> 0 | F23: =B2B!F105 -> 0 | G23: =B2B!G105 -> 0 | H23: =B2B!H105 -> 0 | I23: =B2B!I105 -> 90153366 | J23: =SUM(E23:I23) -> 90153366 | K23: =IF(D23=0,C23+J23,D23+J23) -> 1182816567 | L23: =B2B!L105 -> 1117733462 | M23: =B2B!M105 -> 1185505508
A24: Waste water management | C24: =B2B!C109 -> 253895202 | D24: =B2B!D109 -> 0 | E24: =B2B!E109 -> 0 | F24: =B2B!F109 -> 0 | G24: =B2B!G109 -> 0 | H24: =B2B!H109 -> 0 | I24: =B2B!I109 -> 515144 | J24: =SUM(E24:I24) -> 515144 | K24: =IF(D24=0,C24+J24,D24+J24) -> 254410346 | L24: =B2B!L109 -> 286167645 | M24: =B2B!M109 -> 339479113
A25: Waste management | C25: =B2B!C114 -> 387791051 | D25: =B2B!D114 -> 0 | E25: =B2B!E114 -> 0 | F25: =B2B!F114 -> 0 | G25: =B2B!G114 -> 0 | H25: =B2B!H114 -> 0 | I25: =B2B!I114 -> 27990109 | J25: =SUM(E25:I25) -> 27990109 | K25: =IF(D25=0,C25+J25,D25+J25) -> 415781160 | L25: =B2B!L114 -> 374459256 | M25: =B2B!M114 -> 381405772
A26: Other | C26: =B2B!C119 -> 29951158 | D26: =B2B!D119 -> 0 | E26: =B2B!E119 -> 0 | F26: =B2B!F119 -> 0 | G26: =B2B!G119 -> 0 | H26: =B2B!H119 -> 0 | I26: =B2B!I119 -> -207118 | J26: =SUM(E26:I26) -> -207118 | K26: =IF(D26=0,C26+J26,D26+J26) -> 29744040 | L26: =B2B!L119 -> 35559712 | M26: =B2B!M119 -> 26735460
A27: ="Total "&A6 -> Total Revenue - Functional | B27: 2 | C27: =C7+C11+C17+C21+C26 -> 4451110652 | D27: =D7+D11+D17+D21+D26 -> 0 | E27: 0 | F27: 0 | G27: 0 | H27: 0 | I27: 40448127 | J27: 40448127 | K27: 4491558779 | L27: 4629254164 | M27: 4865650490
A29: Expenditure - Functional
A30: Governance and administration | C30: =SUM(C31:C33) -> 844795380 | D30: =SUM(D31:D33) -> 0 | E30: 0 | F30: 0 | G30: 0 | H30: 0 | I30: 104702716 | J30: =SUM(J31:J33) -> 104702716 | K30: =SUM(K31:K33) -> 949498096 | L30: =SUM(L31:L33) -> 840363296 | M30: =SUM(M31:M33) -> 812528687
A31: Executive and council | C31: =B2B!C130 -> 406791316 | D31: =B2B!D130 -> 0 | E31: =B2B!E130 -> 0 | F31: =B2B!F130 -> 0 | G31: =B2B!G130 -> 0 | H31: =B2B!H130 -> 0 | I31: =B2B!I130 -> 34237542 | J31: =SUM(E31:I31) -> 34237542 | K31: =IF(D31=0,C31+J31,D31+J31) -> 441028858 | L31: =B2B!L130 -> 443814424 | M31: =B2B!M130 -> 461953012
A32: Finance and administration | C32: =B2B!C133 -> 431329203 | D32: =B2B!D133 -> 0 | E32: =B2B!E133 -> 0 | F32: =B2B!F133 -> 0 | G32: =B2B!G133 -> 0 | H32: =B2B!H133 -> 0 | I32: =B2B!I133 -> 71489503 | J32: =SUM(E32:I32) -> 71489503 | K32: =IF(D32=0,C32+J32,D32+J32) -> 502818706 | L32: =B2B!L133 -> 389566958 | M32: =B2B!M133 -> 343272816
A33: Internal audit | C33: =B2B!C147 -> 6674861 | D33: =B2B!D147 -> 0 | E33: =B2B!E147 -> 0 | F33: =B2B!F147 -> 0 | G33: =B2B!G147 -> 0 | H33: =B2B!H147 -> 0 | I33: =B2B!I147 -> -1024329 | J33: =SUM(E33:I33) -> -1024329 | K33: =IF(D33=0,C33+J33,D33+J33) -> 5650532 | L33: =B2B!L147 -> 6981914 | M33: =B2B!M147 -> 7302859
A34: Community and public safety | C34: =SUM(C35:C39) -> 396427759 | D34: =SUM(D35:D39) -> 0 | E34: 0 | F34: 0 | G34: 0 | H34: 0 | I34: 30724526 | J34: =SUM(J35:J39) -> 30724526 | K34: =SUM(K35:K39) -> 427152285 | L34: =SUM(L35:L39) -> 396674491 | M34: =SUM(M35:M39) -> 411193793
A35: Community and social services | C35: =B2B!C150 -> 118841838 | D35: =B2B!D150 -> 0 | E35: =B2B!E150 -> 0 | F35: =B2B!F150 -> 0 | G35: =B2B!G150 -> 0 | H35: =B2B!H150 -> 0 | I35: =B2B!I150 -> 1566285 | J35: =SUM(E35:I35) -> 1566285 | K35: =IF(D35=0,C35+J35,D35+J35) -> 120408123 | L35: =B2B!L150 -> 131073625 | M35: =B2B!M150 -> 133739000
A36: Sport and recreation | C36: =B2B!C172 -> 110728199 | D36: =B2B!D172 -> 0 | E36: =B2B!E172 -> 0 | F36: =B2B!F172 -> 0 | G36: =B2B!G172 -> 0 | H36: =B2B!H172 -> 0 | I36: =B2B!I172 -> 2715208 | J36: =SUM(E36:I36) -> 2715208 | K36: =IF(D36=0,C36+J36,D36+J36) -> 113443407 | L36: =B2B!L172 -> 95648549 | M36: =B2B!M172 -> 99882489
A37: Public safety | C37: =B2B!C178 -> 146356861 | D37: =B2B!D178 -> 0 | E37: =B2B!E178 -> 0 | F37: =B2B!F178 -> 0 | G37: =B2B!G178 -> 0 | H37: =B2B!H178 -> 0 | I37: =B2B!I178 -> 26782065 | J37: =SUM(E37:I37) -> 26782065 | K37: =IF(D37=0,C37+J37,D37+J37) -> 173138926 | L37: =B2B!L178 -> 148508408 | M37: =B2B!M178 -> 155144329
A38: Housing | C38: =B2B!C187 -> 20336660 | D38: =B2B!D187 -> 0 | E38: =B2B!E187 -> 0 | F38: =B2B!F187 -> 0 | G38: =B2B!G187 -> 0 | H38: =B2B!H187 -> 0 | I38: =B2B!I187 -> -346032 | J38: =SUM(E38:I38) -> -346032 | K38: =IF(D38=0,C38+J38,D38+J38) -> 19990628 | L38: =B2B!L187 -> 21272153 | M38: =B2B!M187 -> 22249378
A39: Health | C39: =B2B!C190 -> 164201 | D39: =B2B!D190 -> 0 | E39: =B2B!E190 -> 0 | F39: =B2B!F190 -> 0 | G39: =B2B!G190 -> 0 | H39: =B2B!H190 -> 0 | I39: =B2B!I190 -> 7000 | J39: =SUM(E39:I39) -> 7000 | K39: =IF(D39=0,C39+J39,D39+J39) -> 171201 | L39: =B2B!L190 -> 171756 | M39: =B2B!M190 -> 178597
A40: Economic and environmental services | C40: =SUM(C41:C43) -> 282671424 | D40: =SUM(D41:D43) -> 0 | E40: 0 | F40: 0 | G40: 0 | H40: 0 | I40: 26553608 | J40: =SUM(J41:J43) -> 26553608 | K40: =SUM(K41:K43) -> 309225032 | L40: =SUM(L41:L43) -> 339732251 | M40: =SUM(M41:M43) -> 317663395
A41: Planning and development | C41: =B2B!C199 -> 72417225 | D41: =B2B!D199 -> 0 | E41: =B2B!E199 -> 0 | F41: =B2B!F199 -> 0 | G41: =B2B!G199 -> 0 | H41: =B2B!H199 -> 0 | I41: =B2B!I199 -> -2275399 | J41: =SUM(E41:I41) -> -2275399 | K41: =IF(D41=0,C41+J41,D41+J41) -> 70141826 | L41: =B2B!L199 -> 73979502 | M41: =B2B!M199 -> 77339184
A42: Road transport | C42: =B2B!C210 -> 207945243 | D42: =B2B!D210 -> 0 | E42: =B2B!E210 -> 0 | F42: =B2B!F210 -> 0 | G42: =B2B!G210 -> 0 | H42: =B2B!H210 -> 0 | I42: =B2B!I210 -> 29087089 | J42: =SUM(E42:I42) -> 29087089 | K42: =IF(D42=0,C42+J42,D42+J42) -> 237032332 | L42: =B2B!L210 -> 263439599 | M42: =B2B!M210 -> 237908966
A43: Environmental protection | C43: =B2B!C215 -> 2308956 | D43: =B2B!D215 -> 0 | E43: =B2B!E215 -> 0 | F43: =B2B!F215 -> 0 | G43: =B2B!G215 -> 0 | H43: =B2B!H215 -> 0 | I43: =B2B!I215 -> -258082 | J43: =SUM(E43:I43) -> -258082 | K43: =IF(D43=0,C43+J43,D43+J43) -> 2050874 | L43: =B2B!L215 -> 2313150 | M43: =B2B!M215 -> 2415245
A44: Trading services | C44: =SUM(C45:C48) -> 2711346043 | D44: =SUM(D45:D48) -> 0 | E44: 0 | F44: 0 | G44: 0 | H44: 0 | I44: 698458650 | J44: 698458650 | K44: 3409804693 | L44: 2674664797 | M44: 2700817675
A45: Energy sources | C45: =B2B!C223 -> 1516661657 | D45: =B2B!D223 -> 0 | E45: =B2B!E223 -> 0 | F45: =B2B!F223 -> 0 | G45: =B2B!G223 -> 0 | H45: =B2B!H223 -> 0 | I45: =B2B!I223 -> 142961564 | J45: =SUM(E45:I45) -> 142961564 | K45: =IF(D45=0,C45+J45,D45+J45) -> 1659623221 | L45: =B2B!L223 -> 1457350639 | M45: =B2B!M223 -> 1484063795
A46: Water management | C46: =B2B!C227 -> 724759504 | D46: =B2B!D227 -> 0 | E46: =B2B!E227 -> 0 | F46: =B2B!F227 -> 0 | G46: =B2B!G227 -> 0 | H46: =B2B!H227 -> 0 | I46: =B2B!I227 -> 292869525 | J46: =SUM(E46:I46) -> 292869525 | K46: =IF(D46=0,C46+J46,D46+J46) -> 1017629029 | L46: =B2B!L227 -> 694972475 | M46: =B2B!M227 -> 771017954
A47: Waste water management | C47: =B2B!C231 -> 252336111 | D47: =B2B!D231 -> 0 | E47: =B2B!E231 -> 0 | F47: =B2B!F231 -> 0 | G47: =B2B!G231 -> 0 | H47: =B2B!H231 -> 0 | I47: =B2B!I231 -> 123954624 | J47: =SUM(E47:I47) -> 123954624 | K47: =IF(D47=0,C47+J47,D47+J47) -> 376290735 | L47: =B2B!L231 -> 302327970 | M47: =B2B!M231 -> 234206341
A48: Waste management | C48: =B2B!C236 -> 217588771 | D48: =B2B!D236 -> 0 | E48: =B2B!E236 -> 0 | F48: =B2B!F236 -> 0 | G48: =B2B!G236 -> 0 | H48: =B2B!H236 -> 0 | I48: =B2B!I236 -> 138672937 | J48: =SUM(E48:I48) -> 138672937 | K48: =IF(D48=0,C48+J48,D48+J48) -> 356261708 | L48: =B2B!L236 -> 220013713 | M48: =B2B!M236 -> 211529585
A49: Other | C49: =B2B!C241 -> 27400199 | D49: =B2B!D241 -> 0 | E49: =B2B!E241 -> 0 | F49: =B2B!F241 -> 0 | G49: =B2B!G241 -> 0 | H49: =B2B!H241 -> 0 | I49: =B2B!I241 -> -1443885 | J49: =SUM(E49:I49) -> -1443885 | K49: =IF(D49=0,C49+J49,D49+J49) -> 25956314 | L49: =B2B!L241 -> 24816787 | M49: =B2B!M241 -> 25935933
A50: ="Total "&A29 -> Total Expenditure - Functional | B50: 3 | C50: =C30+C34+C40+C44+C49 -> 4262640805 | D50: =D30+D34+D40+D44+D49 -> 0 | E50: 0 | F50: 0 | G50: 0 | H50: 0 | I50: 858995615 | J50: 858995615 | K50: 5121636420 | L50: 4276251622 | M50: 4268139483
A51: Surplus/ (Deficit) for the year | C51: =C27-C50 -> 188469847 | D51: 0 | E51: 0 | F51: 0 | G51: 0 | H51: 0 | I51: -818547488 | J51: -818547488 | K51: -630077641 | L51: 353002542 | M51: 597511007
A52: =head27a -> References
A53: 1. Government Finance Statistics Functions and Sub-functions are standardised to assist the compilation of national and international accounts for comparison purposes
A54: 2. Total Revenue by standard classification must reconcile to Total Operating Revenue shown in the Adjustments Budget Financial Performance (revenue and expenditure)
A55: 3. Total Operating Expenditure by standard classification must reconcile to Total Operating Expenditure shown in the Adjustments Budget Financial Performance (revenue and expenditure)
A56: 4. All amounts must be classified under a standard classification (modified GFS). The GFS function 'Other' is only for Abbatoirs, Air Transport, Markets and Tourism - and if used must be supported by footnotes. Nothing else may be placed under 'Other'. Assign associate share to relevant classification
A57: 5. Only complete if a previous adjusted budget has been approved in the same financial year. Reflect most recent adjusted budget.
A58: 6. Additional cash-backed accumulated funds/unspent funds (MFMA section 18(1)(b) and section 28(2)(e)) identified after the Original Budget approved and after annual financial statements audited (note: only where underspending could not reasonably have been foreseen)
A59: 7. Increases of funds approved under MFMA section 31
A60: 8. Adjustments approved in accordance with MFMA section 29
A61: 9. Adjustments to transfers from National or Provincial Government
A62: 10. Adjusts. = 'Other' Adjustments proposed to be approved; including revenue under-collection (MFMA section 28(2)(a)); additional revenue appropriation on existing programmes (section 28(2))(b); projected savings (section 28(2)(d)); error correction (section 28(2)(f))
A63: 11. G = B + C + D + E + F
A64: 12. Adjusted Budget H = (A or A1/2 etc) + G

Sheet B2B
A1: =muni&" - "&_ADJ3&" - B"&" - "&Date -> NW403 City Of Matlosana - Table B2 Adjustments Budget Financial Performance (functional classification) - B - 45811
A2: ="Standard Classification "&desc -> Standard Classification Description | B2: =head27 -> Ref | C2: =Head2 -> Budget Year 2024/25 | L2: =Head10 -> Budget Year +1 2025/26 | M2: =Head11 -> Budget Year +2 2026/27
C3: =Head6 -> Original Budget | D3: =Head54 -> Prior Adjusted | E3: =Head51 -> Accum. Funds | F3: =Head52 -> Multi-year capital | G3: =Head53 -> Unfore. Unavoid. | H3: =Head55 -> Nat. or Prov. Govt | I3: =Head50 -> Other Adjusts. | J3: =Head56 -> Total Adjusts. | K3: =Head7 -> Adjusted Budget | L3: =Head7 -> Adjusted Budget | M3: =Head7 -> Adjusted Budget
D4: 5 | E4: =D4+1 -> 6 | F4: 7 | G4: 8 | H4: 9 | I4: 10 | J4: 11 | K4: 12
A5: R thousand | B5: 1 | C5: A | D5: A1 | E5: B | F5: C | G5: D | H5: E | I5: F | J5: G | K5: H
A6: Revenue - Functional
A7: Municipal governance and administration | C7: =C8+C11+C25 -> 1424033512 | D7: 0 | E7: 0 | F7: 0 | G7: 0 | H7: 0 | I7: -50634228 | J7: =SUM(E7:I7) -> -50634228 | K7: =IF(D7=0,C7+J7,D7+J7) -> 1373399284 | L7: =L8+L11+L25 -> 1481965124 | M7: =M8+M11+M25 -> 1535910406
A8: Executive and council | C8: =SUM(C9:C10) -> 1430341 | D8: =SUM(D9:D10) -> 0 | E8: 0 | F8: 0 | G8: 0 | H8: 0 | I8: 600000 | J8: =SUM(E8:I8) -> 600000 | K8: =IF(D8=0,C8+J8,D8+J8) -> 2030341 | L8: =SUM(L9:L10) -> 2563057 | M8: =SUM(M9:M10) -> 2680959
A9: Mayor and Council | C9: 200000 | D9: 0 | E9: 0 | F9: 0 | G9: 0 | H9: 0 | I9: 0 | J9: =SUM(E9:I9) -> 0 | K9: =IF(D9=0,C9+J9,D9+J9) -> 200000 | L9: 209200 | M9: 218824
A10: Municipal Manager, Town Secretary and Chief Executive | C10: 1230341 | D10: 0 | E10: 0 | F10: 0 | G10: 0 | H10: 0 | I10: 600000 | J10: =SUM(E10:I10) -> 600000 | K10: =IF(D10=0,C10+J10,D10+J10) -> 1830341 | L10: 2353857 | M10: 2462135
A11: Finance and administration | C11: =SUM(C12:C24) -> 1422603171 | D11: 0 | E11: 0 | F11: 0 | G11: 0 | H11: 0 | I11: -51234228 | J11: -51234228 | K11: 1371368943 | L11: =SUM(L12:L24) -> 1479402067 | M11: =SUM(M12:M24) -> 1533229447
A12: Administrative and Corporate Support | J12: 0 | K12: 0
A13: Asset Management | J13: 0 | K13: 0
A14: Finance | C14: 1422460823 | D14: 0 | E14: 0 | F14: 0 | G14: 0 | H14: 0 | I14: -51234228 | J14: -51234228 | K14: 1371226595 | L14: 1479253170 | M14: 1533073701
A15: Fleet Management | J15: 0 | K15: 0
A16: Human Resources | J16: 0 | K16: 0
A17: Information Technology | C17: 142348 | D17: 0 | E17: 0 | F17: 0 | G17: 0 | H17: 0 | I17: 0 | J17: 0 | K17: 142348 | L17: 148897 | M17: 155746
A18: Legal Services | J18: 0 | K18: 0
A19: Marketing, Customer Relations, Publicity and Media Co-ordination | J19: 0 | K19: 0
A20: Property Services | J20: 0 | K20: 0
A21: Risk Management | J21: 0 | K21: 0
A22: Security Services | J22: 0 | K22: 0
A23: Supply Chain Management | J23: 0 | K23: 0
A24: Valuation Service | J24: 0 | K24: 0
A25: Internal audit | C25: =SUM(C26:C26) -> 0 | D25: 0 | E25: 0 | F25: 0 | G25: 0 | H25: 0 | I25: 0 | J25: 0 | K25: 0 | L25: 0 | M25: 0
A26: Governance Function | J26: 0 | K26: 0
A27: Community and public safety | C27: =C28+C50+C56+C65+C68 -> 69283105 | D27: 0 | E27: 0 | F27: 0 | G27: 0 | H27: 0 | I27: 656000 | J27: 656000 | K27: 69939105 | L27: =L28+L50+L56+L65+L68 -> 77280557 | M27: =M28+M50+M56+M65+M68 -> 59228781
A28: Community and social services | C28: =SUM(C29:C49) -> 3871932 | D28: 0 | E28: 0 | F28: 0 | G28: 0 | H28: 0 | I28: 406000 | J28: 406000 | K28: 4277932 | L28: 4046118 | M28: 4177914
A29: Aged Care | J29: 0 | K29: 0
A30: Agricultural | J30: 0 | K30: 0
A31: Animal Care and Diseases | J31: 0 | K31: 0
A32: Cemeteries, Funeral Parlours and Crematoriums | C32: 2500000 | D32: 0 | E32: 0 | F32: 0 | G32: 0 | H32: 0 | I32: 0 | J32: 0 | K32: 2500000 | L32: 2615000 | M32: 2735290
A33: Child Care Facilities | J33: 0 | K33: 0
A34: Community Halls and Facilities | J34: 0 | K34: 0
A35: Consumer Protection | J35: 0 | K35: 0
A36: Cultural Matters | J36: 0 | K36: 0
A37: Disaster Management | C37: 0 | D37: 0 | E37: 0 | F37: 0 | G37: 0 | H37: 0 | I37: 0 | J37: 0 | K37: 0 | L37: 0 | M37: 0
A38: Education | J38: 0 | K38: 0
A39: Indigenous and Customary Law | J39: 0 | K39: 0
A40: Industrial Promotion | J40: 0 | K40: 0
A41: Language Policy | J41: 0 | K41: 0
A42: Libraries and Archives | C42: 1120932 | D42: 0 | E42: 0 | F42: 0 | G42: 0 | H42: 0 | I42: 450000 | J42: 450000 | K42: 1570932 | L42: 1128796 | M42: 1137021
A43: Literacy Programmes | J43: 0 | K43: 0
A44: Media Services | J44: 0 | K44: 0
A45: Museums and Art Galleries | C45: 251000 | D45: 0 | E45: 0 | F45: 0 | G45: 0 | H45: 0 | I45: -44000 | J45: -44000 | K45: 207000 | L45: 302322 | M45: 305603
A46: Population Development | J46: 0 | K46: 0
A47: Provincial Cultural Matters | J47: 0 | K47: 0
A48: Theatres | J48: 0 | K48: 0
A49: Zoo's | J49: 0 | K49: 0
A50: Sport and recreation | C50: =SUM(C51:C55) -> 15833701 | D50: 0 | E50: 0 | F50: 0 | G50: 0 | H50: 0 | I50: 0 | J50: 0 | K50: 15833701 | L50: 21378713 | M50: 809775
A51: Beaches and Jetties | J51: 0 | K51: 0
A52: Casinos, Racing, Gambling, Wagering | J52: 0 | K52: 0
A53: Community Parks (including Nurseries) | C53: 356139 | D53: 0 | E53: 0 | F53: 0 | G53: 0 | H53: 0 | I53: 0 | J53: 0 | K53: 356139 | L53: 372522 | M53: 389658
A54: Recreational Facilities | C54: 0 | D54: 0 | E54: 0 | F54: 0 | G54: 0 | H54: 0 | I54: 0 | J54: 0 | K54: 0 | L54: 0 | M54: 0
A55: Sports Grounds and Stadiums | C55: 15477562 | D55: 0 | E55: 0 | F55: 0 | G55: 0 | H55: 0 | I55: 0 | J55: 0 | K55: 15477562 | L55: 21006191 | M55: 420117
A56: Public safety | C56: =SUM(C57:C64) -> 39398911 | D56: 0 | E56: 0 | F56: 0 | G56: 0 | H56: 0 | I56: 250000 | J56: 250000 | K56: 39648911 | L56: 41208951 | M56: 43104565
A57: Civil Defence | J57: 0 | K57: 0
A58: Cleansing | J58: 0 | K58: 0
A59: Control of Public Nuisances | J59: 0 | K59: 0
A60: Fencing and Fences | J60: 0 | K60: 0
A61: Fire Fighting and Protection | C61: 761438 | D61: 0 | E61: 0 | F61: 0 | G61: 0 | H61: 0 | I61: 0 | J61: 0 | K61: 761438 | L61: 796465 | M61: 833102
A62: Licensing and Control of Animals | C62: 24164748 | D62: 0 | E62: 0 | F62: 0 | G62: 0 | H62: 0 | I62: 250000 | J62: 250000 | K62: 24414748 | L62: 25274014 | M62: 26436620
A63: Police Forces, Traffic and Street Parking Control | C63: 14472725 | D63: 0 | E63: 0 | F63: 0 | G63: 0 | H63: 0 | I63: 0 | J63: =SUM(E63:I63) -> 0 | K63: =IF(D63=0,C63+J63,D63+J63) -> 14472725 | L63: 15138472 | M63: 15834843
A64: Pounds | J64: 0 | K64: 0
A65: Housing | C65: =SUM(C66:C67) -> 10178561 | D65: =SUM(D66:D67) -> 0 | E65: 0 | F65: 0 | G65: 0 | H65: 0 | I65: 0 | J65: 0 | K65: 10178561 | L65: =SUM(L66:L67) -> 10646775 | M65: =SUM(M66:M67) -> 11136527
A66: Housing | C66: 10178561 | D66: 0 | E66: 0 | F66: 0 | G66: 0 | H66: 0 | I66: 0 | J66: 0 | K66: 10178561 | L66: 10646775 | M66: 11136527
A67: Informal Settlements | J67: 0 | K67: 0
A68: Health | C68: =SUM(C69:C75) -> 0 | D68: =SUM(D69:D75) -> 0 | E68: 0 | F68: 0 | G68: 0 | H68: 0 | I68: 0 | J68: 0 | K68: 0 | L68: =SUM(L69:L75) -> 0 | M68: =SUM(M69:M75) -> 0
A69: Ambulance | J69: 0 | K69: 0
A70: Health Services | J70: 0 | K70: 0
A71: Laboratory Services | J71: 0 | K71: 0
A72: Food Control | J72: 0 | K72: 0
A73: Health Surveillance and Prevention of Communicable Diseases including immunizations | J73: 0 | K73: 0
A74: Vector Control | J74: 0 | K74: 0
A75: Chemical Safety | J75: =SUM(E75:I75) -> 0 | K75: =IF(D75=0,C75+J75,D75+J75) -> 0
A76: Economic and environmental services | C76: =C77+C88+C93 -> 25871699 | D76: 0 | E76: 0 | F76: 0 | G76: 0 | H76: 0 | I76: 1473933 | J76: 1473933 | K76: 27345632 | L76: =L77+L88+L93 -> 27271579 | M76: =M77+M88+M93 -> 51908182
A77: Planning and development | C77: =SUM(C78:C87) -> 11553969 | D77: =SUM(D78:D87) -> 0 | E77: 0 | F77: 0 | G77: 0 | H77: 0 | I77: 798973 | J77: 798973 | K77: 12352942 | L77: =SUM(L78:L87) -> 11581804 | M77: =SUM(M78:M87) -> 12342352
A78: Billboards | J78: 0 | K78: 0
A79: Corporate Wide Strategic Planning (IDPs, LEDs) | J79: 0 | K79: 0
A80: Central City Improvement District | J80: 0 | K80: 0
A81: Development Facilitation | J81: 0 | K81: 0
A82: Economic Development/Planning | C82: 1027 | D82: 0 | E82: 0 | F82: 0 | G82: 0 | H82: 0 | I82: 798973 | J82: 798973 | K82: 800000 | L82: 1075 | M82: 1124
A83: Regional Planning and Development | J83: 0 | K83: 0
A84: Town Planning, Building Regulations and Enforcement, and City Engineer | C84: 5912742 | D84: 0 | E84: 0 | F84: 0 | G84: 0 | H84: 0 | I84: 0 | J84: 0 | K84: 5912742 | L84: 6184729 | M84: 6469228
A85: Project Management Unit | C85: 5640200 | D85: 0 | E85: 0 | F85: 0 | G85: 0 | H85: 0 | I85: 0 | J85: 0 | K85: 5640200 | L85: 5396000 | M85: 5872000
A86: Provincial Planning | J86: 0 | K86: 0
A87: Support to Local Municipalities | J87: 0 | K87: 0
A88: Road transport | C88: =SUM(C89:C92) -> 14209053 | D88: 0 | E88: 0 | F88: 0 | G88: 0 | H88: 0 | I88: 609896 | J88: 609896 | K88: 14818949 | L88: =SUM(L89:L92) -> 15576098 | M88: =SUM(M89:M92) -> 39446924
A89: Public Transport | J89: 0 | K89: 0
A90: Road and Traffic Regulation | J90: 0 | K90: 0
A91: Roads | C91: 14209053 | D91: 0 | E91: 0 | F91: 0 | G91: 0 | H91: 0 | I91: 609896 | J91: 609896 | K91: 14818949 | L91: 15576098 | M91: 39446924
A92: Taxi Ranks | J92: 0 | K92: 0
A93: Environmental protection | C93: =SUM(C94:C99) -> 108677 | D93: =SUM(D94:D99) -> 0 | E93: 0 | F93: 0 | G93: 0 | H93: 0 | I93: 65064 | J93: 65064 | K93: 173741 | L93: =SUM(L94:L99) -> 113677 | M93: =SUM(M94:M99) -> 118906
A94: Biodiversity and Landscape | J94: 0 | K94: 0
A95: Coastal Protection | J95: 0 | K95: 0
A96: Indigenous Forests | J96: 0 | K96: 0
A97: Nature Conservation | C97: 108677 | D97: 0 | E97: 0 | F97: 0 | G97: 0 | H97: 0 | I97: 65064 | J97: 65064 | K97: 173741 | L97: 113677 | M97: 118906
A98: Pollution Control | J98: 0 | K98: 0
A99: Soil Conservation | J99: 0 | K99: 0
A100: Trading services | C100: =C101+C105+C109+C114 -> 2901971178 | D100: =D101+D105+D109+D114 -> 0 | E100: 0 | F100: 0 | G100: 0 | H100: 0 | I100: 89159540 | J100: 89159540 | K100: 2991130718 | L100: 3007177192 | M100: 3191867661
A101: Energy sources | C101: =SUM(C102:C104) -> 1167621724 | D101: =SUM(D102:D104) -> 0 | E101: 0 | F101: 0 | G101: 0 | H101: 0 | I101: -29499079 | J101: -29499079 | K101: 1138122645 | L101: =SUM(L102:L104) -> 1228816829 | M101: =SUM(M102:M104) -> 1285477268
A102: Electricity | C102: 1162621724 | D102: 0 | E102: 0 | F102: 0 | G102: 0 | H102: 0 | I102: -29499079 | J102: -29499079 | K102: 1133122645 | L102: 1223816829 | M102: 1281477268
A103: Street Lighting and Signal Systems | C103: 5000000 | D103: 0 | E103: 0 | F103: 0 | G103: 0 | H103: 0 | I103: 0 | J103: 0 | K103: 5000000 | L103: 5000000 | M103: 4000000
A104: Nonelectric Energy | J104: 0 | K104: 0
A105: Water management | C105: =SUM(C106:C108) -> 1092663201 | D105: =SUM(D106:D108) -> 0 | E105: 0 | F105: 0 | G105: 0 | H105: 0 | I105: 90153366 | J105: 90153366 | K105: 1182816567 | L105: =SUM(L106:L108) -> 1117733462 | M105: =SUM(M106:M108) -> 1185505508
A106: Water Treatment | J106: 0 | K106: 0
A107: Water Distribution | C107: 1092663201 | D107: 0 | E107: 0 | F107: 0 | G107: 0 | H107: 0 | I107: 90153366 | J107: 90153366 | K107: 1182816567 | L107: 1117733462 | M107: 1185505508
A108: Water Storage | J108: 0 | K108: 0
A109: Waste water management | C109: =SUM(C110:C113) -> 253895202 | D109: =SUM(D110:D113) -> 0 | E109: 0 | F109: 0 | G109: 0 | H109: 0 | I109: 515144 | J109: 515144 | K109: 254410346 | L109: =SUM(L110:L113) -> 286167645 | M109: =SUM(M110:M113) -> 339479113
A110: Public Toilets | J110: 0 | K110: 0
A111: Sewerage | C111: 253895202 | D111: 0 | E111: 0 | F111: 0 | G111: 0 | H111: 0 | I111: 515144 | J111: 515144 | K111: 254410346 | L111: 286167645 | M111: 339479113
A112: Storm Water Management | J112: 0 | K112: 0
A113: Waste Water Treatment | J113: 0 | K113: 0
A114: Waste management | C114: =SUM(C115:C118) -> 387791051 | D114: =SUM(D115:D118) -> 0 | E114: 0 | F114: 0 | G114: 0 | H114: 0 | I114: 27990109 | J114: 27990109 | K114: 415781160 | L114: 374459256 | M114: =SUM(M115:M118) -> 381405772
A115: Recycling | J115: 0 | K115: 0
A116: Solid Waste Disposal (Landfill Sites) | C116: 39198099 | D116: 0 | E116: 0 | F116: 0 | G116: 0 | H116: 0 | I116: 0 | J116: 0 | K116: 39198099 | L116: 29443749 | M116: 464161
A117: Solid Waste Removal | C117: 348592952 | D117: 0 | E117: 0 | F117: 0 | G117: 0 | H117: 0 | I117: 27990109 | J117: 27990109 | K117: 376583061 | L117: 345015507 | M117: 380941611
A118: Street Cleaning | J118: 0 | K118: 0
A119: Other | C119: =SUM(C120:C125) -> 29951158 | D119: 0 | E119: 0 | F119: 0 | G119: 0 | H119: 0 | I119: -207118 | J119: -207118 | K119: 29744040 | L119: 35559712 | M119: 26735460
A120: Abattoirs | J120: 0 | K120: 0
A121: Air Transport | C121: 90000 | D121: 0 | E121: 0 | F121: 0 | G121: 0 | H121: 0 | I121: 0 | J121: 0 | K121: 90000 | L121: 0 | M121: 0
A122: Forestry | J122: 0 | K122: 0
A123: Licensing and Regulation | J123: 0 | K123: 0
A124: Markets | C124: 29861158 | D124: 0 | E124: 0 | F124: 0 | G124: 0 | H124: 0 | I124: -207118 | J124: -207118 | K124: 29654040 | L124: 35559712 | M124: 26735460
A125: Tourism | J125: 0 | K125: 0
A126: ="Total "&A6 -> Total Revenue - Functional | B126: 2 | C126: =C7+C27+C76+C100+C119 -> 4451110652 | D126: 0 | E126: 0 | F126: 0 | G126: 0 | H126: 0 | I126: 40448127 | J126: 40448127 | K126: 4491558779 | L126: =L7+L27+L76+L100+L119 -> 4629254164 | M126: =M7+M27+M76+M100+M119 -> 4865650490
J127: 0 | K127: 0
A128: Expenditure - Functional | J128: 0 | K128: 0
A129: =A7 -> Municipal governance and administration | C129: =C130+C133+C147 -> 844795380 | D129: 0 | E129: 0 | F129: 0 | G129: 0 | H129: 0 | I129: 104702716 | J129: 104702716 | K129: 949498096 | L129: =L130+L133+L147 -> 840363296 | M129: =M130+M133+M147 -> 812528687
A130: Executive and council | C130: =SUM(C131:C132) -> 406791316 | D130: 0 | E130: 0 | F130: 0 | G130: 0 | H130: 0 | I130: 34237542 | J130: 34237542 | K130: 441028858 | L130: =SUM(L131:L132) -> 443814424 | M130: =SUM(M131:M132) -> 461953012
A131: Mayor and Council | C131: 230842631 | D131: 0 | E131: 0 | F131: 0 | G131: 0 | H131: 0 | I131: 2024205 | J131: 2024205 | K131: 232866836 | L131: 244906907 | M131: 253946235
A132: Municipal Manager, Town Secretary and Chief Executive | C132: 175948685 | D132: 0 | E132: 0 | F132: 0 | G132: 0 | H132: 0 | I132: 32213337 | J132: 32213337 | K132: 208162022 | L132: 198907517 | M132: 208006777
A133: Finance and administration | C133: =SUM(C134:C146) -> 431329203 | D133: 0 | E133: 0 | F133: 0 | G133: 0 | H133: 0 | I133: 71489503 | J133: 71489503 | K133: 502818706 | L133: =SUM(L134:L146) -> 389566958 | M133: =SUM(M134:M146) -> 343272816
A134: Administrative and Corporate Support | J134: 0 | K134: 0
A135: Asset Management | J135: 0 | K135: 0
A136: Finance | C136: 371893534 | D136: 0 | E136: 0 | F136: 0 | G136: 0 | H136: 0 | I136: 64487348 | J136: 64487348 | K136: 436380882 | L136: 327501768 | M136: 278387543
A137: Fleet Management | J137: 0 | K137: 0
A138: Human Resources | J138: 0 | K138: 0
A139: Information Technology | C139: 39598801 | D139: 0 | E139: 0 | F139: 0 | G139: 0 | H139: 0 | I139: 1959786 | J139: =SUM(E139:I139) -> 1959786 | K139: =IF(D139=0,C139+J139,D139+J139) -> 41558587 | L139: 40746810 | M139: 42540430
A140: Legal Services | C140: 19836868 | D140: 0 | E140: 0 | F140: 0 | G140: 0 | H140: 0 | I140: 5042369 | J140: 5042369 | K140: 24879237 | L140: 21318380 | M140: 22344843
A141: Marketing, Customer Relations, Publicity and Media Co-ordination | J141: 0 | K141: 0
A142: Property Services | J142: 0 | K142: 0
A143: Risk Management | J143: 0 | K143: 0
A144: Security Services | J144: 0 | K144: 0
A145: Supply Chain Management | J145: 0 | K145: 0
A146: Valuation Service | J146: 0 | K146: 0
A147: Internal audit | C147: =SUM(C148:C148) -> 6674861 | D147: 0 | E147: 0 | F147: 0 | G147: 0 | H147: 0 | I147: -1024329 | J147: -1024329 | K147: 5650532 | L147: 6981914 | M147: 7302859
A148: Governance Function | C148: 6674861 | D148: 0 | E148: 0 | F148: 0 | G148: 0 | H148: 0 | I148: -1024329 | J148: -1024329 | K148: 5650532 | L148: 6981914 | M148: 7302859
A149: Community and public safety | C149: =C150+C172+C178+C187+C190 -> 396427759 | D149: 0 | E149: 0 | F149: 0 | G149: 0 | H149: 0 | I149: 30724526 | J149: 30724526 | K149: 427152285 | L149: =L150+L172+L178+L187+L190 -> 396674491 | M149: =M150+M172+M178+M187+M190 -> 411193793
A150: Community and social services | C150: =SUM(C151:C171) -> 118841838 | D150: 0 | E150: 0 | F150: 0 | G150: 0 | H150: 0 | I150: 1566285 | J150: 1566285 | K150: 120408123 | L150: =SUM(L151:L171) -> 131073625 | M150: =SUM(M151:M171) -> 133739000
A151: Aged Care | J151: 0 | K151: 0
A152: Agricultural | J152: 0 | K152: 0
A153: Animal Care and Diseases | J153: 0 | K153: 0
A154: Cemeteries, Funeral Parlours and Crematoriums | C154: 25651377 | D154: 0 | E154: 0 | F154: 0 | G154: 0 | H154: 0 | I154: 261850 | J154: 261850 | K154: 25913227 | L154: 25939028 | M154: 27127600
A155: Child Care Facilities | J155: 0 | K155: 0
A156: Community Halls and Facilities | J156: 0 | K156: 0
A157: Consumer Protection | J157: 0 | K157: 0
A158: Cultural Matters | J158: 0 | K158: 0
A159: Disaster Management | C159: 32678530 | D159: 0 | E159: 0 | F159: 0 | G159: 0 | H159: 0 | I159: -410383 | J159: -410383 | K159: 32268147 | L159: 41953523 | M159: 40621003
A160: Education | J160: 0 | K160: 0
A161: Indigenous and Customary Law | J161: 0 | K161: 0
A162: Industrial Promotion | J162: 0 | K162: 0
A163: Language Policy | J163: 0 | K163: 0
A164: Libraries and Archives | C164: 56079440 | D164: 0 | E164: 0 | F164: 0 | G164: 0 | H164: 0 | I164: 1535973 | J164: 1535973 | K164: 57615413 | L164: 58544681 | M164: 61147224
A165: Literacy Programmes | J165: 0 | K165: 0
A166: Media Services | J166: 0 | K166: 0
A167: Museums and Art Galleries | C167: 4432491 | D167: 0 | E167: 0 | F167: 0 | G167: 0 | H167: 0 | I167: 178845 | J167: 178845 | K167: 4611336 | L167: 4636393 | M167: 4843173
A168: Population Development | J168: 0 | K168: 0
A169: Provincial Cultural Matters | J169: 0 | K169: 0
A170: Theatres | J170: 0 | K170: 0
A171: Zoo's | J171: 0 | K171: 0
A172: Sport and recreation | C172: =SUM(C173:C177) -> 110728199 | D172: 0 | E172: 0 | F172: 0 | G172: 0 | H172: 0 | I172: 2715208 | J172: 2715208 | K172: 113443407 | L172: =SUM(L173:L177) -> 95648549 | M172: =SUM(M173:M177) -> 99882489
A173: Beaches and Jetties | J173: 0 | K173: 0
A174: Casinos, Racing, Gambling, Wagering | J174: 0 | K174: 0
A175: Community Parks (including Nurseries) | C175: 43986401 | D175: 0 | E175: 0 | F175: 0 | G175: 0 | H175: 0 | I175: 3055638 | J175: 3055638 | K175: 47042039 | L175: 49835268 | M175: 52110779
A176: Recreational Facilities | C176: 29361080 | D176: 0 | E176: 0 | F176: 0 | G176: 0 | H176: 0 | I176: -407990 | J176: -407990 | K176: 28953090 | L176: 5457833 | M176: 5704849
A177: Sports Grounds and Stadiums | C177: 37380718 | D177: 0 | E177: 0 | F177: 0 | G177: 0 | H177: 0 | I177: 67560 | J177: 67560 | K177: 37448278 | L177: 40355448 | M177: 42066861
A178: Public safety | C178: =SUM(C179:C186) -> 146356861 | D178: 0 | E178: 0 | F178: 0 | G178: 0 | H178: 0 | I178: 26782065 | J178: 26782065 | K178: 173138926 | L178: =SUM(L179:L186) -> 148508408 | M178: =SUM(M179:M186) -> 155144329
A179: Civil Defence | J179: 0 | K179: 0
A180: Cleansing | J180: 0 | K180: 0
A181: Control of Public Nuisances | J181: 0 | K181: 0
A182: Fencing and Fences | J182: 0 | K182: 0
A183: Fire Fighting and Protection | C183: 46043052 | D183: 0 | E183: 0 | F183: 0 | G183: 0 | H183: 0 | I183: 17194853 | J183: 17194853 | K183: 63237905 | L183: 47347577 | M183: 49416755
A184: Licensing and Control of Animals | C184: 51629000 | D184: 0 | E184: 0 | F184: 0 | G184: 0 | H184: 0 | I184: 916628 | J184: =SUM(E184:I184) -> 916628 | K184: =IF(D184=0,C184+J184,D184+J184) -> 52545628 | L184: 50226046 | M184: 52515108
A185: Police Forces, Traffic and Street Parking Control | C185: 48684809 | D185: 0 | E185: 0 | F185: 0 | G185: 0 | H185: 0 | I185: 8670584 | J185: =SUM(E185:I185) -> 8670584 | K185: =IF(D185=0,C185+J185,D185+J185) -> 57355393 | L185: 50934785 | M185: 53212466
A186: Pounds | J186: 0 | K186: 0
A187: Housing | C187: =SUM(C188:C189) -> 20336660 | D187: =SUM(D188:D189) -> 0 | E187: 0 | F187: 0 | G187: 0 | H187: 0 | I187: -346032 | J187: -346032 | K187: 19990628 | L187: 21272153 | M187: 22249378
A188: Housing | C188: 20336660 | D188: 0 | E188: 0 | F188: 0 | G188: 0 | H188: 0 | I188: -346032 | J188: -346032 | K188: 19990628 | L188: 21272153 | M188: 22249378
A189: Informal Settlements | J189: 0 | K189: 0
A190: Health | C190: =SUM(C191:C197) -> 164201 | D190: 0 | E190: 0 | F190: 0 | G190: 0 | H190: 0 | I190: 7000 | J190: 7000 | K190: 171201 | L190: =SUM(L191:L197) -> 171756 | M190: =SUM(M191:M197) -> 178597
A191: Ambulance | J191: 0 | K191: 0
A192: Health Services | C192: 164201 | D192: 0 | E192: 0 | F192: 0 | G192: 0 | H192: 0 | I192: 7000 | J192: 7000 | K192: 171201 | L192: 171756 | M192: 178597
A193: =A71 -> Laboratory Services | J193: 0 | K193: 0
A194: Food Control | J194: 0 | K194: 0
A195: Health Surveillance and Prevention of Communicable Diseases including immunizations | J195: 0 | K195: 0
A196: Vector Control | J196: 0 | K196: 0
A197: Chemical Safety | J197: 0 | K197: 0
A198: Economic and environmental services | C198: =C199+C210+C215 -> 282671424 | D198: 0 | E198: 0 | F198: 0 | G198: 0 | H198: 0 | I198: 26553608 | J198: 26553608 | K198: 309225032 | L198: =L199+L210+L215 -> 339732251 | M198: =M199+M210+M215 -> 317663395
A199: Planning and development | C199: =SUM(C200:C209) -> 72417225 | D199: 0 | E199: 0 | F199: 0 | G199: 0 | H199: 0 | I199: -2275399 | J199: -2275399 | K199: 70141826 | L199: =SUM(L200:L209) -> 73979502 | M199: =SUM(M200:M209) -> 77339184
A200: Billboards | J200: 0 | K200: 0
... 54 more rows

Sheet B3-FinPerf V
A1: =muni&" - "&_ADJ2&" - "&Date -> NW403 City Of Matlosana - Table B3 Adjustments Budget Financial Performance (revenue and expenditure by municipal vote) - 45811
A2: =Vdesc -> Vote Description | B2: =head27 -> Ref | C2: =Head2 -> Budget Year 2024/25 | L2: =Head10 -> Budget Year +1 2025/26 | M2: =Head11 -> Budget Year +2 2026/27
C3: =Head6 -> Original Budget | D3: =Head54 -> Prior Adjusted | E3: =Head51 -> Accum. Funds | F3: =Head52 -> Multi-year capital | G3: =Head53 -> Unfore. Unavoid. | H3: =Head55 -> Nat. or Prov. Govt | I3: =Head50 -> Other Adjusts. | J3: =Head56 -> Total Adjusts. | K3: =Head7 -> Adjusted Budget | L3: =Head7 -> Adjusted Budget | M3: =Head7 -> Adjusted Budget
A4: [Insert departmental structure etc] | D4: 3 | E4: 4 | F4: 5 | G4: 6 | H4: 7 | I4: 8 | J4: 9 | K4: 10
A5: R thousands | C5: A | D5: A1 | E5: B | F5: C | G5: D | H5: E | I5: F | J5: G | K5: H
A6: Revenue by Vote | B6: 1
A7: =B3B!A7 -> Vote 01 - Public Safety | C7: =B3B!C7 -> 39398911 | D7: =B3B!D7 -> 0 | E7: =B3B!E7 -> 0 | F7: =B3B!F7 -> 0 | G7: =B3B!G7 -> 0 | H7: =B3B!H7 -> 0 | I7: =B3B!I7 -> 250000 | J7: =B3B!J7 -> 250000 | K7: =B3B!K7 -> 39648911 | L7: =B3B!L7 -> 41208951 | M7: =B3B!M7 -> 43104565
A8: =B3B!A14 -> Vote 02 - Health Services | C8: =B3B!C14 -> 0 | D8: =B3B!D14 -> 0 | E8: =B3B!E14 -> 0 | F8: =B3B!F14 -> 0 | G8: =B3B!G14 -> 0 | H8: =B3B!H14 -> 0 | I8: =B3B!I14 -> 0 | J8: =B3B!J14 -> 0 | K8: =B3B!K14 -> 0 | L8: =B3B!L14 -> 0 | M8: =B3B!M14 -> 0
A9: =B3B!A17 -> Vote 03 - Community Services | C9: =B3B!C17 -> 3054816 | D9: =B3B!D17 -> 0 | E9: =B3B!E17 -> 0 | F9: =B3B!F17 -> 0 | G9: =B3B!G17 -> 0 | H9: =B3B!H17 -> 0 | I9: =B3B!I17 -> 65064 | J9: =B3B!J17 -> 65064 | K9: =B3B!K17 -> 3119880 | L9: =B3B!L17 -> 3101199 | M9: =B3B!M17 -> 3243854
A10: =B3B!A24 -> Vote 04 - Housing | C10: =B3B!C24 -> 16091303 | D10: =B3B!D24 -> 0 | E10: =B3B!E24 -> 0 | F10: =B3B!F24 -> 0 | G10: =B3B!G24 -> 0 | H10: =B3B!H24 -> 0 | I10: =B3B!I24 -> 0 | J10: =B3B!J24 -> 0 | K10: =B3B!K24 -> 16091303 | L10: =B3B!L24 -> 16831504 | M10: =B3B!M24 -> 17605755
A11: =B3B!A30 -> Vote 05 - Sport Arts And Culture | C11: =B3B!C30 -> 16849494 | D11: =B3B!D30 -> 0 | E11: =B3B!E30 -> 0 | F11: =B3B!F30 -> 0 | G11: =B3B!G30 -> 0 | H11: =B3B!H30 -> 0 | I11: =B3B!I30 -> 406000 | J11: =B3B!J30 -> 406000 | K11: =B3B!K30 -> 17255494 | L11: =B3B!L30 -> 22437309 | M11: =B3B!M30 -> 1862741
A12: =B3B!A35 -> Vote 06 - Council General | C12: =B3B!C35 -> 200000 | D12: =B3B!D35 -> 0 | E12: =B3B!E35 -> 0 | F12: =B3B!F35 -> 0 | G12: =B3B!G35 -> 0 | H12: =B3B!H35 -> 0 | I12: =B3B!I35 -> 0 | J12: =B3B!J35 -> 0 | K12: =B3B!K35 -> 200000 | L12: =B3B!L35 -> 209200 | M12: =B3B!M35 -> 218824
A13: =B3B!A44 -> Vote 07 - Civil Engineering | C13: =B3B!C44 -> 19849253 | D13: =B3B!D44 -> 0 | E13: =B3B!E44 -> 0 | F13: =B3B!F44 -> 0 | G13: =B3B!G44 -> 0 | H13: =B3B!H44 -> 0 | I13: =B3B!I44 -> 609896 | J13: =B3B!J44 -> 609896 | K13: =B3B!K44 -> 20459149 | L13: =B3B!L44 -> 20972098 | M13: =B3B!M44 -> 45318924
A14: =B3B!A49 -> Vote 08 - Water Section | C14: =B3B!C49 -> 1092663201 | D14: =B3B!D49 -> 0 | E14: =B3B!E49 -> 0 | F14: =B3B!F49 -> 0 | G14: =B3B!G49 -> 0 | H14: =B3B!H49 -> 0 | I14: =B3B!I49 -> 90153366 | J14: =B3B!J49 -> 90153366 | K14: =B3B!K49 -> 1182816567 | L14: =B3B!L49 -> 1117733462 | M14: =B3B!M49 -> 1185505508
A15: =B3B!A52 -> Vote 09 - City Electrial Engineering | C15: =B3B!C52 -> 1167621724 | D15: =B3B!D52 -> 0 | E15: =B3B!E52 -> 0 | F15: =B3B!F52 -> 0 | G15: =B3B!G52 -> 0 | H15: =B3B!H52 -> 0 | I15: =B3B!I52 -> -29499079 | J15: =B3B!J52 -> -29499079 | K15: =B3B!K52 -> 1138122645 | L15: =B3B!L52 -> 1228816829 | M15: =B3B!M52 -> 1285477268
A16: =B3B!A58 -> Vote 10 - Corporate Governane | C16: =B3B!C58 -> 1230341 | D16: =B3B!D58 -> 0 | E16: =B3B!E58 -> 0 | F16: =B3B!F58 -> 0 | G16: =B3B!G58 -> 0 | H16: =B3B!H58 -> 0 | I16: =B3B!I58 -> 600000 | J16: =B3B!J58 -> 600000 | K16: =B3B!K58 -> 1830341 | L16: =B3B!L58 -> 2353857 | M16: =B3B!M58 -> 2462135
A17: =B3B!A62 -> Vote 11 - Budget And Treasury Office | C17: =B3B!C62 -> 1422603171 | D17: =B3B!D62 -> 0 | E17: =B3B!E62 -> 0 | F17: =B3B!F62 -> 0 | G17: =B3B!G62 -> 0 | H17: =B3B!H62 -> 0 | I17: =B3B!I62 -> -51234228 | J17: =B3B!J62 -> -51234228 | K17: =B3B!K62 -> 1371368943 | L17: =B3B!L62 -> 1479402067 | M17: =B3B!M62 -> 1533229447
A18: =B3B!A66 -> Vote 12 - Cleansing | C18: =B3B!C66 -> 387791051 | D18: =B3B!D66 -> 0 | E18: =B3B!E66 -> 0 | F18: =B3B!F66 -> 0 | G18: =B3B!G66 -> 0 | H18: =B3B!H66 -> 0 | I18: =B3B!I66 -> 27990109 | J18: =B3B!J66 -> 27990109 | K18: =B3B!K66 -> 415781160 | L18: =B3B!L66 -> 374459256 | M18: =B3B!M66 -> 381405772
A19: =B3B!A74 -> Vote 13 - Sewerage | C19: =B3B!C74 -> 253895202 | D19: =B3B!D74 -> 0 | E19: =B3B!E74 -> 0 | F19: =B3B!F74 -> 0 | G19: =B3B!G74 -> 0 | H19: =B3B!H74 -> 0 | I19: =B3B!I74 -> 515144 | J19: =B3B!J74 -> 515144 | K19: =B3B!K74 -> 254410346 | L19: =B3B!L74 -> 286167645 | M19: =B3B!M74 -> 339479113
A20: =B3B!A79 -> Vote 14 - Market | C20: =B3B!C79 -> 29861158 | D20: =B3B!D79 -> 0 | E20: =B3B!E79 -> 0 | F20: =B3B!F79 -> 0 | G20: =B3B!G79 -> 0 | H20: =B3B!H79 -> 0 | I20: =B3B!I79 -> -207118 | J20: =B3B!J79 -> -207118 | K20: =B3B!K79 -> 29654040 | L20: =B3B!L79 -> 35559712 | M20: =B3B!M79 -> 26735460
A21: =B3B!A81 -> Vote 15 - Other | C21: =B3B!C81 -> 1027 | D21: =B3B!D81 -> 0 | E21: =B3B!E81 -> 0 | F21: =B3B!F81 -> 0 | G21: =B3B!G81 -> 0 | H21: =B3B!H81 -> 0 | I21: =B3B!I81 -> 798973 | J21: =B3B!J81 -> 798973 | K21: =B3B!K81 -> 800000 | L21: =B3B!L81 -> 1075 | M21: =B3B!M81 -> 1124
A22: Total Revenue by Vote | B22: 2 | C22: =SUM(C7:C21) -> 4451110652 | D22: =SUM(D7:D21) -> 0 | E22: 0 | F22: 0 | G22: 0 | H22: 0 | I22: 40448127 | J22: =SUM(J7:J21) -> 40448127 | K22: 4491558779 | L22: =SUM(L7:L21) -> 4629254164 | M22: =SUM(M7:M21) -> 4865650490
A24: Expenditure by Vote | B24: 1
A25: =B3B!A88 -> Vote 01 - Public Safety | C25: =B3B!C88 -> 229307123 | D25: =B3B!D88 -> 0 | E25: =B3B!E88 -> 0 | F25: =B3B!F88 -> 0 | G25: =B3B!G88 -> 0 | H25: =B3B!H88 -> 0 | I25: =B3B!I88 -> 61522988 | J25: =B3B!J88 -> 61522988 | K25: =B3B!K88 -> 290830111 | L25: =B3B!L88 -> 262331862 | M25: =B3B!M88 -> 270932932
A26: =B3B!A95 -> Vote 02 - Health Services | C26: =B3B!C95 -> 10183319 | D26: =B3B!D95 -> 0 | E26: =B3B!E95 -> 0 | F26: =B3B!F95 -> 0 | G26: =B3B!G95 -> 0 | H26: =B3B!H95 -> 0 | I26: =B3B!I95 -> -783086 | J26: =B3B!J95 -> -783086 | K26: =B3B!K95 -> 9400233 | L26: =B3B!L95 -> 10651764 | M26: =B3B!M95 -> 11140301
A27: =B3B!A98 -> Vote 03 - Community Services | C27: =B3B!C98 -> 111625220 | D27: =B3B!D98 -> 0 | E27: =B3B!E98 -> 0 | F27: =B3B!F98 -> 0 | G27: =B3B!G98 -> 0 | H27: =B3B!H98 -> 0 | I27: =B3B!I98 -> 3182318 | J27: =B3B!J98 -> 3182318 | K27: =B3B!K98 -> 114807538 | L27: =B3B!L98 -> 120375281 | M27: =B3B!M98 -> 125880849
A28: =B3B!A105 -> Vote 04 - Housing | C28: =B3B!C105 -> 43961942 | D28: =B3B!D105 -> 0 | E28: =B3B!E105 -> 0 | F28: =B3B!F105 -> 0 | G28: =B3B!G105 -> 0 | H28: =B3B!H105 -> 0 | I28: =B3B!I105 -> -539172 | J28: =B3B!J105 -> -539172 | K28: =B3B!K105 -> 43422770 | L28: =B3B!L105 -> 45984227 | M28: =B3B!M105 -> 48078671
A29: =B3B!A111 -> Vote 05 - Sport Arts And Culture | C29: =B3B!C111 -> 97963223 | D29: =B3B!D111 -> 0 | E29: =B3B!E111 -> 0 | F29: =B3B!F111 -> 0 | G29: =B3B!G111 -> 0 | H29: =B3B!H111 -> 0 | I29: =B3B!I111 -> 1790378 | J29: =B3B!J111 -> 1790378 | K29: =B3B!K111 -> 99753601 | L29: =B3B!L111 -> 103735239 | M29: =B3B!M111 -> 108264637
A30: =B3B!A116 -> Vote 06 - Council General | C30: =B3B!C116 -> 247958374 | D30: =B3B!D116 -> 0 | E30: =B3B!E116 -> 0 | F30: =B3B!F116 -> 0 | G30: =B3B!G116 -> 0 | H30: =B3B!H116 -> 0 | I30: =B3B!I116 -> 374899 | J30: =B3B!J116 -> 374899 | K30: =B3B!K116 -> 248333273 | L30: =B3B!L116 -> 262751961 | M30: =B3B!M116 -> 272611414
A31: =B3B!A125 -> Vote 07 - Civil Engineering | C31: =B3B!C125 -> 237791135 | D31: =B3B!D125 -> 0 | E31: =B3B!E125 -> 0 | F31: =B3B!F125 -> 0 | G31: =B3B!G125 -> 0 | H31: =B3B!H125 -> 0 | I31: =B3B!I125 -> 27512816 | J31: =B3B!J125 -> 27512816 | K31: =B3B!K125 -> 265303951 | L31: =B3B!L125 -> 294820789 | M31: =B3B!M125 -> 270717844
A32: =B3B!A130 -> Vote 08 - Water Section | C32: =B3B!C130 -> 730845449 | D32: =B3B!D130 -> 0 | E32: =B3B!E130 -> 0 | F32: =B3B!F130 -> 0 | G32: =B3B!G130 -> 0 | H32: =B3B!H130 -> 0 | I32: =B3B!I130 -> 292869525 | J32: =B3B!J130 -> 292869525 | K32: =B3B!K130 -> 1023714974 | L32: =B3B!L130 -> 701338373 | M32: =B3B!M130 -> 777676684
A33: =B3B!A133 -> Vote 09 - City Electrial Engineering | C33: =B3B!C133 -> 1562975979 | D33: =B3B!D133 -> 0 | E33: =B3B!E133 -> 0 | F33: =B3B!F133 -> 0 | G33: =B3B!G133 -> 0 | H33: =B3B!H133 -> 0 | I33: =B3B!I133 -> 142961564 | J33: =B3B!J133 -> 142961564 | K33: =B3B!K133 -> 1705937543 | L33: =B3B!L133 -> 1505907472 | M33: =B3B!M133 -> 1534854243
A34: =B3B!A139 -> Vote 10 - Corporate Governane | C34: =B3B!C139 -> 78708674 | D34: =B3B!D139 -> 0 | E34: =B3B!E139 -> 0 | F34: =B3B!F139 -> 0 | G34: =B3B!G139 -> 0 | H34: =B3B!H139 -> 0 | I34: =B3B!I139 -> 1958056 | J34: =B3B!J139 -> 1958056 | K34: =B3B!K139 -> 80666730 | L34: =B3B!L139 -> 84372858 | M34: =B3B!M139 -> 88260600
A35: =B3B!A143 -> Vote 11 - Budget And Treasury Office | C35: =B3B!C143 -> 411424491 | D35: =B3B!D143 -> 0 | E35: =B3B!E143 -> 0 | F35: =B3B!F143 -> 0 | G35: =B3B!G143 -> 0 | H35: =B3B!H143 -> 0 | I35: =B3B!I143 -> 66447134 | J35: =B3B!J143 -> 66447134 | K35: =B3B!K143 -> 477871625 | L35: =B3B!L143 -> 368207548 | M35: =B3B!M143 -> 320885056
A36: =B3B!A147 -> Vote 12 - Cleansing | C36: =B3B!C147 -> 219847042 | D36: =B3B!D147 -> 0 | E36: =B3B!E147 -> 0 | F36: =B3B!F147 -> 0 | G36: =B3B!G147 -> 0 | H36: =B3B!H147 -> 0 | I36: =B3B!I147 -> 138642667 | J36: =B3B!J147 -> 138642667 | K36: =B3B!K147 -> 358489709 | L36: =B3B!L147 -> 222379708 | M36: =B3B!M147 -> 214004416
A37: =B3B!A155 -> Vote 13 - Sewerage | C37: =B3B!C155 -> 243945908 | D37: =B3B!D155 -> 0 | E37: =B3B!E155 -> 0 | F37: =B3B!F155 -> 0 | G37: =B3B!G155 -> 0 | H37: =B3B!H155 -> 0 | I37: =B3B!I155 -> 123984894 | J37: =B3B!J155 -> 123984894 | K37: =B3B!K155 -> 367930802 | L37: =B3B!L155 -> 305203839 | M37: =B3B!M155 -> 237214501
A38: =B3B!A160 -> Vote 14 - Market | C38: =B3B!C160 -> 23181617 | D38: =B3B!D160 -> 0 | E38: =B3B!E160 -> 0 | F38: =B3B!F160 -> 0 | G38: =B3B!G160 -> 0 | H38: =B3B!H160 -> 0 | I38: =B3B!I160 -> -1443885 | J38: =B3B!J160 -> -1443885 | K38: =B3B!K160 -> 21737732 | L38: =B3B!L160 -> 24247993 | M38: =B3B!M160 -> 25340975
A39: =B3B!A162 -> Vote 15 - Other | C39: =B3B!C162 -> 12921309 | D39: =B3B!D162 -> 0 | E39: =B3B!E162 -> 0 | F39: =B3B!F162 -> 0 | G39: =B3B!G162 -> 0 | H39: =B3B!H162 -> 0 | I39: =B3B!I162 -> 514519 | J39: =B3B!J162 -> 514519 | K39: =B3B!K162 -> 13435828 | L39: =B3B!L162 -> 12574317 | M39: =B3B!M162 -> 13145031
A40: Total Expenditure by Vote | B40: 2 | C40: =SUM(C25:C39) -> 4262640805 | D40: =SUM(D25:D39) -> 0 | E40: 0 | F40: 0 | G40: 0 | H40: 0 | I40: 858995615 | J40: =SUM(J25:J39) -> 858995615 | K40: =SUM(K25:K39) -> 5121636420 | L40: =SUM(L25:L39) -> 4324883231 | M40: =SUM(M25:M39) -> 4319008154
A41: =result -> Surplus/ (Deficit) for the year | B41: 2 | C41: =C22-C40 -> 188469847 | D41: =D22-D40 -> 0 | E41: 0 | F41: 0 | G41: 0 | H41: 0 | I41: -818547488 | J41: -818547488 | K41: -630077641 | L41: 304370933 | M41: 546642336
A42: =head27a -> References
A43: 1. Insert 'Vote'; e.g. Department, if different to standard classification structure
A44: 2. Must reconcile to Budgeted Financial Performance (revenue and expenditure)
A45: 3. Only complete if a previous adjusted budget has been approved in the same financial year. Reflect most recent adjusted budget.
A46: 4. Additional cash-backed accumulated funds/unspent funds (MFMA section 18(1)(b) and section 28(2)(e)) identified after the Original Budget approved and after annual financial statements audited (note: only where underspending could not reasonably have been foreseen)
A47: 5. Increases of funds approved under MFMA section 31
A48: 6. Adjustments approved in accordance with MFMA section 29
A49: 7. Adjustments to transfers from National or Provincial Government
A50: 8. Adjusts. = 'Other' Adjustments proposed to be approved; including revenue under-collection (MFMA section 28(2)(a)); additional revenue appropriation on existing programmes (section 28(2))(b); projected savings (section 28(2)(d)); error correction (section 28(2)(f))
A51: 9. G = B + C + D + E + F
A52: 10. Adjusted Budget H = (A or A1/2 etc) + G
A54: check revenue | C54: =C22-'B4-FinPerf RE'!C76 -> 4451110652 | D54: =D22-'B4-FinPerf RE'!D76 -> 0 | E54: =E22-'B4-FinPerf RE'!E76 -> 0 | F54: =F22-'B4-FinPerf RE'!F76 -> 0 | G54: =G22-'B4-FinPerf RE'!G76 -> 0 | H54: =H22-'B4-FinPerf RE'!H76 -> 0 | I54: =I22-'B4-FinPerf RE'!I76 -> 40448127 | J54: =J22-'B4-FinPerf RE'!J76 -> 40448127 | K54: =K22-'B4-FinPerf RE'!K76 -> 4491558779 | L54: =L22-'B4-FinPerf RE'!L76 -> 4629254164 | M54: =M22-'B4-FinPerf RE'!M76 -> 4865650490
A55: check expenditure | C55: =C40-'B4-FinPerf RE'!C50 -> 1 | D55: =D40-'B4-FinPerf RE'!D50 -> 0 | E55: =E40-'B4-FinPerf RE'!E50 -> 0 | F55: =F40-'B4-FinPerf RE'!F50 -> 0 | G55: =G40-'B4-FinPerf RE'!G50 -> 0 | H55: =H40-'B4-FinPerf RE'!H50 -> 0 | I55: =I40-'B4-FinPerf RE'!I50 -> -39327239 | J55: =J40-'B4-FinPerf RE'!J50 -> -39327239 | K55: =K40-'B4-FinPerf RE'!K50 -> -39327238 | L55: =L40-'B4-FinPerf RE'!L50 -> 569837 | M55: =M40-'B4-FinPerf RE'!M50 -> 667145740

Sheet B3B
A1: =muni&" - "&_ADJ2&" - B"&" - "&Date -> NW403 City Of Matlosana - Table B3 Adjustments Budget Financial Performance (revenue and expenditure by municipal vote) - B - 45811
A2: =Vdesc -> Vote Description | B2: =head27 -> Ref | C2: =Head2 -> Budget Year 2024/25 | L2: =Head10 -> Budget Year +1 2025/26 | M2: =Head11 -> Budget Year +2 2026/27
C3: =Head6 -> Original Budget | D3: =Head54 -> Prior Adjusted | E3: =Head51 -> Accum. Funds | F3: =Head52 -> Multi-year capital | G3: =Head53 -> Unfore. Unavoid. | H3: =Head55 -> Nat. or Prov. Govt | I3: =Head50 -> Other Adjusts. | J3: =Head56 -> Total Adjusts. | K3: =Head7 -> Adjusted Budget | L3: =Head7 -> Adjusted Budget | M3: =Head7 -> Adjusted Budget
A4: [Insert departmental structure etc] | D4: 3 | E4: 4 | F4: 5 | G4: 6 | H4: 7 | I4: 8 | J4: 9 | K4: 10
A5: R thousands | C5: A | D5: A1 | E5: B | F5: C | G5: D | H5: E | I5: F | J5: G | K5: H
A6: Revenue by Vote | B6: 1
A7: ='Org structure'!A2 -> Vote 01 - Public Safety | C7: =SUM(C8:C13) -> 39398911 | D7: 0 | E7: 0 | F7: 0 | G7: 0 | H7: 0 | I7: 250000 | J7: =SUM(E7:I7) -> 250000 | K7: =IF(D7=0,C7+J7,D7+J7) -> 39648911 | L7: =SUM(L8:L13) -> 41208951 | M7: =SUM(M8:M13) -> 43104565
A8: ='Org structure'!E3 -> 01.1 - Public Safety Administration | C8: 0 | D8: 0 | E8: 0 | F8: 0 | G8: 0 | H8: 0 | I8: 0 | J8: 0 | K8: 0 | L8: 0 | M8: 0
A9: ='Org structure'!E4 -> 01.2 - Fire Brigade | C9: 761438 | D9: 0 | E9: 0 | F9: 0 | G9: 0 | H9: 0 | I9: 0 | J9: 0 | K9: 761438 | L9: 796465 | M9: 833102
A10: ='Org structure'!E5 -> 01.3 - Licencing Administration | C10: 24164748 | D10: 0 | E10: 0 | F10: 0 | G10: 0 | H10: 0 | I10: 250000 | J10: 250000 | K10: 24414748 | L10: 25274014 | M10: 26436620
A11: ='Org structure'!E6 -> 01.4 - Traffic Administration | C11: 14472725 | D11: 0 | E11: 0 | F11: 0 | G11: 0 | H11: 0 | I11: 0 | J11: 0 | K11: 14472725 | L11: 15138472 | M11: 15834843
A12: ='Org structure'!E7 -> 01.5 - Disaster Management | C12: 0 | D12: 0 | E12: 0 | F12: 0 | G12: 0 | H12: 0 | I12: 0 | J12: 0 | K12: 0 | L12: 0 | M12: 0
A13: ='Org structure'!E8 -> 01.6 - Municipal Court | C13: 0 | D13: 0 | E13: 0 | F13: 0 | G13: 0 | H13: 0 | I13: 0 | J13: 0 | K13: 0 | L13: 0 | M13: 0
A14: ='Org structure'!A3 -> Vote 02 - Health Services | C14: =SUM(C15:C16) -> 0 | D14: 0 | E14: 0 | F14: 0 | G14: 0 | H14: 0 | I14: 0 | J14: =SUM(E14:I14) -> 0 | K14: =IF(D14=0,C14+J14,D14+J14) -> 0 | L14: =SUM(L15:L16) -> 0 | M14: =SUM(M15:M16) -> 0
A15: ='Org structure'!E10 -> 02.1 - Health Services Administration | C15: 0 | D15: 0 | E15: 0 | F15: 0 | G15: 0 | H15: 0 | I15: 0 | J15: =SUM(E15:I15) -> 0 | K15: =IF(D15=0,C15+J15,D15+J15) -> 0 | L15: 0 | M15: 0
A16: ='Org structure'!E11 -> 02.2 - Occupational Health Centre | C16: 0 | D16: 0 | E16: 0 | F16: 0 | G16: 0 | H16: 0 | I16: 0 | J16: =SUM(E16:I16) -> 0 | K16: =IF(D16=0,C16+J16,D16+J16) -> 0 | L16: 0 | M16: 0
A17: ='Org structure'!A4 -> Vote 03 - Community Services | C17: =SUM(C18:C23) -> 3054816 | D17: 0 | E17: 0 | F17: 0 | G17: 0 | H17: 0 | I17: 65064 | J17: 65064 | K17: 3119880 | L17: =SUM(L18:L23) -> 3101199 | M17: =SUM(M18:M23) -> 3243854
A18: ='Org structure'!E13 -> 03.1 - Administration Community Services | C18: 0 | D18: 0 | E18: 0 | F18: 0 | G18: 0 | H18: 0 | I18: 0 | J18: =SUM(E18:I18) -> 0 | K18: =IF(D18=0,C18+J18,D18+J18) -> 0 | L18: 0 | M18: 0
A19: ='Org structure'!E14 -> 03.2 - Cemetary | C19: 2500000 | D19: 0 | E19: 0 | F19: 0 | G19: 0 | H19: 0 | I19: 0 | J19: 0 | K19: 2500000 | L19: 2615000 | M19: 2735290
A20: ='Org structure'!E15 -> 03.3 - Aerodome | C20: 90000 | D20: 0 | E20: 0 | F20: 0 | G20: 0 | H20: 0 | I20: 0 | J20: 0 | K20: 90000 | L20: 0 | M20: 0
A21: ='Org structure'!E16 -> 03.4 - Nature Reserve | C21: 108677 | D21: 0 | E21: 0 | F21: 0 | G21: 0 | H21: 0 | I21: 65064 | J21: 65064 | K21: 173741 | L21: 113677 | M21: 118906
A22: ='Org structure'!E17 -> 03.5 - Orkney Vaal | C22: 0 | D22: 0 | E22: 0 | F22: 0 | G22: 0 | H22: 0 | I22: 0 | J22: 0 | K22: 0 | L22: 0 | M22: 0
A23: ='Org structure'!E18 -> 03.6 - Administration Parks | C23: 356139 | D23: 0 | E23: 0 | F23: 0 | G23: 0 | H23: 0 | I23: 0 | J23: 0 | K23: 356139 | L23: 372522 | M23: 389658
A24: ='Org structure'!A5 -> Vote 04 - Housing | C24: =SUM(C25:C29) -> 16091303 | D24: 0 | E24: 0 | F24: 0 | G24: 0 | H24: 0 | I24: 0 | J24: 0 | K24: 16091303 | L24: =SUM(L25:L29) -> 16831504 | M24: =SUM(M25:M29) -> 17605755
A25: ='Org structure'!E20 -> 04.1 - Administration Housing Services | C25: 10178561 | D25: 0 | E25: 0 | F25: 0 | G25: 0 | H25: 0 | I25: 0 | J25: =SUM(E25:I25) -> 0 | K25: =IF(D25=0,C25+J25,D25+J25) -> 10178561 | L25: 10646775 | M25: 11136527
A26: ='Org structure'!E21 -> 04.2 - Housing Services | C26: 4187527 | D26: 0 | E26: 0 | F26: 0 | G26: 0 | H26: 0 | I26: 0 | J26: =SUM(E26:I26) -> 0 | K26: =IF(D26=0,C26+J26,D26+J26) -> 4187527 | L26: 4380154 | M26: 4581641
A27: ='Org structure'!E22 -> 04.3 - Building Survey | C27: 1275215 | D27: 0 | E27: 0 | F27: 0 | G27: 0 | H27: 0 | I27: 0 | J27: =SUM(E27:I27) -> 0 | K27: =IF(D27=0,C27+J27,D27+J27) -> 1275215 | L27: 1333875 | M27: 1395234
A28: ='Org structure'!E23 -> 04.4 - Town Planning | C28: 450000 | D28: 0 | E28: 0 | F28: 0 | G28: 0 | H28: 0 | I28: 0 | J28: =SUM(E28:I28) -> 0 | K28: =IF(D28=0,C28+J28,D28+J28) -> 450000 | L28: 470700 | M28: 492353
A29: ='Org structure'!E24 -> 04.5 - Land Affairs | C29: 0 | D29: 0 | E29: 0 | F29: 0 | G29: 0 | H29: 0 | I29: 0 | J29: =SUM(E29:I29) -> 0 | K29: =IF(D29=0,C29+J29,D29+J29) -> 0 | L29: 0 | M29: 0
A30: ='Org structure'!A6 -> Vote 05 - Sport Arts And Culture | C30: =SUM(C31:C34) -> 16849494 | D30: 0 | E30: 0 | F30: 0 | G30: 0 | H30: 0 | I30: 406000 | J30: 406000 | K30: 17255494 | L30: =SUM(L31:L34) -> 22437309 | M30: =SUM(M31:M34) -> 1862741
A31: ='Org structure'!E26 -> 05.1 - Administration Sports Arts & Culture | C31: 0 | D31: 0 | E31: 0 | F31: 0 | G31: 0 | H31: 0 | I31: 0 | J31: =SUM(E31:I31) -> 0 | K31: =IF(D31=0,C31+J31,D31+J31) -> 0 | L31: 0 | M31: 0
A32: ='Org structure'!E27 -> 05.2 - Museum | C32: 251000 | D32: 0 | E32: 0 | F32: 0 | G32: 0 | H32: 0 | I32: -44000 | J32: =SUM(E32:I32) -> -44000 | K32: =IF(D32=0,C32+J32,D32+J32) -> 207000 | L32: 302322 | M32: 305603
A33: ='Org structure'!E28 -> 05.3 - Library | C33: 1120932 | D33: 0 | E33: 0 | F33: 0 | G33: 0 | H33: 0 | I33: 450000 | J33: =SUM(E33:I33) -> 450000 | K33: =IF(D33=0,C33+J33,D33+J33) -> 1570932 | L33: 1128796 | M33: 1137021
A34: ='Org structure'!E29 -> 05.4 - Sports And Recreation | C34: 15477562 | D34: 0 | E34: 0 | F34: 0 | G34: 0 | H34: 0 | I34: 0 | J34: =SUM(E34:I34) -> 0 | K34: =IF(D34=0,C34+J34,D34+J34) -> 15477562 | L34: 21006191 | M34: 420117
A35: ='Org structure'!A7 -> Vote 06 - Council General | C35: =SUM(C36:C43) -> 200000 | D35: 0 | E35: 0 | F35: 0 | G35: 0 | H35: 0 | I35: 0 | J35: 0 | K35: 200000 | L35: =SUM(L36:L43) -> 209200 | M35: =SUM(M36:M43) -> 218824
A36: ='Org structure'!E31 -> 06.1 - Administration Council General | C36: 200000 | D36: 0 | E36: 0 | F36: 0 | G36: 0 | H36: 0 | I36: 0 | J36: =SUM(E36:I36) -> 0 | K36: =IF(D36=0,C36+J36,D36+J36) -> 200000 | L36: 209200 | M36: 218824
A37: ='Org structure'!E32 -> 06.2 - Administration Municipal Manager | C37: 0 | D37: 0 | E37: 0 | F37: 0 | G37: 0 | H37: 0 | I37: 0 | J37: 0 | K37: 0 | L37: 0 | M37: 0
A38: ='Org structure'!E33 -> 06.3 - Internal Audit | C38: 0 | D38: 0 | E38: 0 | F38: 0 | G38: 0 | H38: 0 | I38: 0 | J38: 0 | K38: 0 | L38: 0 | M38: 0
A39: ='Org structure'!E34 -> 06.4 - Strategic | C39: 0 | D39: 0 | E39: 0 | F39: 0 | G39: 0 | H39: 0 | I39: 0 | J39: 0 | K39: 0 | L39: 0 | M39: 0
A40: ='Org structure'!E35 -> 06.5 - Administration Mayor | C40: 0 | D40: 0 | E40: 0 | F40: 0 | G40: 0 | H40: 0 | I40: 0 | J40: 0 | K40: 0 | L40: 0 | M40: 0
A41: ='Org structure'!E36 -> 06.6 - Administration Speaker | C41: 0 | D41: 0 | E41: 0 | F41: 0 | G41: 0 | H41: 0 | I41: 0 | J41: 0 | K41: 0 | L41: 0 | M41: 0
A42: ='Org structure'!E37 -> 06.7 - Chief Whip | C42: 0 | D42: 0 | E42: 0 | F42: 0 | G42: 0 | H42: 0 | I42: 0 | J42: 0 | K42: 0 | L42: 0 | M42: 0
A43: ='Org structure'!E38 -> 06.8 - Mpac | C43: 0 | D43: 0 | E43: 0 | F43: 0 | G43: 0 | H43: 0 | I43: 0 | J43: 0 | K43: 0 | L43: 0 | M43: 0
A44: ='Org structure'!A8 -> Vote 07 - Civil Engineering | C44: =SUM(C45:C48) -> 19849253 | D44: 0 | E44: 0 | F44: 0 | G44: 0 | H44: 0 | I44: 609896 | J44: =SUM(E44:I44) -> 609896 | K44: =IF(D44=0,C44+J44,D44+J44) -> 20459149 | L44: =SUM(L45:L48) -> 20972098 | M44: =SUM(M45:M48) -> 45318924
A45: ='Org structure'!E40 -> 07.1 - Administration City Civil Engineer | C45: 0 | D45: 0 | E45: 0 | F45: 0 | G45: 0 | H45: 0 | I45: 0 | J45: =SUM(E45:I45) -> 0 | K45: =IF(D45=0,C45+J45,D45+J45) -> 0 | L45: 0 | M45: 0
A46: ='Org structure'!E41 -> 07.2 - Building Construction | C46: 0 | D46: 0 | E46: 0 | F46: 0 | G46: 0 | H46: 0 | I46: 0 | J46: =SUM(E46:I46) -> 0 | K46: =IF(D46=0,C46+J46,D46+J46) -> 0 | L46: 0 | M46: 0
A47: ='Org structure'!E42 -> 07.3 - Roads | C47: 14209053 | D47: 0 | E47: 0 | F47: 0 | G47: 0 | H47: 0 | I47: 609896 | J47: =SUM(E47:I47) -> 609896 | K47: =IF(D47=0,C47+J47,D47+J47) -> 14818949 | L47: 15576098 | M47: 39446924
A48: ='Org structure'!E43 -> 07.4 - Pmu Unit | C48: 5640200 | D48: 0 | E48: 0 | F48: 0 | G48: 0 | H48: 0 | I48: 0 | J48: =SUM(E48:I48) -> 0 | K48: =IF(D48=0,C48+J48,D48+J48) -> 5640200 | L48: 5396000 | M48: 5872000
A49: ='Org structure'!A9 -> Vote 08 - Water Section | C49: =SUM(C50:C51) -> 1092663201 | D49: 0 | E49: 0 | F49: 0 | G49: 0 | H49: 0 | I49: 90153366 | J49: 90153366 | K49: 1182816567 | L49: =SUM(L50:L51) -> 1117733462 | M49: =SUM(M50:M51) -> 1185505508
A50: ='Org structure'!E45 -> 08.1 - Administration Water | C50: 1057195452 | D50: 0 | E50: 0 | F50: 0 | G50: 0 | H50: 0 | I50: 90153366 | J50: =SUM(E50:I50) -> 90153366 | K50: =IF(D50=0,C50+J50,D50+J50) -> 1147348818 | L50: 1106463013 | M50: 1157360311
A51: ='Org structure'!E46 -> 08.2 - Water Distribution | C51: 35467749 | D51: 0 | E51: 0 | F51: 0 | G51: 0 | H51: 0 | I51: 0 | J51: =SUM(E51:I51) -> 0 | K51: =IF(D51=0,C51+J51,D51+J51) -> 35467749 | L51: 11270449 | M51: 28145197
A52: ='Org structure'!A10 -> Vote 09 - City Electrial Engineering | C52: =SUM(C53:C57) -> 1167621724 | D52: 0 | E52: 0 | F52: 0 | G52: 0 | H52: 0 | I52: -29499079 | J52: -29499079 | K52: 1138122645 | L52: =SUM(L53:L57) -> 1228816829 | M52: =SUM(M53:M57) -> 1285477268
A53: ='Org structure'!E48 -> 09.1 - Streetlighting | C53: 5000000 | D53: 0 | E53: 0 | F53: 0 | G53: 0 | H53: 0 | I53: 0 | J53: =SUM(E53:I53) -> 0 | K53: =IF(D53=0,C53+J53,D53+J53) -> 5000000 | L53: 5000000 | M53: 4000000
A54: ='Org structure'!E49 -> 09.2 - Garage | C54: 0 | D54: 0 | E54: 0 | F54: 0 | G54: 0 | H54: 0 | I54: 0 | J54: =SUM(E54:I54) -> 0 | K54: =IF(D54=0,C54+J54,D54+J54) -> 0 | L54: 0 | M54: 0
A55: ='Org structure'!E50 -> 09.3 - Workshop | C55: 0 | D55: 0 | E55: 0 | F55: 0 | G55: 0 | H55: 0 | I55: 0 | J55: =SUM(E55:I55) -> 0 | K55: =IF(D55=0,C55+J55,D55+J55) -> 0 | L55: 0 | M55: 0
A56: ='Org structure'!E51 -> 09.4 - Administration Electricity | C56: 1157509072 | D56: 0 | E56: 0 | F56: 0 | G56: 0 | H56: 0 | I56: -29499079 | J56: =SUM(E56:I56) -> -29499079 | K56: =IF(D56=0,C56+J56,D56+J56) -> 1128009993 | L56: 1210898626 | M56: 1266599963
A57: ='Org structure'!E52 -> 09.5 - Electricity Distribution | C57: 5112652 | D57: 0 | E57: 0 | F57: 0 | G57: 0 | H57: 0 | I57: 0 | J57: =SUM(E57:I57) -> 0 | K57: =IF(D57=0,C57+J57,D57+J57) -> 5112652 | L57: 12918203 | M57: 14877305
A58: ='Org structure'!A11 -> Vote 10 - Corporate Governane | C58: =SUM(C59:C61) -> 1230341 | D58: 0 | E58: 0 | F58: 0 | G58: 0 | H58: 0 | I58: 600000 | J58: 600000 | K58: 1830341 | L58: =SUM(L59:L61) -> 2353857 | M58: =SUM(M59:M61) -> 2462135
A59: ='Org structure'!E54 -> 10.1 - Administration City Secretary | C59: 230341 | D59: 0 | E59: 0 | F59: 0 | G59: 0 | H59: 0 | I59: 0 | J59: =SUM(E59:I59) -> 0 | K59: =IF(D59=0,C59+J59,D59+J59) -> 230341 | L59: 240937 | M59: 252020
A60: ='Org structure'!E55 -> 10.2 - Legal And Land Affairs | C60: 0 | D60: 0 | E60: 0 | F60: 0 | G60: 0 | H60: 0 | I60: 0 | J60: =SUM(E60:I60) -> 0 | K60: =IF(D60=0,C60+J60,D60+J60) -> 0 | L60: 0 | M60: 0
A61: ='Org structure'!E56 -> 10.3 - Management Services | C61: 1000000 | D61: 0 | E61: 0 | F61: 0 | G61: 0 | H61: 0 | I61: 600000 | J61: =SUM(E61:I61) -> 600000 | K61: =IF(D61=0,C61+J61,D61+J61) -> 1600000 | L61: 2112920 | M61: 2210115
A62: ='Org structure'!A12 -> Vote 11 - Budget And Treasury Office | C62: =SUM(C63:C65) -> 1422603171 | D62: 0 | E62: 0 | F62: 0 | G62: 0 | H62: 0 | I62: -51234228 | J62: -51234228 | K62: 1371368943 | L62: =SUM(L63:L65) -> 1479402067 | M62: =SUM(M63:M65) -> 1533229447
A63: ='Org structure'!E58 -> 11.1 - Administration City Treasurer | C63: 1421710823 | D63: 0 | E63: 0 | F63: 0 | G63: 0 | H63: 0 | I63: -51234228 | J63: =SUM(E63:I63) -> -51234228 | K63: =IF(D63=0,C63+J63,D63+J63) -> 1370476595 | L63: 1478468670 | M63: 1532253114
A64: ='Org structure'!E59 -> 11.2 - Data | C64: 142348 | D64: 0 | E64: 0 | F64: 0 | G64: 0 | H64: 0 | I64: 0 | J64: =SUM(E64:I64) -> 0 | K64: =IF(D64=0,C64+J64,D64+J64) -> 142348 | L64: 148897 | M64: 155746
A65: ='Org structure'!E60 -> 11.3 - Stores | C65: 750000 | D65: 0 | E65: 0 | F65: 0 | G65: 0 | H65: 0 | I65: 0 | J65: =SUM(E65:I65) -> 0 | K65: =IF(D65=0,C65+J65,D65+J65) -> 750000 | L65: 784500 | M65: 820587
A66: ='Org structure'!A13 -> Vote 12 - Cleansing | C66: =SUM(C67:C73) -> 387791051 | D66: 0 | E66: 0 | F66: 0 | G66: 0 | H66: 0 | I66: 27990109 | J66: 27990109 | K66: 415781160 | L66: =SUM(L67:L73) -> 374459256 | M66: =SUM(M67:M73) -> 381405772
A67: ='Org structure'!E62 -> 12.1 - Landfill Site | C67: 371783 | D67: 0 | E67: 0 | F67: 0 | G67: 0 | H67: 0 | I67: 0 | J67: =SUM(E67:I67) -> 0 | K67: =IF(D67=0,C67+J67,D67+J67) -> 371783 | L67: 388886 | M67: 406774
A68: ='Org structure'!E63 -> 12.2 - Administration Cleansing | C68: 348592952 | D68: 0 | E68: 0 | F68: 0 | G68: 0 | H68: 0 | I68: 27990109 | J68: 27990109 | K68: 376583061 | L68: 345015507 | M68: 380941611
A69: ='Org structure'!E64 -> 12.3 - Refuse Removal | C69: 0 | D69: 0 | E69: 0 | F69: 0 | G69: 0 | H69: 0 | I69: 0 | J69: 0 | K69: 0 | L69: 0 | M69: 0
A70: ='Org structure'!E65 -> 12.4 - Nightsoil Services | C70: 0 | D70: 0 | E70: 0 | F70: 0 | G70: 0 | H70: 0 | I70: 0 | J70: 0 | K70: 0 | L70: 0 | M70: 0
A71: ='Org structure'!E66 -> 12.5 - Street Cleaning | C71: 0 | D71: 0 | E71: 0 | F71: 0 | G71: 0 | H71: 0 | I71: 0 | J71: 0 | K71: 0 | L71: 0 | M71: 0
A72: ='Org structure'!E67 -> 12.6 - Public Restrooms | C72: 0 | D72: 0 | E72: 0 | F72: 0 | G72: 0 | H72: 0 | I72: 0 | J72: 0 | K72: 0 | L72: 0 | M72: 0
A73: ='Org structure'!E68 -> 12.7 - Landfill Site | C73: 38826316 | D73: 0 | E73: 0 | F73: 0 | G73: 0 | H73: 0 | I73: 0 | J73: 0 | K73: 38826316 | L73: 29054863 | M73: 57387
A74: ='Org structure'!A14 -> Vote 13 - Sewerage | C74: =SUM(C75:C78) -> 253895202 | D74: 0 | E74: 0 | F74: 0 | G74: 0 | H74: 0 | I74: 515144 | J74: =SUM(E74:I74) -> 515144 | K74: =IF(D74=0,C74+J74,D74+J74) -> 254410346 | L74: =SUM(L75:L78) -> 286167645 | M74: =SUM(M75:M78) -> 339479113
A75: ='Org structure'!E70 -> 13.1 - Administration Sewerage | C75: 179882748 | D75: 0 | E75: 0 | F75: 0 | G75: 0 | H75: 0 | I75: 515144 | J75: =SUM(E75:I75) -> 515144 | K75: =IF(D75=0,C75+J75,D75+J75) -> 180397892 | L75: 188167645 | M75: 196823355
A76: ='Org structure'!E71 -> 13.2 - Sewer Agency | C76: 0 | D76: 0 | E76: 0 | F76: 0 | G76: 0 | H76: 0 | I76: 0 | J76: =SUM(E76:I76) -> 0 | K76: =IF(D76=0,C76+J76,D76+J76) -> 0 | L76: 0 | M76: 0
A77: ='Org structure'!E72 -> 13.3 - Sewer Distribution | C77: 74012454 | D77: 0 | E77: 0 | F77: 0 | G77: 0 | H77: 0 | I77: 0 | J77: =SUM(E77:I77) -> 0 | K77: =IF(D77=0,C77+J77,D77+J77) -> 74012454 | L77: 98000000 | M77: 142655758
A78: ='Org structure'!E73 -> 13.4 - Nightsoil Services | C78: 0 | D78: 0 | E78: 0 | F78: 0 | G78: 0 | H78: 0 | I78: 0 | J78: =SUM(E78:I78) -> 0 | K78: =IF(D78=0,C78+J78,D78+J78) -> 0 | L78: 0 | M78: 0
A79: ='Org structure'!A15 -> Vote 14 - Market | C79: =SUM(C80:C80) -> 29861158 | D79: 0 | E79: 0 | F79: 0 | G79: 0 | H79: 0 | I79: -207118 | J79: -207118 | K79: 29654040 | L79: =SUM(L80:L80) -> 35559712 | M79: =SUM(M80:M80) -> 26735460
A80: ='Org structure'!E75 -> 14.1 - Market | C80: 29861158 | D80: 0 | E80: 0 | F80: 0 | G80: 0 | H80: 0 | I80: -207118 | J80: =SUM(E80:I80) -> -207118 | K80: =IF(D80=0,C80+J80,D80+J80) -> 29654040 | L80: 35559712 | M80: 26735460
A81: ='Org structure'!A16 -> Vote 15 - Other | C81: =SUM(C82:C84) -> 1027 | D81: 0 | E81: 0 | F81: 0 | G81: 0 | H81: 0 | I81: 798973 | J81: 798973 | K81: 800000 | L81: =SUM(L82:L84) -> 1075 | M81: =SUM(M82:M84) -> 1124
A82: ='Org structure'!E77 -> 15.1 - Administration Led | C82: 1027 | D82: 0 | E82: 0 | F82: 0 | G82: 0 | H82: 0 | I82: 798973 | J82: =SUM(E82:I82) -> 798973 | K82: =IF(D82=0,C82+J82,D82+J82) -> 800000 | L82: 1075 | M82: 1124
A83: ='Org structure'!E78 -> 15.2 - Economic Affairs & Corporate Communicati | C83: 0 | D83: 0 | E83: 0 | F83: 0 | G83: 0 | H83: 0 | I83: 0 | J83: =SUM(E83:I83) -> 0 | K83: =IF(D83=0,C83+J83,D83+J83) -> 0 | L83: 0 | M83: 0
A84: ='Org structure'!E79 -> 15.3 - Local Economic Development | C84: 0 | D84: 0 | E84: 0 | F84: 0 | G84: 0 | H84: 0 | I84: 0 | J84: =SUM(E84:I84) -> 0 | K84: =IF(D84=0,C84+J84,D84+J84) -> 0 | L84: 0 | M84: 0
A85: Total Revenue by Vote | B85: 2 | C85: =C7+C14+C17+C24+C30+C35+C44+C49+C52+C58+C62+C66+C74+C79+C81 -> 4451110652 | D85: 0 | E85: 0 | F85: 0 | G85: 0 | H85: 0 | I85: 40448127 | J85: 40448127 | K85: 4491558779 | L85: 4629254164 | M85: 4865650490
A87: Expenditure by Vote | B87: 1
A88: ='Org structure'!A2 -> Vote 01 - Public Safety | C88: =SUM(C89:C94) -> 229307123 | D88: 0 | E88: 0 | F88: 0 | G88: 0 | H88: 0 | I88: 61522988 | J88: =SUM(E88:I88) -> 61522988 | K88: =IF(D88=0,C88+J88,D88+J88) -> 290830111 | L88: =SUM(L89:L94) -> 262331862 | M88: =SUM(M89:M94) -> 270932932
A89: ='Org structure'!E3 -> 01.1 - Public Safety Administration | C89: 10568835 | D89: 0 | E89: 0 | F89: 0 | G89: 0 | H89: 0 | I89: 1741702 | J89: 1741702 | K89: 12310537 | L89: 11055003 | M89: 11557661
A90: ='Org structure'!E4 -> 01.2 - Fire Brigade | C90: 45343686 | D90: 0 | E90: 0 | F90: 0 | G90: 0 | H90: 0 | I90: 17194853 | J90: 17194853 | K90: 62538539 | L90: 47070473 | M90: 49126905
A91: ='Org structure'!E5 -> 01.3 - Licencing Administration | C91: 47044568 | D91: 0 | E91: 0 | F91: 0 | G91: 0 | H91: 0 | I91: 916628 | J91: 916628 | K91: 47961196 | L91: 49208634 | M91: 51450896
A92: ='Org structure'!E6 -> 01.4 - Traffic Administration | C92: 47690857 | D92: 0 | E92: 0 | F92: 0 | G92: 0 | H92: 0 | I92: 8670584 | J92: 8670584 | K92: 56361441 | L92: 49895109 | M92: 52124966
A93: ='Org structure'!E7 -> 01.5 - Disaster Management | C93: 32678530 | D93: 0 | E93: 0 | F93: 0 | G93: 0 | H93: 0 | I93: -410383 | J93: -410383 | K93: 32268147 | L93: 41953523 | M93: 40621003
A94: ='Org structure'!E8 -> 01.6 - Municipal Court | C94: 45980647 | D94: 0 | E94: 0 | F94: 0 | G94: 0 | H94: 0 | I94: 33409604 | J94: 33409604 | K94: 79390251 | L94: 63149120 | M94: 66051501
A95: ='Org structure'!A3 -> Vote 02 - Health Services | C95: =SUM(C96:C97) -> 10183319 | D95: 0 | E95: 0 | F95: 0 | G95: 0 | H95: 0 | I95: -783086 | J95: =SUM(E95:I95) -> -783086 | K95: =IF(D95=0,C95+J95,D95+J95) -> 9400233 | L95: =SUM(L96:L97) -> 10651764 | M95: =SUM(M96:M97) -> 11140301
A96: ='Org structure'!E10 -> 02.1 - Health Services Administration | C96: 10019118 | D96: 0 | E96: 0 | F96: 0 | G96: 0 | H96: 0 | I96: -790086 | J96: =SUM(E96:I96) -> -790086 | K96: =IF(D96=0,C96+J96,D96+J96) -> 9229032 | L96: 10480008 | M96: 10961704
A97: ='Org structure'!E11 -> 02.2 - Occupational Health Centre | C97: 164201 | D97: 0 | E97: 0 | F97: 0 | G97: 0 | H97: 0 | I97: 7000 | J97: =SUM(E97:I97) -> 7000 | K97: =IF(D97=0,C97+J97,D97+J97) -> 171201 | L97: 171756 | M97: 178597
A98: ='Org structure'!A4 -> Vote 03 - Community Services | C98: =SUM(C99:C104) -> 111625220 | D98: 0 | E98: 0 | F98: 0 | G98: 0 | H98: 0 | I98: 3182318 | J98: 3182318 | K98: 114807538 | L98: =SUM(L99:L104) -> 120375281 | M98: =SUM(M99:M104) -> 125880849
A99: ='Org structure'!E13 -> 03.1 - Administration Community Services | C99: 42457028 | D99: 0 | E99: 0 | F99: 0 | G99: 0 | H99: 0 | I99: 530902 | J99: =SUM(E99:I99) -> 530902 | K99: =IF(D99=0,C99+J99,D99+J99) -> 42987930 | L99: 44410067 | M99: 46451124
A100: ='Org structure'!E14 -> 03.2 - Cemetary | C100: 20065621 | D100: 0 | E100: 0 | F100: 0 | G100: 0 | H100: 0 | I100: 261850 | J100: 261850 | K100: 20327471 | L100: 20962499 | M100: 21922150
A101: ='Org structure'!E15 -> 03.3 - Aerodome | C101: 0 | D101: 0 | E101: 0 | F101: 0 | G101: 0 | H101: 0 | I101: 0 | J101: 0 | K101: 0 | L101: 0 | M101: 0
A102: ='Org structure'!E16 -> 03.4 - Nature Reserve | C102: 2308956 | D102: 0 | E102: 0 | F102: 0 | G102: 0 | H102: 0 | I102: -258082 | J102: -258082 | K102: 2050874 | L102: 2313150 | M102: 2415245
A103: ='Org structure'!E17 -> 03.5 - Orkney Vaal | C103: 2807214 | D103: 0 | E103: 0 | F103: 0 | G103: 0 | H103: 0 | I103: -407990 | J103: -407990 | K103: 2399224 | L103: 2854297 | M103: 2981551
A104: ='Org structure'!E18 -> 03.6 - Administration Parks | C104: 43986401 | D104: 0 | E104: 0 | F104: 0 | G104: 0 | H104: 0 | I104: 3055638 | J104: 3055638 | K104: 47042039 | L104: 49835268 | M104: 52110779
A105: ='Org structure'!A5 -> Vote 04 - Housing | C105: =SUM(C106:C110) -> 43961942 | D105: 0 | E105: 0 | F105: 0 | G105: 0 | H105: 0 | I105: -539172 | J105: -539172 | K105: 43422770 | L105: =SUM(L106:L110) -> 45984227 | M105: =SUM(M106:M110) -> 48078671
A106: ='Org structure'!E20 -> 04.1 - Administration Housing Services | C106: 20336660 | D106: 0 | E106: 0 | F106: 0 | G106: 0 | H106: 0 | I106: -346032 | J106: =SUM(E106:I106) -> -346032 | K106: =IF(D106=0,C106+J106,D106+J106) -> 19990628 | L106: 21272153 | M106: 22249378
A107: ='Org structure'!E21 -> 04.2 - Housing Services | C107: 17047074 | D107: 0 | E107: 0 | F107: 0 | G107: 0 | H107: 0 | I107: -1348907 | J107: =SUM(E107:I107) -> -1348907 | K107: =IF(D107=0,C107+J107,D107+J107) -> 15698167 | L107: 17831251 | M107: 18632185
A108: ='Org structure'!E22 -> 04.3 - Building Survey | C108: 5732582 | D108: 0 | E108: 0 | F108: 0 | G108: 0 | H108: 0 | I108: 1155767 | J108: =SUM(E108:I108) -> 1155767 | K108: =IF(D108=0,C108+J108,D108+J108) -> 6888349 | L108: 5996290 | M108: 6271888
A109: ='Org structure'!E23 -> 04.4 - Town Planning | C109: 462052 | D109: 0 | E109: 0 | F109: 0 | G109: 0 | H109: 0 | I109: 0 | J109: =SUM(E109:I109) -> 0 | K109: =IF(D109=0,C109+J109,D109+J109) -> 462052 | L109: 483309 | M109: 505540
A110: ='Org structure'!E24 -> 04.5 - Land Affairs | C110: 383574 | D110: 0 | E110: 0 | F110: 0 | G110: 0 | H110: 0 | I110: 0 | J110: =SUM(E110:I110) -> 0 | K110: =IF(D110=0,C110+J110,D110+J110) -> 383574 | L110: 401224 | M110: 419680
A111: ='Org structure'!A6 -> Vote 05 - Sport Arts And Culture | C111: =SUM(C112:C115) -> 97963223 | D111: 0 | E111: 0 | F111: 0 | G111: 0 | H111: 0 | I111: 1790378 | J111: 1790378 | K111: 99753601 | L111: =SUM(L112:L115) -> 103735239 | M111: =SUM(M112:M115) -> 108264637
A112: ='Org structure'!E26 -> 05.1 - Administration Sports Arts & Culture | C112: 277140 | D112: 0 | E112: 0 | F112: 0 | G112: 0 | H112: 0 | I112: 8000 | J112: =SUM(E112:I112) -> 8000 | K112: =IF(D112=0,C112+J112,D112+J112) -> 285140 | L112: 289891 | M112: 302746
A113: ='Org structure'!E27 -> 05.2 - Museum | C113: 4432491 | D113: 0 | E113: 0 | F113: 0 | G113: 0 | H113: 0 | I113: 178845 | J113: =SUM(E113:I113) -> 178845 | K113: =IF(D113=0,C113+J113,D113+J113) -> 4611336 | L113: 4636393 | M113: 4843173
A114: ='Org structure'!E28 -> 05.3 - Library | C114: 55872874 | D114: 0 | E114: 0 | F114: 0 | G114: 0 | H114: 0 | I114: 1535973 | J114: =SUM(E114:I114) -> 1535973 | K114: =IF(D114=0,C114+J114,D114+J114) -> 57408847 | L114: 58453507 | M114: 61051857
A115: ='Org structure'!E29 -> 05.4 - Sports And Recreation | C115: 37380718 | D115: 0 | E115: 0 | F115: 0 | G115: 0 | H115: 0 | I115: 67560 | J115: =SUM(E115:I115) -> 67560 | K115: =IF(D115=0,C115+J115,D115+J115) -> 37448278 | L115: 40355448 | M115: 42066861
A116: ='Org structure'!A7 -> Vote 06 - Council General | C116: =SUM(C117:C124) -> 247958374 | D116: 0 | E116: 0 | F116: 0 | G116: 0 | H116: 0 | I116: 374899 | J116: 374899 | K116: 248333273 | L116: =SUM(L117:L124) -> 262751961 | M116: =SUM(M117:M124) -> 272611414
A117: ='Org structure'!E31 -> 06.1 - Administration Council General | C117: 185011474 | D117: 0 | E117: 0 | F117: 0 | G117: 0 | H117: 0 | I117: 1523000 | J117: =SUM(E117:I117) -> 1523000 | K117: =IF(D117=0,C117+J117,D117+J117) -> 186534474 | L117: 196967475 | M117: 207118567
A118: ='Org structure'!E32 -> 06.2 - Administration Municipal Manager | C118: 5020340 | D118: 0 | E118: 0 | F118: 0 | G118: 0 | H118: 0 | I118: 397528 | J118: 397528 | K118: 5417868 | L118: 5251290 | M118: 5492612
A119: ='Org structure'!E33 -> 06.3 - Internal Audit | C119: 6674861 | D119: 0 | E119: 0 | F119: 0 | G119: 0 | H119: 0 | I119: -1024329 | J119: -1024329 | K119: 5650532 | L119: 6981914 | M119: 7302859
A120: ='Org structure'!E34 -> 06.4 - Strategic | C120: 5420542 | D120: 0 | E120: 0 | F120: 0 | G120: 0 | H120: 0 | I120: -1022505 | J120: -1022505 | K120: 4398037 | L120: 5611850 | M120: 5869708
A121: ='Org structure'!E35 -> 06.5 - Administration Mayor | C121: 12591739 | D121: 0 | E121: 0 | F121: 0 | G121: 0 | H121: 0 | I121: 853537 | J121: 853537 | K121: 13445276 | L121: 13170966 | M121: 13772849
A122: ='Org structure'!E36 -> 06.6 - Administration Speaker | C122: 28909437 | D122: 0 | E122: 0 | F122: 0 | G122: 0 | H122: 0 | I122: -921165 | J122: -921165 | K122: 27988272 | L122: 30239287 | M122: 28320896
A123: ='Org structure'!E37 -> 06.7 - Chief Whip | C123: 2535185 | D123: 0 | E123: 0 | F123: 0 | G123: 0 | H123: 0 | I123: 695662 | J123: 695662 | K123: 3230847 | L123: 2651811 | M123: 2770199
A124: ='Org structure'!E38 -> 06.8 - Mpac | C124: 1794796 | D124: 0 | E124: 0 | F124: 0 | G124: 0 | H124: 0 | I124: -126829 | J124: -126829 | K124: 1667967 | L124: 1877368 | M124: 1963724
A125: ='Org structure'!A8 -> Vote 07 - Civil Engineering | C125: =SUM(C126:C129) -> 237791135 | D125: 0 | E125: 0 | F125: 0 | G125: 0 | H125: 0 | I125: 27512816 | J125: =SUM(E125:I125) -> 27512816 | K125: =IF(D125=0,C125+J125,D125+J125) -> 265303951 | L125: =SUM(L126:L129) -> 294820789 | M125: =SUM(M126:M129) -> 270717844
A126: ='Org structure'!E40 -> 07.1 - Administration City Civil Engineer | C126: 4631337 | D126: 0 | E126: 0 | F126: 0 | G126: 0 | H126: 0 | I126: -726435 | J126: =SUM(E126:I126) -> -726435 | K126: =IF(D126=0,C126+J126,D126+J126) -> 3904902 | L126: 4844387 | M126: 5067227
A127: ='Org structure'!E41 -> 07.2 - Building Construction | C127: 19838642 | D127: 0 | E127: 0 | F127: 0 | G127: 0 | H127: 0 | I127: -1511993 | J127: =SUM(E127:I127) -> -1511993 | K127: =IF(D127=0,C127+J127,D127+J127) -> 18326649 | L127: 20751236 | M127: 21693433
A128: ='Org structure'!E42 -> 07.3 - Roads | C128: 207705063 | D128: 0 | E128: 0 | F128: 0 | G128: 0 | H128: 0 | I128: 29087089 | J128: =SUM(E128:I128) -> 29087089 | K128: =IF(D128=0,C128+J128,D128+J128) -> 236792152 | L128: 263350724 | M128: 237816003
A129: ='Org structure'!E43 -> 07.4 - Pmu Unit | C129: 5616093 | D129: 0 | E129: 0 | F129: 0 | G129: 0 | H129: 0 | I129: 664155 | J129: =SUM(E129:I129) -> 664155 | K129: =IF(D129=0,C129+J129,D129+J129) -> 6280248 | L129: 5874442 | M129: 6141181
A130: ='Org structure'!A9 -> Vote 08 - Water Section | C130: =SUM(C131:C132) -> 730845449 | D130: 0 | E130: 0 | F130: 0 | G130: 0 | H130: 0 | I130: 292869525 | J130: 292869525 | K130: 1023714974 | L130: =SUM(L131:L132) -> 701338373 | M130: =SUM(M131:M132) -> 777676684
A131: ='Org structure'!E45 -> 08.1 - Administration Water | C131: 665304722 | D131: 0 | E131: 0 | F131: 0 | G131: 0 | H131: 0 | I131: 282277371 | J131: =SUM(E131:I131) -> 282277371 | K131: =IF(D131=0,C131+J131,D131+J131) -> 947582093 | L131: 630121751 | M131: 698725208
A132: ='Org structure'!E46 -> 08.2 - Water Distribution | C132: 65540727 | D132: 0 | E132: 0 | F132: 0 | G132: 0 | H132: 0 | I132: 10592154 | J132: =SUM(E132:I132) -> 10592154 | K132: =IF(D132=0,C132+J132,D132+J132) -> 76132881 | L132: 71216622 | M132: 78951476
A133: ='Org structure'!A10 -> Vote 09 - City Electrial Engineering | C133: =SUM(C134:C138) -> 1562975979 | D133: 0 | E133: 0 | F133: 0 | G133: 0 | H133: 0 | I133: 142961564 | J133: 142961564 | K133: 1705937543 | L133: =SUM(L134:L138) -> 1505907472 | M133: =SUM(M134:M138) -> 1534854243
A134: ='Org structure'!E48 -> 09.1 - Streetlighting | C134: 4000000 | D134: 0 | E134: 0 | F134: 0 | G134: 0 | H134: 0 | I134: 1000000 | J134: =SUM(E134:I134) -> 1000000 | K134: =IF(D134=0,C134+J134,D134+J134) -> 5000000 | L134: 5230000 | M134: 5470580
A135: ='Org structure'!E49 -> 09.2 - Garage | C135: 14616072 | D135: 0 | E135: 0 | F135: 0 | G135: 0 | H135: 0 | I135: -1945902 | J135: =SUM(E135:I135) -> -1945902 | K135: =IF(D135=0,C135+J135,D135+J135) -> 12670170 | L135: 15288427 | M135: 15975751
A136: ='Org structure'!E50 -> 09.3 - Workshop | C136: 8424072 | D136: 0 | E136: 0 | F136: 0 | G136: 0 | H136: 0 | I136: 601547 | J136: =SUM(E136:I136) -> 601547 | K136: =IF(D136=0,C136+J136,D136+J136) -> 9025619 | L136: 8905730 | M136: 9303103
A137: ='Org structure'!E51 -> 09.4 - Administration Electricity | C137: 423090431 | D137: 0 | E137: 0 | F137: 0 | G137: 0 | H137: 0 | I137: 142616644 | J137: =SUM(E137:I137) -> 142616644 | K137: =IF(D137=0,C137+J137,D137+J137) -> 565707075 | L137: 331976191 | M137: 225847830
A138: ='Org structure'!E52 -> 09.5 - Electricity Distribution | C138: 1112845404 | D138: 0 | E138: 0 | F138: 0 | G138: 0 | H138: 0 | I138: 689275 | J138: =SUM(E138:I138) -> 689275 | K138: =IF(D138=0,C138+J138,D138+J138) -> 1113534679 | L138: 1144507124 | M138: 1278256979
A139: ='Org structure'!A11 -> Vote 10 - Corporate Governane | C139: =SUM(C140:C142) -> 78708674 | D139: 0 | E139: 0 | F139: 0 | G139: 0 | H139: 0 | I139: 1958056 | J139: 1958056 | K139: 80666730 | L139: =SUM(L140:L142) -> 84372858 | M139: =SUM(M140:M142) -> 88260600
A140: ='Org structure'!E54 -> 10.1 - Administration City Secretary | C140: 43630327 | D140: 0 | E140: 0 | F140: 0 | G140: 0 | H140: 0 | I140: -898298 | J140: =SUM(E140:I140) -> -898298 | K140: =IF(D140=0,C140+J140,D140+J140) -> 42732029 | L140: 45637341 | M140: 47699525
A141: ='Org structure'!E55 -> 10.2 - Legal And Land Affairs | C141: 19453294 | D141: 0 | E141: 0 | F141: 0 | G141: 0 | H141: 0 | I141: 5042369 | J141: =SUM(E141:I141) -> 5042369 | K141: =IF(D141=0,C141+J141,D141+J141) -> 24495663 | L141: 20917156 | M141: 21925163
A142: ='Org structure'!E56 -> 10.3 - Management Services | C142: 15625053 | D142: 0 | E142: 0 | F142: 0 | G142: 0 | H142: 0 | I142: -2186015 | J142: =SUM(E142:I142) -> -2186015 | K142: =IF(D142=0,C142+J142,D142+J142) -> 13439038 | L142: 17818361 | M142: 18635912
A143: ='Org structure'!A12 -> Vote 11 - Budget And Treasury Office | C143: =SUM(C144:C146) -> 411424491 | D143: 0 | E143: 0 | F143: 0 | G143: 0 | H143: 0 | I143: 66447134 | J143: 66447134 | K143: 477871625 | L143: =SUM(L144:L146) -> 368207548 | M143: =SUM(M144:M146) -> 320885056
A144: ='Org structure'!E58 -> 11.1 - Administration City Treasurer | C144: 366215088 | D144: 0 | E144: 0 | F144: 0 | G144: 0 | H144: 0 | I144: 64121685 | J144: =SUM(E144:I144) -> 64121685 | K144: =IF(D144=0,C144+J144,D144+J144) -> 430336773 | L144: 321592040 | M144: 272206457
A145: ='Org structure'!E59 -> 11.2 - Data | C145: 39598801 | D145: 0 | E145: 0 | F145: 0 | G145: 0 | H145: 0 | I145: 1959786 | J145: =SUM(E145:I145) -> 1959786 | K145: =IF(D145=0,C145+J145,D145+J145) -> 41558587 | L145: 40746810 | M145: 42540430
A146: ='Org structure'!E60 -> 11.3 - Stores | C146: 5610602 | D146: 0 | E146: 0 | F146: 0 | G146: 0 | H146: 0 | I146: 365663 | J146: =SUM(E146:I146) -> 365663 | K146: =IF(D146=0,C146+J146,D146+J146) -> 5976265 | L146: 5868698 | M146: 6138169
A147: ='Org structure'!A13 -> Vote 12 - Cleansing | C147: =SUM(C148:C154) -> 219847042 | D147: 0 | E147: 0 | F147: 0 | G147: 0 | H147: 0 | I147: 138642667 | J147: 138642667 | K147: 358489709 | L147: =SUM(L148:L154) -> 222379708 | M147: =SUM(M148:M154) -> 214004416
A148: ='Org structure'!E62 -> 12.1 - Landfill Site | C148: 14928903 | D148: 0 | E148: 0 | F148: 0 | G148: 0 | H148: 0 | I148: -232366 | J148: =SUM(E148:I148) -> -232366 | K148: =IF(D148=0,C148+J148,D148+J148) -> 14696537 | L148: 18753641 | M148: 19615976
A149: ='Org structure'!E63 -> 12.2 - Administration Cleansing | C149: 82000916 | D149: 0 | E149: 0 | F149: 0 | G149: 0 | H149: 0 | I149: 119769539 | J149: 119769539 | K149: 201770455 | L149: 62813270 | M149: 41665911
A150: ='Org structure'!E64 -> 12.3 - Refuse Removal | C150: 60098584 | D150: 0 | E150: 0 | F150: 0 | G150: 0 | H150: 0 | I150: 17611336 | J150: 17611336 | K150: 77709920 | L150: 68415978 | M150: 72044216
A151: ='Org structure'!E65 -> 12.4 - Nightsoil Services | C151: 10123020 | D151: 0 | E151: 0 | F151: 0 | G151: 0 | H151: 0 | I151: -827811 | J151: -827811 | K151: 9295209 | L151: 10672365 | M151: 11163294
A152: ='Org structure'!E66 -> 12.5 - Street Cleaning | C152: 30626478 | D152: 0 | E152: 0 | F152: 0 | G152: 0 | H152: 0 | I152: 2283747 | J152: 2283747 | K152: 32910225 | L152: 32349103 | M152: 38788969
A153: ='Org structure'!E67 -> 12.6 - Public Restrooms | C153: 30270 | D153: 0 | E153: 0 | F153: 0 | G153: 0 | H153: 0 | I153: -30270 | J153: -30270 | K153: 0 | L153: 31663 | M153: 33119
A154: ='Org structure'!E68 -> 12.7 - Landfill Site | C154: 22038871 | D154: 0 | E154: 0 | F154: 0 | G154: 0 | H154: 0 | I154: 68492 | J154: 68492 | K154: 22107363 | L154: 29343688 | M154: 30692931
A155: ='Org structure'!A14 -> Vote 13 - Sewerage | C155: =SUM(C156:C159) -> 243945908 | D155: 0 | E155: 0 | F155: 0 | G155: 0 | H155: 0 | I155: 123984894 | J155: =SUM(E155:I155) -> 123984894 | K155: =IF(D155=0,C155+J155,D155+J155) -> 367930802 | L155: =SUM(L156:L159) -> 305203839 | M155: =SUM(M156:M159) -> 237214501
A156: ='Org structure'!E70 -> 13.1 - Administration Sewerage | C156: 65761739 | D156: 0 | E156: 0 | F156: 0 | G156: 0 | H156: 0 | I156: 117845196 | J156: =SUM(E156:I156) -> 117845196 | K156: =IF(D156=0,C156+J156,D156+J156) -> 183606935 | L156: 50329768 | M156: 33338399
A157: ='Org structure'!E71 -> 13.2 - Sewer Agency | C157: 45309747 | D157: 0 | E157: 0 | F157: 0 | G157: 0 | H157: 0 | I157: -751805 | J157: =SUM(E157:I157) -> -751805 | K157: =IF(D157=0,C157+J157,D157+J157) -> 44557942 | L157: 114632211 | M157: 57197970
A158: ='Org structure'!E72 -> 13.3 - Sewer Distribution | C158: 132874422 | D158: 0 | E158: 0 | F158: 0 | G158: 0 | H158: 0 | I158: 6873503 | J158: =SUM(E158:I158) -> 6873503 | K158: =IF(D158=0,C158+J158,D158+J158) -> 139747925 | L158: 140241860 | M158: 146678132
A159: ='Org structure'!E73 -> 13.4 - Nightsoil Services | C159: 0 | D159: 0 | E159: 0 | F159: 0 | G159: 0 | H159: 0 | I159: 18000 | J159: =SUM(E159:I159) -> 18000 | K159: =IF(D159=0,C159+J159,D159+J159) -> 18000 | L159: 0 | M159: 0
A160: ='Org structure'!A15 -> Vote 14 - Market | C160: =SUM(C161:C161) -> 23181617 | D160: 0 | E160: 0 | F160: 0 | G160: 0 | H160: 0 | I160: -1443885 | J160: -1443885 | K160: 21737732 | L160: =SUM(L161:L161) -> 24247993 | M160: =SUM(M161:M161) -> 25340975
A161: ='Org structure'!E75 -> 14.1 - Market | C161: 23181617 | D161: 0 | E161: 0 | F161: 0 | G161: 0 | H161: 0 | I161: -1443885 | J161: =SUM(E161:I161) -> -1443885 | K161: =IF(D161=0,C161+J161,D161+J161) -> 21737732 | L161: 24247993 | M161: 25340975
A162: ='Org structure'!A16 -> Vote 15 - Other | C162: =SUM(C163:C165) -> 12921309 | D162: 0 | E162: 0 | F162: 0 | G162: 0 | H162: 0 | I162: 514519 | J162: 514519 | K162: 13435828 | L162: =SUM(L163:L165) -> 12574317 | M162: =SUM(M163:M165) -> 13145031
A163: ='Org structure'!E77 -> 15.1 - Administration Led | C163: 3853241 | D163: 0 | E163: 0 | F163: 0 | G163: 0 | H163: 0 | I163: 943482 | J163: =SUM(E163:I163) -> 943482 | K163: =IF(D163=0,C163+J163,D163+J163) -> 4796723 | L163: 4030497 | M163: 4213857
A164: ='Org structure'!E78 -> 15.2 - Economic Affairs & Corporate Communicati | C164: 3858517 | D164: 0 | E164: 0 | F164: 0 | G164: 0 | H164: 0 | I164: -687362 | J164: =SUM(E164:I164) -> -687362 | K164: =IF(D164=0,C164+J164,D164+J164) -> 3171155 | L164: 4036019 | M164: 4216575
A165: ='Org structure'!E79 -> 15.3 - Local Economic Development | C165: 5209551 | D165: 0 | E165: 0 | F165: 0 | G165: 0 | H165: 0 | I165: 258399 | J165: =SUM(E165:I165) -> 258399 | K165: =IF(D165=0,C165+J165,D165+J165) -> 5467950 | L165: 4507801 | M165: 4714599
A166: Total Expenditure by Vote | B166: 2 | C166: =C88+C95+C98+C105+C111+C116+C125+C130+C133+C139+C143+C147+C155+C160+C162 -> 4262640805 | D166: 0 | E166: 0 | F166: 0 | G166: 0 | H166: 0 | I166: 858995615 | J166: 858995615 | K166: 5121636420 | L166: 4324883231 | M166: 4319008154
A168: =result -> Surplus/ (Deficit) for the year | B168: 2 | C168: =C85-C166 -> 188469847 | D168: 0 | E168: 0 | F168: 0 | G168: 0 | H168: 0 | I168: -818547488 | J168: =SUM(E168:I168) -> -818547488 | K168: =IF(D168=0,C168+J168,D168+J168) -> -630077641 | L168: =L85-L166 -> 304370933 | M168: =M85-M166 -> 546642336
A169: =head27a -> References
A170: 1. Insert 'Vote'; e.g. Department, if different to standard structure
A171: 2. Must reconcile to Financial Performance ('Revenue and Expenditure by Standard Classification' and 'Revenue and Expenditure')
A172: 3. Assign share in 'associate' to relevant Vote

Sheet B4-FinPerf RE
A1: =muni&" - "&_ADJ4&" - "&Date -> NW403 City Of Matlosana - Table B4 Adjustments Budget Financial Performance (revenue and expenditure) - 45811
A2: =desc -> Description | B2: =head27 -> Ref | C2: =Head2 -> Budget Year 2024/25 | L2: =Head10 -> Budget Year +1 2025/26 | M2: =Head11 -> Budget Year +2 2026/27
C3: =Head6 -> Original Budget | D3: =Head54 -> Prior Adjusted | E3: =Head51 -> Accum. Funds | F3: =Head52 -> Multi-year capital | G3: =Head53 -> Unfore. Unavoid. | H3: =Head55 -> Nat. or Prov. Govt | I3: =Head50 -> Other Adjusts. | J3: =Head56 -> Total Adjusts. | K3: =Head7 -> Adjusted Budget | L3: =Head7 -> Adjusted Budget | M3: =Head7 -> Adjusted Budget
D4: 3 | E4: 4 | F4: 5 | G4: 6 | H4: 7 | I4: 8 | J4: 9 | K4: 10
A5: R thousands | B5: 1 | C5: A | D5: A1 | E5: B | F5: C | G5: D | H5: E | I5: F | J5: G | K5: H
A6: Revenue By Source
A7: Exchange Revenue
A8: Service charges - Electricity | B8: 2 | C8: ='SB1'!C18 -> 1109135987 | D8: ='SB1'!D18 -> 0 | E8: ='SB1'!E18 -> 0 | F8: ='SB1'!F18 -> 0 | G8: ='SB1'!G18 -> 0 | H8: ='SB1'!H18 -> 0 | I8: ='SB1'!I18 -> -50000000 | J8: =SUM(E8:I8) -> -50000000 | K8: =IF(D8=0,C8+J8,D8+J8) -> 1059135987 | L8: ='SB1'!L18 -> 1160156248 | M8: ='SB1'!M18 -> 1213523436
A9: Service charges - Water | B9: 2 | C9: ='SB1'!C24 -> 845005452 | D9: ='SB1'!D24 -> 0 | E9: ='SB1'!E24 -> 0 | F9: ='SB1'!F24 -> 0 | G9: ='SB1'!G24 -> 0 | H9: ='SB1'!H24 -> 0 | I9: ='SB1'!I24 -> 0 | J9: 0 | K9: 845005452 | L9: ='SB1'!L24 -> 883875703 | M9: ='SB1'!M24 -> 924533985
A10: Service charges - Waste Water Management | B10: 2 | C10: ='SB1'!C30 -> 176453343 | D10: ='SB1'!D30 -> 0 | E10: ='SB1'!E30 -> 0 | F10: ='SB1'!F30 -> 0 | G10: ='SB1'!G30 -> 0 | H10: ='SB1'!H30 -> 0 | I10: ='SB1'!I30 -> 0 | J10: 0 | K10: 176453343 | L10: ='SB1'!L30 -> 184570199 | M10: ='SB1'!M30 -> 193060427
A11: Service charges - Waste Management | B11: 2 | C11: ='SB1'!C37 -> 219500000 | D11: ='SB1'!D37 -> 0 | E11: ='SB1'!E37 -> 0 | F11: ='SB1'!F37 -> 0 | G11: ='SB1'!G37 -> 0 | H11: ='SB1'!H37 -> 0 | I11: ='SB1'!I37 -> 0 | J11: 0 | K11: 219500000 | L11: ='SB1'!L37 -> 229597000 | M11: ='SB1'!M37 -> 240158462
A12: Sale of Goods and Rendering of Services | C12: 9805305 | D12: 0 | E12: 0 | F12: 0 | G12: 0 | H12: 0 | I12: 52064 | J12: 52064 | K12: 9857369 | L12: 10306758 | M12: 10780867
A13: Agency services | C13: 0 | D13: 0 | E13: 0 | F13: 0 | G13: 0 | H13: 0 | I13: 0 | J13: 0 | K13: 0 | L13: 0 | M13: 0
A14: Interest | J14: 0 | K14: 0
A15: Interest earned from Receivables | C15: 508204666 | D15: 0 | E15: 0 | F15: 0 | G15: 0 | H15: 0 | I15: 177925312 | J15: 177925312 | K15: 686129978 | L15: 509259076 | M15: 528764992
A16: Interest earned from Current and Non Current Assets | C16: 10239203 | D16: 0 | E16: 0 | F16: 0 | G16: 0 | H16: 0 | I16: 0 | J16: 0 | K16: 10239203 | L16: 0 | M16: 0
A17: Dividends | J17: 0 | K17: 0
A18: Rent on Land | J18: 0 | K18: 0
A19: Rental from Fixed Assets | C19: 9857011 | D19: 0 | E19: 0 | F19: 0 | G19: 0 | H19: 0 | I19: -71027 | J19: -71027 | K19: 9785984 | L19: 9889724 | M19: 10344652
A20: Licence and permits | C20: 7427464 | D20: 0 | E20: 0 | F20: 0 | G20: 0 | H20: 0 | I20: 300000 | J20: 300000 | K20: 7727464 | L20: 7769128 | M20: 8126509
A21: Operational Revenue | C21: 51084078 | D21: 0 | E21: 0 | F21: 0 | G21: 0 | H21: 0 | I21: 1262882 | J21: 1262882 | K21: 52346960 | L21: 54406729 | M21: 56909443
A22: Non-Exchange Revenue
A23: Property rates | B23: 2 | C23: ='SB1'!C11 -> 593684392 | D23: ='SB1'!D11 -> 0 | E23: ='SB1'!E11 -> 0 | F23: ='SB1'!F11 -> 0 | G23: ='SB1'!G11 -> 0 | H23: ='SB1'!H11 -> 0 | I23: ='SB1'!I11 -> -90000000 | J23: ='SB1'!J11 -> -90000000 | K23: ='SB1'!K11 -> 503684392 | L23: ='SB1'!L11 -> 616369951 | M23: ='SB1'!M11 -> 644722968
A24: Surcharges and Taxes | C24: 150000 | D24: 0 | E24: 0 | F24: 0 | G24: 0 | H24: 0 | I24: 0 | J24: =SUM(E24:I24) -> 0 | K24: =IF(D24=0,C24+J24,D24+J24) -> 150000 | L24: 156900 | M24: 164118
A25: Fines, penalties and forfeits | C25: 11710752 | D25: 0 | E25: 0 | F25: 0 | G25: 0 | H25: 0 | I25: 747896 | J25: =SUM(E25:I25) -> 747896 | K25: =IF(D25=0,C25+J25,D25+J25) -> 12458648 | L25: 12249448 | M25: 12812925
A26: Licences or permits | C26: 50000 | D26: 0 | E26: 0 | F26: 0 | G26: 0 | H26: 0 | I26: -50000 | J26: -50000 | K26: 0 | L26: 52300 | M26: 54706
A27: Transfer and subsidies - Operational | C27: 657797200 | D27: 0 | E27: 0 | F27: 0 | G27: 0 | H27: 0 | I27: 419000 | J27: 419000 | K27: 658216200 | L27: 698315000 | M27: 741650000
A28: Interest | C28: 54756000 | D28: 0 | E28: 0 | F28: 0 | G28: 0 | H28: 0 | I28: 0 | J28: 0 | K28: 54756000 | L28: 54756000 | M28: 54756000
A29: Fuel Levy | J29: 0 | K29: 0
A30: Operational Revenue | C30: 0 | D30: 0 | E30: 0 | F30: 0 | G30: 0 | H30: 0 | I30: 0 | J30: 0 | K30: 0 | L30: 0 | M30: 0
A31: Gains on disposal of Assets | C31: 0 | D31: 0 | E31: 0 | F31: 0 | G31: 0 | H31: 0 | I31: 0 | J31: 0 | K31: 0 | L31: 0 | M31: 0
A32: Other Gains | C32: 0 | D32: 0 | E32: 0 | F32: 0 | G32: 0 | H32: 0 | I32: 0 | J32: 0 | K32: 0 | L32: 0 | M32: 0
A33: Discontinued Operations | J33: =SUM(E33:I33) -> 0 | K33: =IF(D33=0,C33+J33,D33+J33) -> 0
A34: Total Revenue (excluding capital transfers and contributions) | C34: =SUM(C8:C33) -> 4264860853 | D34: =SUM(D8:D33) -> 0 | E34: 0 | F34: 0 | G34: 0 | H34: 0 | I34: 40586127 | J34: 40586127 | K34: 4305446980 | L34: 4431730164 | M34: 4640363490
A36: Expenditure By Type
A37: Employee related costs | C37: ='SB1'!C62 -> 794681905 | D37: ='SB1'!D62 -> 0 | E37: ='SB1'!E62 -> 0 | F37: ='SB1'!F62 -> 0 | G37: ='SB1'!G62 -> 0 | H37: ='SB1'!H62 -> 0 | I37: ='SB1'!I62 -> 21992024 | J37: =SUM(E37:I37) -> 21992024 | K37: =IF(D37=0,C37+J37,D37+J37) -> 816673929 | L37: ='SB1'!L62 -> 835809548 | M37: ='SB1'!M62 -> 874256784
A38: Remuneration of councillors | C38: 46107129 | D38: 0 | E38: 0 | F38: 0 | G38: 0 | H38: 0 | I38: 0 | J38: 0 | K38: 46107129 | L38: 48228064 | M38: 50446558
A39: Bulk purchases - electricity | C39: =+'SB1'!C83 -> 925000000 | D39: =+'SB1'!D83 -> 0 | E39: =+'SB1'!E83 -> 0 | F39: =+'SB1'!F83 -> 0 | G39: =+'SB1'!G83 -> 0 | H39: =+'SB1'!H83 -> 0 | I39: =+'SB1'!I83 -> 0 | J39: 0 | K39: 925000000 | L39: =+'SB1'!L83 -> 950000000 | M39: =+'SB1'!M83 -> 1025000000
A40: Inventory consumed | C40: ='SB1'!C136 -> 434300934 | D40: ='SB1'!D136 -> 0 | E40: ='SB1'!E136 -> 0 | F40: ='SB1'!F136 -> 0 | G40: ='SB1'!G136 -> 0 | H40: ='SB1'!H136 -> 0 | I40: ='SB1'!I136 -> 201611155 | J40: 201611155 | K40: 635912089 | L40: ='SB1'!L136 -> 557145740 | M40: ='SB1'!M136 -> 0
A41: Debt impairment | C41: 1030322710 | D41: 0 | E41: 0 | F41: 0 | G41: 0 | H41: 0 | I41: -1030322710 | J41: -1030322710 | K41: 0 | L41: 768642276 | M41: 482399891
A42: Depreciation and amortisation | C42: 411097601 | D42: 0 | E42: 0 | F42: 0 | G42: 0 | H42: 0 | I42: -10000000 | J42: =SUM(E42:I42) -> -10000000 | K42: =IF(D42=0,C42+J42,D42+J42) -> 401097601 | L42: 456158103 | M42: 477141378
A43: Interest | C43: 10144245 | D43: 0 | E43: 0 | F43: 0 | G43: 0 | H43: 0 | I43: 0 | J43: =SUM(E43:I43) -> 0 | K43: =IF(D43=0,C43+J43,D43+J43) -> 10144245 | L43: 10610895 | M43: 11098993
A44: Contracted services | C44: ='SB1'!C94 -> 363507814 | D44: ='SB1'!D94 -> 0 | E44: ='SB1'!E94 -> 0 | F44: ='SB1'!F94 -> 0 | G44: ='SB1'!G94 -> 0 | H44: ='SB1'!H94 -> 0 | I44: ='SB1'!I94 -> 94232784 | J44: 94232784 | K44: 457740598 | L44: ='SB1'!L94 -> 432877406 | M44: ='SB1'!M94 -> 454322741
A45: Transfers and subsidies | J45: 0 | K45: 0
A46: Irrecoverable debts written off | C46: 0 | D46: 0 | E46: 0 | F46: 0 | G46: 0 | H46: 0 | I46: 1617759601 | J46: =SUM(E46:I46) -> 1617759601 | K46: =IF(D46=0,C46+J46,D46+J46) -> 1617759601 | L46: 0 | M46: 0
A47: Operational costs | C47: 247478466 | D47: 0 | E47: 0 | F47: 0 | G47: 0 | H47: 0 | I47: 3050000 | J47: =SUM(E47:I47) -> 3050000 | K47: =IF(D47=0,C47+J47,D47+J47) -> 250528466 | L47: 264841362 | M47: 277196069
A48: Losses on disposal of Assets | C48: 0 | D48: 0 | E48: 0 | F48: 0 | G48: 0 | H48: 0 | I48: 0 | J48: =SUM(E48:I48) -> 0 | K48: =IF(D48=0,C48+J48,D48+J48) -> 0 | L48: 0 | M48: 0
A49: Other Losses | C49: 0 | D49: 0 | E49: 0 | F49: 0 | G49: 0 | H49: 0 | I49: 0 | J49: =SUM(E49:I49) -> 0 | K49: =IF(D49=0,C49+J49,D49+J49) -> 0 | L49: 0 | M49: 0
A50: Total Expenditure | C50: =SUM(C37:C49) -> 4262640804 | D50: 0 | E50: 0 | F50: 0 | G50: 0 | H50: 0 | I50: 898322854 | J50: 898322854 | K50: 5160963658 | L50: 4324313394 | M50: 3651862414
A52: Surplus/(Deficit) | C52: =C34-C50 -> 2220049 | D52: 0 | E52: 0 | F52: 0 | G52: 0 | H52: 0 | I52: -857736727 | J52: -857736727 | K52: -855516678 | L52: 107416770 | M52: 988501076
A53: Transfers and subsidies - capital (monetary allocations) | C53: 186249799 | D53: 0 | E53: 0 | F53: 0 | G53: 0 | H53: 0 | I53: -138000 | J53: =SUM(E53:I53) -> -138000 | K53: =IF(D53=0,C53+J53,D53+J53) -> 186111799 | L53: 197524000 | M53: 225287000
A54: Transfers and subsidies - capital (in-kind - all) | J54: =SUM(E54:I54) -> 0 | K54: =IF(D54=0,C54+J54,D54+J54) -> 0
A55: Surplus/(Deficit) before taxation | C55: =SUM(C52:C54) -> 188469848 | D55: 0 | E55: 0 | F55: 0 | G55: 0 | H55: 0 | I55: -857874727 | J55: -857874727 | K55: -669404879 | L55: 304940770 | M55: 1213788076
A56: Income Tax | J56: =SUM(E56:I56) -> 0 | K56: =IF(D56=0,C56+J56,D56+J56) -> 0
A57: Surplus/(Deficit) after taxation | C57: =C55-C56 -> 188469848 | D57: 0 | E57: 0 | F57: 0 | G57: 0 | H57: 0 | I57: -857874727 | J57: -857874727 | K57: -669404879 | L57: 304940770 | M57: 1213788076
A58: Share of Surplus/Deficit attributable to Joint Venture
A59: Share of Surplus/Deficit attributable to Minorities | J59: =SUM(E59:I59) -> 0 | K59: =IF(D59=0,C59+J59,D59+J59) -> 0
A60: Surplus/(Deficit) attributable to municipality | C60: =SUM(C57:C59) -> 188469848 | D60: 0 | E60: 0 | F60: 0 | G60: 0 | H60: 0 | I60: -857874727 | J60: -857874727 | K60: -669404879 | L60: 304940770 | M60: 1213788076
A61: Share of Surplus/Deficit attributable to Associate | J61: =SUM(E61:I61) -> 0 | K61: =IF(D61=0,C61+J61,D61+J61) -> 0
A62: Intercompany/Parent subsidiary transactions | J62: =SUM(E62:I62) -> 0 | K62: =IF(D62=0,C62+J62,D62+J62) -> 0
A63: Surplus/ (Deficit) for the year | B63: 1 | C63: =SUM(C60:C62) -> 188469848 | D63: =D60+D62 -> 0 | E63: 0 | F63: =SUM(F60:F62) -> 0 | G63: =SUM(G60:G62) -> 0 | H63: 0 | I63: -857874727 | J63: -857874727 | K63: -669404879 | L63: 304940770 | M63: 1213788076
A64: =head27a -> References
A65: 1. Classifications are revenue sources and expenditure type
A66: 2. Detail to be provided in Table SB1
A67: 3. Only complete if a previous adjusted budget has been approved in the same financial year. Reflect most recent adjusted budget.
A68: 4. Additional cash-backed accumulated funds/unspent funds (MFMA section 18(1)(b) and section 28(2)(e)) identified after the Original Budget approved and after annual financial statements audited (note: only where underspending could not reasonably have been foreseen)
A69: 5. Increases of funds approved under MFMA section 31
A70: 6. Adjustments approved in accordance with MFMA section 29
A71: 7. Adjustments to transfers from National or Provincial Government
A72: 8. Adjusts. = 'Other' Adjustments proposed to be approved; including revenue under-collection (MFMA section 28(2)(a)); additional revenue appropriation on existing programmes (section 28(2))(b); projected savings (section 28(2)(d)); error correction (section 28(2)(f))
A73: 9. G = B + C + D + E + F
A74: 10. Adjusted Budget H = (A or A1/2 etc) + G

Sheet B5-Capex
A1: =muni&" - "&_ADJ5&" - "&Date -> NW403 City Of Matlosana - Table B5 Adjustments Capital Expenditure Budget by vote and funding - 45811
A2: =desc -> Description | B2: =head27 -> Ref | C2: =Head2 -> Budget Year 2024/25 | L2: =Head10 -> Budget Year +1 2025/26 | M2: =Head11 -> Budget Year +2 2026/27
C3: =Head6 -> Original Budget | D3: =Head54 -> Prior Adjusted | E3: =Head51 -> Accum. Funds | F3: =Head52 -> Multi-year capital | G3: =Head53 -> Unfore. Unavoid. | H3: =Head55 -> Nat. or Prov. Govt | I3: =Head50 -> Other Adjusts. | J3: =Head56 -> Total Adjusts. | K3: =Head7 -> Adjusted Budget | L3: =Head7 -> Adjusted Budget | M3: =Head7 -> Adjusted Budget
D4: 5 | E4: 6 | F4: 7 | G4: 8 | H4: 9 | I4: 10 | J4: 11 | K4: 12
A5: R thousands | C5: A | D5: A1 | E5: B | F5: C | G5: D | H5: E | I5: F | J5: G | K5: H
A6: Capital expenditure - Vote
A7: Multi-year expenditure to be adjusted | B7: 2
A8: =B5B!A8 -> Vote 01 - Public Safety | C8: =B5B!C8 -> 0 | D8: =B5B!D8 -> 0 | E8: =B5B!E8 -> 0 | F8: =B5B!F8 -> 0 | G8: =B5B!G8 -> 0 | H8: =B5B!H8 -> 0 | I8: =B5B!I8 -> 0 | J8: =B5B!J8 -> 0 | K8: =B5B!K8 -> 0 | L8: =B5B!L8 -> 0 | M8: =B5B!M8 -> 0
A9: =B5B!A9 -> Vote 02 - Health Services | C9: =B5B!C9 -> 0 | D9: =B5B!D9 -> 0 | E9: =B5B!E9 -> 0 | F9: =B5B!F9 -> 0 | G9: =B5B!G9 -> 0 | H9: =B5B!H9 -> 0 | I9: =B5B!I9 -> 0 | J9: =B5B!J9 -> 0 | K9: =B5B!K9 -> 0 | L9: =B5B!L9 -> 0 | M9: =B5B!M9 -> 0
A10: =B5B!A10 -> Vote 03 - Community Services | C10: =B5B!C10 -> 0 | D10: =B5B!D10 -> 0 | E10: =B5B!E10 -> 0 | F10: =B5B!F10 -> 0 | G10: =B5B!G10 -> 0 | H10: =B5B!H10 -> 0 | I10: =B5B!I10 -> 0 | J10: =B5B!J10 -> 0 | K10: =B5B!K10 -> 0 | L10: =B5B!L10 -> 0 | M10: =B5B!M10 -> 0
A11: =B5B!A11 -> Vote 04 - Housing | C11: =B5B!C11 -> 0 | D11: =B5B!D11 -> 0 | E11: =B5B!E11 -> 0 | F11: =B5B!F11 -> 0 | G11: =B5B!G11 -> 0 | H11: =B5B!H11 -> 0 | I11: =B5B!I11 -> 0 | J11: =B5B!J11 -> 0 | K11: =B5B!K11 -> 0 | L11: =B5B!L11 -> 0 | M11: =B5B!M11 -> 0
A12: =B5B!A12 -> Vote 05 - Sport Arts And Culture | C12: =B5B!C12 -> 0 | D12: =B5B!D12 -> 0 | E12: =B5B!E12 -> 0 | F12: =B5B!F12 -> 5000000 | G12: =B5B!G12 -> 0 | H12: =B5B!H12 -> 0 | I12: =B5B!I12 -> -5000000 | J12: =B5B!J12 -> 0 | K12: =B5B!K12 -> 0 | L12: =B5B!L12 -> 0 | M12: =B5B!M12 -> 0
A13: =B5B!A14 -> Vote 06 - Council General | C13: =B5B!C14 -> 0 | D13: =B5B!D14 -> 0 | E13: =B5B!E14 -> 0 | F13: =B5B!F14 -> 0 | G13: =B5B!G14 -> 0 | H13: =B5B!H14 -> 0 | I13: =B5B!I14 -> 0 | J13: =B5B!J14 -> 0 | K13: =B5B!K14 -> 0 | L13: =B5B!L14 -> 0 | M13: =B5B!M14 -> 0
A14: =B5B!A15 -> Vote 07 - Civil Engineering | C14: =B5B!C15 -> 12801949 | D14: =B5B!D15 -> 0 | E14: =B5B!E15 -> 0 | F14: =B5B!F15 -> 6927737 | G14: =B5B!G15 -> 0 | H14: =B5B!H15 -> 0 | I14: =B5B!I15 -> 21996733 | J14: =B5B!J15 -> 28924470 | K14: =B5B!K15 -> 41726419 | L14: =B5B!L15 -> 15730798 | M14: =B5B!M15 -> 39608740
A15: =B5B!A17 -> Vote 08 - Water Section | C15: =B5B!C17 -> 10467749 | D15: =B5B!D17 -> 0 | E15: =B5B!E17 -> 0 | F15: =B5B!F17 -> 0 | G15: =B5B!G17 -> 0 | H15: =B5B!H17 -> 0 | I15: =B5B!I17 -> 6607217 | J15: =B5B!J17 -> 6607217 | K15: =B5B!K17 -> 17074966 | L15: =B5B!L17 -> 11270449 | M15: =B5B!M17 -> 28145197
A16: =B5B!A19 -> Vote 09 - City Electrial Engineering | C16: =B5B!C19 -> 5112652 | D16: =B5B!D19 -> 0 | E16: =B5B!E19 -> 0 | F16: =B5B!F19 -> 0 | G16: =B5B!G19 -> 0 | H16: =B5B!H19 -> 0 | I16: =B5B!I19 -> 17413233 | J16: =B5B!J19 -> 17413233 | K16: =B5B!K19 -> 22525885 | L16: =B5B!L19 -> 12918203 | M16: =B5B!M19 -> 14877305
A17: =B5B!A21 -> Vote 10 - Corporate Governane | C17: =B5B!C21 -> 0 | D17: =B5B!D21 -> 0 | E17: =B5B!E21 -> 0 | F17: =B5B!F21 -> 0 | G17: =B5B!G21 -> 0 | H17: =B5B!H21 -> 0 | I17: =B5B!I21 -> 0 | J17: =B5B!J21 -> 0 | K17: =B5B!K21 -> 0 | L17: =B5B!L21 -> 0 | M17: =B5B!M21 -> 0
A18: =B5B!A22 -> Vote 11 - Budget And Treasury Office | C18: =B5B!C22 -> 0 | D18: =B5B!D22 -> 0 | E18: =B5B!E22 -> 0 | F18: =B5B!F22 -> 0 | G18: =B5B!G22 -> 0 | H18: =B5B!H22 -> 0 | I18: =B5B!I22 -> 0 | J18: =B5B!J22 -> 0 | K18: =B5B!K22 -> 0 | L18: =B5B!L22 -> 0 | M18: =B5B!M22 -> 0
A19: =B5B!A23 -> Vote 12 - Cleansing | C19: =B5B!C23 -> 0 | D19: =B5B!D23 -> 0 | E19: =B5B!E23 -> 0 | F19: =B5B!F23 -> 0 | G19: =B5B!G23 -> 0 | H19: =B5B!H23 -> 0 | I19: =B5B!I23 -> 0 | J19: =B5B!J23 -> 0 | K19: =B5B!K23 -> 0 | L19: =B5B!L23 -> 0 | M19: =B5B!M23 -> 0
A20: =B5B!A24 -> Vote 13 - Sewerage | C20: =B5B!C24 -> 0 | D20: =B5B!D24 -> 0 | E20: =B5B!E24 -> 0 | F20: =B5B!F24 -> 0 | G20: =B5B!G24 -> 0 | H20: =B5B!H24 -> 0 | I20: =B5B!I24 -> 0 | J20: =B5B!J24 -> 0 | K20: =B5B!K24 -> 0 | L20: =B5B!L24 -> 0 | M20: =B5B!M24 -> 0
A21: =B5B!A26 -> Vote 14 - Market | C21: =B5B!C26 -> 0 | D21: =B5B!D26 -> 0 | E21: =B5B!E26 -> 0 | F21: =B5B!F26 -> 0 | G21: =B5B!G26 -> 0 | H21: =B5B!H26 -> 0 | I21: =B5B!I26 -> 0 | J21: =B5B!J26 -> 0 | K21: =B5B!K26 -> 0 | L21: =B5B!L26 -> 0 | M21: =B5B!M26 -> 0
A22: =B5B!A27 -> Vote 15 - Other | C22: =B5B!C27 -> 0 | D22: =B5B!D27 -> 0 | E22: =B5B!E27 -> 0 | F22: =B5B!F27 -> 0 | G22: =B5B!G27 -> 0 | H22: =B5B!H27 -> 0 | I22: =B5B!I27 -> 0 | J22: =B5B!J27 -> 0 | K22: =B5B!K27 -> 0 | L22: =B5B!L27 -> 0 | M22: =B5B!M27 -> 0
A23: Capital multi-year expenditure sub-total | B23: 3 | C23: =SUM(C8:C22) -> 28382350 | D23: =SUM(D8:D22) -> 0 | E23: 0 | F23: 11927737 | G23: 0 | H23: 0 | I23: 41017183 | J23: =SUM(J8:J22) -> 52944920 | K23: =SUM(K8:K22) -> 81327270 | L23: =SUM(L8:L22) -> 39919450 | M23: =SUM(M8:M22) -> 82631242
A25: Single-year expenditure to be adjusted | B25: 2
A26: =B5B!A32 -> Vote 01 - Public Safety | C26: =B5B!C32 -> 0 | D26: =B5B!D32 -> 0 | E26: =B5B!E32 -> 0 | F26: =B5B!F32 -> 0 | G26: =B5B!G32 -> 0 | H26: =B5B!H32 -> 0 | I26: =B5B!I32 -> 0 | J26: =B5B!J32 -> 0 | K26: =B5B!K32 -> 0 | L26: =B5B!L32 -> 0 | M26: =B5B!M32 -> 0
A27: =B5B!A33 -> Vote 02 - Health Services | C27: =B5B!C33 -> 0 | D27: =B5B!D33 -> 0 | E27: =B5B!E33 -> 0 | F27: =B5B!F33 -> 0 | G27: =B5B!G33 -> 0 | H27: =B5B!H33 -> 0 | I27: =B5B!I33 -> 0 | J27: =B5B!J33 -> 0 | K27: =B5B!K33 -> 0 | L27: =B5B!L33 -> 0 | M27: =B5B!M33 -> 0
A28: =B5B!A34 -> Vote 03 - Community Services | C28: =B5B!C34 -> 0 | D28: =B5B!D34 -> 0 | E28: =B5B!E34 -> 0 | F28: =B5B!F34 -> 0 | G28: =B5B!G34 -> 0 | H28: =B5B!H34 -> 0 | I28: =B5B!I34 -> 0 | J28: =B5B!J34 -> 0 | K28: =B5B!K34 -> 0 | L28: =B5B!L34 -> 0 | M28: =B5B!M34 -> 0
A29: =B5B!A35 -> Vote 04 - Housing | C29: =B5B!C35 -> 0 | D29: =B5B!D35 -> 0 | E29: =B5B!E35 -> 0 | F29: =B5B!F35 -> 0 | G29: =B5B!G35 -> 0 | H29: =B5B!H35 -> 0 | I29: =B5B!I35 -> 0 | J29: =B5B!J35 -> 0 | K29: =B5B!K35 -> 0 | L29: =B5B!L35 -> 0 | M29: =B5B!M35 -> 0
A30: =B5B!A36 -> Vote 05 - Sport Arts And Culture | C30: =B5B!C36 -> 15093585 | D30: =B5B!D36 -> 0 | E30: =B5B!E36 -> 0 | F30: =B5B!F36 -> -5000000 | G30: =B5B!G36 -> 0 | H30: =B5B!H36 -> 0 | I30: =B5B!I36 -> -3717506 | J30: =B5B!J36 -> -8717506 | K30: =B5B!K36 -> 6376079 | L30: =B5B!L36 -> 20604550 | M30: =B5B!M36 -> 0
A31: =B5B!A38 -> Vote 06 - Council General | C31: =B5B!C38 -> 47000000 | D31: =B5B!D38 -> 0 | E31: =B5B!E38 -> 0 | F31: =B5B!F38 -> 0 | G31: =B5B!G38 -> 0 | H31: =B5B!H38 -> 0 | I31: =B5B!I38 -> -18000000 | J31: =B5B!J38 -> -18000000 | K31: =B5B!K38 -> 29000000 | L31: =B5B!L38 -> 0 | M31: =B5B!M38 -> 0
A32: =B5B!A40 -> Vote 07 - Civil Engineering | C32: =B5B!C40 -> 0 | D32: =B5B!D40 -> 0 | E32: =B5B!E40 -> 0 | F32: =B5B!F40 -> 0 | G32: =B5B!G40 -> 0 | H32: =B5B!H40 -> 0 | I32: =B5B!I40 -> 0 | J32: =B5B!J40 -> 0 | K32: =B5B!K40 -> 0 | L32: =B5B!L40 -> 0 | M32: =B5B!M40 -> 0
A33: =B5B!A41 -> Vote 08 - Water Section | C33: =B5B!C41 -> 25000000 | D33: =B5B!D41 -> 0 | E33: =B5B!E41 -> 0 | F33: =B5B!F41 -> 0 | G33: =B5B!G41 -> 0 | H33: =B5B!H41 -> 0 | I33: =B5B!I41 -> 0 | J33: =B5B!J41 -> 0 | K33: =B5B!K41 -> 25000000 | L33: =B5B!L41 -> 0 | M33: =B5B!M41 -> 24952106
A34: =B5B!A43 -> Vote 09 - City Electrial Engineering | C34: =B5B!C43 -> 0 | D34: =B5B!D43 -> 0 | E34: =B5B!E43 -> 0 | F34: =B5B!F43 -> 0 | G34: =B5B!G43 -> 0 | H34: =B5B!H43 -> 0 | I34: =B5B!I43 -> 0 | J34: =B5B!J43 -> 0 | K34: =B5B!K43 -> 0 | L34: =B5B!L43 -> 0 | M34: =B5B!M43 -> 0
A35: =B5B!A45 -> Vote 10 - Corporate Governane | C35: =B5B!C45 -> 0 | D35: =B5B!D45 -> 0 | E35: =B5B!E45 -> 0 | F35: =B5B!F45 -> 0 | G35: =B5B!G45 -> 0 | H35: =B5B!H45 -> 0 | I35: =B5B!I45 -> 0 | J35: =B5B!J45 -> 0 | K35: =B5B!K45 -> 0 | L35: =B5B!L45 -> 0 | M35: =B5B!M45 -> 0
A36: =B5B!A46 -> Vote 11 - Budget And Treasury Office | C36: =B5B!C46 -> 3000000 | D36: =B5B!D46 -> 0 | E36: =B5B!E46 -> 0 | F36: =B5B!F46 -> 0 | G36: =B5B!G46 -> 0 | H36: =B5B!H46 -> 0 | I36: =B5B!I46 -> 0 | J36: =B5B!J46 -> 0 | K36: =B5B!K46 -> 3000000 | L36: =B5B!L46 -> 0 | M36: =B5B!M46 -> 0
A37: =B5B!A48 -> Vote 12 - Cleansing | C37: =B5B!C48 -> 38773866 | D37: =B5B!D48 -> 0 | E37: =B5B!E48 -> 0 | F37: =B5B!F48 -> 0 | G37: =B5B!G48 -> 0 | H37: =B5B!H48 -> 0 | I37: =B5B!I48 -> -10854074 | J37: =B5B!J48 -> -10854074 | K37: =B5B!K48 -> 27919792 | L37: =B5B!L48 -> 29000000 | M37: =B5B!M48 -> 0
A38: =B5B!A51 -> Vote 13 - Sewerage | C38: =B5B!C51 -> 74012454 | D38: =B5B!D51 -> 0 | E38: =B5B!E51 -> 0 | F38: =B5B!F51 -> -6927737 | G38: =B5B!G51 -> 0 | H38: =B5B!H51 -> 0 | I38: =B5B!I51 -> -6661391 | J38: =B5B!J51 -> -13589128 | K38: =B5B!K51 -> 60423326 | L38: =B5B!L51 -> 98000000 | M38: =B5B!M51 -> 117703651
A39: =B5B!A53 -> Vote 14 - Market | C39: =B5B!C53 -> 4987544 | D39: =B5B!D53 -> 0 | E39: =B5B!E53 -> 0 | F39: =B5B!F53 -> 0 | G39: =B5B!G53 -> 0 | H39: =B5B!H53 -> 0 | I39: =B5B!I53 -> -2508978 | J39: =B5B!J53 -> -2508978 | K39: =B5B!K53 -> 2478566 | L39: =B5B!L53 -> 10000000 | M39: =B5B!M53 -> 0
A40: =B5B!A55 -> Vote 15 - Other | C40: =B5B!C55 -> 0 | D40: =B5B!D55 -> 0 | E40: =B5B!E55 -> 0 | F40: =B5B!F55 -> 0 | G40: =B5B!G55 -> 0 | H40: =B5B!H55 -> 0 | I40: =B5B!I55 -> 0 | J40: =B5B!J55 -> 0 | K40: =B5B!K55 -> 0 | L40: =B5B!L55 -> 0 | M40: =B5B!M55 -> 0
A41: Capital single-year expenditure sub-total | C41: =SUM(C26:C40) -> 207867449 | D41: =SUM(D26:D40) -> 0 | E41: 0 | F41: -11927737 | G41: 0 | H41: 0 | I41: -41741949 | J41: =SUM(J26:J40) -> -53669686 | K41: =SUM(K26:K40) -> 154197763 | L41: =SUM(L26:L40) -> 157604550 | M41: =SUM(M26:M40) -> 142655757
A42: Total Capital Expenditure - Vote | C42: =C41+C23 -> 236249799 | D42: =D41+D23 -> 0 | E42: 0 | F42: 0 | G42: 0 | H42: 0 | I42: -724766 | J42: =J23+J41 -> -724766 | K42: =K23+K41 -> 235525033 | L42: =L41+L23 -> 197524000 | M42: =M41+M23 -> 225286999
A44: Capital Expenditure - Functional
A45: Governance and administration | C45: =SUM(C46:C48) -> 50000000 | D45: 0 | E45: 0 | F45: 0 | G45: 0 | H45: 0 | I45: -18000000 | J45: =SUM(J46:J48) -> -18000000 | K45: 32000000 | L45: 0 | M45: 0
A46: Executive and council | C46: 47000000 | D46: 0 | E46: 0 | F46: 0 | G46: 0 | H46: 0 | I46: -18000000 | J46: =SUM(E46:I46) -> -18000000 | K46: =IF(D46=0,C46+J46,D46+J46) -> 29000000 | L46: 0 | M46: 0
A47: Finance and administration | C47: 3000000 | D47: 0 | E47: 0 | F47: 0 | G47: 0 | H47: 0 | I47: 0 | J47: =SUM(E47:I47) -> 0 | K47: =IF(D47=0,C47+J47,D47+J47) -> 3000000 | L47: 0 | M47: 0
A48: Internal audit | J48: =SUM(E48:I48) -> 0 | K48: =IF(D48=0,C48+J48,D48+J48) -> 0
A49: Community and public safety | C49: =SUM(C50:C54) -> 15093585 | D49: 0 | E49: 0 | F49: 0 | G49: 0 | H49: 0 | I49: -8717506 | J49: =SUM(J50:J54) -> -8717506 | K49: 6376079 | L49: 20604550 | M49: 0
A50: Community and social services | C50: 0 | D50: 0 | E50: 0 | F50: 0 | G50: 0 | H50: 0 | I50: 0 | J50: =SUM(E50:I50) -> 0 | K50: =IF(D50=0,C50+J50,D50+J50) -> 0 | L50: 0 | M50: 0
A51: Sport and recreation | C51: 15093585 | D51: 0 | E51: 0 | F51: 0 | G51: 0 | H51: 0 | I51: -8717506 | J51: =SUM(E51:I51) -> -8717506 | K51: =IF(D51=0,C51+J51,D51+J51) -> 6376079 | L51: 20604550 | M51: 0
A52: Public safety | C52: 0 | D52: 0 | E52: 0 | F52: 0 | G52: 0 | H52: 0 | I52: 0 | J52: =SUM(E52:I52) -> 0 | K52: =IF(D52=0,C52+J52,D52+J52) -> 0 | L52: 0 | M52: 0
A53: Housing | C53: 0 | D53: 0 | E53: 0 | F53: 0 | G53: 0 | H53: 0 | I53: 0 | J53: =SUM(E53:I53) -> 0 | K53: =IF(D53=0,C53+J53,D53+J53) -> 0 | L53: 0 | M53: 0
A54: Health | J54: =SUM(E54:I54) -> 0 | K54: =IF(D54=0,C54+J54,D54+J54) -> 0
A55: Economic and environmental services | C55: =SUM(C56:C58) -> 12801949 | D55: 0 | E55: 0 | F55: 6927737 | G55: 0 | H55: 0 | I55: 21996733 | J55: 28924470 | K55: 41726419 | L55: 15730798 | M55: 39608740
A56: Planning and development | J56: =SUM(E56:I56) -> 0 | K56: =IF(D56=0,C56+J56,D56+J56) -> 0
A57: Road transport | C57: 12801949 | D57: 0 | E57: 0 | F57: 6927737 | G57: 0 | H57: 0 | I57: 21996733 | J57: =SUM(E57:I57) -> 28924470 | K57: =IF(D57=0,C57+J57,D57+J57) -> 41726419 | L57: 15730798 | M57: 39608740
A58: Environmental protection | J58: =SUM(E58:I58) -> 0 | K58: =IF(D58=0,C58+J58,D58+J58) -> 0
A59: Trading services | C59: =SUM(C60:C63) -> 153366721 | D59: =SUM(D60:D63) -> 0 | E59: 0 | F59: -6927737 | G59: 0 | H59: 0 | I59: =SUM(I60:I63) -> 6504985 | J59: =SUM(J60:J63) -> -422752 | K59: 152943969 | L59: 151188652 | M59: 185678259
A60: Energy sources | C60: 5112652 | D60: 0 | E60: 0 | F60: 0 | G60: 0 | H60: 0 | I60: 17413233 | J60: =SUM(E60:I60) -> 17413233 | K60: =IF(D60=0,C60+J60,D60+J60) -> 22525885 | L60: 12918203 | M60: 14877305
A61: Water management | C61: 35467749 | D61: 0 | E61: 0 | F61: 0 | G61: 0 | H61: 0 | I61: 6607217 | J61: =SUM(E61:I61) -> 6607217 | K61: =IF(D61=0,C61+J61,D61+J61) -> 42074966 | L61: 11270449 | M61: 53097303
A62: Waste water management | C62: 74012454 | D62: 0 | E62: 0 | F62: -6927737 | G62: 0 | H62: 0 | I62: -6661391 | J62: =SUM(E62:I62) -> -13589128 | K62: =IF(D62=0,C62+J62,D62+J62) -> 60423326 | L62: 98000000 | M62: 117703651
A63: Waste management | C63: 38773866 | D63: 0 | E63: 0 | F63: 0 | G63: 0 | H63: 0 | I63: -10854074 | J63: =SUM(E63:I63) -> -10854074 | K63: =IF(D63=0,C63+J63,D63+J63) -> 27919792 | L63: 29000000 | M63: 0
A64: Other | C64: 4987544 | D64: 0 | E64: 0 | F64: 0 | G64: 0 | H64: 0 | I64: -2508978 | J64: =SUM(E64:I64) -> -2508978 | K64: =IF(D64=0,C64+J64,D64+J64) -> 2478566 | L64: 10000000 | M64: 0
A65: Total Capital Expenditure - Functional | B65: 3 | C65: =C45+C49+C55+C59+C64 -> 236249799 | D65: =D45+D49+D55+D59+D64 -> 0 | E65: 0 | F65: 0 | G65: 0 | H65: 0 | I65: =I45+I49+I55+I59+I64 -> -724766 | J65: -724766 | K65: 235525033 | L65: 197524000 | M65: 225286999
A67: Funded by:
A68: National Government | C68: 186249799 | D68: 0 | E68: 0 | F68: 0 | G68: 0 | H68: 0 | I68: -137999 | J68: =SUM(E68:I68) -> -137999 | K68: =IF(D68=0,C68+J68,D68+J68) -> 186111800 | L68: 197524000 | M68: 225286999
A69: Provincial Government | C69: 0 | D69: 0 | E69: 0 | F69: 0 | G69: 0 | H69: 0 | I69: 0 | J69: =SUM(E69:I69) -> 0 | K69: =IF(D69=0,C69+J69,D69+J69) -> 0 | L69: 0 | M69: 0
A70: District Municipality | J70: =SUM(E70:I70) -> 0 | K70: =IF(D70=0,C70+J70,D70+J70) -> 0
A71: Transfers and subsidies - capital (monetary allocations) (Nat / Prov Departm Agencies, Households, Non-profit Institutions, Private Enterprises, Public Corporatons, Higher Educ Institutions) | C71: 0 | D71: 0 | E71: 0 | F71: 0 | G71: 0 | H71: 0 | I71: 0 | J71: =SUM(E71:I71) -> 0 | K71: =IF(D71=0,C71+J71,D71+J71) -> 0 | L71: 0 | M71: 0
A72: Transfers recognised - capital | B72: 4 | C72: =SUM(C68:C71) -> 186249799 | D72: 0 | E72: 0 | F72: 0 | G72: 0 | H72: 0 | I72: -137999 | J72: -137999 | K72: 186111800 | L72: 197524000 | M72: 225286999
A74: Borrowing | C74: 0 | D74: 0 | E74: 0 | F74: 0 | G74: 0 | H74: 0 | I74: 0 | J74: =SUM(E74:I74) -> 0 | K74: =IF(D74=0,C74+J74,D74+J74) -> 0 | L74: 0 | M74: 0
A75: Internally generated funds | C75: 50000000 | D75: 0 | E75: 0 | F75: 0 | G75: 0 | H75: 0 | I75: -586767 | J75: =SUM(E75:I75) -> -586767 | K75: =IF(D75=0,C75+J75,D75+J75) -> 49413233 | L75: 0 | M75: 0
A76: Total Capital Funding | C76: =+C72+C74+C75 -> 236249799 | D76: =+D72+D74+D75 -> 0 | E76: 0 | F76: 0 | G76: 0 | H76: 0 | I76: -724766 | J76: -724766 | K76: 235525033 | L76: 197524000 | M76: 225286999
A77: =head27a -> References
A78: 1. Municipalities may choose to appropriate for capital expenditure for three years or for one year (if one year appropriation projected expenditure required for yr2 and yr3).
A79: 2. Include capital component of PPP unitary payment. Note that capital transfers are only appropriated to municipalities for the budget year
A80: 3. Capital expenditure by standard classification must reconcile to the appropriations by vote
A81: 4. Must reconcile to supporting table SB7 and to Adjustments Budget Financial Performance (revenue and expenditure)
A82: 5. Only complete if a previous adjusted budget has been approved in the same financial year. Reflect most recent adjusted budget.
A83: 6. Additional cash-backed accumulated funds/unspent funds (MFMA section 18(1)(b) and section 28(2)(e)) identified after the Original Budget approved and after annual financial statements audited (note: only where underspending could not reasonably have been foreseen)
A84: 7. Increases of funds approved under MFMA section 31
A85: 8. Adjustments approved in accordance with MFMA section 29
A86: 9. Adjustments to transfers from National or Provincial Government
A87: 10. Adjusts. = 'Other' Adjustments proposed to be approved; including revenue under-collection (MFMA section 28(2)(a)); additional revenue appropriation on existing programmes (section 28(2))(b); projected savings (section 28(2)(d)); error correction (section 28(2)(f))
A88: 11. G = B + C + D + E + F
A89: 12. Adjusted Budget H = (A or A1/2 etc) + G
A91: check balance | C91: =C65-C76 -> 0 | D91: =D65-D76 -> 0 | E91: =E65-E76 -> 0 | H91: =H65-H76 -> 0 | I91: =I65-I76 -> 0 | J91: =J65-J76 -> 0 | K91: =K65-K76 -> 0 | L91: =L65-L76 -> 0 | M91: =K23-K76 -> -154197763

Sheet B5B
A1: =muni&" - "&_ADJ5&" - B"&" - "&Date -> NW403 City Of Matlosana - Table B5 Adjustments Capital Expenditure Budget by vote and funding - B - 45811
A2: =Vdesc -> Vote Description | B2: =head27 -> Ref | C2: =Head2 -> Budget Year 2024/25 | L2: =Head10 -> Budget Year +1 2025/26 | M2: =Head11 -> Budget Year +2 2026/27
C3: =Head6 -> Original Budget | D3: =Head54 -> Prior Adjusted | E3: =Head51 -> Accum. Funds | F3: =Head52 -> Multi-year capital | G3: =Head53 -> Unfore. Unavoid. | H3: =Head55 -> Nat. or Prov. Govt | I3: =Head50 -> Other Adjusts. | J3: =Head56 -> Total Adjusts. | K3: =Head7 -> Adjusted Budget | L3: =Head7 -> Adjusted Budget | M3: =Head7 -> Adjusted Budget
A4: [Insert departmental structure etc] | D4: 3 | E4: 4 | F4: 5 | G4: 6 | H4: 7 | I4: 8 | J4: 9 | K4: 10
A5: R thousands | C5: A | D5: A1 | E5: B | F5: C | G5: D | H5: E | I5: F | J5: G | K5: H
A6: Capital expenditure - Municipal Vote
A7: Multi-year expenditure appropriation | B7: 2
A8: ='Org structure'!A2 -> Vote 01 - Public Safety | C8: 0 | D8: 0 | E8: 0 | F8: 0 | G8: 0 | H8: 0 | I8: 0 | J8: =SUM(E8:I8) -> 0 | K8: =IF(D8=0,C8+J8,D8+J8) -> 0 | L8: 0 | M8: 0
A9: ='Org structure'!A3 -> Vote 02 - Health Services | C9: 0 | D9: 0 | E9: 0 | F9: 0 | G9: 0 | H9: 0 | I9: 0 | J9: 0 | K9: 0 | L9: 0 | M9: 0
A10: ='Org structure'!A4 -> Vote 03 - Community Services | C10: 0 | D10: 0 | E10: 0 | F10: 0 | G10: 0 | H10: 0 | I10: 0 | J10: 0 | K10: 0 | L10: 0 | M10: 0
A11: ='Org structure'!A5 -> Vote 04 - Housing | C11: 0 | D11: 0 | E11: 0 | F11: 0 | G11: 0 | H11: 0 | I11: 0 | J11: 0 | K11: 0 | L11: 0 | M11: 0
A12: ='Org structure'!A6 -> Vote 05 - Sport Arts And Culture | C12: =SUM(C13:C13) -> 0 | D12: 0 | E12: 0 | F12: 5000000 | G12: 0 | H12: 0 | I12: -5000000 | J12: 0 | K12: 0 | L12: =SUM(L13:L13) -> 0 | M12: =SUM(M13:M13) -> 0
A13: ='Org structure'!E29 -> 05.4 - Sports And Recreation | C13: 0 | D13: 0 | E13: 0 | F13: 5000000 | G13: 0 | H13: 0 | I13: -5000000 | J13: =SUM(E13:I13) -> 0 | K13: =IF(D13=0,C13+J13,D13+J13) -> 0 | L13: 0 | M13: 0
A14: ='Org structure'!A7 -> Vote 06 - Council General | C14: 0 | D14: 0 | E14: 0 | F14: 0 | G14: 0 | H14: 0 | I14: 0 | J14: 0 | K14: 0 | L14: 0 | M14: 0
A15: ='Org structure'!A8 -> Vote 07 - Civil Engineering | C15: =SUM(C16:C16) -> 12801949 | D15: 0 | E15: 0 | F15: 6927737 | G15: 0 | H15: 0 | I15: 21996733 | J15: =SUM(E15:I15) -> 28924470 | K15: =IF(D15=0,C15+J15,D15+J15) -> 41726419 | L15: =SUM(L16:L16) -> 15730798 | M15: =SUM(M16:M16) -> 39608740
A16: ='Org structure'!E42 -> 07.3 - Roads | C16: 12801949 | D16: 0 | E16: 0 | F16: 6927737 | G16: 0 | H16: 0 | I16: 21996733 | J16: =SUM(E16:I16) -> 28924470 | K16: =IF(D16=0,C16+J16,D16+J16) -> 41726419 | L16: 15730798 | M16: 39608740
A17: ='Org structure'!A9 -> Vote 08 - Water Section | C17: =SUM(C18:C18) -> 10467749 | D17: 0 | E17: 0 | F17: 0 | G17: 0 | H17: 0 | I17: 6607217 | J17: 6607217 | K17: 17074966 | L17: =SUM(L18:L18) -> 11270449 | M17: =SUM(M18:M18) -> 28145197
A18: ='Org structure'!E46 -> 08.2 - Water Distribution | C18: 10467749 | D18: 0 | E18: 0 | F18: 0 | G18: 0 | H18: 0 | I18: 6607217 | J18: =SUM(E18:I18) -> 6607217 | K18: =IF(D18=0,C18+J18,D18+J18) -> 17074966 | L18: 11270449 | M18: 28145197
A19: ='Org structure'!A10 -> Vote 09 - City Electrial Engineering | C19: =SUM(C20:C20) -> 5112652 | D19: 0 | E19: 0 | F19: 0 | G19: 0 | H19: 0 | I19: 17413233 | J19: 17413233 | K19: 22525885 | L19: =SUM(L20:L20) -> 12918203 | M19: =SUM(M20:M20) -> 14877305
A20: ='Org structure'!E52 -> 09.5 - Electricity Distribution | C20: 5112652 | D20: 0 | E20: 0 | F20: 0 | G20: 0 | H20: 0 | I20: 17413233 | J20: =SUM(E20:I20) -> 17413233 | K20: =IF(D20=0,C20+J20,D20+J20) -> 22525885 | L20: 12918203 | M20: 14877305
A21: ='Org structure'!A11 -> Vote 10 - Corporate Governane | C21: 0 | D21: 0 | E21: 0 | F21: 0 | G21: 0 | H21: 0 | I21: 0 | J21: 0 | K21: 0 | L21: 0 | M21: 0
A22: ='Org structure'!A12 -> Vote 11 - Budget And Treasury Office | C22: 0 | D22: 0 | E22: 0 | F22: 0 | G22: 0 | H22: 0 | I22: 0 | J22: 0 | K22: 0 | L22: 0 | M22: 0
A23: ='Org structure'!A13 -> Vote 12 - Cleansing | C23: 0 | D23: 0 | E23: 0 | F23: 0 | G23: 0 | H23: 0 | I23: 0 | J23: 0 | K23: 0 | L23: 0 | M23: 0
A24: ='Org structure'!A14 -> Vote 13 - Sewerage | C24: =SUM(C25:C25) -> 0 | D24: 0 | E24: 0 | F24: 0 | G24: 0 | H24: 0 | I24: 0 | J24: =SUM(E24:I24) -> 0 | K24: =IF(D24=0,C24+J24,D24+J24) -> 0 | L24: =SUM(L25:L25) -> 0 | M24: =SUM(M25:M25) -> 0
A25: ='Org structure'!E72 -> 13.3 - Sewer Distribution | C25: 0 | D25: 0 | E25: 0 | F25: 0 | G25: 0 | H25: 0 | I25: 0 | J25: =SUM(E25:I25) -> 0 | K25: =IF(D25=0,C25+J25,D25+J25) -> 0 | L25: 0 | M25: 0
A26: ='Org structure'!A15 -> Vote 14 - Market | C26: 0 | D26: 0 | E26: 0 | F26: 0 | G26: 0 | H26: 0 | I26: 0 | J26: 0 | K26: 0 | L26: 0 | M26: 0
A27: ='Org structure'!A16 -> Vote 15 - Other | C27: 0 | D27: 0 | E27: 0 | F27: 0 | G27: 0 | H27: 0 | I27: 0 | J27: 0 | K27: 0 | L27: 0 | M27: 0
A28: Capital multi-year expenditure sub-total | C28: =C8+C9+C10+C11+C12+C14+C15+C17+C19+C21+C22+C23+C24+C26+C27 -> 28382350 | D28: 0 | E28: 0 | F28: 11927737 | G28: 0 | H28: 0 | I28: 41017183 | J28: 52944920 | K28: 81327270 | L28: 39919450 | M28: 82631242
A30: Capital expenditure - Municipal Vote | B30: 2
A31: Single-year expenditure appropriation
A32: ='Org structure'!A2 -> Vote 01 - Public Safety | C32: 0 | D32: 0 | E32: 0 | F32: 0 | G32: 0 | H32: 0 | I32: 0 | J32: =SUM(E32:I32) -> 0 | K32: =IF(D32=0,C32+J32,D32+J32) -> 0 | L32: 0 | M32: 0
A33: ='Org structure'!A3 -> Vote 02 - Health Services | C33: 0 | D33: 0 | E33: 0 | F33: 0 | G33: 0 | H33: 0 | I33: 0 | J33: 0 | K33: 0 | L33: 0 | M33: 0
A34: ='Org structure'!A4 -> Vote 03 - Community Services | C34: 0 | D34: 0 | E34: 0 | F34: 0 | G34: 0 | H34: 0 | I34: 0 | J34: 0 | K34: 0 | L34: 0 | M34: 0
A35: ='Org structure'!A5 -> Vote 04 - Housing | C35: 0 | D35: 0 | E35: 0 | F35: 0 | G35: 0 | H35: 0 | I35: 0 | J35: 0 | K35: 0 | L35: 0 | M35: 0
A36: ='Org structure'!A6 -> Vote 05 - Sport Arts And Culture | C36: =SUM(C37:C37) -> 15093585 | D36: 0 | E36: 0 | F36: -5000000 | G36: 0 | H36: 0 | I36: -3717506 | J36: -8717506 | K36: 6376079 | L36: =SUM(L37:L37) -> 20604550 | M36: =SUM(M37:M37) -> 0
A37: ='Org structure'!E29 -> 05.4 - Sports And Recreation | C37: 15093585 | D37: 0 | E37: 0 | F37: -5000000 | G37: 0 | H37: 0 | I37: -3717506 | J37: =SUM(E37:I37) -> -8717506 | K37: =IF(D37=0,C37+J37,D37+J37) -> 6376079 | L37: 20604550 | M37: 0
A38: ='Org structure'!A7 -> Vote 06 - Council General | C38: =SUM(C39:C39) -> 47000000 | D38: 0 | E38: 0 | F38: 0 | G38: 0 | H38: 0 | I38: -18000000 | J38: -18000000 | K38: 29000000 | L38: =SUM(L39:L39) -> 0 | M38: =SUM(M39:M39) -> 0
A39: ='Org structure'!E31 -> 06.1 - Administration Council General | C39: 47000000 | D39: 0 | E39: 0 | F39: 0 | G39: 0 | H39: 0 | I39: -18000000 | J39: =SUM(E39:I39) -> -18000000 | K39: =IF(D39=0,C39+J39,D39+J39) -> 29000000 | L39: 0 | M39: 0
A40: ='Org structure'!A8 -> Vote 07 - Civil Engineering | C40: 0 | D40: 0 | E40: 0 | F40: 0 | G40: 0 | H40: 0 | I40: 0 | J40: =SUM(E40:I40) -> 0 | K40: =IF(D40=0,C40+J40,D40+J40) -> 0 | L40: 0 | M40: 0
A41: ='Org structure'!A9 -> Vote 08 - Water Section | C41: =SUM(C42:C42) -> 25000000 | D41: 0 | E41: 0 | F41: 0 | G41: 0 | H41: 0 | I41: 0 | J41: 0 | K41: 25000000 | L41: =SUM(L42:L42) -> 0 | M41: =SUM(M42:M42) -> 24952106
A42: ='Org structure'!E46 -> 08.2 - Water Distribution | C42: 25000000 | D42: 0 | E42: 0 | F42: 0 | G42: 0 | H42: 0 | I42: 0 | J42: =SUM(E42:I42) -> 0 | K42: =IF(D42=0,C42+J42,D42+J42) -> 25000000 | L42: 0 | M42: 24952106
A43: ='Org structure'!A10 -> Vote 09 - City Electrial Engineering | C43: =SUM(C44:C44) -> 0 | D43: 0 | E43: 0 | F43: 0 | G43: 0 | H43: 0 | I43: 0 | J43: 0 | K43: 0 | L43: =SUM(L44:L44) -> 0 | M43: =SUM(M44:M44) -> 0
A44: ='Org structure'!E52 -> 09.5 - Electricity Distribution | C44: 0 | D44: 0 | E44: 0 | F44: 0 | G44: 0 | H44: 0 | I44: 0 | J44: =SUM(E44:I44) -> 0 | K44: =IF(D44=0,C44+J44,D44+J44) -> 0 | L44: 0 | M44: 0
A45: ='Org structure'!A11 -> Vote 10 - Corporate Governane | C45: 0 | D45: 0 | E45: 0 | F45: 0 | G45: 0 | H45: 0 | I45: 0 | J45: 0 | K45: 0 | L45: 0 | M45: 0
A46: ='Org structure'!A12 -> Vote 11 - Budget And Treasury Office | C46: =SUM(C47:C47) -> 3000000 | D46: 0 | E46: 0 | F46: 0 | G46: 0 | H46: 0 | I46: 0 | J46: 0 | K46: 3000000 | L46: =SUM(L47:L47) -> 0 | M46: =SUM(M47:M47) -> 0
A47: ='Org structure'!E59 -> 11.2 - Data | C47: 3000000 | D47: 0 | E47: 0 | F47: 0 | G47: 0 | H47: 0 | I47: 0 | J47: =SUM(E47:I47) -> 0 | K47: =IF(D47=0,C47+J47,D47+J47) -> 3000000 | L47: 0 | M47: 0
A48: ='Org structure'!A13 -> Vote 12 - Cleansing | C48: =SUM(C49:C50) -> 38773866 | D48: 0 | E48: 0 | F48: 0 | G48: 0 | H48: 0 | I48: -10854074 | J48: -10854074 | K48: 27919792 | L48: =SUM(L49:L50) -> 29000000 | M48: =SUM(M49:M50) -> 0
A49: ='Org structure'!E63 -> 12.2 - Administration Cleansing | C49: 0 | D49: 0 | E49: 0 | F49: 0 | G49: 0 | H49: 0 | I49: 0 | J49: =SUM(E49:I49) -> 0 | K49: =IF(D49=0,C49+J49,D49+J49) -> 0 | L49: 13000000 | M49: 0
A50: ='Org structure'!E68 -> 12.7 - Landfill Site | C50: 38773866 | D50: 0 | E50: 0 | F50: 0 | G50: 0 | H50: 0 | I50: -10854074 | J50: =SUM(E50:I50) -> -10854074 | K50: =IF(D50=0,C50+J50,D50+J50) -> 27919792 | L50: 16000000 | M50: 0
A51: ='Org structure'!A14 -> Vote 13 - Sewerage | C51: =SUM(C52:C52) -> 74012454 | D51: 0 | E51: 0 | F51: -6927737 | G51: 0 | H51: 0 | I51: -6661391 | J51: =SUM(E51:I51) -> -13589128 | K51: =IF(D51=0,C51+J51,D51+J51) -> 60423326 | L51: =SUM(L52:L52) -> 98000000 | M51: =SUM(M52:M52) -> 117703651
A52: ='Org structure'!E72 -> 13.3 - Sewer Distribution | C52: 74012454 | D52: 0 | E52: 0 | F52: -6927737 | G52: 0 | H52: 0 | I52: -6661391 | J52: =SUM(E52:I52) -> -13589128 | K52: =IF(D52=0,C52+J52,D52+J52) -> 60423326 | L52: 98000000 | M52: 117703651
A53: ='Org structure'!A15 -> Vote 14 - Market | C53: =SUM(C54:C54) -> 4987544 | D53: 0 | E53: 0 | F53: 0 | G53: 0 | H53: 0 | I53: -2508978 | J53: -2508978 | K53: 2478566 | L53: =SUM(L54:L54) -> 10000000 | M53: =SUM(M54:M54) -> 0
A54: ='Org structure'!E75 -> 14.1 - Market | C54: 4987544 | D54: 0 | E54: 0 | F54: 0 | G54: 0 | H54: 0 | I54: -2508978 | J54: =SUM(E54:I54) -> -2508978 | K54: =IF(D54=0,C54+J54,D54+J54) -> 2478566 | L54: 10000000 | M54: 0
A55: ='Org structure'!A16 -> Vote 15 - Other | C55: 0 | D55: 0 | E55: 0 | F55: 0 | G55: 0 | H55: 0 | I55: 0 | J55: 0 | K55: 0 | L55: 0 | M55: 0
A56: Capital single-year expenditure sub-total | C56: =C32+C33+C34+C35+C36+C38+C40+C41+C43+C45+C46+C48+C51+C53+C55 -> 207867449 | D56: 0 | E56: 0 | F56: -11927737 | G56: 0 | H56: 0 | I56: -41741949 | J56: -53669686 | K56: 154197763 | L56: 157604550 | M56: 142655757
A57: Total Capital Expenditure | C57: =C56+C28 -> 236249799 | D57: 0 | E57: 0 | F57: 0 | G57: 0 | H57: 0 | I57: -724766 | J57: =SUM(E57:I57) -> -724766 | K57: =IF(D57=0,C57+J57,D57+J57) -> 235525033 | L57: =L56+L28 -> 197524000 | M57: =M56+M28 -> 225286999
A60: =head27a -> References
A61: 1. Insert 'Vote'; e.g. Department, if different to standard structure
A62: 2. Must reconcile to Financial Performance ('Revenue and Expenditure by Standard Classification' and 'Revenue and Expenditure')
A63: 3. Assign share in 'associate' to relevant Vote

Sheet B6-FinPos
A1: =muni&" - "&_ADJ6&" - "&Date -> NW403 City Of Matlosana - Table B6 Adjustments Budget Financial Position - 45811
A2: =desc -> Description | B2: =head27 -> Ref | C2: =Head2 -> Budget Year 2024/25 | L2: =Head10 -> Budget Year +1 2025/26 | M2: =Head11 -> Budget Year +2 2026/27
C3: =Head6 -> Original Budget | D3: =Head54 -> Prior Adjusted | E3: =Head51 -> Accum. Funds | F3: =Head52 -> Multi-year capital | G3: =Head53 -> Unfore. Unavoid. | H3: =Head55 -> Nat. or Prov. Govt | I3: =Head50 -> Other Adjusts. | J3: =Head56 -> Total Adjusts. | K3: =Head7 -> Adjusted Budget | L3: =Head7 -> Adjusted Budget | M3: =Head7 -> Adjusted Budget
D4: 3 | E4: 4 | F4: 5 | G4: 6 | H4: 7 | I4: 8 | J4: 9 | K4: 10
A5: R thousands | C5: A | D5: A1 | E5: B | F5: C | G5: D | H5: E | I5: F | J5: G | K5: H
A6: ASSETS
A7: Current assets
A8: Cash and cash equivalents | C8: -267428232 | D8: 0 | E8: 0 | F8: 0 | G8: 0 | H8: 0 | I8: -108366507 | J8: =SUM(E8:I8) -> -108366507 | K8: =IF(D8=0,C8+J8,D8+J8) -> -375794739 | L8: -485128098 | M8: -484099593
A9: Trade and other receivables from exchange transactions | B9: 1 | C9: ='SB2'!C20 -> 741526497 | D9: ='SB2'!D20 -> 0 | E9: ='SB2'!E20 -> 0 | F9: ='SB2'!F20 -> 0 | G9: ='SB2'!G20 -> 0 | H9: ='SB2'!H20 -> 0 | I9: ='SB2'!I20 -> 99204139 | J9: 99204139 | K9: 840730636 | L9: ='SB2'!L20 -> 627406829 | M9: ='SB2'!M20 -> 387324110
A10: Receivables from non-exchange transactions | B10: 1 | C10: ='SB2'!C29 -> 148668115 | D10: ='SB2'!D29 -> 0 | E10: ='SB2'!E29 -> 0 | F10: ='SB2'!F29 -> 0 | G10: ='SB2'!G29 -> 0 | H10: ='SB2'!H29 -> 0 | I10: ='SB2'!I29 -> 26198748 | J10: 26198748 | K10: 174866863 | L10: ='SB2'!L29 -> 127751465 | M10: ='SB2'!M29 -> 41097964
A11: Current portion of non-current receivables | B11: 2 | C11: 29274 | D11: 0 | E11: 0 | F11: 0 | G11: 0 | H11: 0 | I11: 0 | J11: 0 | K11: 29274 | L11: 29567 | M11: 0
A12: Inventory | C12: ='SB2'!C125 -> -9172001 | D12: ='SB2'!D125 -> 0 | E12: ='SB2'!E125 -> 0 | F12: ='SB2'!F125 -> 0 | G12: ='SB2'!G125 -> 0 | H12: ='SB2'!H125 -> 0 | I12: ='SB2'!I125 -> -201611155 | J12: -201611155 | K12: -210783156 | L12: ='SB2'!L125 -> -54790627 | M12: ='SB2'!M125 -> 0
A13: VAT | C13: 195040276 | D13: 0 | E13: 0 | F13: 0 | G13: 0 | H13: 0 | I13: 0 | J13: 0 | K13: 195040276 | L13: 0 | M13: 0
A14: Other current assets | C14: 37026362 | D14: 0 | E14: 0 | F14: 0 | G14: 0 | H14: 0 | I14: 0 | J14: 0 | K14: 37026362 | L14: 37447126 | M14: 0
A15: Total current assets | C15: =SUM(C8:C14) -> 845690291 | D15: 0 | E15: 0 | F15: 0 | G15: 0 | H15: 0 | I15: -184574775 | J15: -184574775 | K15: 661115516 | L15: 252716262 | M15: -55677519
A16: Non current assets
A17: Investments | J17: =SUM(E17:I17) -> 0 | K17: =IF(D17=0,C17+J17,D17+J17) -> 0
A18: Investment property | C18: 257100275 | D18: 0 | E18: 0 | F18: 0 | G18: 0 | H18: 0 | I18: 0 | J18: =SUM(E18:I18) -> 0 | K18: =IF(D18=0,C18+J18,D18+J18) -> 257100275 | L18: 259671278 | M18: 0
A19: Property, plant and equipment | B19: 3 | C19: =+'SB2'!C131 -> 3581032996 | D19: =+'SB2'!D131 -> 0 | E19: =+'SB2'!E131 -> 0 | F19: =+'SB2'!F131 -> 0 | G19: =+'SB2'!G131 -> 0 | H19: =+'SB2'!H131 -> 0 | I19: =+'SB2'!I131 -> -724766 | J19: -724766 | K19: 3580308230 | L19: =+'SB2'!L131 -> 3554552743 | M19: =+'SB2'!M131 -> 225286999
A20: Biological assets | J20: 0 | K20: 0
A21: Living and non-living resources | J21: 0 | K21: 0
A22: Heritage assets | C22: 9941212 | D22: 0 | E22: 0 | F22: 0 | G22: 0 | H22: 0 | I22: 0 | J22: =SUM(E22:I22) -> 0 | K22: =IF(D22=0,C22+J22,D22+J22) -> 9941212 | L22: 10040624 | M22: 0
A23: Intangible assets | C23: 1297383 | D23: 0 | E23: 0 | F23: 0 | G23: 0 | H23: 0 | I23: 0 | J23: =SUM(E23:I23) -> 0 | K23: =IF(D23=0,C23+J23,D23+J23) -> 1297383 | L23: 1310357 | M23: 0
A24: Trade and other receivables from exchange transactions | J24: 0 | K24: 0
A25: Non-current receivables from non-exchange transactions | C25: 32755 | D25: 0 | E25: 0 | F25: 0 | G25: 0 | H25: 0 | I25: 0 | J25: 0 | K25: 32755 | L25: 33083 | M25: 0
A26: Other non-current assets | J26: 0 | K26: 0
A27: Total non current assets | C27: =SUM(C17:C26) -> 3849404621 | D27: =SUM(D17:D26) -> 0 | E27: 0 | F27: 0 | G27: 0 | H27: 0 | I27: -724766 | J27: -724766 | K27: 3848679855 | L27: =SUM(L17:L26) -> 3825608085 | M27: 225286999
A28: TOTAL ASSETS | C28: =C15+C27 -> 4695094912 | D28: 0 | E28: 0 | F28: 0 | G28: 0 | H28: 0 | I28: -185299541 | J28: -185299541 | K28: 4509795371 | L28: 4078324347 | M28: 169609480
A30: LIABILITIES
A31: Current liabilities
A32: Bank overdraft | J32: =SUM(E32:I32) -> 0 | K32: =IF(D32=0,C32+J32,D32+J32) -> 0
A33: Financial liabilities | C33: ='SB2'!C137 -> -2800000 | D33: ='SB2'!D137 -> 0 | E33: ='SB2'!E137 -> 0 | F33: ='SB2'!F137 -> 0 | G33: ='SB2'!G137 -> 0 | H33: ='SB2'!H137 -> 0 | I33: ='SB2'!I137 -> 3600000 | J33: =SUM(E33:I33) -> 3600000 | K33: =IF(D33=0,C33+J33,D33+J33) -> 800000 | L33: ='SB2'!L137 -> 820000 | M33: ='SB2'!M137 -> 0
A34: Consumer deposits | C34: 97429637 | D34: 0 | E34: 0 | F34: 0 | G34: 0 | H34: 0 | I34: 2525000 | J34: =SUM(E34:I34) -> 2525000 | K34: =IF(D34=0,C34+J34,D34+J34) -> 99954637 | L34: 100928933 | M34: 2530000
A35: Trade and other payables from exchange transactions | C35: =+'SB2'!C140+'SB2'!C141 -> 2729410602 | D35: =+'SB2'!D140+'SB2'!D141 -> 0 | E35: =+'SB2'!E140+'SB2'!E141 -> 0 | F35: =+'SB2'!F140+'SB2'!F141 -> 0 | G35: =+'SB2'!G140+'SB2'!G141 -> 0 | H35: =+'SB2'!H140+'SB2'!H141 -> 0 | I35: =+'SB2'!I140+'SB2'!I141 -> 626841947 | J35: =SUM(E35:I35) -> 626841947 | K35: =IF(D35=0,C35+J35,D35+J35) -> 3356252549 | L35: =+'SB2'!L140+'SB2'!L141 -> 3152200638 | M35: =+'SB2'!M140+'SB2'!M141 -> 1103153000
A36: Trade and other payables from non-exchange transactions | C36: =+'SB2'!C142+'SB2'!C143 -> 42907407 | D36: =+'SB2'!D142+'SB2'!D143 -> 0 | E36: =+'SB2'!E142+'SB2'!E143 -> 0 | F36: =+'SB2'!F142+'SB2'!F143 -> 0 | G36: =+'SB2'!G142+'SB2'!G143 -> 0 | H36: =+'SB2'!H142+'SB2'!H143 -> 0 | I36: =+'SB2'!I142+'SB2'!I143 -> 281000 | J36: 281000 | K36: 43188407 | L36: =+'SB2'!L142+'SB2'!L143 -> 50785223 | M36: =+'SB2'!M142+'SB2'!M143 -> 239340000
A37: Provisions | C37: 587370777 | D37: 0 | E37: 0 | F37: 0 | G37: 0 | H37: 0 | I37: 0 | J37: 0 | K37: 587370777 | L37: 593464485 | M37: -22000000
A38: VAT | C38: 0 | D38: 0 | E38: 0 | F38: 0 | G38: 0 | H38: 0 | I38: 0 | J38: 0 | K38: 0 | L38: 0 | M38: 0
A39: Other current liabilities | J39: 0 | K39: 0
A40: Total current liabilities | C40: =SUM(C32:C39) -> 3454318423 | D40: =SUM(D32:D39) -> 0 | E40: 0 | F40: 0 | G40: 0 | H40: 0 | I40: 633247947 | J40: =SUM(J32:J39) -> 633247947 | K40: =SUM(K32:K39) -> 4087566370 | L40: =SUM(L32:L39) -> 3898199279 | M40: 1323023000
A42: Non current liabilities
A43: Borrowing | B43: 1 | C43: ='SB2'!C147 -> 81274059 | D43: ='SB2'!D147 -> 0 | E43: ='SB2'!E147 -> 0 | F43: ='SB2'!F147 -> 0 | G43: ='SB2'!G147 -> 0 | H43: ='SB2'!H147 -> 0 | I43: ='SB2'!I147 -> 0 | J43: =SUM(E43:I43) -> 0 | K43: =IF(D43=0,C43+J43,D43+J43) -> 81274059 | L43: ='SB2'!L147 -> 82086800 | M43: ='SB2'!M147 -> 0
A44: Provisions | B44: 1 | C44: ='SB2'!C162 -> 0 | D44: ='SB2'!D162 -> 0 | E44: ='SB2'!E162 -> 0 | F44: ='SB2'!F162 -> 0 | G44: ='SB2'!G162 -> 0 | H44: ='SB2'!H162 -> 0 | I44: ='SB2'!I162 -> 0 | J44: =SUM(E44:I44) -> 0 | K44: =IF(D44=0,C44+J44,D44+J44) -> 0 | L44: ='SB2'!L162 -> 0 | M44: ='SB2'!M162 -> 0
A45: Long term portion of trade payables | C45: ='SB2'!C151 -> 0 | D45: ='SB2'!D151 -> 0 | E45: ='SB2'!E151 -> 0 | F45: ='SB2'!F151 -> 0 | G45: ='SB2'!G151 -> 0 | H45: ='SB2'!H151 -> 0 | I45: ='SB2'!I151 -> 0 | J45: =SUM(E45:I45) -> 0 | K45: =IF(D45=0,C45+J45,D45+J45) -> 0 | L45: ='SB2'!L151 -> 0 | M45: ='SB2'!M151 -> 0
A46: Other non-current liabilities | J46: =SUM(E46:I46) -> 0 | K46: =IF(D46=0,C46+J46,D46+J46) -> 0
A47: Total non current liabilities | C47: =SUM(C43:C46) -> 81274059 | D47: =SUM(D43:D46) -> 0 | E47: 0 | F47: 0 | G47: 0 | H47: 0 | I47: 0 | J47: 0 | K47: 81274059 | L47: 82086800 | M47: 0
A48: TOTAL LIABILITIES | C48: =C40+C47 -> 3535592482 | D48: 0 | E48: 0 | F48: 0 | G48: 0 | H48: 0 | I48: 633247947 | J48: 633247947 | K48: 4168840429 | L48: 3980286079 | M48: 1323023000
A50: NET ASSETS | B50: 2 | C50: =C28-C48 -> 1159502430 | D50: 0 | E50: 0 | F50: 0 | G50: 0 | H50: 0 | I50: -818547488 | J50: -818547488 | K50: 340954942 | L50: 98038268 | M50: -1153413520
A52: COMMUNITY WEALTH/EQUITY
A53: Accumulated Surplus/(Deficit) | C53: ='SB2'!C174 -> 1159502431 | D53: ='SB2'!D174 -> 0 | E53: ='SB2'!E174 -> 0 | F53: ='SB2'!F174 -> 0 | G53: ='SB2'!G174 -> 0 | H53: ='SB2'!H174 -> 0 | I53: ='SB2'!I174 -> -857874727 | J53: =SUM(E53:I53) -> -857874727 | K53: =IF(D53=0,C53+J53,D53+J53) -> 301627704 | L53: ='SB2'!L174 -> 446461552 | M53: ='SB2'!M174 -> 182106954
A54: Funds and Reserves | C54: ='SB2'!C181 -> 0 | D54: ='SB2'!D181 -> 0 | E54: ='SB2'!E181 -> 0 | F54: ='SB2'!F181 -> 0 | G54: ='SB2'!G181 -> 0 | H54: ='SB2'!H181 -> 0 | I54: ='SB2'!I181 -> 0 | J54: =SUM(E54:I54) -> 0 | K54: =IF(D54=0,C54+J54,D54+J54) -> 0 | L54: ='SB2'!L181 -> 0 | M54: ='SB2'!M181 -> 0
A55: Other | J55: =SUM(E55:I55) -> 0 | K55: =IF(D55=0,C55+J55,D55+J55) -> 0
A56: TOTAL COMMUNITY WEALTH/EQUITY | C56: =SUM(C53:C55) -> 1159502431 | D56: =SUM(D53:D55) -> 0 | E56: 0 | F56: 0 | G56: 0 | H56: 0 | I56: -857874727 | J56: -857874727 | K56: 301627704 | L56: 446461552 | M56: 182106954
A57: =head27a -> References
A58: 1. Detail to be provided in Table SA3
A59: 2. Net assets must balance with Total Community Wealth/Equity
A60: 3. Only complete if a previous adjusted budget has been approved in the same financial year. Reflect most recent adjusted budget.
A61: 4. Additional cash-backed accumulated funds/unspent funds (MFMA section 18(1)(b) and section 28(2)(e)) identified after the Original Budget approved and after annual financial statements audited (note: only where underspending could not reasonably have been foreseen)
A62: 5. Increases of funds approved under MFMA section 31
A63: 6. Adjustments approved in accordance with MFMA section 29
A64: 7. Adjustments to transfers from National or Provincial Government
A65: 8. Adjusts. = 'Other' Adjustments proposed to be approved; including revenue under-collection (MFMA section 28(2)(a)); additional revenue appropriation on existing programmes (section 28(2))(b); projected savings (section 28(2)(d)); error correction (section 28(2)(f))
A66: 9. G = B + C + D + E + F
A67: 10. Adjusted Budget H = (A or A1/2 etc) + G
A69: check balance | C69: =C50-C56 -> -1 | D69: 0 | E69: 0 | F69: 0 | G69: 0 | H69: 0 | I69: 39327239 | J69: 39327239 | K69: 39327238 | L69: -348423284 | M69: -1335520474

Sheet B7-CFlow
A1: =muni&" - "&_ADJ7&" - "&Date -> NW403 City Of Matlosana - Table B7 Adjustments Budget Cash Flows - 45811
A2: =desc -> Description | B2: =head27 -> Ref | C2: =Head2 -> Budget Year 2024/25 | L2: =Head10 -> Budget Year +1 2025/26 | M2: =Head11 -> Budget Year +2 2026/27
C3: =Head6 -> Original Budget | D3: =Head54 -> Prior Adjusted | E3: =Head51 -> Accum. Funds | F3: =Head52 -> Multi-year capital | G3: =Head53 -> Unfore. Unavoid. | H3: =Head55 -> Nat. or Prov. Govt | I3: =Head50 -> Other Adjusts. | J3: =Head56 -> Total Adjusts. | K3: =Head7 -> Adjusted Budget | L3: =Head7 -> Adjusted Budget | M3: =Head7 -> Adjusted Budget
D4: 3 | E4: 4 | F4: 5 | G4: 6 | H4: 7 | I4: 8 | J4: 9 | K4: 10
A5: R thousands | C5: A | D5: A1 | E5: B | F5: C | G5: D | H5: E | I5: F | J5: G | K5: H
A6: CASH FLOW FROM OPERATING ACTIVITIES
A7: Receipts
A8: Property rates | C8: 385894835 | D8: 0 | E8: 0 | F8: 0 | G8: 0 | H8: 0 | I8: -33315761 | J8: =SUM(E8:I8) -> -33315761 | K8: =IF(D8=0,C8+J8,D8+J8) -> 352579074 | L8: 527147850 | M8: 615868951
A9: Service charges | C9: 1527561609 | D9: 0 | E9: 0 | F9: 0 | G9: 0 | H9: 0 | I9: -147504740 | J9: =SUM(E9:I9) -> -147504740 | K9: =IF(D9=0,C9+J9,D9+J9) -> 1380056869 | L9: 1843649362 | M9: 2185584864
A10: Other revenue | C10: 82779605 | D10: 0 | E10: 0 | F10: 0 | G10: 0 | H10: 0 | I10: 137533554 | J10: 137533554 | K10: 220313159 | L10: -104001342 | M10: -141823661
A11: Transfers and Subsidies - Operational | B11: 1 | C11: 657797200 | D11: 0 | E11: 0 | F11: 0 | G11: 0 | H11: 0 | I11: 419000 | J11: 419000 | K11: 658216200 | L11: 698315002 | M11: 741650000
A12: Transfers and Subsidies - Capital | B12: 1 | C12: 186249799 | D12: 0 | E12: 0 | F12: 0 | G12: 0 | H12: 0 | I12: -138000 | J12: -138000 | K12: 186111799 | L12: 197523999 | M12: 225287000
A13: Interest | C13: 111880136 | D13: 0 | E13: 0 | F13: 0 | G13: 0 | H13: 0 | I13: 0 | J13: 0 | K13: 111880136 | L13: 10740924 | M13: 11235006
A14: Dividends | J14: 0 | K14: 0
A15: Payments
A16: Suppliers and employees | C16: -3071220494 | D16: 0 | E16: 0 | F16: 0 | G16: 0 | H16: 0 | I16: -310741082 | J16: =SUM(E16:I16) -> -310741082 | K16: =IF(D16=0,C16+J16,D16+J16) -> -3381961576 | L16: =-('SB15'!Q36+'SB15'!Q37+'SB15'!Q39+'SB15'!Q40+'SB15'!Q41+'SB15'!Q42+'SB15'!Q45+'SB15'!Q51) -> -3309042167 | M16: =-('SB15'!R36+'SB15'!R37+'SB15'!R39+'SB15'!R40+'SB15'!R41+'SB15'!R42+'SB15'!R45+'SB15'!R51) -> -3012321145
A17: Finance charges | J17: =SUM(E17:I17) -> 0 | K17: =IF(D17=0,C17+J17,D17+J17) -> 0
A18: Transfers and Subsidies | B18: 1 | J18: =SUM(E18:I18) -> 0 | K18: =IF(D18=0,C18+J18,D18+J18) -> 0
A19: NET CASH FROM/(USED) OPERATING ACTIVITIES | C19: =SUM(C8:C14)+SUM(C16:C18) -> -119057310 | D19: =SUM(D8:D14)+SUM(D16:D18) -> 0 | E19: 0 | F19: 0 | G19: 0 | H19: 0 | I19: -353747029 | J19: =SUM(J8:J18) -> -353747029 | K19: =SUM(K8:K18) -> -472804339 | L19: =SUM(L8:L14)+SUM(L16:L18) -> -135666372 | M19: =SUM(M8:M14)+SUM(M16:M18) -> 625481015
A21: CASH FLOWS FROM INVESTING ACTIVITIES
A22: Receipts
A23: Proceeds on disposal of PPE | C23: 0 | D23: 0 | E23: 0 | F23: 0 | G23: 0 | H23: 0 | I23: 0 | J23: =SUM(E23:I23) -> 0 | K23: =IF(D23=0,C23+J23,D23+J23) -> 0 | L23: 0 | M23: 0
A25: Decrease (increase) in non-current receivables | C25: 0 | D25: 0 | E25: 0 | F25: 0 | G25: 0 | H25: 0 | I25: 0 | J25: =SUM(E25:I25) -> 0 | K25: =IF(D25=0,C25+J25,D25+J25) -> 0 | L25: 0 | M25: 0
A26: Decrease (increase) in non-current investments | J26: =SUM(E26:I26) -> 0 | K26: =IF(D26=0,C26+J26,D26+J26) -> 0
A27: Payments
A28: Capital assets | C28: -236249799 | D28: 0 | E28: 0 | F28: 0 | G28: 0 | H28: 0 | I28: 724766 | J28: =SUM(E28:I28) -> 724766 | K28: =IF(D28=0,C28+J28,D28+J28) -> -235525033 | L28: -197524000 | M28: -225286999
A29: NET CASH FROM/(USED) INVESTING ACTIVITIES | C29: =+C23+C25+C26+C28 -> -236249799 | D29: =+D23+D25+D26+D28 -> 0 | E29: 0 | F29: 0 | G29: 0 | H29: 0 | I29: 724766 | J29: 724766 | K29: -235525033 | L29: -197524000 | M29: -225286999
A31: CASH FLOWS FROM FINANCING ACTIVITIES
A32: Receipts
A33: Short term loans | J33: =SUM(E33:I33) -> 0 | K33: =IF(D33=0,C33+J33,D33+J33) -> 0
A34: Borrowing long term/refinancing | J34: =SUM(E34:I34) -> 0 | K34: =IF(D34=0,C34+J34,D34+J34) -> 0
A35: Increase (decrease) in consumer deposits | C35: 0 | D35: 0 | E35: 0 | F35: 0 | G35: 0 | H35: 0 | I35: 0 | J35: =SUM(E35:I35) -> 0 | K35: =IF(D35=0,C35+J35,D35+J35) -> 0 | L35: 2525000 | M35: 2530000
A36: Payments
A37: Repayment of borrowing | C37: -4800000 | D37: 0 | E37: 0 | F37: 0 | G37: 0 | H37: 0 | I37: 3600000 | J37: =SUM(E37:I37) -> 3600000 | K37: =IF(D37=0,C37+J37,D37+J37) -> -1200000 | L37: -1200000 | M37: 0
A38: NET CASH FROM/(USED) FINANCING ACTIVITIES | C38: =SUM(C33:C35)+C37 -> -4800000 | D38: =SUM(D33:D35)+D37 -> 0 | E38: 0 | F38: 0 | G38: 0 | H38: 0 | I38: 3600000 | J38: =SUM(J33:J37) -> 3600000 | K38: =SUM(K33:K37) -> -1200000 | L38: =SUM(L33:L35)+L37 -> 1325000 | M38: =SUM(M33:M35)+M37 -> 2530000
A40: NET INCREASE/ (DECREASE) IN CASH HELD | C40: =C19+C29+C38 -> -360107109 | D40: =D19+D29+D38 -> 0 | E40: 0 | F40: 0 | G40: 0 | H40: 0 | I40: -349422263 | J40: -349422263 | K40: -709529372 | L40: -331865372 | M40: 402724016
A41: Cash/cash equivalents at the year begin: | B41: 2 | C41: 92678877 | D41: 0 | E41: 0 | F41: 0 | G41: 0 | H41: 0 | I41: 0 | J41: =SUM(E41:I41) -> 0 | K41: =IF(D41=0,C41+J41,D41+J41) -> 92678877 | L41: =K42 -> -616850495 | M41: =L42 -> -948715867
A42: Cash/cash equivalents at the year end: | B42: 2 | C42: =C40+C41 -> -267428232 | D42: =D40+D41 -> 0 | E42: 0 | F42: 0 | G42: 0 | H42: 0 | I42: -349422263 | J42: -349422263 | K42: =K40+K41 -> -616850495 | L42: =L40+L41 -> -948715867 | M42: =M40+M41 -> -545991851
A43: =head27a -> References
A44: 1. Local/District municipalities to include transfers from/to District/Local Municipalities
A45: 2. Cash equivalents includes investments with maturities of 3 months or less
A46: 3. Only complete if a previous adjusted budget has been approved in the same financial year. Reflect most recent adjusted budget.
A47: 4. Additional cash-backed accumulated funds/unspent funds (MFMA section 18(1)(b) and section 28(2)(e)) identified after the Original Budget approved and after annual financial statements audited (note: only where underspending could not reasonably have been foreseen)
A48: 5. Increases of funds approved under MFMA section 31
A49: 6. Adjustments approved in accordance with MFMA section 29
A50: 7. Adjustments to transfers from National or Provincial Government
A51: 8. Adjusts. = 'Other' Adjustments proposed to be approved; including revenue under-collection (MFMA section 28(2)(a)); additional revenue appropriation on existing programmes (section 28(2))(b); projected savings (section 28(2)(d)); error correction (section 28(2)(f))
A52: 9. G = B + C + D + E + F
A53: 10. Adjusted Budget H = (A or A1) + G

Sheet B8-ResRecon
A1: =muni&" - "&_ADJ8&" - "&Date -> NW403 City Of Matlosana - Table B8 Cash backed reserves/accumulated surplus reconciliation - 45811
A2: =desc -> Description | B2: =head27 -> Ref | C2: =Head2 -> Budget Year 2024/25 | L2: =Head10 -> Budget Year +1 2025/26 | M2: =Head11 -> Budget Year +2 2026/27
C3: =Head6 -> Original Budget | D3: =Head54 -> Prior Adjusted | E3: =Head51 -> Accum. Funds | F3: =Head52 -> Multi-year capital | G3: =Head53 -> Unfore. Unavoid. | H3: =Head55 -> Nat. or Prov. Govt | I3: =Head50 -> Other Adjusts. | J3: =Head56 -> Total Adjusts. | K3: =Head7 -> Adjusted Budget | L3: =Head7 -> Adjusted Budget | M3: =Head7 -> Adjusted Budget
D4: 3 | E4: 4 | F4: 5 | G4: 6 | H4: 7 | I4: 8 | J4: 9 | K4: 10
A5: R thousands | C5: A | D5: A1 | E5: B | F5: C | G5: D | H5: E | I5: F | J5: G | K5: H
A6: Cash and investments available
A7: Cash/cash equivalents at the year end | B7: 1 | C7: ='B7-CFlow'!C42 -> -267428232 | D7: ='B7-CFlow'!D42 -> 0 | E7: ='B7-CFlow'!E42 -> 0 | F7: ='B7-CFlow'!F42 -> 0 | G7: ='B7-CFlow'!G42 -> 0 | H7: ='B7-CFlow'!H42 -> 0 | I7: ='B7-CFlow'!I42 -> -349422263 | J7: =SUM(E7:I7) -> -349422263 | K7: =IF(D7=0,C7+J7,D7+J7) -> -616850495 | L7: ='B7-CFlow'!L42 -> -948715867 | M7: ='B7-CFlow'!M42 -> -545991851
A8: Other current investments > 90 days | C8: ='B6-FinPos'!C8+'B6-FinPos'!C10-'B6-FinPos'!C32-'B8-ResRecon'!C7 -> 148668115 | D8: ='B6-FinPos'!D8+'B6-FinPos'!D10-'B6-FinPos'!D32-'B8-ResRecon'!D7 -> 0 | E8: ='B6-FinPos'!E8+'B6-FinPos'!E10-'B6-FinPos'!E32-'B8-ResRecon'!E7 -> 0 | F8: ='B6-FinPos'!F8+'B6-FinPos'!F10-'B6-FinPos'!F32-'B8-ResRecon'!F7 -> 0 | G8: ='B6-FinPos'!G8+'B6-FinPos'!G10-'B6-FinPos'!G32-'B8-ResRecon'!G7 -> 0 | H8: ='B6-FinPos'!H8+'B6-FinPos'!H10-'B6-FinPos'!H32-'B8-ResRecon'!H7 -> 0 | I8: ='B6-FinPos'!I8+'B6-FinPos'!I10-'B6-FinPos'!I32-'B8-ResRecon'!I7 -> 267254504 | J8: =SUM(E8:I8) -> 267254504 | K8: =IF(D8=0,C8+J8,D8+J8) -> 415922619 | L8: ='B6-FinPos'!L8+'B6-FinPos'!L10-'B6-FinPos'!L32-'B8-ResRecon'!L7 -> 591339234 | M8: ='B6-FinPos'!M8+'B6-FinPos'!M10-'B6-FinPos'!M32-'B8-ResRecon'!M7 -> 102990222
A9: Non current assets - Investments | B9: 1 | C9: ='B6-FinPos'!C17 -> 0 | D9: ='B6-FinPos'!D17 -> 0 | E9: ='B6-FinPos'!E17 -> 0 | F9: ='B6-FinPos'!F17 -> 0 | G9: ='B6-FinPos'!G17 -> 0 | H9: ='B6-FinPos'!H17 -> 0 | I9: ='B6-FinPos'!I17 -> 0 | J9: =SUM(E9:I9) -> 0 | K9: =IF(D9=0,C9+J9,D9+J9) -> 0 | L9: ='B6-FinPos'!L17 -> 0 | M9: ='B6-FinPos'!M17 -> 0
A10: Cash and investments available: | C10: =SUM(C7:C9) -> -118760117 | D10: 0 | E10: 0 | F10: 0 | G10: 0 | H10: 0 | I10: -82167759 | J10: -82167759 | K10: -200927876 | L10: -357376633 | M10: -443001629
A12: Applications of cash and investments
A13: Unspent conditional transfers | C13: ='SB2'!C142 -> 42907407 | D13: ='SB2'!D142 -> 0 | E13: ='SB2'!E142 -> 0 | F13: ='SB2'!F142 -> 0 | G13: ='SB2'!G142 -> 0 | H13: ='SB2'!H142 -> 0 | I13: ='SB2'!I142 -> 281000 | J13: =SUM(E13:I13) -> 281000 | K13: =IF(D13=0,C13+J13,D13+J13) -> 43188407 | L13: ='SB2'!L142 -> 50785223 | M13: ='SB2'!M142 -> 239340000
A14: Unspent borrowing | J14: 0 | K14: =IF(D14=0,C14+J14,D14+J14) -> 0
A15: Statutory requirements | C15: -195040276 | D15: 0 | E15: 0 | F15: 0 | G15: 0 | H15: 0 | I15: 0 | J15: 0 | K15: =IF(D15=0,C15+J15,D15+J15) -> -195040276 | L15: 0 | M15: 0
A16: Other working capital requirements | B16: 2 | C16: =-C40 -> 2307287266 | D16: =-D40 -> 0 | I16: =IF(D16=0,(K16-C16)-SUM(E16:H16),(K16-D16)-SUM(E16:H16)) -> 582327889 | J16: 582327889 | K16: =-K40 -> 2889615155 | L16: =-L40 -> 2761073775 | M16: =-M40 -> 854667306
A17: Other provisions | C17: 587370777 | D17: 0 | E17: 0 | F17: 0 | G17: 0 | H17: 0 | I17: 0 | J17: 0 | K17: =IF(D17=0,C17+J17,D17+J17) -> 587370777 | L17: 593464485 | M17: -22000000
A18: Long term investments committed | C18: =C55 -> 0 | D18: =D55 -> 0 | E18: 0 | F18: 0 | G18: 0 | H18: 0 | I18: =IF(D18=0,(K18-C18)-SUM(E18:H18),(K18-D18)-SUM(E18:H18)) -> 0 | J18: 0 | K18: =K55 -> 0 | L18: =L55 -> 0 | M18: =M55 -> 0
A19: Reserves to be backed by cash/investments | C19: =C70 -> 0 | D19: =D70 -> 0 | I19: =IF(D19=0,(K19-C19)-SUM(E19:H19),(K19-D19)-SUM(E19:H19)) -> 0 | J19: 0 | K19: =K70 -> 0 | L19: =L70 -> 0 | M19: =M70 -> 0
A20: Total Application of cash and investments: | C20: =SUM(C13:C19) -> 2742525174 | D20: 0 | E20: 0 | F20: 0 | G20: 0 | H20: 0 | I20: 582608889 | J20: 582608889 | K20: 3325134063 | L20: 3405323483 | M20: 1072007306
A21: Surplus(shortfall) | C21: =C10-C20 -> -2861285291 | D21: 0 | E21: 0 | F21: 0 | G21: 0 | H21: 0 | I21: -664776648 | J21: -664776648 | K21: -3526061939 | L21: -3762700116 | M21: -1515008935
A22: =head27a -> References
A23: 1. Must reconcile with the Adjustments Budget Cash Flow and Adjustements Budget Financial Position
A24: 2. Council approval for policy required - include sufficient working capital (e.g. allowing for a % of current debtors > 90 days as uncollectable)
A25: 3. Only complete if a previous adjusted budget has been approved in the same financial year. Reflect most recent adjusted budget.
A26: 4. Additional cash-backed accumulated funds/unspent funds (MFMA section 18(1)(b) and section 28(2)(e)) identified after the Original Budget approved and after annual financial statements audited (note: only where underspending could not reasonably have been foreseen)
A27: 5. Increases of funds approved under MFMA section 31
A28: 6. Adjustments approved in accordance with MFMA section 29
A29: 7. Adjustments to transfers from National or Provincial Government
A30: 8. Adjusts. = 'Other' Adjustments proposed to be approved; including revenue under-collection (MFMA section 28(2)(a)); additional revenue appropriation on existing programmes (section 28(2))(b); projected savings (section 28(2)(d)); error correction (section 28(2)(f))
A31: 9. G = B + C + D + E + F
A32: 10. Adjusted Budget H = (A or A1) + G
A37: =A16 -> Other working capital requirements
A38: Debtors | C38: =IF(ISERROR(ROUND(C43*C44,0)),0,(ROUND(C43*C44,0))) -> 422123336 | D38: =IF(ISERROR(ROUND(D43*D44,0)),0,(ROUND(D43*D44,0))) -> 0 | K38: =IF(ISERROR(ROUND(K43*K44,0)),0,(ROUND(K43*K44,0))) -> 466637394 | L38: =IF(ISERROR(ROUND(L43*L44,0)),0,(ROUND(L43*L44,0))) -> 391126863 | M38: =IF(ISERROR(ROUND(M43*M44,0)),0,(ROUND(M43*M44,0))) -> 248485694
A39: Creditors due | C39: ='SB2'!C140 -> 2729410602 | D39: ='SB2'!D140 -> 0 | K39: ='SB2'!K140 -> 3356252549 | L39: ='SB2'!L140 -> 3152200638 | M39: ='SB2'!M140 -> 1103153000
A40: Total | C40: =C38-C39 -> -2307287266 | D40: =D38-D39 -> 0 | K40: =K38-K39 -> -2889615155 | L40: =L38-L39 -> -2761073775 | M40: =M38-M39 -> -854667306
A42: Debtors collection assumptions:
A43: Balance outstanding - debtors | C43: ='B6-FinPos'!C9+'B6-FinPos'!C10+'B6-FinPos'!C11+'B6-FinPos'!C24+'B6-FinPos'!C25 -> 890256641 | D43: ='B6-FinPos'!D9+'B6-FinPos'!D10+'B6-FinPos'!D11+'B6-FinPos'!D24+'B6-FinPos'!D25 -> 0 | K43: ='B6-FinPos'!K9+'B6-FinPos'!K10+'B6-FinPos'!K11+'B6-FinPos'!K24+'B6-FinPos'!K25 -> 1015659528 | L43: ='B6-FinPos'!L9+'B6-FinPos'!L10+'B6-FinPos'!L11+'B6-FinPos'!L24+'B6-FinPos'!L25 -> 755220944 | M43: ='B6-FinPos'!M9+'B6-FinPos'!M10+'B6-FinPos'!M11+'B6-FinPos'!M24+'B6-FinPos'!M25 -> 428422074
A44: Estimate of debtors collection rate | C44: =IF(ISERROR('SB6'!G10),0,('SB6'!G10)) -> 0.4741591544 | D44: =IF(ISERROR('SB6'!H10),0,('SB6'!H10)) -> 0 | K44: =IF(ISERROR('SB6'!I10),0,('SB6'!I10)) -> 0.4594427379 | L44: =IF(ISERROR('SB6'!J10),0,('SB6'!J10)) -> 0.5178972667 | M44: =IF(ISERROR('SB6'!K10),0,('SB6'!K10)) -> 0.5800020803
A46: =A18 -> Long term investments committed
A47: (Insert description; eg sinking fund)
C55: =SUM(C47:C54) -> 0 | D55: =SUM(D47:D54) -> 0 | K55: =SUM(K47:K54) -> 0 | L55: =SUM(L47:L54) -> 0 | M55: =SUM(M47:M54) -> 0
A57: =A19 -> Reserves to be backed by cash/investments
A58: Housing Development Fund | C58: =+'SB2'!C176 -> 0 | D58: =+'SB2'!D176 -> 0 | K58: =+'SB2'!K176 -> 0 | L58: =+'SB2'!L176 -> 0 | M58: =+'SB2'!M176 -> 0
A59: Capital replacement | C59: ='SB2'!C177 -> 0 | D59: ='SB2'!D177 -> 0 | K59: ='SB2'!K177 -> 0 | L59: ='SB2'!L177 -> 0 | M59: ='SB2'!M177 -> 0
A60: Self-insurance | C60: ='SB2'!C178 -> 0 | D60: ='SB2'!D178 -> 0 | K60: ='SB2'!K178 -> 0 | L60: ='SB2'!L178 -> 0 | M60: ='SB2'!M178 -> 0
A61: Compensation for Occupational Injuries and Diseases
A62: Employee Benefit
A63: Non-current Provisions
A64: Valuation | C64: ='SB2'!C180 -> 0 | D64: ='SB2'!D180 -> 0 | K64: ='SB2'!K180 -> 0 | L64: ='SB2'!L180 -> 0 | M64: ='SB2'!M180 -> 0
A65: Investment in associate account
A66: Capitalisation
C67: ='SB2'!C179 -> 0 | D67: ='SB2'!D179 -> 0 | K67: ='SB2'!K179 -> 0 | L67: ='SB2'!L179 -> 0 | M67: ='SB2'!M179 -> 0
C69: ='SB2'!C179 -> 0 | D69: ='SB2'!D179 -> 0 | K69: ='SB2'!K179 -> 0 | L69: ='SB2'!L179 -> 0 | M69: ='SB2'!M179 -> 0
C70: =SUM(C58:C69) -> 0 | D70: =SUM(D58:D69) -> 0 | K70: =SUM(K58:K69) -> 0 | L70: 0 | M70: 0

Sheet B9-Asset
A1: =muni&" - "&_ADJ9&" - "&Date -> NW403 City Of Matlosana - Table B9 Asset Management - 45811
A2: =desc -> Description | B2: =head27 -> Ref | C2: =Head2 -> Budget Year 2024/25 | L2: =Head10 -> Budget Year +1 2025/26 | M2: =Head11 -> Budget Year +2 2026/27
C3: =Head6 -> Original Budget | D3: =Head54 -> Prior Adjusted | E3: =Head51 -> Accum. Funds | F3: =Head52 -> Multi-year capital | G3: =Head53 -> Unfore. Unavoid. | H3: =Head55 -> Nat. or Prov. Govt | I3: =Head50 -> Other Adjusts. | J3: =Head56 -> Total Adjusts. | K3: =Head7 -> Adjusted Budget | L3: =Head7 -> Adjusted Budget | M3: =Head7 -> Adjusted Budget
D4: 7 | E4: 8 | F4: 9 | G4: 10 | H4: 11 | I4: 12 | J4: 13 | K4: 14
A5: R thousands | C5: A | D5: A1 | E5: B | F5: C | G5: D | H5: E | I5: F | J5: G | K5: H
A6: CAPITAL EXPENDITURE
A7: Total New Assets to be adjusted | B7: 1 | C7: =C17+C20+C21+C24+C27+C28+SUM(C31:C37)+C40 -> 201149603 | D7: =D17+D20+D21+D24+D27+D28+SUM(D31:D37)+D40 -> 0 | E7: 0 | F7: 2188652 | G7: 0 | H7: 0 | I7: 1784212 | J7: 3972864 | K7: 205122467 | L7: 119605797 | M7: 180302257
A8: Roads Infrastructure | C8: =SB18a!C9 -> 12801949 | D8: =SB18a!D9 -> 0 | E8: =SB18a!E9 -> 0 | F8: =SB18a!F9 -> 6927737 | G8: =SB18a!G9 -> 0 | H8: =SB18a!H9 -> 0 | I8: =SB18a!I9 -> 21996733 | J8: =SB18a!J9 -> 28924470 | K8: =SB18a!K9 -> 41726419 | L8: =SB18a!L9 -> 15730798 | M8: =SB18a!M9 -> 39608740
A9: Storm water Infrastructure | C9: =SB18a!C14 -> 0 | D9: =SB18a!D14 -> 0 | E9: =SB18a!E14 -> 0 | F9: =SB18a!F14 -> 0 | G9: =SB18a!G14 -> 0 | H9: =SB18a!H14 -> 0 | I9: =SB18a!I14 -> 0 | J9: =SB18a!J14 -> 0 | K9: =SB18a!K14 -> 0 | L9: =SB18a!L14 -> 0 | M9: =SB18a!M14 -> 0
A10: Electrical Infrastructure | C10: =SB18a!C18 -> 0 | D10: =SB18a!D18 -> 0 | E10: =SB18a!E18 -> 0 | F10: =SB18a!F18 -> 2188652 | G10: =SB18a!G18 -> 0 | H10: =SB18a!H18 -> 0 | I10: =SB18a!I18 -> 17413233 | J10: =SB18a!J18 -> 19601885 | K10: =SB18a!K18 -> 19601885 | L10: =SB18a!L18 -> 0 | M10: =SB18a!M18 -> 0
A11: Water Supply Infrastructure | C11: =SB18a!C28 -> 22967749 | D11: =SB18a!D28 -> 0 | E11: =SB18a!E28 -> 0 | F11: =SB18a!F28 -> 0 | G11: =SB18a!G28 -> 0 | H11: =SB18a!H28 -> 0 | I11: =SB18a!I28 -> 6607217 | J11: =SB18a!J28 -> 6607217 | K11: =SB18a!K28 -> 29574966 | L11: =SB18a!L28 -> 11270449 | M11: =SB18a!M28 -> 40621250
A12: Sanitation Infrastructure | C12: =SB18a!C39 -> 61512454 | D12: =SB18a!D39 -> 0 | E12: =SB18a!E39 -> 0 | F12: =SB18a!F39 -> -6927737 | G12: =SB18a!G39 -> 0 | H12: =SB18a!H39 -> 0 | I12: =SB18a!I39 -> -6661391 | J12: =SB18a!J39 -> -13589128 | K12: =SB18a!K39 -> 47923326 | L12: =SB18a!L39 -> 43000000 | M12: =SB18a!M39 -> 100072267
A13: Solid Waste Infrastructure | C13: =SB18a!C46 -> 38773866 | D13: =SB18a!D46 -> 0 | E13: =SB18a!E46 -> 0 | F13: =SB18a!F46 -> 0 | G13: =SB18a!G46 -> 0 | H13: =SB18a!H46 -> 0 | I13: =SB18a!I46 -> -10854074 | J13: =SB18a!J46 -> -10854074 | K13: =SB18a!K46 -> 27919792 | L13: =SB18a!L46 -> 16000000 | M13: =SB18a!M46 -> 0
A14: Rail Infrastructure | C14: =SB18a!C54 -> 0 | D14: =SB18a!D54 -> 0 | E14: =SB18a!E54 -> 0 | F14: =SB18a!F54 -> 0 | G14: =SB18a!G54 -> 0 | H14: =SB18a!H54 -> 0 | I14: =SB18a!I54 -> 0 | J14: =SB18a!J54 -> 0 | K14: =SB18a!K54 -> 0 | L14: =SB18a!L54 -> 0 | M14: =SB18a!M54 -> 0
A15: Coastal Infrastructure | C15: =SB18a!C64 -> 0 | D15: =SB18a!D64 -> 0 | E15: =SB18a!E64 -> 0 | F15: =SB18a!F64 -> 0 | G15: =SB18a!G64 -> 0 | H15: =SB18a!H64 -> 0 | I15: =SB18a!I64 -> 0 | J15: =SB18a!J64 -> 0 | K15: =SB18a!K64 -> 0 | L15: =SB18a!L64 -> 0 | M15: =SB18a!M64 -> 0
A16: Information and Communication Infrastructure | C16: =SB18a!C70 -> 0 | D16: =SB18a!D70 -> 0 | E16: =SB18a!E70 -> 0 | F16: =SB18a!F70 -> 0 | G16: =SB18a!G70 -> 0 | H16: =SB18a!H70 -> 0 | I16: =SB18a!I70 -> 0 | J16: =SB18a!J70 -> 0 | K16: =SB18a!K70 -> 0 | L16: =SB18a!L70 -> 0 | M16: =SB18a!M70 -> 0
A17: Infrastructure | C17: =SUM(C8:C16) -> 136056018 | D17: =SUM(D8:D16) -> 0 | E17: 0 | F17: 2188652 | G17: 0 | H17: 0 | I17: 28501718 | J17: 30690370 | K17: 166746388 | L17: 86001247 | M17: 180302257
A18: Community Facilities | C18: =SB18a!C77 -> 0 | D18: =SB18a!D77 -> 0 | E18: =SB18a!E77 -> 0 | F18: =SB18a!F77 -> 0 | G18: =SB18a!G77 -> 0 | H18: =SB18a!H77 -> 0 | I18: =SB18a!I77 -> 0 | J18: =SB18a!J77 -> 0 | K18: =SB18a!K77 -> 0 | L18: =SB18a!L77 -> 0 | M18: =SB18a!M77 -> 0
A19: Sport and Recreation Facilities | C19: =SB18a!C100 -> 15093585 | D19: =SB18a!D100 -> 0 | E19: =SB18a!E100 -> 0 | F19: =SB18a!F100 -> 0 | G19: =SB18a!G100 -> 0 | H19: =SB18a!H100 -> 0 | I19: =SB18a!I100 -> -8717506 | J19: =SB18a!J100 -> -8717506 | K19: =SB18a!K100 -> 6376079 | L19: =SB18a!L100 -> 20604550 | M19: =SB18a!M100 -> 0
A20: Community Assets | C20: =SUM(C18:C19) -> 15093585 | D20: =SUM(D18:D19) -> 0 | E20: 0 | F20: 0 | G20: 0 | H20: 0 | I20: -8717506 | J20: -8717506 | K20: 6376079 | L20: 20604550 | M20: 0
A21: Heritage Assets | C21: =SB18a!C105 -> 0 | D21: =SB18a!D105 -> 0 | E21: =SB18a!E105 -> 0 | F21: =SB18a!F105 -> 0 | G21: =SB18a!G105 -> 0 | H21: =SB18a!H105 -> 0 | I21: =SB18a!I105 -> 0 | J21: =SB18a!J105 -> 0 | K21: =SB18a!K105 -> 0 | L21: =SB18a!L105 -> 0 | M21: =SB18a!M105 -> 0
A22: Revenue Generating | C22: =SB18a!C113 -> 0 | D22: =SB18a!D113 -> 0 | E22: =SB18a!E113 -> 0 | F22: =SB18a!F113 -> 0 | G22: =SB18a!G113 -> 0 | H22: =SB18a!H113 -> 0 | I22: =SB18a!I113 -> 0 | J22: =SB18a!J113 -> 0 | K22: =SB18a!K113 -> 0 | L22: =SB18a!L113 -> 0 | M22: =SB18a!M113 -> 0
A23: Non-revenue Generating | C23: =SB18a!C116 -> 0 | D23: =SB18a!D116 -> 0 | E23: =SB18a!E116 -> 0 | F23: =SB18a!F116 -> 0 | G23: =SB18a!G116 -> 0 | H23: =SB18a!H116 -> 0 | I23: =SB18a!I116 -> 0 | J23: =SB18a!J116 -> 0 | K23: =SB18a!K116 -> 0 | L23: =SB18a!L116 -> 0 | M23: =SB18a!M116 -> 0
A24: Investment properties | C24: =SUM(C22:C23) -> 0 | D24: =SUM(D22:D23) -> 0 | E24: 0 | F24: 0 | G24: 0 | H24: 0 | I24: 0 | J24: 0 | K24: 0 | L24: 0 | M24: 0
A25: Operational Buildings | C25: =SB18a!C121 -> 0 | D25: =SB18a!D121 -> 0 | E25: =SB18a!E121 -> 0 | F25: =SB18a!F121 -> 0 | G25: =SB18a!G121 -> 0 | H25: =SB18a!H121 -> 0 | I25: =SB18a!I121 -> 0 | J25: =SB18a!J121 -> 0 | K25: =SB18a!K121 -> 0 | L25: =SB18a!L121 -> 0 | M25: =SB18a!M121 -> 0
A26: Housing | C26: =SB18a!C133 -> 0 | D26: =SB18a!D133 -> 0 | E26: =SB18a!E133 -> 0 | F26: =SB18a!F133 -> 0 | G26: =SB18a!G133 -> 0 | H26: =SB18a!H133 -> 0 | I26: =SB18a!I133 -> 0 | J26: =SB18a!J133 -> 0 | K26: =SB18a!K133 -> 0 | L26: =SB18a!L133 -> 0 | M26: =SB18a!M133 -> 0
A27: Other Assets | B27: 6 | C27: =SUM(C25:C26) -> 0 | D27: =SUM(D25:D26) -> 0 | E27: 0 | F27: 0 | G27: 0 | H27: 0 | I27: 0 | J27: 0 | K27: 0 | L27: 0 | M27: 0
A28: Biological or Cultivated Assets | C28: =SB18a!C138 -> 0 | D28: =SB18a!D138 -> 0 | E28: =SB18a!E138 -> 0 | F28: =SB18a!F138 -> 0 | G28: =SB18a!G138 -> 0 | H28: =SB18a!H138 -> 0 | I28: =SB18a!I138 -> 0 | J28: =SB18a!J138 -> 0 | K28: =SB18a!K138 -> 0 | L28: =SB18a!L138 -> 0 | M28: =SB18a!M138 -> 0
A29: Servitudes | C29: =SB18a!C142 -> 0 | D29: =SB18a!D142 -> 0 | E29: =SB18a!E142 -> 0 | F29: =SB18a!F142 -> 0 | G29: =SB18a!G142 -> 0 | H29: =SB18a!H142 -> 0 | I29: =SB18a!I142 -> 0 | J29: =SB18a!J142 -> 0 | K29: =SB18a!K142 -> 0 | L29: =SB18a!L142 -> 0 | M29: =SB18a!M142 -> 0
A30: Licences and Rights | C30: =SB18a!C143 -> 0 | D30: =SB18a!D143 -> 0 | E30: =SB18a!E143 -> 0 | F30: =SB18a!F143 -> 0 | G30: =SB18a!G143 -> 0 | H30: =SB18a!H143 -> 0 | I30: =SB18a!I143 -> 0 | J30: =SB18a!J143 -> 0 | K30: =SB18a!K143 -> 0 | L30: =SB18a!L143 -> 0 | M30: =SB18a!M143 -> 0
A31: Intangible Assets | C31: =SUM(C29:C30) -> 0 | D31: =SUM(D29:D30) -> 0 | E31: 0 | F31: 0 | G31: 0 | H31: 0 | I31: 0 | J31: 0 | K31: 0 | L31: 0 | M31: 0
A32: Computer Equipment | C32: =SB18a!C151 -> 3000000 | D32: =SB18a!D151 -> 0 | E32: =SB18a!E151 -> 0 | F32: =SB18a!F151 -> 0 | G32: =SB18a!G151 -> 0 | H32: =SB18a!H151 -> 0 | I32: =SB18a!I151 -> 0 | J32: =SB18a!J151 -> 0 | K32: =SB18a!K151 -> 3000000 | L32: =SB18a!L151 -> 0 | M32: =SB18a!M151 -> 0
A33: Furniture and Office Equipment | C33: =SB18a!C154 -> 2000000 | D33: =SB18a!D154 -> 0 | E33: =SB18a!E154 -> 0 | F33: =SB18a!F154 -> 0 | G33: =SB18a!G154 -> 0 | H33: =SB18a!H154 -> 0 | I33: =SB18a!I154 -> 0 | J33: =SB18a!J154 -> 0 | K33: =SB18a!K154 -> 2000000 | L33: =SB18a!L154 -> 0 | M33: =SB18a!M154 -> 0
A34: Machinery and Equipment | C34: =SB18a!C157 -> 5000000 | D34: =SB18a!D157 -> 0 | E34: =SB18a!E157 -> 0 | F34: =SB18a!F157 -> 0 | G34: =SB18a!G157 -> 0 | H34: =SB18a!H157 -> 0 | I34: =SB18a!I157 -> -3000000 | J34: =SB18a!J157 -> -3000000 | K34: =SB18a!K157 -> 2000000 | L34: =SB18a!L157 -> 0 | M34: =SB18a!M157 -> 0
A35: Transport Assets | C35: =SB18a!C160 -> 40000000 | D35: =SB18a!D160 -> 0 | E35: =SB18a!E160 -> 0 | F35: =SB18a!F160 -> 0 | G35: =SB18a!G160 -> 0 | H35: =SB18a!H160 -> 0 | I35: =SB18a!I160 -> -15000000 | J35: =SB18a!J160 -> -15000000 | K35: =SB18a!K160 -> 25000000 | L35: =SB18a!L160 -> 13000000 | M35: =SB18a!M160 -> 0
A36: Land | C36: =SB18a!C163 -> 0 | D36: =SB18a!D163 -> 0 | E36: =SB18a!E163 -> 0 | F36: =SB18a!F163 -> 0 | G36: =SB18a!G163 -> 0 | H36: =SB18a!H163 -> 0 | I36: =SB18a!I163 -> 0 | J36: =SB18a!J163 -> 0 | K36: =SB18a!K163 -> 0 | L36: =SB18a!L163 -> 0 | M36: =SB18a!M163 -> 0
A37: Zoo's, Marine and Non-biological Animals | C37: =SB18a!C166 -> 0 | D37: =SB18a!D166 -> 0 | E37: =SB18a!E166 -> 0 | F37: =SB18a!F166 -> 0 | G37: =SB18a!G166 -> 0 | H37: =SB18a!H166 -> 0 | I37: =SB18a!I166 -> 0 | J37: =SB18a!J166 -> 0 | K37: =SB18a!K166 -> 0 | L37: =SB18a!L166 -> 0 | M37: =SB18a!M166 -> 0
A38: Mature | C38: =+SB18a!C170 -> 0 | D38: =+SB18a!D170 -> 0 | E38: =+SB18a!E170 -> 0 | F38: =+SB18a!F170 -> 0 | G38: =+SB18a!G170 -> 0 | H38: =+SB18a!H170 -> 0 | I38: =+SB18a!I170 -> 0 | J38: =+SB18a!J170 -> 0 | K38: =+SB18a!K170 -> 0 | L38: =+SB18a!L170 -> 0 | M38: =+SB18a!M170 -> 0
A39: Immature | C39: =+SB18a!C173 -> 0 | D39: =+SB18a!D173 -> 0 | E39: =+SB18a!E173 -> 0 | F39: =+SB18a!F173 -> 0 | G39: =+SB18a!G173 -> 0 | H39: =+SB18a!H173 -> 0 | I39: =+SB18a!I173 -> 0 | J39: =+SB18a!J173 -> 0 | K39: =+SB18a!K173 -> 0 | L39: =+SB18a!L173 -> 0 | M39: =+SB18a!M173 -> 0
A40: Living Resources | C40: =+C38+C39 -> 0 | D40: =+D38+D39 -> 0 | E40: 0 | F40: 0 | G40: 0 | H40: 0 | I40: 0 | J40: 0 | K40: 0 | L40: 0 | M40: 0
A42: Total Renewal of Existing Assets to be adjusted | B42: 2 | C42: =C52+C55+C56+C59+C62+C63+SUM(C66:C72)+C75 -> 17612652 | D42: =D52+D55+D56+D59+D62+D63+SUM(D66:D72)+D75 -> 0 | E42: 0 | F42: -2188652 | G42: 0 | H42: 0 | I42: 0 | J42: -2188652 | K42: 15424000 | L42: 67918203 | M42: 32508689
A43: Roads Infrastructure | C43: =SB18b!C9 -> 0 | D43: =SB18b!D9 -> 0 | E43: =SB18b!E9 -> 0 | F43: =SB18b!F9 -> 0 | G43: =SB18b!G9 -> 0 | H43: =SB18b!H9 -> 0 | I43: =SB18b!I9 -> 0 | J43: =SB18b!J9 -> 0 | K43: =SB18b!K9 -> 0 | L43: =SB18b!L9 -> 0 | M43: =SB18b!M9 -> 0
A44: Storm water Infrastructure | C44: =SB18b!C14 -> 0 | D44: =SB18b!D14 -> 0 | E44: =SB18b!E14 -> 0 | F44: =SB18b!F14 -> 0 | G44: =SB18b!G14 -> 0 | H44: =SB18b!H14 -> 0 | I44: =SB18b!I14 -> 0 | J44: =SB18b!J14 -> 0 | K44: =SB18b!K14 -> 0 | L44: =SB18b!L14 -> 0 | M44: =SB18b!M14 -> 0
A45: Electrical Infrastructure | C45: =SB18b!C18 -> 5112652 | D45: =SB18b!D18 -> 0 | E45: =SB18b!E18 -> 0 | F45: =SB18b!F18 -> -2188652 | G45: =SB18b!G18 -> 0 | H45: =SB18b!H18 -> 0 | I45: =SB18b!I18 -> 0 | J45: =SB18b!J18 -> -2188652 | K45: =SB18b!K18 -> 2924000 | L45: =SB18b!L18 -> 12918203 | M45: =SB18b!M18 -> 14877305
A46: Water Supply Infrastructure | C46: =SB18b!C28 -> 0 | D46: =SB18b!D28 -> 0 | E46: =SB18b!E28 -> 0 | F46: =SB18b!F28 -> 0 | G46: =SB18b!G28 -> 0 | H46: =SB18b!H28 -> 0 | I46: =SB18b!I28 -> 0 | J46: =SB18b!J28 -> 0 | K46: =SB18b!K28 -> 0 | L46: =SB18b!L28 -> 0 | M46: =SB18b!M28 -> 0
A47: Sanitation Infrastructure | C47: =SB18b!C39 -> 12500000 | D47: =SB18b!D39 -> 0 | E47: =SB18b!E39 -> 0 | F47: =SB18b!F39 -> 0 | G47: =SB18b!G39 -> 0 | H47: =SB18b!H39 -> 0 | I47: =SB18b!I39 -> 0 | J47: =SB18b!J39 -> 0 | K47: =SB18b!K39 -> 12500000 | L47: =SB18b!L39 -> 55000000 | M47: =SB18b!M39 -> 17631384
A48: Solid Waste Infrastructure | C48: =SB18b!C46 -> 0 | D48: =SB18b!D46 -> 0 | E48: =SB18b!E46 -> 0 | F48: =SB18b!F46 -> 0 | G48: =SB18b!G46 -> 0 | H48: =SB18b!H46 -> 0 | I48: =SB18b!I46 -> 0 | J48: =SB18b!J46 -> 0 | K48: =SB18b!K46 -> 0 | L48: =SB18b!L46 -> 0 | M48: =SB18b!M46 -> 0
A49: Rail Infrastructure | C49: =SB18b!C54 -> 0 | D49: =SB18b!D54 -> 0 | E49: =SB18b!E54 -> 0 | F49: =SB18b!F54 -> 0 | G49: =SB18b!G54 -> 0 | H49: =SB18b!H54 -> 0 | I49: =SB18b!I54 -> 0 | J49: =SB18b!J54 -> 0 | K49: =SB18b!K54 -> 0 | L49: =SB18b!L54 -> 0 | M49: =SB18b!M54 -> 0
A50: Coastal Infrastructure | C50: =SB18b!C64 -> 0 | D50: =SB18b!D64 -> 0 | E50: =SB18b!E64 -> 0 | F50: =SB18b!F64 -> 0 | G50: =SB18b!G64 -> 0 | H50: =SB18b!H64 -> 0 | I50: =SB18b!I64 -> 0 | J50: =SB18b!J64 -> 0 | K50: =SB18b!K64 -> 0 | L50: =SB18b!L64 -> 0 | M50: =SB18b!M64 -> 0
A51: Information and Communication Infrastructure | C51: =SB18b!C70 -> 0 | D51: =SB18b!D70 -> 0 | E51: =SB18b!E70 -> 0 | F51: =SB18b!F70 -> 0 | G51: =SB18b!G70 -> 0 | H51: =SB18b!H70 -> 0 | I51: =SB18b!I70 -> 0 | J51: =SB18b!J70 -> 0 | K51: =SB18b!K70 -> 0 | L51: =SB18b!L70 -> 0 | M51: =SB18b!M70 -> 0
A52: Infrastructure | C52: =SUM(C43:C51) -> 17612652 | D52: =SUM(D43:D51) -> 0 | E52: 0 | F52: -2188652 | G52: 0 | H52: 0 | I52: 0 | J52: -2188652 | K52: 15424000 | L52: 67918203 | M52: 32508689
A53: Community Facilities | C53: =SB18b!C77 -> 0 | D53: =SB18b!D77 -> 0 | E53: =SB18b!E77 -> 0 | F53: =SB18b!F77 -> 0 | G53: =SB18b!G77 -> 0 | H53: =SB18b!H77 -> 0 | I53: =SB18b!I77 -> 0 | J53: =SB18b!J77 -> 0 | K53: =SB18b!K77 -> 0 | L53: =SB18b!L77 -> 0 | M53: =SB18b!M77 -> 0
A54: Sport and Recreation Facilities | C54: =SB18b!C100 -> 0 | D54: =SB18b!D100 -> 0 | E54: =SB18b!E100 -> 0 | F54: =SB18b!F100 -> 0 | G54: =SB18b!G100 -> 0 | H54: =SB18b!H100 -> 0 | I54: =SB18b!I100 -> 0 | J54: =SB18b!J100 -> 0 | K54: =SB18b!K100 -> 0 | L54: =SB18b!L100 -> 0 | M54: =SB18b!M100 -> 0
A55: Community Assets | C55: =SUM(C53:C54) -> 0 | D55: =SUM(D53:D54) -> 0 | E55: 0 | F55: 0 | G55: 0 | H55: 0 | I55: 0 | J55: 0 | K55: 0 | L55: 0 | M55: 0
A56: Heritage Assets | C56: =SB18b!C105 -> 0 | D56: =SB18b!D105 -> 0 | E56: =SB18b!E105 -> 0 | F56: =SB18b!F105 -> 0 | G56: =SB18b!G105 -> 0 | H56: =SB18b!H105 -> 0 | I56: =SB18b!I105 -> 0 | J56: =SB18b!J105 -> 0 | K56: =SB18b!K105 -> 0 | L56: =SB18b!L105 -> 0 | M56: =SB18b!M105 -> 0
A57: Revenue Generating | C57: =SB18b!C113 -> 0 | D57: =SB18b!D113 -> 0 | E57: =SB18b!E113 -> 0 | F57: =SB18b!F113 -> 0 | G57: =SB18b!G113 -> 0 | H57: =SB18b!H113 -> 0 | I57: =SB18b!I113 -> 0 | J57: =SB18b!J113 -> 0 | K57: =SB18b!K113 -> 0 | L57: =SB18b!L113 -> 0 | M57: =SB18b!M113 -> 0
A58: Non-revenue Generating | C58: =SB18b!C116 -> 0 | D58: =SB18b!D116 -> 0 | E58: =SB18b!E116 -> 0 | F58: =SB18b!F116 -> 0 | G58: =SB18b!G116 -> 0 | H58: =SB18b!H116 -> 0 | I58: =SB18b!I116 -> 0 | J58: =SB18b!J116 -> 0 | K58: =SB18b!K116 -> 0 | L58: =SB18b!L116 -> 0 | M58: =SB18b!M116 -> 0
A59: Investment properties | C59: =SUM(C57:C58) -> 0 | D59: =SUM(D57:D58) -> 0 | E59: 0 | F59: 0 | G59: 0 | H59: 0 | I59: 0 | J59: 0 | K59: 0 | L59: 0 | M59: 0
A60: Operational Buildings | C60: =SB18b!C121 -> 0 | D60: =SB18b!D121 -> 0 | E60: =SB18b!E121 -> 0 | F60: =SB18b!F121 -> 0 | G60: =SB18b!G121 -> 0 | H60: =SB18b!H121 -> 0 | I60: =SB18b!I121 -> 0 | J60: =SB18b!J121 -> 0 | K60: =SB18b!K121 -> 0 | L60: =SB18b!L121 -> 0 | M60: =SB18b!M121 -> 0
A61: Housing | C61: =SB18b!C133 -> 0 | D61: =SB18b!D133 -> 0 | E61: =SB18b!E133 -> 0 | F61: =SB18b!F133 -> 0 | G61: =SB18b!G133 -> 0 | H61: =SB18b!H133 -> 0 | I61: =SB18b!I133 -> 0 | J61: =SB18b!J133 -> 0 | K61: =SB18b!K133 -> 0 | L61: =SB18b!L133 -> 0 | M61: =SB18b!M133 -> 0
A62: Other Assets | B62: 6 | C62: =SUM(C60:C61) -> 0 | D62: =SUM(D60:D61) -> 0 | E62: 0 | F62: 0 | G62: 0 | H62: 0 | I62: 0 | J62: 0 | K62: 0 | L62: 0 | M62: 0
A63: Biological or Cultivated Assets | C63: =SB18b!C138 -> 0 | D63: =SB18b!D138 -> 0 | E63: =SB18b!E138 -> 0 | F63: =SB18b!F138 -> 0 | G63: =SB18b!G138 -> 0 | H63: =SB18b!H138 -> 0 | I63: =SB18b!I138 -> 0 | J63: =SB18b!J138 -> 0 | K63: =SB18b!K138 -> 0 | L63: =SB18b!L138 -> 0 | M63: =SB18b!M138 -> 0
A64: Servitudes | C64: =SB18b!C142 -> 0 | D64: =SB18b!D142 -> 0 | E64: =SB18b!E142 -> 0 | F64: =SB18b!F142 -> 0 | G64: =SB18b!G142 -> 0 | H64: =SB18b!H142 -> 0 | I64: =SB18b!I142 -> 0 | J64: =SB18b!J142 -> 0 | K64: =SB18b!K142 -> 0 | L64: =SB18b!L142 -> 0 | M64: =SB18b!M142 -> 0
A65: Licences and Rights | C65: =SB18b!C143 -> 0 | D65: =SB18b!D143 -> 0 | E65: =SB18b!E143 -> 0 | F65: =SB18b!F143 -> 0 | G65: =SB18b!G143 -> 0 | H65: =SB18b!H143 -> 0 | I65: =SB18b!I143 -> 0 | J65: =SB18b!J143 -> 0 | K65: =SB18b!K143 -> 0 | L65: =SB18b!L143 -> 0 | M65: =SB18b!M143 -> 0
A66: Intangible Assets | C66: =SUM(C64:C65) -> 0 | D66: =SUM(D64:D65) -> 0 | E66: 0 | F66: 0 | G66: 0 | H66: 0 | I66: 0 | J66: 0 | K66: 0 | L66: 0 | M66: 0
A67: Computer Equipment | C67: =SB18b!C151 -> 0 | D67: =SB18b!D151 -> 0 | E67: =SB18b!E151 -> 0 | F67: =SB18b!F151 -> 0 | G67: =SB18b!G151 -> 0 | H67: =SB18b!H151 -> 0 | I67: =SB18b!I151 -> 0 | J67: =SB18b!J151 -> 0 | K67: =SB18b!K151 -> 0 | L67: =SB18b!L151 -> 0 | M67: =SB18b!M151 -> 0
A68: Furniture and Office Equipment | C68: =SB18b!C154 -> 0 | D68: =SB18b!D154 -> 0 | E68: =SB18b!E154 -> 0 | F68: =SB18b!F154 -> 0 | G68: =SB18b!G154 -> 0 | H68: =SB18b!H154 -> 0 | I68: =SB18b!I154 -> 0 | J68: =SB18b!J154 -> 0 | K68: =SB18b!K154 -> 0 | L68: =SB18b!L154 -> 0 | M68: =SB18b!M154 -> 0
A69: Machinery and Equipment | C69: =SB18b!C157 -> 0 | D69: =SB18b!D157 -> 0 | E69: =SB18b!E157 -> 0 | F69: =SB18b!F157 -> 0 | G69: =SB18b!G157 -> 0 | H69: =SB18b!H157 -> 0 | I69: =SB18b!I157 -> 0 | J69: =SB18b!J157 -> 0 | K69: =SB18b!K157 -> 0 | L69: =SB18b!L157 -> 0 | M69: =SB18b!M157 -> 0
A70: Transport Assets | C70: =SB18b!C160 -> 0 | D70: =SB18b!D160 -> 0 | E70: =SB18b!E160 -> 0 | F70: =SB18b!F160 -> 0 | G70: =SB18b!G160 -> 0 | H70: =SB18b!H160 -> 0 | I70: =SB18b!I160 -> 0 | J70: =SB18b!J160 -> 0 | K70: =SB18b!K160 -> 0 | L70: =SB18b!L160 -> 0 | M70: =SB18b!M160 -> 0
A71: Land | C71: =SB18b!C163 -> 0 | D71: =SB18b!D163 -> 0 | E71: =SB18b!E163 -> 0 | F71: =SB18b!F163 -> 0 | G71: =SB18b!G163 -> 0 | H71: =SB18b!H163 -> 0 | I71: =SB18b!I163 -> 0 | J71: =SB18b!J163 -> 0 | K71: =SB18b!K163 -> 0 | L71: =SB18b!L163 -> 0 | M71: =SB18b!M163 -> 0
A72: Zoo's, Marine and Non-biological Animals | C72: =SB18b!C166 -> 0 | D72: =SB18b!D166 -> 0 | E72: =SB18b!E166 -> 0 | F72: =SB18b!F166 -> 0 | G72: =SB18b!G166 -> 0 | H72: =SB18b!H166 -> 0 | I72: =SB18b!I166 -> 0 | J72: =SB18b!J166 -> 0 | K72: =SB18b!K166 -> 0 | L72: =SB18b!L166 -> 0 | M72: =SB18b!M166 -> 0
A73: Mature | C73: =+SB18b!C170 -> 0 | D73: =+SB18b!D170 -> 0 | E73: =+SB18b!E170 -> 0 | F73: =+SB18b!F170 -> 0 | G73: =+SB18b!G170 -> 0 | H73: =+SB18b!H170 -> 0 | I73: =+SB18b!I170 -> 0 | J73: =+SB18b!J170 -> 0 | K73: =+SB18b!K170 -> 0 | L73: =+SB18b!L170 -> 0 | M73: =+SB18b!M170 -> 0
A74: Immature | C74: =+SB18b!C173 -> 0 | D74: =+SB18b!D173 -> 0 | E74: =+SB18b!E173 -> 0 | F74: =+SB18b!F173 -> 0 | G74: =+SB18b!G173 -> 0 | H74: =+SB18b!H173 -> 0 | I74: =+SB18b!I173 -> 0 | J74: =+SB18b!J173 -> 0 | K74: =+SB18b!K173 -> 0 | L74: =+SB18b!L173 -> 0 | M74: =+SB18b!M173 -> 0
A75: Living Resources | C75: =+C73+C74 -> 0 | D75: 0 | E75: 0 | F75: 0 | G75: 0 | H75: 0 | I75: 0 | J75: 0 | K75: 0 | L75: 0 | M75: 0
A77: Total Upgrading of Existing Assets to be adjusted | B77: 2a | C77: =C87+C90+C91+C94+C97+C98+SUM(C101:C107)+C110 -> 17487544 | D77: =D87+D90+D91+D94+D97+D98+SUM(D101:D107)+D110 -> 0 | E77: 0 | F77: 0 | G77: 0 | H77: 0 | I77: -2508978 | J77: -2508978 | K77: 14978566 | L77: 10000000 | M77: 12476053
A78: Roads Infrastructure | C78: =SB18e!C9 -> 0 | D78: =SB18e!D9 -> 0 | E78: =SB18e!E9 -> 0 | F78: =SB18e!F9 -> 0 | G78: =SB18e!G9 -> 0 | H78: =SB18e!H9 -> 0 | I78: =SB18e!I9 -> 0 | J78: =SB18e!J9 -> 0 | K78: =SB18e!K9 -> 0 | L78: =SB18e!L9 -> 0 | M78: =SB18e!M9 -> 0
A79: Storm water Infrastructure | C79: =SB18e!C14 -> 0 | D79: =SB18e!D14 -> 0 | E79: =SB18e!E14 -> 0 | F79: =SB18e!F14 -> 0 | G79: =SB18e!G14 -> 0 | H79: =SB18e!H14 -> 0 | I79: =SB18e!I14 -> 0 | J79: =SB18e!J14 -> 0 | K79: =SB18e!K14 -> 0 | L79: =SB18e!L14 -> 0 | M79: =SB18e!M14 -> 0
A80: Electrical Infrastructure | C80: =SB18e!C18 -> 0 | D80: =SB18e!D18 -> 0 | E80: =SB18e!E18 -> 0 | F80: =SB18e!F18 -> 0 | G80: =SB18e!G18 -> 0 | H80: =SB18e!H18 -> 0 | I80: =SB18e!I18 -> 0 | J80: =SB18e!J18 -> 0 | K80: =SB18e!K18 -> 0 | L80: =SB18e!L18 -> 0 | M80: =SB18e!M18 -> 0
A81: Water Supply Infrastructure | C81: =SB18e!C28 -> 12500000 | D81: =SB18e!D28 -> 0 | E81: =SB18e!E28 -> 0 | F81: =SB18e!F28 -> 0 | G81: =SB18e!G28 -> 0 | H81: =SB18e!H28 -> 0 | I81: =SB18e!I28 -> 0 | J81: =SB18e!J28 -> 0 | K81: =SB18e!K28 -> 12500000 | L81: =SB18e!L28 -> 0 | M81: =SB18e!M28 -> 12476053
A82: Sanitation Infrastructure | C82: =SB18e!C39 -> 0 | D82: =SB18e!D39 -> 0 | E82: =SB18e!E39 -> 0 | F82: =SB18e!F39 -> 0 | G82: =SB18e!G39 -> 0 | H82: =SB18e!H39 -> 0 | I82: =SB18e!I39 -> 0 | J82: =SB18e!J39 -> 0 | K82: =SB18e!K39 -> 0 | L82: =SB18e!L39 -> 0 | M82: =SB18e!M39 -> 0
A83: Solid Waste Infrastructure | C83: =SB18e!C46 -> 0 | D83: =SB18e!D46 -> 0 | E83: =SB18e!E46 -> 0 | F83: =SB18e!F46 -> 0 | G83: =SB18e!G46 -> 0 | H83: =SB18e!H46 -> 0 | I83: =SB18e!I46 -> 0 | J83: =SB18e!J46 -> 0 | K83: =SB18e!K46 -> 0 | L83: =SB18e!L46 -> 0 | M83: =SB18e!M46 -> 0
A84: Rail Infrastructure | C84: =SB18e!C54 -> 0 | D84: =SB18e!D54 -> 0 | E84: =SB18e!E54 -> 0 | F84: =SB18e!F54 -> 0 | G84: =SB18e!G54 -> 0 | H84: =SB18e!H54 -> 0 | I84: =SB18e!I54 -> 0 | J84: =SB18e!J54 -> 0 | K84: =SB18e!K54 -> 0 | L84: =SB18e!L54 -> 0 | M84: =SB18e!M54 -> 0
A85: Coastal Infrastructure | C85: =SB18e!C64 -> 0 | D85: =SB18e!D64 -> 0 | E85: =SB18e!E64 -> 0 | F85: =SB18e!F64 -> 0 | G85: =SB18e!G64 -> 0 | H85: =SB18e!H64 -> 0 | I85: =SB18e!I64 -> 0 | J85: =SB18e!J64 -> 0 | K85: =SB18e!K64 -> 0 | L85: =SB18e!L64 -> 0 | M85: =SB18e!M64 -> 0
A86: Information and Communication Infrastructure | C86: =SB18e!C70 -> 0 | D86: =SB18e!D70 -> 0 | E86: =SB18e!E70 -> 0 | F86: =SB18e!F70 -> 0 | G86: =SB18e!G70 -> 0 | H86: =SB18e!H70 -> 0 | I86: =SB18e!I70 -> 0 | J86: =SB18e!J70 -> 0 | K86: =SB18e!K70 -> 0 | L86: =SB18e!L70 -> 0 | M86: =SB18e!M70 -> 0
A87: Infrastructure | C87: =SUM(C78:C86) -> 12500000 | D87: =SUM(D78:D86) -> 0 | E87: 0 | F87: 0 | G87: 0 | H87: 0 | I87: 0 | J87: 0 | K87: 12500000 | L87: 0 | M87: 12476053
A88: Community Facilities | C88: =SB18e!C77 -> 4987544 | D88: =SB18e!D77 -> 0 | E88: =SB18e!E77 -> 0 | F88: =SB18e!F77 -> 0 | G88: =SB18e!G77 -> 0 | H88: =SB18e!H77 -> 0 | I88: =SB18e!I77 -> -2508978 | J88: =SB18e!J77 -> -2508978 | K88: =SB18e!K77 -> 2478566 | L88: =SB18e!L77 -> 10000000 | M88: =SB18e!M77 -> 0
A89: Sport and Recreation Facilities | C89: =SB18e!C100 -> 0 | D89: =SB18e!D100 -> 0 | E89: =SB18e!E100 -> 0 | F89: =SB18e!F100 -> 0 | G89: =SB18e!G100 -> 0 | H89: =SB18e!H100 -> 0 | I89: =SB18e!I100 -> 0 | J89: =SB18e!J100 -> 0 | K89: =SB18e!K100 -> 0 | L89: =SB18e!L100 -> 0 | M89: =SB18e!M100 -> 0
A90: Community Assets | C90: =SUM(C88:C89) -> 4987544 | D90: =SUM(D88:D89) -> 0 | E90: 0 | F90: 0 | G90: 0 | H90: 0 | I90: -2508978 | J90: -2508978 | K90: 2478566 | L90: 10000000 | M90: 0
A91: Heritage Assets | C91: =SB18e!C105 -> 0 | D91: =SB18e!D105 -> 0 | E91: =SB18e!E105 -> 0 | F91: =SB18e!F105 -> 0 | G91: =SB18e!G105 -> 0 | H91: =SB18e!H105 -> 0 | I91: =SB18e!I105 -> 0 | J91: =SB18e!J105 -> 0 | K91: =SB18e!K105 -> 0 | L91: =SB18e!L105 -> 0 | M91: =SB18e!M105 -> 0
A92: Revenue Generating | C92: =SB18e!C113 -> 0 | D92: =SB18e!D113 -> 0 | E92: =SB18e!E113 -> 0 | F92: =SB18e!F113 -> 0 | G92: =SB18e!G113 -> 0 | H92: =SB18e!H113 -> 0 | I92: =SB18e!I113 -> 0 | J92: =SB18e!J113 -> 0 | K92: =SB18e!K113 -> 0 | L92: =SB18e!L113 -> 0 | M92: =SB18e!M113 -> 0
A93: Non-revenue Generating | C93: =SB18e!C116 -> 0 | D93: =SB18e!D116 -> 0 | E93: =SB18e!E116 -> 0 | F93: =SB18e!F116 -> 0 | G93: =SB18e!G116 -> 0 | H93: =SB18e!H116 -> 0 | I93: =SB18e!I116 -> 0 | J93: =SB18e!J116 -> 0 | K93: =SB18e!K116 -> 0 | L93: =SB18e!L116 -> 0 | M93: =SB18e!M116 -> 0
A94: Investment properties | C94: =SUM(C92:C93) -> 0 | D94: =SUM(D92:D93) -> 0 | E94: 0 | F94: 0 | G94: 0 | H94: 0 | I94: 0 | J94: 0 | K94: 0 | L94: 0 | M94: 0
A95: Operational Buildings | C95: =SB18e!C121 -> 0 | D95: =SB18e!D121 -> 0 | E95: =SB18e!E121 -> 0 | F95: =SB18e!F121 -> 0 | G95: =SB18e!G121 -> 0 | H95: =SB18e!H121 -> 0 | I95: =SB18e!I121 -> 0 | J95: =SB18e!J121 -> 0 | K95: =SB18e!K121 -> 0 | L95: =SB18e!L121 -> 0 | M95: =SB18e!M121 -> 0
A96: Housing | C96: =SB18e!C133 -> 0 | D96: =SB18e!D133 -> 0 | E96: =SB18e!E133 -> 0 | F96: =SB18e!F133 -> 0 | G96: =SB18e!G133 -> 0 | H96: =SB18e!H133 -> 0 | I96: =SB18e!I133 -> 0 | J96: =SB18e!J133 -> 0 | K96: =SB18e!K133 -> 0 | L96: =SB18e!L133 -> 0 | M96: =SB18e!M133 -> 0
A97: Other Assets | B97: 6 | C97: =SUM(C95:C96) -> 0 | D97: =SUM(D95:D96) -> 0 | E97: 0 | F97: 0 | G97: 0 | H97: 0 | I97: 0 | J97: 0 | K97: 0 | L97: 0 | M97: 0
A98: Biological or Cultivated Assets | C98: =SB18e!C138 -> 0 | D98: =SB18e!D138 -> 0 | E98: =SB18e!E138 -> 0 | F98: =SB18e!F138 -> 0 | G98: =SB18e!G138 -> 0 | H98: =SB18e!H138 -> 0 | I98: =SB18e!I138 -> 0 | J98: =SB18e!J138 -> 0 | K98: =SB18e!K138 -> 0 | L98: =SB18e!L138 -> 0 | M98: =SB18e!M138 -> 0
A99: Servitudes | C99: =SB18e!C142 -> 0 | D99: =SB18e!D142 -> 0 | E99: =SB18e!E142 -> 0 | F99: =SB18e!F142 -> 0 | G99: =SB18e!G142 -> 0 | H99: =SB18e!H142 -> 0 | I99: =SB18e!I142 -> 0 | J99: =SB18e!J142 -> 0 | K99: =SB18e!K142 -> 0 | L99: =SB18e!L142 -> 0 | M99: =SB18e!M142 -> 0
A100: Licences and Rights | C100: =SB18e!C143 -> 0 | D100: =SB18e!D143 -> 0 | E100: =SB18e!E143 -> 0 | F100: =SB18e!F143 -> 0 | G100: =SB18e!G143 -> 0 | H100: =SB18e!H143 -> 0 | I100: =SB18e!I143 -> 0 | J100: =SB18e!J143 -> 0 | K100: =SB18e!K143 -> 0 | L100: =SB18e!L143 -> 0 | M100: =SB18e!M143 -> 0
A101: Intangible Assets | C101: =SUM(C99:C100) -> 0 | D101: =SUM(D99:D100) -> 0 | E101: 0 | F101: 0 | G101: 0 | H101: 0 | I101: 0 | J101: 0 | K101: 0 | L101: 0 | M101: 0
A102: Computer Equipment | C102: =SB18e!C151 -> 0 | D102: =SB18e!D151 -> 0 | E102: =SB18e!E151 -> 0 | F102: =SB18e!F151 -> 0 | G102: =SB18e!G151 -> 0 | H102: =SB18e!H151 -> 0 | I102: =SB18e!I151 -> 0 | J102: =SB18e!J151 -> 0 | K102: =SB18e!K151 -> 0 | L102: =SB18e!L151 -> 0 | M102: =SB18e!M151 -> 0
A103: Furniture and Office Equipment | C103: =SB18e!C154 -> 0 | D103: =SB18e!D154 -> 0 | E103: =SB18e!E154 -> 0 | F103: =SB18e!F154 -> 0 | G103: =SB18e!G154 -> 0 | H103: =SB18e!H154 -> 0 | I103: =SB18e!I154 -> 0 | J103: =SB18e!J154 -> 0 | K103: =SB18e!K154 -> 0 | L103: =SB18e!L154 -> 0 | M103: =SB18e!M154 -> 0
A104: Machinery and Equipment | C104: =SB18e!C157 -> 0 | D104: =SB18e!D157 -> 0 | E104: =SB18e!E157 -> 0 | F104: =SB18e!F157 -> 0 | G104: =SB18e!G157 -> 0 | H104: =SB18e!H157 -> 0 | I104: =SB18e!I157 -> 0 | J104: =SB18e!J157 -> 0 | K104: =SB18e!K157 -> 0 | L104: =SB18e!L157 -> 0 | M104: =SB18e!M157 -> 0
A105: Transport Assets | C105: =SB18e!C160 -> 0 | D105: =SB18e!D160 -> 0 | E105: =SB18e!E160 -> 0 | F105: =SB18e!F160 -> 0 | G105: =SB18e!G160 -> 0 | H105: =SB18e!H160 -> 0 | I105: =SB18e!I160 -> 0 | J105: =SB18e!J160 -> 0 | K105: =SB18e!K160 -> 0 | L105: =SB18e!L160 -> 0 | M105: =SB18e!M160 -> 0
A106: Land | C106: =SB18e!C163 -> 0 | D106: =SB18e!D163 -> 0 | E106: =SB18e!E163 -> 0 | F106: =SB18e!F163 -> 0 | G106: =SB18e!G163 -> 0 | H106: =SB18e!H163 -> 0 | I106: =SB18e!I163 -> 0 | J106: =SB18e!J163 -> 0 | K106: =SB18e!K163 -> 0 | L106: =SB18e!L163 -> 0 | M106: =SB18e!M163 -> 0
A107: Zoo's, Marine and Non-biological Animals | C107: =SB18e!C166 -> 0 | D107: =SB18e!D166 -> 0 | E107: =SB18e!E166 -> 0 | F107: =SB18e!F166 -> 0 | G107: =SB18e!G166 -> 0 | H107: =SB18e!H166 -> 0 | I107: =SB18e!I166 -> 0 | J107: =SB18e!J166 -> 0 | K107: =SB18e!K166 -> 0 | L107: =SB18e!L166 -> 0 | M107: =SB18e!M166 -> 0
A108: Mature | C108: =SB18e!C170 -> 0 | D108: =SB18e!D170 -> 0 | E108: =SB18e!E170 -> 0 | F108: =SB18e!F170 -> 0 | G108: =SB18e!G170 -> 0 | H108: =SB18e!H170 -> 0 | I108: =SB18e!I170 -> 0 | J108: =SB18e!J170 -> 0 | K108: =SB18e!K170 -> 0 | L108: =SB18e!L170 -> 0 | M108: =SB18e!M170 -> 0
A109: Immature | C109: =SB18e!C173 -> 0 | D109: =SB18e!D173 -> 0 | E109: =SB18e!E173 -> 0 | F109: =SB18e!F173 -> 0 | G109: =SB18e!G173 -> 0 | H109: =SB18e!H173 -> 0 | I109: =SB18e!I173 -> 0 | J109: =SB18e!J173 -> 0 | K109: =SB18e!K173 -> 0 | L109: =SB18e!L173 -> 0 | M109: =SB18e!M173 -> 0
A110: Living Resources | C110: =+C108+C109 -> 0 | D110: 0 | E110: 0 | F110: 0 | G110: 0 | H110: 0 | I110: 0 | J110: 0 | K110: 0 | L110: 0 | M110: 0
A112: Total Capital Expenditure to be adjusted | B112: 4 | C112: =C7+C42+C77 -> 236249799 | D112: 0 | E112: 0 | F112: 0 | G112: 0 | H112: 0 | I112: -724766 | J112: -724766 | K112: 235525033 | L112: 197524000 | M112: 225286999
A113: Roads Infrastructure | C113: =C8+C43+C78 -> 12801949 | D113: 0 | E113: 0 | F113: 6927737 | G113: 0 | H113: 0 | I113: 21996733 | J113: 28924470 | K113: 41726419 | L113: 15730798 | M113: 39608740
A114: Storm water Infrastructure | C114: =C9+C44+C79 -> 0 | D114: 0 | E114: 0 | F114: 0 | G114: 0 | H114: 0 | I114: 0 | J114: 0 | K114: 0 | L114: 0 | M114: 0
A115: Electrical Infrastructure | C115: =C10+C45+C80 -> 5112652 | D115: 0 | E115: 0 | F115: 0 | G115: 0 | H115: 0 | I115: 17413233 | J115: 17413233 | K115: 22525885 | L115: 12918203 | M115: 14877305
A116: Water Supply Infrastructure | C116: =C11+C46+C81 -> 35467749 | D116: 0 | E116: 0 | F116: 0 | G116: 0 | H116: 0 | I116: 6607217 | J116: 6607217 | K116: 42074966 | L116: 11270449 | M116: 53097303
A117: Sanitation Infrastructure | C117: =C12+C47+C82 -> 74012454 | D117: 0 | E117: 0 | F117: -6927737 | G117: 0 | H117: 0 | I117: -6661391 | J117: -13589128 | K117: 60423326 | L117: 98000000 | M117: 117703651
A118: Solid Waste Infrastructure | C118: =C13+C48+C83 -> 38773866 | D118: 0 | E118: 0 | F118: 0 | G118: 0 | H118: 0 | I118: -10854074 | J118: -10854074 | K118: 27919792 | L118: 16000000 | M118: 0
A119: Rail Infrastructure | C119: =C14+C49+C84 -> 0 | D119: 0 | E119: 0 | F119: 0 | G119: 0 | H119: 0 | I119: 0 | J119: 0 | K119: 0 | L119: 0 | M119: 0
A120: Coastal Infrastructure | C120: =C15+C50+C85 -> 0 | D120: 0 | E120: 0 | F120: 0 | G120: 0 | H120: 0 | I120: 0 | J120: 0 | K120: 0 | L120: 0 | M120: 0
A121: Information and Communication Infrastructure | C121: =C16+C51+C86 -> 0 | D121: 0 | E121: 0 | F121: 0 | G121: 0 | H121: 0 | I121: 0 | J121: 0 | K121: 0 | L121: 0 | M121: 0
A122: Infrastructure | C122: =C17+C52+C87 -> 166168670 | D122: 0 | E122: 0 | F122: 0 | G122: 0 | H122: 0 | I122: 28501718 | J122: 28501718 | K122: 194670388 | L122: 153919450 | M122: 225286999
A123: Community Facilities | C123: =C18+C53+C88 -> 4987544 | D123: 0 | E123: 0 | F123: 0 | G123: 0 | H123: 0 | I123: -2508978 | J123: -2508978 | K123: 2478566 | L123: 10000000 | M123: 0
A124: Sport and Recreation Facilities | C124: =C19+C54+C89 -> 15093585 | D124: 0 | E124: 0 | F124: 0 | G124: 0 | H124: 0 | I124: -8717506 | J124: -8717506 | K124: 6376079 | L124: 20604550 | M124: 0
A125: Community Assets | C125: =C20+C55+C90 -> 20081129 | D125: 0 | E125: 0 | F125: 0 | G125: 0 | H125: 0 | I125: -11226484 | J125: -11226484 | K125: 8854645 | L125: 30604550 | M125: 0
A126: Heritage Assets | C126: =C21+C56+C91 -> 0 | D126: 0 | E126: 0 | F126: 0 | G126: 0 | H126: 0 | I126: 0 | J126: 0 | K126: 0 | L126: 0 | M126: 0
A127: Revenue Generating | C127: =C22+C57+C92 -> 0 | D127: 0 | E127: 0 | F127: 0 | G127: 0 | H127: 0 | I127: 0 | J127: 0 | K127: 0 | L127: 0 | M127: 0
A128: Non-revenue Generating | C128: =C23+C58+C93 -> 0 | D128: =D23+D58+D93 -> 0 | E128: 0 | F128: 0 | G128: 0 | H128: 0 | I128: 0 | J128: 0 | K128: 0 | L128: 0 | M128: 0
A129: Investment properties | C129: 0 | D129: =D24+D59+D94 -> 0 | E129: 0 | F129: 0 | G129: 0 | H129: 0 | I129: 0 | J129: 0 | K129: 0 | L129: 0 | M129: 0
A130: Operational Buildings | C130: 0 | D130: =D25+D60+D95 -> 0 | E130: 0 | F130: 0 | G130: 0 | H130: 0 | I130: 0 | J130: 0 | K130: 0 | L130: 0 | M130: 0
A131: Housing | C131: 0 | D131: =D26+D61+D96 -> 0 | E131: 0 | F131: 0 | G131: 0 | H131: 0 | I131: 0 | J131: 0 | K131: 0 | L131: 0 | M131: 0
A132: Other Assets | C132: 0 | D132: =D27+D62+D97 -> 0 | E132: 0 | F132: 0 | G132: 0 | H132: 0 | I132: 0 | J132: 0 | K132: 0 | L132: 0 | M132: 0
A133: Biological or Cultivated Assets | C133: 0 | D133: =D28+D63+D98 -> 0 | E133: 0 | F133: 0 | G133: 0 | H133: 0 | I133: 0 | J133: 0 | K133: 0 | L133: 0 | M133: 0
A134: Servitudes | C134: 0 | D134: =D29+D64+D99 -> 0 | E134: 0 | F134: 0 | G134: 0 | H134: 0 | I134: 0 | J134: 0 | K134: 0 | L134: 0 | M134: 0
A135: Licences and Rights | C135: 0 | D135: =D30+D65+D100 -> 0 | E135: 0 | F135: 0 | G135: 0 | H135: 0 | I135: 0 | J135: 0 | K135: 0 | L135: 0 | M135: 0
A136: Intangible Assets | C136: 0 | D136: =D31+D66+D101 -> 0 | E136: 0 | F136: 0 | G136: 0 | H136: 0 | I136: 0 | J136: 0 | K136: 0 | L136: 0 | M136: 0
A137: Computer Equipment | C137: 3000000 | D137: =D32+D67+D102 -> 0 | E137: 0 | F137: 0 | G137: 0 | H137: 0 | I137: 0 | J137: 0 | K137: 3000000 | L137: 0 | M137: 0
A138: Furniture and Office Equipment | C138: 2000000 | D138: =D33+D68+D103 -> 0 | E138: 0 | F138: 0 | G138: 0 | H138: 0 | I138: 0 | J138: 0 | K138: 2000000 | L138: 0 | M138: 0
A139: Machinery and Equipment | C139: 5000000 | D139: =D34+D69+D104 -> 0 | E139: 0 | F139: 0 | G139: 0 | H139: 0 | I139: -3000000 | J139: -3000000 | K139: 2000000 | L139: 0 | M139: 0
A140: Transport Assets | C140: 40000000 | D140: =D35+D70+D105 -> 0 | E140: 0 | F140: 0 | G140: 0 | H140: 0 | I140: -15000000 | J140: -15000000 | K140: 25000000 | L140: 13000000 | M140: 0
A141: Land | C141: 0 | D141: =D36+D71+D106 -> 0 | E141: 0 | F141: 0 | G141: 0 | H141: 0 | I141: 0 | J141: 0 | K141: 0 | L141: 0 | M141: 0
A142: Zoo's, Marine and Non-biological Animals | C142: 0 | D142: =D37+D72+D107 -> 0 | E142: 0 | F142: 0 | G142: 0 | H142: 0 | I142: 0 | J142: 0 | K142: 0 | L142: 0 | M142: 0
A143: Mature | C143: 0 | D143: 0 | E143: 0 | F143: 0 | G143: 0 | H143: 0 | I143: 0 | J143: 0 | K143: 0 | L143: 0 | M143: 0
A144: Immature | C144: 0 | D144: 0 | E144: 0 | F144: 0 | G144: 0 | H144: 0 | I144: 0 | J144: 0 | K144: 0 | L144: 0 | M144: 0
A145: Living Resources | C145: =+C40+C75+C110 -> 0 | D145: =+D40+D75+D110 -> 0 | E145: 0 | F145: 0 | G145: 0 | H145: 0 | I145: 0 | J145: 0 | K145: 0 | L145: 0 | M145: 0
A146: TOTAL CAPITAL EXPENDITURE to be adjusted | B146: 4 | C146: =C7+C42+C77 -> 236249799 | D146: =D7+D42+D77 -> 0 | E146: 0 | F146: 0 | G146: 0 | H146: 0 | I146: -724766 | J146: -724766 | K146: 235525033 | L146: 197524000 | M146: 225286999
A148: ASSET REGISTER SUMMARY - PPE (WDV) | B148: 5 | C148: =C158+C161+C162+C165+C168+C169+SUM(C172:C179) -> 3849371866 | D148: =D158+D161+D162+D165+D168+D169+SUM(D172:D179) -> 0 | E148: 0 | F148: 0 | G148: 0 | H148: 0 | I148: -724766 | J148: -724766 | K148: 3848647100 | L148: 3825575002 | M148: 225286999
A149: =+A8 -> Roads Infrastructure | C149: 1416804165 | D149: 0 | E149: 0 | F149: 6927737 | G149: 0 | H149: 0 | I149: 21996733 | J149: =SUM(E149:I149) -> 28924470 | K149: =IF(D149=0,C149+J149,D149+J149) -> 1445728635 | L149: 1433773037 | M149: 39608740
A150: Storm water Infrastructure | C150: 29498874 | D150: 0 | E150: 0 | F150: 0 | G150: 0 | H150: 0 | I150: 0 | J150: 0 | K150: =IF(D150=0,C150+J150,D150+J150) -> 29498874 | L150: 29793863 | M150: 0
A151: Electrical Infrastructure | C151: 613687180 | D151: 0 | E151: 0 | F151: 0 | G151: 0 | H151: 0 | I151: 17413233 | J151: 17413233 | K151: =IF(D151=0,C151+J151,D151+J151) -> 631100413 | L151: 627578476 | M151: 14877305
A152: Water Supply Infrastructure | C152: 408693339 | D152: 0 | E152: 0 | F152: 0 | G152: 0 | H152: 0 | I152: 6607217 | J152: 6607217 | K152: =IF(D152=0,C152+J152,D152+J152) -> 415300556 | L152: 388228295 | M152: 53097303
A153: Sanitation Infrastructure | C153: 446907712 | D153: 0 | E153: 0 | F153: -6927737 | G153: 0 | H153: 0 | I153: -6661391 | J153: -13589128 | K153: =IF(D153=0,C153+J153,D153+J153) -> 433318584 | L153: 474624211 | M153: 117703651
A154: Solid Waste Infrastructure | C154: 70857036 | D154: 0 | E154: 0 | F154: 0 | G154: 0 | H154: 0 | I154: -10854074 | J154: -10854074 | K154: 60002962 | L154: 48404002 | M154: 0
A155: Rail Infrastructure | J155: 0 | K155: 0
A156: Coastal Infrastructure | J156: 0 | K156: 0
A157: Information and Communication Infrastructure | C157: 2546713 | D157: 0 | E157: 0 | F157: 0 | G157: 0 | H157: 0 | I157: 0 | J157: 0 | K157: 2546713 | L157: 2572179 | M157: 0
A158: Infrastructure | C158: =SUM(C149:C157) -> 2988995019 | D158: 0 | E158: 0 | F158: 0 | G158: 0 | H158: 0 | I158: 28501718 | J158: 28501718 | K158: 3017496737 | L158: =SUM(L149:L157) -> 3004974063 | M158: =SUM(M149:M157) -> 225286999
A161: =+A20 -> Community Assets | C161: 523563873 | D161: 0 | E161: 0 | F161: 0 | G161: 0 | H161: 0 | I161: -11226484 | J161: =SUM(E161:I161) -> -11226484 | K161: =IF(D161=0,C161+J161,D161+J161) -> 512337389 | L161: 539122121 | M161: 0
A162: =+A21 -> Heritage Assets | C162: 11238595 | D162: 0 | E162: 0 | F162: 0 | G162: 0 | H162: 0 | I162: 0 | J162: =SUM(E162:I162) -> 0 | K162: 11238595 | L162: 11350981 | M162: 0
A165: =+A24 -> Investment properties | C165: 257100275 | D165: 0 | E165: 0 | F165: 0 | G165: 0 | H165: 0 | I165: 0 | J165: =SUM(E165:I165) -> 0 | K165: =IF(D165=0,C165+J165,D165+J165) -> 257100275 | L165: 259671278 | M165: 0
A168: =+A27 -> Other Assets | C168: 20992362 | D168: 0 | E168: 0 | F168: 0 | G168: 0 | H168: 0 | I168: 0 | J168: =SUM(E168:I168) -> 0 | K168: =IF(D168=0,C168+J168,D168+J168) -> 20992362 | L168: 0 | M168: 0
A169: =+A28 -> Biological or Cultivated Assets | J169: =SUM(E169:I169) -> 0 | K169: =IF(D169=0,C169+J169,D169+J169) -> 0
A172: =+A31 -> Intangible Assets | J172: =SUM(E172:I172) -> 0 | K172: =IF(D172=0,C172+J172,D172+J172) -> 0
A173: Computer Equipment | C173: 3000000 | D173: 0 | E173: 0 | F173: 0 | G173: 0 | H173: 0 | I173: 0 | J173: =SUM(E173:I173) -> 0 | K173: =IF(D173=0,C173+J173,D173+J173) -> 3000000 | L173: 0 | M173: 0
A174: Furniture and Office Equipment | C174: -1858290 | D174: 0 | E174: 0 | F174: 0 | G174: 0 | H174: 0 | I174: 0 | J174: 0 | K174: -1858290 | L174: -3896873 | M174: 0
A175: Machinery and Equipment | C175: 4344632 | D175: 0 | E175: 0 | F175: 0 | G175: 0 | H175: 0 | I175: -3000000 | J175: -3000000 | K175: 1344632 | L175: -661922 | M175: 0
A176: Transport Assets | C176: 40000000 | D176: 0 | E176: 0 | F176: 0 | G176: 0 | H176: 0 | I176: -15000000 | J176: -15000000 | K176: 25000000 | L176: 13000000 | M176: 0
A177: Land | J177: 0 | K177: 0
A178: Zoo's, Marine and Non-biological Animals | C178: 1995400 | D178: 0 | E178: 0 | F178: 0 | G178: 0 | H178: 0 | I178: 0 | J178: 0 | K178: 1995400 | L178: 2015354 | M178: 0
A179: Living Resources
A180: TOTAL ASSET REGISTER SUMMARY - PPE (WDV) | B180: 5 | C180: =C158+C161+C162+C165+C168+C169+SUM(C172:C179) -> 3849371866 | D180: =D158+D161+D162+D165+D168+D169+SUM(D172:D179) -> 0 | E180: 0 | F180: 0 | G180: 0 | H180: 0 | I180: -724766 | J180: -724766 | K180: 3848647100 | L180: 3825575002 | M180: 225286999
A182: EXPENDITURE OTHER ITEMS
A183: Depreciation & asset impairment | C183: =SB18d!C177 -> 411097601 | D183: =SB18d!D177 -> 0 | E183: =SB18d!E177 -> 0 | F183: =SB18d!F177 -> 0 | G183: =SB18d!G177 -> 0 | H183: =SB18d!H177 -> 0 | I183: =SB18d!I177 -> -10000000 | J183: =SB18d!J177 -> -10000000 | K183: =SB18d!K177 -> 401097601 | L183: =SB18d!L177 -> 456158103 | M183: =SB18d!M177 -> 477141378
A184: Repairs and Maintenance by asset class | B184: 3 | C184: =C194+C197+C198+C201+C204+C205+SUM(C208:C214)+C217 -> 264424176 | D184: =D194+D197+D198+D201+D204+D205+SUM(D208:D214)+D217 -> 0 | E184: 0 | F184: 0 | G184: 0 | H184: 0 | I184: 30767676 | J184: 30767676 | K184: 295191852 | L184: 366671730 | M184: 339668948
A185: =+A8 -> Roads Infrastructure | C185: =SB18c!C9 -> 63408835 | D185: =SB18c!D9 -> 0 | E185: =SB18c!E9 -> 0 | F185: =SB18c!F9 -> 0 | G185: =SB18c!G9 -> 0 | H185: =SB18c!H9 -> 0 | I185: =SB18c!I9 -> 19953500 | J185: =SB18c!J9 -> 19953500 | K185: =SB18c!K9 -> 83362335 | L185: =SB18c!L9 -> 83145120 | M185: =SB18c!M9 -> 49342575
A186: Storm water Infrastructure | C186: =SB18c!C14 -> 7000000 | D186: =SB18c!D14 -> 0 | E186: =SB18c!E14 -> 0 | F186: =SB18c!F14 -> 0 | G186: =SB18c!G14 -> 0 | H186: =SB18c!H14 -> 0 | I186: =SB18c!I14 -> 0 | J186: =SB18c!J14 -> 0 | K186: =SB18c!K14 -> 7000000 | L186: =SB18c!L14 -> 10460000 | M186: =SB18c!M14 -> 10941160
A187: Electrical Infrastructure | C187: =SB18c!C18 -> 81994752 | D187: =SB18c!D18 -> 0 | E187: =SB18c!E18 -> 0 | F187: =SB18c!F18 -> 0 | G187: =SB18c!G18 -> 0 | H187: =SB18c!H18 -> 0 | I187: =SB18c!I18 -> 3648800 | J187: =SB18c!J18 -> 3648800 | K187: =SB18c!K18 -> 85643552 | L187: =SB18c!L18 -> 88577527 | M187: =SB18c!M18 -> 143368869
A188: Water Supply Infrastructure | C188: =SB18c!C28 -> 20251065 | D188: =SB18c!D28 -> 0 | E188: =SB18c!E28 -> 0 | F188: =SB18c!F28 -> 0 | G188: =SB18c!G28 -> 0 | H188: =SB18c!H28 -> 0 | I188: =SB18c!I28 -> 243376 | J188: =SB18c!J28 -> 243376 | K188: =SB18c!K28 -> 20494441 | L188: =SB18c!L28 -> 21182624 | M188: =SB18c!M28 -> 28479955
A189: Sanitation Infrastructure | C189: =SB18c!C39 -> 22689140 | D189: =SB18c!D39 -> 0 | E189: =SB18c!E39 -> 0 | F189: =SB18c!F39 -> 0 | G189: =SB18c!G39 -> 0 | H189: =SB18c!H39 -> 0 | I189: =SB18c!I39 -> 7000000 | J189: =SB18c!J39 -> 7000000 | K189: =SB18c!K39 -> 29689140 | L189: =SB18c!L39 -> 26870845 | M189: =SB18c!M39 -> 31388523
A190: Solid Waste Infrastructure | C190: =SB18c!C46 -> 0 | D190: =SB18c!D46 -> 0 | E190: =SB18c!E46 -> 0 | F190: =SB18c!F46 -> 0 | G190: =SB18c!G46 -> 0 | H190: =SB18c!H46 -> 0 | I190: =SB18c!I46 -> 0 | J190: =SB18c!J46 -> 0 | K190: =SB18c!K46 -> 0 | L190: =SB18c!L46 -> 0 | M190: =SB18c!M46 -> 0
A191: Rail Infrastructure | C191: =SB18c!C54 -> 0 | D191: =SB18c!D54 -> 0 | E191: =SB18c!E54 -> 0 | F191: =SB18c!F54 -> 0 | G191: =SB18c!G54 -> 0 | H191: =SB18c!H54 -> 0 | I191: =SB18c!I54 -> 0 | J191: =SB18c!J54 -> 0 | K191: =SB18c!K54 -> 0 | L191: =SB18c!L54 -> 0 | M191: =SB18c!M54 -> 0
A192: Coastal Infrastructure | C192: =SB18c!C64 -> 0 | D192: =SB18c!D64 -> 0 | E192: =SB18c!E64 -> 0 | F192: =SB18c!F64 -> 0 | G192: =SB18c!G64 -> 0 | H192: =SB18c!H64 -> 0 | I192: =SB18c!I64 -> 0 | J192: =SB18c!J64 -> 0 | K192: =SB18c!K64 -> 0 | L192: =SB18c!L64 -> 0 | M192: =SB18c!M64 -> 0
A193: Information and Communication Infrastructure | C193: =SB18c!C70 -> 0 | D193: =SB18c!D70 -> 0 | E193: =SB18c!E70 -> 0 | F193: =SB18c!F70 -> 0 | G193: =SB18c!G70 -> 0 | H193: =SB18c!H70 -> 0 | I193: =SB18c!I70 -> 0 | J193: =SB18c!J70 -> 0 | K193: =SB18c!K70 -> 0 | L193: =SB18c!L70 -> 0 | M193: =SB18c!M70 -> 0
A194: Infrastructure | C194: =SUM(C185:C193) -> 195343792 | D194: =SUM(D185:D193) -> 0 | E194: 0 | F194: 0 | G194: 0 | H194: 0 | I194: 30845676 | J194: 30845676 | K194: 226189468 | L194: 230236116 | M194: 263521082
A195: Community Facilities | C195: =SB18c!C77 -> 9742645 | D195: =SB18c!D77 -> 0 | E195: =SB18c!E77 -> 0 | F195: =SB18c!F77 -> 0 | G195: =SB18c!G77 -> 0 | H195: =SB18c!H77 -> 0 | I195: =SB18c!I77 -> -570000 | J195: =SB18c!J77 -> -570000 | K195: =SB18c!K77 -> 9172645 | L195: =SB18c!L77 -> 10088305 | M195: =SB18c!M77 -> 10476510
A196: Sport and Recreation Facilities | C196: =SB18c!C100 -> 5796864 | D196: =SB18c!D100 -> 0 | E196: =SB18c!E100 -> 0 | F196: =SB18c!F100 -> 0 | G196: =SB18c!G100 -> 0 | H196: =SB18c!H100 -> 0 | I196: =SB18c!I100 -> 0 | J196: =SB18c!J100 -> 0 | K196: =SB18c!K100 -> 5796864 | L196: =SB18c!L100 -> 6586522 | M196: =SB18c!M100 -> 6805534
A197: Community Assets | C197: =SUM(C195:C196) -> 15539509 | D197: =SUM(D195:D196) -> 0 | E197: 0 | F197: 0 | G197: 0 | H197: 0 | I197: -570000 | J197: -570000 | K197: 14969509 | L197: 16674827 | M197: 17282044
A198: Heritage Assets | C198: =SB18c!C105 -> 500000 | D198: =SB18c!D105 -> 0 | E198: =SB18c!E105 -> 0 | F198: =SB18c!F105 -> 0 | G198: =SB18c!G105 -> 0 | H198: =SB18c!H105 -> 0 | I198: =SB18c!I105 -> 0 | J198: =SB18c!J105 -> 0 | K198: =SB18c!K105 -> 500000 | L198: =SB18c!L105 -> 523000 | M198: =SB18c!M105 -> 547058
A199: Revenue Generating | C199: =SB18c!C113 -> 0 | D199: =SB18c!D113 -> 0 | E199: =SB18c!E113 -> 0 | F199: =SB18c!F113 -> 0 | G199: =SB18c!G113 -> 0 | H199: =SB18c!H113 -> 0 | I199: =SB18c!I113 -> 0 | J199: =SB18c!J113 -> 0 | K199: =SB18c!K113 -> 0 | L199: =SB18c!L113 -> 0 | M199: =SB18c!M113 -> 0
A200: Non-revenue Generating | C200: =SB18c!C116 -> 0 | D200: =SB18c!D116 -> 0 | E200: =SB18c!E116 -> 0 | F200: =SB18c!F116 -> 0 | G200: =SB18c!G116 -> 0 | H200: =SB18c!H116 -> 0 | I200: =SB18c!I116 -> 0 | J200: =SB18c!J116 -> 0 | K200: =SB18c!K116 -> 0 | L200: =SB18c!L116 -> 0 | M200: =SB18c!M116 -> 0
A201: Investment properties | C201: =SUM(C199:C200) -> 0 | D201: =SUM(D199:D200) -> 0 | E201: 0 | F201: 0 | G201: 0 | H201: 0 | I201: 0 | J201: 0 | K201: 0 | L201: 0 | M201: 0
A202: Operational Buildings | C202: =SB18c!C121 -> 8910619 | D202: =SB18c!D121 -> 0 | E202: =SB18c!E121 -> 0 | F202: =SB18c!F121 -> 0 | G202: =SB18c!G121 -> 0 | H202: =SB18c!H121 -> 0 | I202: =SB18c!I121 -> 422000 | J202: =SB18c!J121 -> 422000 | K202: =SB18c!K121 -> 9332619 | L202: =SB18c!L121 -> 9757610 | M202: =SB18c!M121 -> 10024254
A203: Housing | C203: =SB18c!C133 -> 0 | D203: =SB18c!D133 -> 0 | E203: =SB18c!E133 -> 0 | F203: =SB18c!F133 -> 0 | G203: =SB18c!G133 -> 0 | H203: =SB18c!H133 -> 0 | I203: =SB18c!I133 -> 0 | J203: =SB18c!J133 -> 0 | K203: =SB18c!K133 -> 0 | L203: =SB18c!L133 -> 0 | M203: =SB18c!M133 -> 0
A204: Other Assets | C204: =SUM(C202:C203) -> 8910619 | D204: =SUM(D202:D203) -> 0 | E204: 0 | F204: 0 | G204: 0 | H204: 0 | I204: 422000 | J204: 422000 | K204: 9332619 | L204: 9757610 | M204: 10024254
A205: Biological or Cultivated Assets | C205: =SB18c!C138 -> 0 | D205: =SB18c!D138 -> 0 | E205: =SB18c!E138 -> 0 | F205: =SB18c!F138 -> 0 | G205: =SB18c!G138 -> 0 | H205: =SB18c!H138 -> 0 | I205: =SB18c!I138 -> 0 | J205: =SB18c!J138 -> 0 | K205: =SB18c!K138 -> 0 | L205: =SB18c!L138 -> 0 | M205: =SB18c!M138 -> 0
A206: Servitudes | C206: =SB18c!C142 -> 0 | D206: =SB18c!D142 -> 0 | E206: =SB18c!E142 -> 0 | F206: =SB18c!F142 -> 0 | G206: =SB18c!G142 -> 0 | H206: =SB18c!H142 -> 0 | I206: =SB18c!I142 -> 0 | J206: =SB18c!J142 -> 0 | K206: =SB18c!K142 -> 0 | L206: =SB18c!L142 -> 0 | M206: =SB18c!M142 -> 0
A207: Licences and Rights | C207: =SB18c!C143 -> 10062832 | D207: =SB18c!D143 -> 0 | E207: =SB18c!E143 -> 0 | F207: =SB18c!F143 -> 0 | G207: =SB18c!G143 -> 0 | H207: =SB18c!H143 -> 0 | I207: =SB18c!I143 -> 300000 | J207: =SB18c!J143 -> 300000 | K207: =SB18c!K143 -> 10362832 | L207: =SB18c!L143 -> 10525727 | M207: =SB18c!M143 -> 10966616
A208: Intangible Assets | C208: =SUM(C206:C207) -> 10062832 | D208: =SUM(D206:D207) -> 0 | E208: 0 | F208: 0 | G208: 0 | H208: 0 | I208: 300000 | J208: 300000 | K208: 10362832 | L208: 10525727 | M208: 10966616
A209: Computer Equipment | C209: =SB18c!C151 -> 8636524 | D209: =SB18c!D151 -> 0 | E209: =SB18c!E151 -> 0 | F209: =SB18c!F151 -> 0 | G209: =SB18c!G151 -> 0 | H209: =SB18c!H151 -> 0 | I209: =SB18c!I151 -> 0 | J209: =SB18c!J151 -> 0 | K209: =SB18c!K151 -> 8636524 | L209: =SB18c!L151 -> 9033807 | M209: =SB18c!M151 -> 9415871
A210: Furniture and Office Equipment | C210: =SB18c!C154 -> 3596859 | D210: =SB18c!D154 -> 0 | E210: =SB18c!E154 -> 0 | F210: =SB18c!F154 -> 0 | G210: =SB18c!G154 -> 0 | H210: =SB18c!H154 -> 0 | I210: =SB18c!I154 -> 170000 | J210: =SB18c!J154 -> 170000 | K210: =SB18c!K154 -> 3766859 | L210: =SB18c!L154 -> 3735131 | M210: =SB18c!M154 -> 3882771
A211: Machinery and Equipment | C211: =SB18c!C157 -> 19324863 | D211: =SB18c!D157 -> 0 | E211: =SB18c!E157 -> 0 | F211: =SB18c!F157 -> 0 | G211: =SB18c!G157 -> 0 | H211: =SB18c!H157 -> 0 | I211: =SB18c!I157 -> 600000 | J211: =SB18c!J157 -> 600000 | K211: =SB18c!K157 -> 19924863 | L211: =SB18c!L157 -> 83560901 | M211: =SB18c!M157 -> 21402932
A212: Transport Assets | C212: =SB18c!C160 -> 2509178 | D212: =SB18c!D160 -> 0 | E212: =SB18c!E160 -> 0 | F212: =SB18c!F160 -> 0 | G212: =SB18c!G160 -> 0 | H212: =SB18c!H160 -> 0 | I212: =SB18c!I160 -> -1000000 | J212: =SB18c!J160 -> -1000000 | K212: =SB18c!K160 -> 1509178 | L212: =SB18c!L160 -> 2624611 | M212: =SB18c!M160 -> 2626320
A213: Land | C213: =SB18c!C163 -> 0 | D213: =SB18c!D163 -> 0 | E213: =SB18c!E163 -> 0 | F213: =SB18c!F163 -> 0 | G213: =SB18c!G163 -> 0 | H213: =SB18c!H163 -> 0 | I213: =SB18c!I163 -> 0 | J213: =SB18c!J163 -> 0 | K213: =SB18c!K163 -> 0 | L213: =SB18c!L163 -> 0 | M213: =SB18c!M163 -> 0
... 26 more rows

Sheet B10-SerDel
A1: =muni&" - "&_ADJ10&" - "&Date -> NW403 City Of Matlosana - Table B10 Basic service delivery measurement - 45811
A2: =desc -> Description | B2: =head27 -> Ref | C2: =Head2 -> Budget Year 2024/25 | L2: =Head10 -> Budget Year +1 2025/26 | M2: =Head11 -> Budget Year +2 2026/27
C3: =Head6 -> Original Budget | D3: =Head54 -> Prior Adjusted | E3: =Head51 -> Accum. Funds | F3: =Head52 -> Multi-year capital | G3: =Head53 -> Unfore. Unavoid. | H3: =Head55 -> Nat. or Prov. Govt | I3: =Head50 -> Other Adjusts. | J3: =Head56 -> Total Adjusts. | K3: =Head7 -> Adjusted Budget | L3: =Head7 -> Adjusted Budget | M3: =Head7 -> Adjusted Budget
D4: 7 | E4: 8 | F4: 9 | G4: 10 | H4: 11 | I4: 12 | J4: 13 | K4: 14
C5: A | D5: A1 | E5: B | F5: C | G5: D | H5: E | I5: F | J5: G | K5: H
A6: Household service targets | B6: 1
A7: Water:
A8: Piped water inside dwelling | C8: 174518 | D8: 0 | E8: 0 | F8: 0 | G8: 0 | H8: 0 | I8: 0 | J8: =SUM(E8:I8) -> 0 | K8: =IF(D8=0,C8+J8,D8+J8) -> 174518 | L8: 176385 | M8: 184499
A9: Piped water inside yard (but not in dwelling) | C9: 0 | D9: 0 | E9: 0 | F9: 0 | G9: 0 | H9: 0 | I9: 0 | J9: 0 | K9: 0 | L9: 0 | M9: 0
A10: Using public tap (at least min.service level) | B10: 2 | C10: 13639 | D10: 0 | E10: 0 | F10: 0 | G10: 0 | H10: 0 | I10: 0 | J10: 0 | K10: 13639 | L10: 13785 | M10: 14419
A11: Other water supply (at least min.service level) | C11: 1042 | D11: 0 | E11: 0 | F11: 0 | G11: 0 | H11: 0 | I11: 0 | J11: 0 | K11: 1042 | L11: 1053 | M11: 1101
A12: Minimum Service Level and Above sub-total | C12: =SUM(C8:C11) -> 189199 | D12: 0 | E12: 0 | F12: 0 | G12: 0 | H12: 0 | I12: 0 | J12: 0 | K12: 189199 | L12: 191223 | M12: 200019
A13: Using public tap (< min.service level) | B13: 3 | C13: 0 | D13: 0 | E13: 0 | F13: 0 | G13: 0 | H13: 0 | I13: 0 | J13: 0 | K13: 0 | L13: 0 | M13: 0
A14: Other water supply (< min.service level) | B14: 3,4 | J14: 0 | K14: 0
A15: No water supply | J15: 0 | K15: 0
A16: Below Minimum Servic Level sub-total | C16: =SUM(C13:C15) -> 0 | D16: 0 | E16: 0 | F16: 0 | G16: 0 | H16: 0 | I16: 0 | J16: 0 | K16: 0 | L16: 0 | M16: 0
A17: Total number of households | B17: 5 | C17: =C12+C16 -> 189199 | D17: 0 | E17: 0 | F17: 0 | G17: 0 | H17: 0 | I17: 0 | J17: 0 | K17: 189199 | L17: 191223 | M17: 200019
A18: Sanitation/sewerage:
A19: Flush toilet (connected to sewerage) | C19: 171322 | D19: 0 | E19: 0 | F19: 0 | G19: 0 | H19: 0 | I19: 0 | J19: =SUM(E19:I19) -> 0 | K19: =IF(D19=0,C19+J19,D19+J19) -> 171322 | L19: 171322 | M19: 179283
A20: Flush toilet (with septic tank) | C20: 288 | D20: 0 | E20: 0 | F20: 0 | G20: 0 | H20: 0 | I20: 0 | J20: 0 | K20: 288 | L20: 288 | M20: 301
A21: Chemical toilet | C21: 745 | D21: 0 | E21: 0 | F21: 0 | G21: 0 | H21: 0 | I21: 0 | J21: 0 | K21: 745 | L21: 745 | M21: 779
A22: Pit toilet (ventilated) | C22: 4066 | D22: 0 | E22: 0 | F22: 0 | G22: 0 | H22: 0 | I22: 0 | J22: 0 | K22: 4066 | L22: 4066 | M22: 4253
A23: Other toilet provisions (> min.service level) | C23: 23660 | D23: 0 | E23: 0 | F23: 0 | G23: 0 | H23: 0 | I23: 0 | J23: 0 | K23: 23660 | L23: 23660 | M23: 24748
A24: =$A$12 -> Minimum Service Level and Above sub-total | C24: =SUM(C19:C23) -> 200081 | D24: 0 | E24: 0 | F24: 0 | G24: 0 | H24: 0 | I24: 0 | J24: 0 | K24: 200081 | L24: 200081 | M24: 209364
A25: Bucket toilet | C25: 1070 | D25: 0 | E25: 0 | F25: 0 | G25: 0 | H25: 0 | I25: 0 | J25: 0 | K25: 1070 | L25: 1070 | M25: 1119
A26: Other toilet provisions (< min.service level) | J26: 0 | K26: 0
A27: No toilet provisions | C27: 3900 | D27: 0 | E27: 0 | F27: 0 | G27: 0 | H27: 0 | I27: 0 | J27: 0 | K27: 3900 | L27: 3900 | M27: 4079
A28: =$A$16 -> Below Minimum Servic Level sub-total | C28: =SUM(C25:C27) -> 4970 | D28: 0 | E28: 0 | F28: 0 | G28: 0 | H28: 0 | I28: 0 | J28: 0 | K28: 4970 | L28: 4970 | M28: 5198
A29: =$A$17 -> Total number of households | B29: =$B$17 -> 5 | C29: =C24+C28 -> 205051 | D29: 0 | E29: 0 | F29: 0 | G29: 0 | H29: 0 | I29: 0 | J29: 0 | K29: 205051 | L29: 205051 | M29: 214562
A30: Energy:
A31: Electricity (at least min. service level) | C31: 123707 | D31: 0 | E31: 0 | F31: 0 | G31: 0 | H31: 0 | I31: 0 | J31: =SUM(E31:I31) -> 0 | K31: =IF(D31=0,C31+J31,D31+J31) -> 123707 | L31: 126407 | M31: 132222
A32: Electricity - prepaid (> min.service level) | C32: 55767 | D32: 0 | E32: 0 | F32: 0 | G32: 0 | H32: 0 | I32: 0 | J32: 0 | K32: 55767 | L32: 56267 | M32: 58855
A33: =$A$12 -> Minimum Service Level and Above sub-total | C33: =SUM(C31:C32) -> 179474 | D33: 0 | E33: 0 | F33: 0 | G33: 0 | H33: 0 | I33: 0 | J33: 0 | K33: 179474 | L33: 182674 | M33: 191077
A34: Electricity (< min.service level) | C34: 4601 | D34: 0 | E34: 0 | F34: 0 | G34: 0 | H34: 0 | I34: 0 | J34: 0 | K34: 4601 | L34: 4715 | M34: 4932
A35: Electricity - prepaid (< min. service level) | C35: 15850 | D35: 0 | E35: 0 | F35: 0 | G35: 0 | H35: 0 | I35: 0 | J35: 0 | K35: 15850 | L35: 15955 | M35: 16689
A36: Other energy sources | J36: 0 | K36: 0
A37: =$A$16 -> Below Minimum Servic Level sub-total | C37: =SUM(C34:C36) -> 20451 | D37: 0 | E37: 0 | F37: 0 | G37: 0 | H37: 0 | I37: 0 | J37: 0 | K37: 20451 | L37: 20670 | M37: 21621
A38: =$A$17 -> Total number of households | B38: =$B$17 -> 5 | C38: =C33+C37 -> 199925 | D38: 0 | E38: 0 | F38: 0 | G38: 0 | H38: 0 | I38: 0 | J38: 0 | K38: 199925 | L38: 203344 | M38: 212698
A39: Refuse:
A40: Removed at least once a week (min.service) | C40: 170181 | D40: 0 | E40: 0 | F40: 0 | G40: 0 | H40: 0 | I40: 0 | J40: =SUM(E40:I40) -> 0 | K40: =IF(D40=0,C40+J40,D40+J40) -> 170181 | L40: 170798 | M40: 178655
A41: =$A$12 -> Minimum Service Level and Above sub-total | C41: =SUM(C40) -> 170181 | D41: 0 | E41: 0 | F41: 0 | G41: 0 | H41: 0 | I41: 0 | J41: =SUM(E41:I41) -> 0 | K41: 170181 | L41: =SUM(L40) -> 170798 | M41: =SUM(M40) -> 178655
A42: Removed less frequently than once a week | C42: 0 | D42: 0 | E42: 0 | F42: 0 | G42: 0 | H42: 0 | I42: 0 | J42: 0 | K42: 0 | L42: 0 | M42: 0
A43: Using communal refuse dump | C43: 8518 | D43: 0 | E43: 0 | F43: 0 | G43: 0 | H43: 0 | I43: 0 | J43: 0 | K43: 8518 | L43: 8518 | M43: 8910
A44: Using own refuse dump | C44: 6985 | D44: 0 | E44: 0 | F44: 0 | G44: 0 | H44: 0 | I44: 0 | J44: 0 | K44: 6985 | L44: 5538 | M44: 5793
A45: Other rubbish disposal | J45: 0 | K45: 0
A46: No rubbish disposal | J46: 0 | K46: 0
A47: =$A$16 -> Below Minimum Servic Level sub-total | C47: =SUM(C42:C46) -> 15503 | D47: 0 | E47: 0 | F47: 0 | G47: 0 | H47: 0 | I47: 0 | J47: 0 | K47: 15503 | L47: 14056 | M47: 14703
A48: =$A$17 -> Total number of households | B48: =$B$17 -> 5 | C48: =C41+C47 -> 185684 | D48: 0 | E48: 0 | F48: 0 | G48: 0 | H48: 0 | I48: 0 | J48: =J40+J47 -> 0 | K48: =K40+K47 -> 185684 | L48: =L41+L47 -> 184854 | M48: =M41+M47 -> 193358
A50: Households receiving Free Basic Service | B50: 15
A51: Water (6 kilolitres per household per month) | C51: ='SB5'!E263 -> 107935722 | D51: ='SB5'!F263 -> 0 | E51: ='SB5'!G263 -> 0 | F51: ='SB5'!H263 -> 0 | G51: ='SB5'!I263 -> 0 | H51: ='SB5'!J263 -> 0 | I51: ='SB5'!K263 -> 0 | J51: =SUM(E51:I51) -> 0 | K51: =IF(D51=0,C51+J51,D51+J51) -> 107935722 | L51: ='SB5'!N263 -> 112900765 | M51: ='SB5'!O263 -> 118094200
A52: Sanitation (free minimum level service) | C52: ='SB5'!E275 -> 26786444 | D52: ='SB5'!F275 -> 0 | E52: ='SB5'!G275 -> 0 | F52: ='SB5'!H275 -> 0 | G52: ='SB5'!I275 -> 0 | H52: ='SB5'!J275 -> 0 | I52: ='SB5'!K275 -> 0 | J52: =SUM(E52:I52) -> 0 | K52: =IF(D52=0,C52+J52,D52+J52) -> 26786444 | L52: ='SB5'!N275 -> 28018620 | M52: ='SB5'!O275 -> 29307477
A53: Electricity/other energy (50kwh per household per month) | C53: ='SB5'!E251 -> 57881947 | D53: ='SB5'!F251 -> 0 | E53: ='SB5'!G251 -> 0 | F53: ='SB5'!H251 -> 0 | G53: ='SB5'!I251 -> 0 | H53: ='SB5'!J251 -> 0 | I53: ='SB5'!K251 -> 0 | J53: =SUM(E53:I53) -> 0 | K53: =IF(D53=0,C53+J53,D53+J53) -> 57881947 | L53: ='SB5'!N251 -> 60544517 | M53: ='SB5'!O251 -> 63329565
A54: Refuse (removed at least once a week) | C54: ='SB5'!E287 -> 51393044 | D54: ='SB5'!F287 -> 0 | E54: ='SB5'!G287 -> 0 | F54: ='SB5'!H287 -> 0 | G54: ='SB5'!I287 -> 0 | H54: ='SB5'!J287 -> 0 | I54: ='SB5'!K287 -> 0 | J54: ='SB5'!L287 -> 0 | K54: ='SB5'!M287 -> 51393044 | L54: ='SB5'!N287 -> 53757124 | M54: ='SB5'!O287 -> 56229952
A55: Informal Settlements | C55: ='SB5'!E251+'SB5'!E253+'SB5'!E255+'SB5'!E257 +'SB5'!E259+'SB5'!E263+'SB5'!E265+'SB5'!E267+'SB5'!E269+'SB5'!E271 + 'SB5'!E275+'SB5'!E277+'SB5'!E279+'SB5'!E281 +'SB5'!E283+'SB5'!E287+'SB5'!E289+'SB5'!E291+'SB5'!E293+'SB5'!E295 -> 243997157 | D55: ='SB5'!F251+'SB5'!F253+'SB5'!F255+'SB5'!F257 +'SB5'!F259+'SB5'!F263+'SB5'!F265+'SB5'!F267+'SB5'!F269+'SB5'!F271 + 'SB5'!F275+'SB5'!F277+'SB5'!F279+'SB5'!F281 +'SB5'!F283+'SB5'!F287+'SB5'!F289+'SB5'!F291+'SB5'!F293+'SB5'!F295 -> 0 | E55: ='SB5'!G251+'SB5'!G253+'SB5'!G255+'SB5'!G257 +'SB5'!G259+'SB5'!G263+'SB5'!G265+'SB5'!G267+'SB5'!G269+'SB5'!G271 + 'SB5'!G275+'SB5'!G277+'SB5'!G279+'SB5'!G281 +'SB5'!G283+'SB5'!G287+'SB5'!G289+'SB5'!G291+'SB5'!G293+'SB5'!G295 -> 0 | F55: ='SB5'!H251+'SB5'!H253+'SB5'!H255+'SB5'!H257 +'SB5'!H259+'SB5'!H263+'SB5'!H265+'SB5'!H267+'SB5'!H269+'SB5'!H271 + 'SB5'!H275+'SB5'!H277+'SB5'!H279+'SB5'!H281 +'SB5'!H283+'SB5'!H287+'SB5'!H289+'SB5'!H291+'SB5'!H293+'SB5'!H295 -> 0 | G55: ='SB5'!I251+'SB5'!I253+'SB5'!I255+'SB5'!I257 +'SB5'!I259+'SB5'!I263+'SB5'!I265+'SB5'!I267+'SB5'!I269+'SB5'!I271 + 'SB5'!I275+'SB5'!I277+'SB5'!I279+'SB5'!I281 +'SB5'!I283+'SB5'!I287+'SB5'!I289+'SB5'!I291+'SB5'!I293+'SB5'!I295 -> 0
A56: Cost of Free Basic Services provided (R'000) | B56: 16
A57: Water (6 kilolitres per indigent household per month) | C57: ='SB1'!C23 -> 107732165 | D57: ='SB1'!D23 -> 0 | E57: ='SB1'!E23 -> 0 | F57: ='SB1'!F23 -> 0 | G57: ='SB1'!G23 -> 0 | H57: ='SB1'!H23 -> 0 | I57: ='SB1'!I23 -> 0 | J57: =SUM(E57:I57) -> 0 | K57: =IF(D57=0,C57+J57,D57+J57) -> 107732165 | L57: ='SB1'!L23 -> 112687845 | M57: ='SB1'!M23 -> 117871487
A58: Sanitation (free sanitation service to indigent households) | C58: ='SB1'!C29 -> 27535324 | D58: ='SB1'!D29 -> 0 | E58: ='SB1'!E29 -> 0 | F58: ='SB1'!F29 -> 0 | G58: ='SB1'!G29 -> 0 | H58: ='SB1'!H29 -> 0 | I58: ='SB1'!I29 -> 0 | J58: =SUM(E58:I58) -> 0 | K58: =IF(D58=0,C58+J58,D58+J58) -> 27535324 | L58: ='SB1'!L29 -> 28801949 | M58: ='SB1'!M29 -> 30126839
A59: Electricity/other energy (50kwh per indigent household per month) | C59: ='SB1'!C17 -> 40488044 | D59: ='SB1'!D17 -> 0 | E59: ='SB1'!E17 -> 0 | F59: ='SB1'!F17 -> 0 | G59: ='SB1'!G17 -> 0 | H59: ='SB1'!H17 -> 0 | I59: ='SB1'!I17 -> 7377764 | J59: =SUM(E59:I59) -> 7377764 | K59: =IF(D59=0,C59+J59,D59+J59) -> 47865808 | L59: ='SB1'!L17 -> 42350495 | M59: ='SB1'!M17 -> 44298618
A60: Refuse (removed once a week for indigent households) | C60: ='SB1'!C36 -> 32000000 | D60: ='SB1'!D36 -> 0 | E60: ='SB1'!E36 -> 0 | F60: ='SB1'!F36 -> 0 | G60: ='SB1'!G36 -> 0 | H60: ='SB1'!H36 -> 0 | I60: ='SB1'!I36 -> 0 | J60: =SUM(E60:I60) -> 0 | K60: =IF(D60=0,C60+J60,D60+J60) -> 32000000 | L60: ='SB1'!L36 -> 33472000 | M60: ='SB1'!M36 -> 35011712
A61: Cost of Free Basic Services provided - Informal Formal Settlements (R'000) | C61: ='SB5'!E260+'SB5'!E272+'SB5'!E284+'SB5'!E296 -> 0 | D61: ='SB5'!F260+'SB5'!F272+'SB5'!F284+'SB5'!F296 -> 0 | E61: ='SB5'!G260+'SB5'!G272+'SB5'!G284+'SB5'!G296 -> 0 | F61: ='SB5'!H260+'SB5'!H272+'SB5'!H284+'SB5'!H296 -> 0 | G61: ='SB5'!I260+'SB5'!I272+'SB5'!I284+'SB5'!I296 -> 0 | H61: ='SB5'!J260+'SB5'!J272+'SB5'!J284+'SB5'!J296 -> 0 | I61: ='SB5'!K260+'SB5'!K272+'SB5'!K284+'SB5'!K296 -> 0 | J61: =SUM(E61:I61) -> 0 | K61: =IF(D61=0,C61+J61,D61+J61) -> 0 | L61: ='SB5'!N260+'SB5'!N272+'SB5'!N284+'SB5'!N296 -> 0 | M61: ='SB5'!O260+'SB5'!O272+'SB5'!O284+'SB5'!O296 -> 0
A62: Total cost of FBS provided | C62: =SUM(C57:C61) -> 207755533 | D62: =SUM(D57:D61) -> 0 | E62: 0 | F62: 0 | G62: 0 | H62: 0 | I62: 7377764 | J62: 7377764 | K62: 215133297 | L62: 217312289 | M62: 227308656
A64: Highest level of free service provided
A65: Property rates (R'000 value threshold) | C65: 4250 | D65: 0 | E65: 0 | F65: 0 | G65: 0 | H65: 0 | I65: 0 | J65: =SUM(E65:I65) -> 0 | K65: =IF(D65=0,C65+J65,D65+J65) -> 4250 | L65: 4300 | M65: 4300
A66: Water (kilolitres per household per month) | C66: 6 | D66: 0 | E66: 0 | F66: 0 | G66: 0 | H66: 0 | I66: 0 | J66: 0 | K66: 6 | L66: 6 | M66: 6
A67: Sanitation (kilolitres per household per month) | J67: 0 | K67: 0
A68: Sanitation (Rand per household per month) | J68: 0 | K68: 0
A69: Electricity (kw per household per month) | C69: 50 | D69: 0 | E69: 0 | F69: 0 | G69: 0 | H69: 0 | I69: 0 | J69: 0 | K69: 50 | L69: 50 | M69: 50
A70: Refuse (average litres per week) | C70: 240 | D70: 0 | E70: 0 | F70: 0 | G70: 0 | H70: 0 | I70: 0 | J70: 0 | K70: 240 | L70: 240 | M70: 240
A71: Revenue cost of free services provided (R'000) | B71: 17
A72: Property rates (tariff adjustment) ( impermissable values per section 17 of MPRA) | C72: 0 | D72: 0 | E72: 0 | F72: 0 | G72: 0 | H72: 0 | I72: 0 | J72: =SUM(E72:I72) -> 0 | K72: =IF(D72=0,C72+J72,D72+J72) -> 0 | L72: 0 | M72: 0
A73: Property rates exemptions, reductions and rebates and impermissable values in excess of section 17 of MPRA) | C73: ='SB1'!C10 -> 104865602 | D73: ='SB1'!D10 -> 0 | E73: ='SB1'!E10 -> 0 | F73: ='SB1'!F10 -> 0 | G73: ='SB1'!G10 -> 0 | H73: ='SB1'!H10 -> 0 | I73: ='SB1'!I10 -> 0 | J73: 0 | K73: 104865602 | L73: ='SB1'!L10 -> 189035446 | M73: ='SB1'!M10 -> 197731077
A74: Water (in excess of 6 kilolitres per indigent household per month) | C74: ='SB1'!C22 -> 0 | D74: ='SB1'!D22 -> 0 | E74: ='SB1'!E22 -> 0 | F74: ='SB1'!F22 -> 0 | G74: ='SB1'!G22 -> 0 | H74: ='SB1'!H22 -> 0 | I74: ='SB1'!I22 -> 0 | J74: 0 | K74: 0 | L74: ='SB1'!L22 -> 0 | M74: ='SB1'!M22 -> 0
A75: Sanitation (in excess of free sanitation service to indigent households) | C75: ='SB1'!C28 -> 0 | D75: ='SB1'!D28 -> 0 | E75: ='SB1'!E28 -> 0 | F75: ='SB1'!F28 -> 0 | G75: ='SB1'!G28 -> 0 | H75: ='SB1'!H28 -> 0 | I75: ='SB1'!I28 -> 0 | J75: 0 | K75: 0 | L75: ='SB1'!L28 -> 0 | M75: ='SB1'!M28 -> 0
A76: Electricity/other energy (in excess of 50 kwh per indigent household per month) | C76: ='SB1'!C16 -> 0 | D76: ='SB1'!D16 -> 0 | E76: ='SB1'!E16 -> 0 | F76: ='SB1'!F16 -> 0 | G76: ='SB1'!G16 -> 0 | H76: ='SB1'!H16 -> 0 | I76: ='SB1'!I16 -> 0 | J76: 0 | K76: 0 | L76: ='SB1'!L16 -> 0 | M76: ='SB1'!M16 -> 0
A77: Refuse (in excess of one removal a week for indigent households) | C77: ='SB1'!C35 -> 0 | D77: ='SB1'!D35 -> 0 | E77: ='SB1'!E35 -> 0 | F77: ='SB1'!F35 -> 0 | G77: ='SB1'!G35 -> 0 | H77: ='SB1'!H35 -> 0 | I77: ='SB1'!I35 -> 0 | J77: 0 | K77: 0 | L77: ='SB1'!L35 -> 0 | M77: ='SB1'!M35 -> 0
A78: Municipal Housing - rental rebates | J78: 0 | K78: 0
A79: Housing - top structure subsidies | B79: 6 | J79: 0 | K79: 0
A80: Other | J80: 0 | K80: 0
A81: Total revenue cost of subsidised services provided | C81: =SUM(C72:C80) -> 104865602 | D81: =SUM(D72:D80) -> 0 | E81: 0 | F81: 0 | G81: 0 | H81: 0 | I81: 0 | J81: 0 | K81: 104865602 | L81: 189035446 | M81: 197731077
A82: =head27a -> References
A83: 1. Include services provided by another entity; e.g. Eskom
A84: 2. Stand distance > 200m from dwelling
A85: 3. Stand distance <= 200m from dwelling
A86: 4. Borehole, spring, rain-water tank etc.
A87: 5. Must agree to total number of households in municipal area
A88: 6. Include value of subsidy provided by municipality above provincial subsidy level
A89: 7. Only complete if a previous adjusted budget has been approved in the same financial year. Reflect most recent adjusted budget.
A90: 8. Additional cash-backed accumulated funds/unspent funds (MFMA section 18(1)(b) and section 28(2)(e)) identified after the Original Budget approved and after annual financial statements audited (note: only where underspending could not reasonably have been foreseen)
A91: 9. Increases of funds approved under MFMA section 31
A92: 10. Adjustments approved in accordance with MFMA section 29
A93: 11. Adjustments to transfers from National or Provincial Government
A94: 12. Adjusts. = 'Other' Adjustments proposed to be approved; including revenue under-collection (MFMA section 28(2)(a)); additional revenue appropriation on existing programmes (section 28(2))(b); projected savings (section 28(2)(d)); error correction (section 28(2)(f))
A95: 13. G = B + C + D + E + F
A96: 14. Adjusted Budget H = (A or A1) + G
A97: 15. Show number of households receiving at least these levels of services completely free
A98: 16. Must reflect the cost to the municipality of providing the Free Basic Service
A99: 17.Reflect the cost of free or subsidised services in excess to the National policy that are not funded from the Free Basic Services component of the Equitable Share

Sheet SB1
A1: =muni&" - "&ADJB1&" - "&Date -> NW403 City Of Matlosana - Supporting Table SB1 Supporting detail to 'Budgeted Financial Performance' - 45811
A2: =desc -> Description | B2: =head27 -> Ref | C2: =Head2 -> Budget Year 2024/25 | L2: =Head10 -> Budget Year +1 2025/26 | M2: =Head11 -> Budget Year +2 2026/27
C3: =Head6 -> Original Budget | D3: =Head54 -> Prior Adjusted | E3: =Head51 -> Accum. Funds | F3: =Head52 -> Multi-year capital | G3: =Head53 -> Unfore. Unavoid. | H3: =Head55 -> Nat. or Prov. Govt | I3: =Head50 -> Other Adjusts. | J3: =Head56 -> Total Adjusts. | K3: =Head7 -> Adjusted Budget | L3: =Head7 -> Adjusted Budget | M3: =Head7 -> Adjusted Budget
D4: 6 | E4: 7 | F4: 8 | G4: 9 | H4: 10 | I4: 11 | J4: 12 | K4: 13
A5: R thousands | C5: A | D5: A1 | E5: B | F5: C | G5: D | H5: E | I5: F | J5: G | K5: H
A6: REVENUE ITEMS
A7: Non-exchange revenue by source
A8: Property rates
A9: Total Property Rates | C9: 698549994 | D9: 0 | E9: 0 | F9: 0 | G9: 0 | H9: 0 | I9: -90000000 | J9: =SUM(E9:I9) -> -90000000 | K9: =IF(D9=0,C9+J9,D9+J9) -> 608549994 | L9: 805405397 | M9: 842454045
A10: Less Revenue Foregone (exemptions, reductions and rebates and impermissable values in excess of section 17 of MPRA) | C10: 104865602 | D10: 0 | E10: 0 | F10: 0 | G10: 0 | H10: 0 | I10: 0 | J10: =SUM(E10:I10) -> 0 | K10: =IF(D10=0,C10+J10,D10+J10) -> 104865602 | L10: 189035446 | M10: 197731077
A11: Net Property Rates | C11: =C9-C10 -> 593684392 | D11: =D9-D10 -> 0 | E11: 0 | F11: 0 | G11: 0 | H11: 0 | I11: -90000000 | J11: -90000000 | K11: 503684392 | L11: 616369951 | M11: 644722968
A13: Exchange revenue service charges
A14: Service charges - Electricity
A15: Total Service charges - Electricity | C15: 1149624031 | D15: 0 | E15: 0 | F15: 0 | G15: 0 | H15: 0 | I15: -42622236 | J15: =SUM(E15:I15) -> -42622236 | K15: =IF(D15=0,C15+J15,D15+J15) -> 1107001795 | L15: 1202506743 | M15: 1257822054
A16: Less Revenue Foregone (in excess of 50 kwh per indigent household per month) | J16: =SUM(E16:I16) -> 0 | K16: =IF(D16=0,C16+J16,D16+J16) -> 0
A17: Less Cost of Free Basis Services (50 kwh per indigent household per month) | C17: ='SB5'!E250 -> 40488044 | D17: ='SB5'!F250 -> 0 | E17: ='SB5'!G250 -> 0 | F17: ='SB5'!H250 -> 0 | G17: ='SB5'!I250 -> 0 | H17: ='SB5'!J250 -> 0 | I17: ='SB5'!K250 -> 7377764 | J17: =SUM(E17:I17) -> 7377764 | K17: =IF(D17=0,C17+J17,D17+J17) -> 47865808 | L17: ='SB5'!N250 -> 42350495 | M17: ='SB5'!O250 -> 44298618
A18: Net Service charges - Electricity | C18: =C15-C16-C17 -> 1109135987 | D18: =D15-D16-D17 -> 0 | E18: 0 | F18: 0 | G18: 0 | H18: 0 | I18: -50000000 | J18: -50000000 | K18: 1059135987 | L18: 1160156248 | M18: 1213523436
A20: Service charges - Water
A21: Total Service charges - water | C21: 952737617 | D21: 0 | E21: 0 | F21: 0 | G21: 0 | H21: 0 | I21: 0 | J21: =SUM(E21:I21) -> 0 | K21: =IF(D21=0,C21+J21,D21+J21) -> 952737617 | L21: 996563548 | M21: 1042405472
A22: Less Revenue Foregone (in excess of 6 kilolitres per indigent household per month) | J22: =SUM(E22:I22) -> 0 | K22: =IF(D22=0,C22+J22,D22+J22) -> 0
A23: Less Cost of Free Basis Services (6 kilolitres per indigent household per month) | C23: ='SB5'!E262 -> 107732165 | D23: ='SB5'!F262 -> 0 | E23: ='SB5'!G262 -> 0 | F23: ='SB5'!H262 -> 0 | G23: ='SB5'!I262 -> 0 | H23: ='SB5'!J262 -> 0 | I23: ='SB5'!K262 -> 0 | J23: =SUM(E23:I23) -> 0 | K23: =IF(D23=0,C23+J23,D23+J23) -> 107732165 | L23: ='SB5'!N262 -> 112687845 | M23: ='SB5'!O262 -> 117871487
A24: Net Service charges - Water | C24: =C21-C22-C23 -> 845005452 | D24: =D21-D22-D23 -> 0 | E24: 0 | F24: 0 | G24: 0 | H24: 0 | I24: 0 | J24: =J21-J22-J23 -> 0 | K24: 845005452 | L24: 883875703 | M24: 924533985
A26: Service charges - Waste Water Management
A27: Total Service charges - Waste Water Management | C27: 203988667 | D27: 0 | E27: 0 | F27: 0 | G27: 0 | H27: 0 | I27: 0 | J27: =SUM(E27:I27) -> 0 | K27: =IF(D27=0,C27+J27,D27+J27) -> 203988667 | L27: 213372148 | M27: 223187266
A28: Less Revenue Foregone (in excess of free sanitation service to indigent households) | J28: =SUM(E28:I28) -> 0 | K28: =IF(D28=0,C28+J28,D28+J28) -> 0
A29: Less Cost of Free Basis Services (free sanitation service to indigent households) | C29: ='SB5'!E274 -> 27535324 | D29: ='SB5'!F274 -> 0 | E29: ='SB5'!G274 -> 0 | F29: ='SB5'!H274 -> 0 | G29: ='SB5'!I274 -> 0 | H29: ='SB5'!J274 -> 0 | I29: ='SB5'!K274 -> 0 | J29: =SUM(E29:I29) -> 0 | K29: =IF(D29=0,C29+J29,D29+J29) -> 27535324 | L29: ='SB5'!N274 -> 28801949 | M29: ='SB5'!O274 -> 30126839
A30: Net Service charges - Waste Water Management | C30: =C27-C28-C29 -> 176453343 | D30: =D27-D28-D29 -> 0 | E30: 0 | F30: 0 | G30: 0 | H30: 0 | I30: 0 | J30: 0 | K30: 176453343 | L30: 184570199 | M30: 193060427
C31: .
A32: Service charges - Waste Management
A33: Total refuse removal revenue | C33: 251500000 | D33: 0 | E33: 0 | F33: 0 | G33: 0 | H33: 0 | I33: 0 | J33: =SUM(E33:I33) -> 0 | K33: =IF(D33=0,C33+J33,D33+J33) -> 251500000 | L33: 263069000 | M33: 275170174
A34: Total landfill revenue | J34: =SUM(E34:I34) -> 0 | K34: =IF(D34=0,C34+J34,D34+J34) -> 0
A35: Less Revenue Foregone (in excess of one removal a week to indigent households) | J35: =SUM(E35:I35) -> 0 | K35: =IF(D35=0,C35+J35,D35+J35) -> 0
A36: Less Cost of Free Basis Services (removed once a week to indigent households) | C36: ='SB5'!E286 -> 32000000 | D36: ='SB5'!F286 -> 0 | E36: ='SB5'!G286 -> 0 | F36: ='SB5'!H286 -> 0 | G36: ='SB5'!I286 -> 0 | H36: ='SB5'!J286 -> 0 | I36: ='SB5'!K286 -> 0 | J36: =SUM(E36:I36) -> 0 | K36: =IF(D36=0,C36+J36,D36+J36) -> 32000000 | L36: ='SB5'!N286 -> 33472000 | M36: ='SB5'!O286 -> 35011712
A37: Service charges - Waste Management | C37: =SUM(C33:C34)-SUM(C35:C36) -> 219500000 | D37: =SUM(D33:D34)-SUM(D35:D36) -> 0 | E37: 0 | F37: 0 | G37: 0 | H37: 0 | I37: 0 | J37: 0 | K37: 219500000 | L37: 229597000 | M37: 240158462
A42: EXPENDITURE ITEMS
A43: Employee related costs
A44: Basic Salaries and Wages | C44: 500360124 | D44: 0 | E44: 0 | F44: 0 | G44: 0 | H44: 0 | I44: 8964278 | J44: =SUM(E44:I44) -> 8964278 | K44: =IF(D44=0,C44+J44,D44+J44) -> 509324402 | L44: 519401920 | M44: 543294414
A45: Pension and UIF Contributions | C45: 107633046 | D45: 0 | E45: 0 | F45: 0 | G45: 0 | H45: 0 | I45: -5739864 | J45: -5739864 | K45: 101893182 | L45: 112584254 | M45: 117763119
A46: Medical Aid Contributions | C46: 48820231 | D46: 0 | E46: 0 | F46: 0 | G46: 0 | H46: 0 | I46: -3599122 | J46: -3599122 | K46: 45221109 | L46: 51065988 | M46: 53415027
A47: Overtime | C47: 32817434 | D47: 0 | E47: 0 | F47: 0 | G47: 0 | H47: 0 | I47: 23896699 | J47: 23896699 | K47: 56714133 | L47: 42908816 | M47: 44882620
A48: Performance Bonus | C48: 42091208 | D48: 0 | E48: 0 | F48: 0 | G48: 0 | H48: 0 | I48: -241964 | J48: -241964 | K48: 41849244 | L48: 44027428 | M48: 46052691
A49: Motor Vehicle Allowance | C49: 963422 | D49: 0 | E49: 0 | F49: 0 | G49: 0 | H49: 0 | I49: -255824 | J49: =SUM(E49:I49) -> -255824 | K49: =IF(D49=0,C49+J49,D49+J49) -> 707598 | L49: 1007744 | M49: 1054102
A50: Cellphone Allowance | C50: 2358894 | D50: 0 | E50: 0 | F50: 0 | G50: 0 | H50: 0 | I50: -397118 | J50: =SUM(E50:I50) -> -397118 | K50: =IF(D50=0,C50+J50,D50+J50) -> 1961776 | L50: 2467434 | M50: 2580930
A51: Housing Allowances | C51: 8861787 | D51: 0 | E51: 0 | F51: 0 | G51: 0 | H51: 0 | I51: -1924448 | J51: =SUM(E51:I51) -> -1924448 | K51: =IF(D51=0,C51+J51,D51+J51) -> 6937339 | L51: 9269450 | M51: 9695842
A52: Other benefits and allowances | C52: 35175302 | D52: 0 | E52: 0 | F52: 0 | G52: 0 | H52: 0 | I52: 759394 | J52: 759394 | K52: 35934696 | L52: 36758413 | M52: 38449305
A53: Payments in lieu of leave | C53: 15600457 | D53: 0 | E53: 0 | F53: 0 | G53: 0 | H53: 0 | I53: 529993 | J53: 529993 | K53: 16130450 | L53: 16318101 | M53: 17068734
A54: Long service awards | C54: 0 | D54: 0 | E54: 0 | F54: 0 | G54: 0 | H54: 0 | I54: 0 | J54: 0 | K54: 0 | L54: 0 | M54: 0
A55: Post-retirement benefit obligations | B55: 4 | C55: 0 | D55: 0 | E55: 0 | F55: 0 | G55: 0 | H55: 0 | I55: 0 | J55: =SUM(E55:I55) -> 0 | K55: =IF(D55=0,C55+J55,D55+J55) -> 0 | L55: 0 | M55: 0
A56: Entertainment | C56: 0 | D56: 0 | E56: 0 | F56: 0 | G56: 0 | H56: 0 | I56: 0 | J56: =SUM(E56:I56) -> 0 | K56: =IF(D56=0,C56+J56,D56+J56) -> 0 | L56: 0 | M56: 0
A57: Scarcity | C57: 0 | D57: 0 | E57: 0 | F57: 0 | G57: 0 | H57: 0 | I57: 0 | J57: =SUM(E57:I57) -> 0 | K57: =IF(D57=0,C57+J57,D57+J57) -> 0 | L57: 0 | M57: 0
